Workbook

Sheet Family Info (hidden)
E2: Family Information | Y2: PA1 | DA2: Switch | DB2: Yes | DC2: Yes
S3: Family Info. Summary | V3: =IFERROR(IF($T$4="Split",$T$7+$V$7&" "&"Children",IF($N$9>1,$N$9&" "&"Children",$N$9&" "&"Child"))," ") -> 0 Child | AB3: Speedometer | AE3: Pointer | DC3: No
S4: Custody: | T4: =IFERROR(IF($J$7="Yes","Sole",IF(AND($V$9="Yes",$I$11="Sole"),"Sole",IF(AND($J$7="No",$V$9="No",$N$9=1,$I$11="Sole"),"Sole",IF(AND($J$7="No",$V$9="No",$N$9=1,$I$11="Shared"),"Shared",IF(AND($V$9="Yes",$I$11="Shared"),"Shared",IF(AND($V$9="No",$I$16="Yes"),"Split",IF(AND($V$9="No",$AD$27="Multi-Shared"),"Multi-Shared",IF(AND($V$9="No",$AD$29="Sole-Shared"),"Sole-Shared",IF(AND($V$9="No",$AD$29="Split-Shared"),"Split-Shared"," ")))))))))," ") -> Sole | V4: =IF($T$4="Sole-Shared","Sole"," ") ->  | W4: =IF($T$4="Sole-Shared","Shared"," ") ->  | AB4: Start | AC4: 0 | AE4: Value | AF4: =Info!U38 -> 0
F5: Parent A's Name | L5: Parent B's Name | S5: =IF(OR(T4="Sole-Shared",T4="Sole"),"Custodian:"," ") -> Custodian: | T5: =IFERROR(IF($T$4="Sole-Shared",$AC$35,IF(AND($J7="No",$T$4="Sole"),$N$11,IF(AND($T$4="Sole",$J$7="Yes"),$AB$23,IF($T$4="Split-Shared",$AB$19," "))))," ") -> 0 | V5: =IF($T$4="Sole-Shared",$AC$33,IF($T$4="Split-Shared",$AB$20," ")) ->  | W5: =IF($T$4="Sole-Shared",$AC$34," ") ->  | AB5: Initial | AC5: 15 | AE5: Pointer | AF5: 1
S6: =IF(OR($T$4="Shared",$T$4="Sole-Shared",$T$4="Split-Shared"),"Day Count",IF($T$4="Split","Split Cust.",IF(T4="Multi-Shared","Ave Day Count"," "))) ->  | T6: =TRIM(IFERROR(IF($T$4="Sole"," ",IF(OR($T$4="Split",$T$4="Shared",$T$4="Sole-Shared",$T$4="Multi-Shared"),$AB$19,IF(AND($T$4="Split-Shared",$T$5=$U$19),W18,365-W18)))," ")) ->  | V6: =TRIM(IFERROR(IF($T$4="Sole"," ",IF(OR($T$4="Split",$T$4="Shared",$T$4="Sole-Shared",$T$4="Multi-Shared"),$AB$20,IF(AND($T$4="Split-Shared",$V$5=$U$19),W18,365-W18)))," ")) ->  | W6: =IF($T$4="Split-Shared","Shared"," ") ->  | AB6: Middle | AC6: 45 | AE6: End | AF6: =200-(AF5+AF4) -> 199
B7: Getting Started | F7: Is there a third party caretaker | J7: No | L7: Third Party Caretaker's Name | S7: =IF(OR($T$4="Split",T4="Split-Shared"),"Child Count"," ") ->  | T7: 175 | V7: 190 | W7: =IF(W6="Shared",N9-(T7+V7)," ") ->  | AB7: End | AC7: 40
AB8: Max | AC8: 100
B9: Family Information | F9: =IF($N$9=1,"Child's information","Children's Information") -> Children's Information | K9: Number of Children | N9: 0 | P9: Are the children on the same parenting schedule? | V9: Yes
L10: =IF($J$7="Yes"," ","Does not apply to Split Custody") -> Does not apply to Split Custody
B11: Income | F11: Custody Type | I11: Sole | L11: Custodial Parent | R11: ="The day count for "&" "&$AB$19 -> The day count for
B13: Health Care
B15: Day Care
F16: Split Custody Arrangement | I16: Yes | L16: ="# of childen living with"&" "&$AB$19 -> # of childen living with | R16: ="# of childen living with"&" "&$AB$20 -> # of childen living with | AC16: DropDown
B17: Results | AC17: Yes
S18: =IF(AD27="Multi-Shared","Multi-Shared: Day-Count",IF(AD29="Sole-Shared","Sole-Shared: Day-Count",IF(AD29="Split-Shared","Split-Shared: Day-Count"," "))) ->  | AC18: No
B19: Save Work | F19: First Name | K19: Custody Type | M19: =IF(AND($N$9=2,$K$20="Shared",$K$22="Shared")," ",IF(AND($N$9=3,$K$20="Shared",$K$22="Shared",$K$24="Shared")," ",IF(AND($N$9=4,$K$20="Shared",$K$22="Shared",$K$24="Shared",$K$26="Shared")," ",IF(AND($N$9=5,$K$20="Shared",$K$22="Shared",$K$24="Shared",$K$26="Shared",$K$28="Shared")," ",IF(AND($N$9=6,$K$20="Shared",$K$22="Shared",$K$24="Shared",$K$26="Shared",$K$28="Shared",$K$30="Shared")," ","Custodial Parent"))))) -> Custodial Parent | S19: For this parent | Z19: Yes | AA19: Sole | AB19: =TRIM(Info!$J$3) ->  | AC19: TRUE | AE19: 2 Kids | AG19: =TRIM($AB$19) ->  | AH19: =TRIM($AB$20) ->  | AO19: 3 Kids | AQ19: =TRIM(AB19) ->  | AR19: =TRIM(AB20) ->  | AV19: 4 Kids | AX19: =TRIM($AB$19) ->  | AY19: =TRIM($AB$20) ->  | BC19: 5 Kids | BE19: =TRIM($AB$19) ->  | BF19: =TRIM($AB$20) ->  | BJ19: 6 Kids | BL19: =TRIM($AB$19) ->  | BM19: =TRIM($AB$20) ->  | BO19: Multishare Day Count | BT19: Multishare Day Count | BY19: Multishare Day Count
F20: Child One | Z20: No | AA20: Shared | AB20: =TRIM(Info!$J$4) ->  | AD20: 1 | AE20: =IF($K$20=" ",0,$K$20) -> 0 | AF20: =IF($AE$20="Shared"," ",$M$20) -> 0 | AG20: =IF(AND($AE$20="Sole",$AF$20=$AG$19),$AF$20," ") ->  | AH20: =IF(AND($AE$20="Sole",$AF$20=$AH$19),$AF$20," ") ->  | AN20: 1 | AO20: =$AE$20 -> 0 | AP20: =IF($AO$20="Shared"," ",$M$20) -> 0 | AQ20: =IF(AND($AO$20="Sole",$AP$20=$AQ$19),$AQ$19," ") ->  | AR20: =IF(AND($AO$20="Sole",$AP$20=$AR$19),$AR$19," ") ->  | AU20: 1 | AV20: =$AE$20 -> 0 | AW20: =$M$20 -> 0 | AX20: =IF(AND($AV$20="Sole",$AW$20=$AX$19),$AW$20," ") ->  | AY20: =IF(AND($AV$20="Sole",$AW$20=$AY$19),$AW$20," ") ->  | BB20: 1 | BC20: =AE20 -> 0 | BD20: =$M$20 -> 0 | BE20: =IF(AND($BC20="Sole",$BD20=$BE$19),$BD20," ") ->  | BF20: =IF(AND($BC20="Sole",$BD20=$BF$19),$BD20," ") ->  | BI20: 1 | BJ20: =BC20 -> 0 | BK20: =$M$20 -> 0 | BL20: =IF(AND($BJ$20="Sole",$BK$20=$BL$19),$BK$20," ") ->  | BM20: =IF(AND($BJ$20="Sole",$BK$20=$BM$19),$BK$20," ") ->  | BP20: =TRIM($AB$19) ->  | BQ20: =TRIM($AB$20) ->  | BR20: Mround | BU20: =$AB$20 ->  | BV20: =$AB$19 ->  | BW20: Mround | BY20: Vlookup | BZ20: Pick | CA20: other
B21: Calculator Reset | AD21: 2 | AE21: =IF($K$22=" ",0,$K$22) -> 0 | AF21: =IF($AE$21="Shared"," ",$M$22) -> 0 | AG21: =IF(AND($AE$21="Sole",$AF$21=$AG$19),$AF$21," ") ->  | AH21: =IF(AND($AE$21="Sole",$AF$21=$AH$19),$AF$21," ") ->  | AN21: 2 | AO21: =$AE$21 -> 0 | AP21: =IF($AO$21="Shared"," ",$M$22) -> 0 | AQ21: =IF(AND($AO$21="Sole",$AP$21=$AQ$19),$AQ$19," ") ->  | AR21: =IF(AND($AO$21="Sole",$AP$21=$AR$19),$AR$19," ") ->  | AU21: 2 | AV21: =$AE$21 -> 0 | AW21: =$M$22 -> 0 | AX21: =IF(AND($AV$21="Sole",$AW$21=$AX$19),$AW$21," ") ->  | AY21: =IF(AND($AV$21="Sole",$AW$21=$AY$19),$AW$21," ") ->  | BB21: 2 | BC21: =$AE$21 -> 0 | BD21: =$M$22 -> 0 | BE21: =IF(AND($BC21="Sole",$BD21=$BE$19),$BD21," ") ->  | BF21: =IF(AND($BC21="Sole",$BD21=$BF$19),$BD21," ") ->  | BI21: 2 | BJ21: =BC21 -> 0 | BK21: =$M$22 -> 0 | BL21: =IF(AND($BJ$21="Sole",$BK$21=$BL$19),$BK$21," ") ->  | BM21: =IF(AND($BJ$21="Sole",$BK$21=$BM$19),$BK$21," ") ->  | BO21: 2 | BP21: =MROUND(($U$20+$U$22)/2,BR21) -> 0 | BQ21: =365-$BP$21 -> 365 | BR21: 0.5 | BT21: 2 | BU21: =MROUND(($U$20+$U$22)/2,$BR$21) -> 0 | BV21: =365-$BP$21 -> 365 | BW21: 0.5 | BY21: =$BP$20 ->  | BZ21: =VLOOKUP($AD$26,$BO$21:$BP$25,2,FALSE) ->  | CA21: =VLOOKUP($AD$26,$BT$21:$BV$25,3,FALSE) -> 
F22: Child Two | AE22: =AND($AE$20=$AE$20:$AE$21) -> TRUE | AG22: =COUNTIF(AG20:AG21,AG19) -> 0 | AH22: =COUNTIF(AH20:AH21,AH19) -> 0 | AN22: 3 | AO22: =IF($K$24=" ",0,$K$24) -> 0 | AP22: =IF($AO$22="Shared"," ",$M$24) -> 0 | AQ22: =IF(AND($AO$22="Sole",$AP$22=$AQ$19),$AQ$19," ") ->  | AR22: =IF(AND($AO$22="Sole",$AP$22=$AR$19),$AR$19," ") ->  | AU22: 3 | AV22: =IF($K$24=" ",0,$K$24) -> 0 | AW22: =$M$24 -> 0 | AX22: =IF(AND($AV$22="Sole",$AW$22=$AX$19),$AW$22," ") ->  | AY22: =IF(AND($AV$22="Sole",$AW$22=$AY$19),$AW$22," ") ->  | BB22: 3 | BC22: =$AV$22 -> 0 | BD22: =$M$24 -> 0 | BE22: =IF(AND($BC22="Sole",$BD22=$BE$19),$BD22," ") ->  | BF22: =IF(AND($BC22="Sole",$BD22=$BF$19),$BD22," ") ->  | BI22: 3 | BJ22: =BC22 -> 0 | BK22: =$M$24 -> 0 | BL22: =IF(AND($BJ$22="Sole",$BK$22=$BL$19),$BK$22," ") ->  | BM22: =IF(AND($BJ22="Sole",$BK22=$BM$19),$BK$22," ") ->  | BO22: 3 | BP22: =MROUND(($U$20+$U$22+$U$24)/3,BR21) -> 0 | BQ22: =365-$BP$22 -> 365 | BT22: 3 | BU22: =MROUND(($U$20+$U$22+$U$24)/3,$BR$21) -> 0 | BV22: =365-$BP$22 -> 365 | BY22: =$BQ$20 ->  | BZ22: =VLOOKUP($AD$26,$BT$21:$BU$25,2,FALSE) ->  | CA22: =VLOOKUP($AD$26,$BO$21:$BQ$25,3,FALSE) -> 
AA23: Caretaker | AB23: =Info!$J$5 ->  | AE23: =IF(OR(AE20=0,AE21=0,AND($K$20="Sole",$K$22="Sole"))," ",IF($AE$22=TRUE,"Multi-Shared","Sole-Shared")) ->  | AG23: CP | AH23: =IF(AND(AE23="Sole-Shared",AG22>0),AG19,IF(AND(AE23="Sole-Shared",AH22>0),AH19,"Not Apply")) -> Not Apply | AN23: Analysis | AO23: =AND($AO$20=$AO$20:$AO$22) -> TRUE | AP23: =IF(OR($AQ$23=0,$AR$23=0),"Sole-Shared","Split-Shared") -> Sole-Shared | AQ23: =COUNTIF($AQ$20:$AQ$22,$AQ$19) -> 0 | AR23: =COUNTIF($AR$20:$AR$22,$AR$19) -> 0 | AU23: 4 | AV23: =IF($K$26=" ",0,$K$26) -> 0 | AW23: =$M$26 -> 0 | AX23: =IF(AND($AV$23="Sole",$AW$23=$AX$19),$AX$19," ") ->  | AY23: =IF(AND($AV$23="Sole",$AW$23=$AY$19),$AW$23," ") ->  | BB23: 4 | BC23: =$AV$23 -> 0 | BD23: =$M$26 -> 0 | BE23: =IF(AND($BC23="Sole",$BD23=$BE$19),$BD23," ") ->  | BF23: =IF(AND($BC23="Sole",$BD23=$BF$19),$BD23," ") ->  | BI23: 4 | BJ23: =BC23 -> 0 | BK23: =$M$26 -> 0 | BL23: =IF(AND($BJ$23="Sole",$BK$23=$BL$19),$BK$23," ") ->  | BM23: =IF(AND($BJ23="Sole",$BK23=$BM$19),$BK$23," ") ->  | BO23: 4 | BP23: =MROUND(($U$20+$U$22+$U$24+$U$26)/4,$BR$21) -> 0 | BQ23: =365-$BP$23 -> 365 | BT23: 4 | BU23: =MROUND(($U$20+$U$22+$U$24+$U$26)/4,$BR$21) -> 0 | BV23: =365-$BP$23 -> 365
F24: Child Three | AN24: Custody | AO24: =IF(OR($AO$20=0,$AO$21=0,$AO$22=0,AND($AO$20="Sole",$AO$21="Sole",$AO$22="Sole"))," ",IF($AO$23=TRUE,"Multi-Shared","Other")) ->  | AP24: =$AP$23 -> Sole-Shared | AV24: =IF(AND($AV$20=$AV$21,$AV$20=$AV$22,$AV$20=$AV$23),"TRUE") -> TRUE | AW24: =IF(OR(AX24=0,AY24=0),"Sole-Shared","Split-Shared") -> Sole-Shared | AX24: =COUNTIF(AX20:AX23,AX19) -> 0 | AY24: =COUNTIF(AY20:AY23,AY19) -> 0 | BB24: 5 | BC24: =IF($K$28=" ",0,$K$28) -> 0 | BD24: =$M$28 -> 0 | BE24: =IF(AND($BC24="Sole",$BD24=$BE$19),$BD24," ") ->  | BF24: =IF(AND($BC24="Sole",$BD24=$BF$19),$BD24," ") ->  | BI24: 5 | BJ24: =BC24 -> 0 | BK24: =$M$28 -> 0 | BL24: =IF(AND($BJ$24="Sole",$BK$24=$BL$19),$BK$24," ") ->  | BM24: =IF(AND($BJ24="Sole",$BK24=$BM$19),$BK$24," ") ->  | BO24: 5 | BP24: =MROUND(($U$20+$U$22+$U$24+$U$26+$U$28)/5,$BR$21) -> 0 | BQ24: =365-$BP$24 -> 365 | BT24: 5 | BU24: =MROUND(($U$20+$U$22+$U$24+$U$26+$U$28)/5,$BR$21) -> 0 | BV24: =365-$BP$24 -> 365
AN25: Sole | AO25: =COUNTIF($AO$20:$AO$22,"Sole") -> 0 | AP25: Shared | AQ25: =COUNTIF($AO$20:$AO$22,"Shared") -> 0 | AR25: =IF(AND($AP$24="Sole-Shared",$AQ$23>0),$AQ$19,IF(AND($AP$24="Sole-Shared",$AR$23>0),$AR$19,"Not Apply ")) -> Not Apply | AU25: Mcustody | AV25: =IF(OR($AV$20=0,$AV$21=0,$AV$22=0,$AV$23=0,$AV$20=" ",$AV$21=" ",$AV$22=" ",$AV$23=" ",$AV$26=4,)," ",IF($AV$24="TRUE","Multi-Shared","Other")) ->  | AW25: =$AW$24 -> Sole-Shared | AX25: CP | AY25: =IF(AND(AW25="Sole-Shared",AX24>0),AX19,IF(AND(AW25="Sole-Shared",AY24>0),$AY$19,"Not Apply")) -> Not Apply | BC25: =IF(AND(BC20=BC21,BC20=BC22,BC20=BC23,BC20=BC24),"TRUE") -> TRUE | BD25: =IF(OR($BE$25=0,$BF$25=0),"Sole-Shared","Split-Shared") -> Sole-Shared | BE25: =COUNTIF($BE$20:$BE$24,$BE$19) -> 0 | BF25: =COUNTIF($BF$20:$BF$24,$BF$19) -> 0 | BI25: 6 | BJ25: =IF($K$30=" ",0,$K$30) -> 0 | BK25: =$M$30 -> 0 | BL25: =IF(AND($BJ$25="Sole",$BK$25=$BL$19),$BK$25," ") ->  | BM25: =IF(AND($BJ25="Sole",$BK25=$BM$19),$BK$25," ") ->  | BO25: 6 | BP25: =MROUND(($U$20+$U$22+$U$24+$U$26+$U$28+$U$30)/6,$BR$21) -> 0 | BQ25: =365-$BP$25 -> 365 | BT25: 6 | BU25: =MROUND(($U$20+$U$22+$U$24+$U$26+$U$28+$U$30)/6,$BR$21) -> 0 | BV25: =365-$BP$25 -> 365
F26: Child Four | AC26: Factor | AD26: =$N$9 -> 0 | AE26: # of Kids | AF26: Multishare | AH26: # of Kids | AI26: Complex Custody | AU26: Sole | AV26: =COUNTIF($AV$20:$AV$23,"Sole") -> 0 | AW26: Shared | AX26: =COUNTIF(AV20:AV23,"Shared") -> 0 | BB26: Mcustody | BC26: =IF(OR($BC$20=0,$BC$21=0,$BC$22=0,$BC$23=0,BC24=0,$BC$20=" ",$BC$21=" ",$BC$22=" ",$BC$23=" ",$BC$24=" ",$AB$27=5,)," ",IF($BC$25="TRUE","Multi-Shared","Other")) ->  | BD26: =$BD$25 -> Sole-Shared | BE26: CP | BF26: =IF(AND($BD$26="Sole-Shared",$BE$25>0),$BE$19,IF(AND($BD$26="Sole-Shared",$BF$25>0),$BF$19,"Not Apply")) -> Not Apply | BJ26: =IF(AND($BJ$20=$BJ$21,$BJ$20=$BJ$22,$BJ$20=$BJ$23,$BJ$20=$BJ$24,$BJ$20=$BJ$25),"TRUE") -> TRUE | BK26: =IF(OR($BL$26=0,$BM$26=0),"Sole-Shared","Split-Shared") -> Sole-Shared | BL26: =COUNTIF($BL$20:$BL$25,$BL$19) -> 0 | BM26: =COUNTIF($BM$20:$BM$25,$BM$19) -> 0 | BP26: Multiple Day Count Answer
AB27: Multish | AC27: Answer | AD27: =VLOOKUP($AD$26,$AE$27:$AF$31,2,FALSE) ->  | AE27: 2 | AF27: =$AE$23 ->  | AH27: 2 | AI27: =$AE$23 ->  | AL27: # of Kids | AM27: Sole | AN27: Shared | AO27: Custodian | AR27: Split Child Count: | BB27: Sole | BC27: =COUNTIF($BC$20:$BC$24,"Sole") -> 0 | BD27: Shared | BE27: =COUNTIF($BC$20:$BC$24,"Shared") -> 0 | BI27: M-Custody | BJ27: =IF(OR($BJ$20=0,$BJ$21=0,$BJ$22=0,$BJ$23=0,BJ24=0,$BJ$25=0,$BJ$20=" ",$BJ$21=" ",$BJ$22=" ",$BJ$23=" ",$BJ$24=" ",$BJ$25=" ",$AB$28=5,)," ",IF($BJ$26="TRUE","Multi-Shared","Other")) ->  | BK27: =$BK$26 -> Sole-Shared | BL27: CP | BM27: =IF(AND(BK27="Sole-Shared",BL26>0),BL19,IF(AND(BK27="Sole-Shared",BM26>0),BM19,"Not Apply")) -> Not Apply | BP27: =BP20 ->  | BQ27: =IF($U$19=$AB$19,$BZ$21,IF($U$19=$AB$20,$CA$21," ")) ->  | BY27: Multishare Day Count for worksheet
F28: Child Five | AE28: 3 | AF28: =$AO$24 ->  | AH28: 3 | AI28: =$AP$24 -> Sole-Shared | AL28: 2 | AM28: 1 | AN28: 1 | AO28: =$AH$23 -> Not Apply | AS28: =$AB$19 ->  | AT28: =$AB$20 ->  | BI28: Sole | BJ28: =COUNTIF($BJ$20:$BJ$25,"Sole") -> 0 | BK28: Shared | BL28: =COUNTIF($BJ$20:$BJ$25,"Shared") -> 0 | BP28: =BQ20 ->  | BQ28: =IF($U$19=$AB$19,$CA$22,IF($U$19=$AB$20,$BZ$22," ")) ->  | BZ28: =AB19 ->  | CA28: =$AB$20 -> 
AB29: Other | AC29: Answer | AD29: =VLOOKUP($AD$26,AH27:AI31,2,FALSE) ->  | AE29: 4 | AF29: =$AV$25 ->  | AH29: 4 | AI29: =$AW$25 -> Sole-Shared | AL29: 3 | AM29: =$AO$25 -> 0 | AN29: =$AQ$25 -> 0 | AO29: =$AR$25 -> Not Apply | AR29: 3 | AS29: =$AQ$23 -> 0 | AT29: =$AR$23 -> 0 | BQ29: =IF($BQ$27+$BQ$28=365,"Valid","Invalid") ->  | BY29: 1 | BZ29: =IF($U$19=$AB$19,$U$20,365-$U$20) -> 0 | CA29: =IF($U$19=$AB$20,$U$20,365-$U$20) -> 0
F30: Child Six | AE30: 5 | AF30: =$BC$26 ->  | AH30: 5 | AI30: =$BD$26 -> Sole-Shared | AL30: 4 | AM30: =$AV$26 -> 0 | AN30: =AX26 -> 0 | AO30: =$AY$25 -> Not Apply | AR30: 4 | AS30: =$AX$24 -> 0 | AT30: =$AY$24 -> 0 | BY30: 2 | BZ30: =IF($U$19=$AB$19,$U$22,365-$U$22) -> 0 | CA30: =IF($U$19=$AB$20,$U$22,365-$U$22) -> 0
AE31: 6 | AF31: =$BJ$27 ->  | AH31: 6 | AI31: =$BK$27 -> Sole-Shared | AL31: 5 | AM31: =$BC$27 -> 0 | AN31: =$BE$27 -> 0 | AO31: =$BF$26 -> Not Apply | AR31: 5 | AS31: =$BE$25 -> 0 | AT31: =$BF$25 -> 0 | BY31: 3 | BZ31: =IFERROR(IF(OR($U$24="",$U$24=" "),"",IF($U$19=$AB$19,$U$24,365-$U$24)),"") ->  | CA31: =IFERROR(IF($BZ$31="","",IF($U$19=$AB$20,$U$24,365-$U$24)),"") -> 
AB32: Sole Shared Cust: | AD32: =IF(AND($AD$29="Sole-Shared",$K$20="Sole"),$M$20,IF(AND($AD$29="Sole-Shared",$K$22="Sole"),$M$22,IF(AND($AD$29="Sole-Shared",$K$24="Sole"),$M$24,IF(AND($AD$29="Sole-Shared",$K$26="Sole"),$M$26,IF(AND($AD$29="Sole-Shared",$K$28="Sole"),$M$28,IF(AND($AD$29="Sole-Shared",$K$30="Sole"),$M$30," ")))))) ->  | AL32: 6 | AM32: =$BJ$28 -> 0 | AN32: =$BL$28 -> 0 | AO32: =$BM$27 -> Not Apply | AR32: 6 | AS32: =$BL$26 -> 0 | AT32: =$BM$26 -> 0 | BY32: 4 | BZ32: =IFERROR(IF(OR($U$26="",$U$26=" "),"",IF($U$19=$AB$19,$U$26,365-$U$26)),"") ->  | CA32: =IFERROR(IF($BZ$32="","",IF($U$19=$AB$20,$U$26,365-$U$26)),"") -> 
AB33: # Sole: | AC33: =VLOOKUP($AD$26,$AL$28:$AN$32,2,FALSE) ->  | AR33: Answer | AS33: =VLOOKUP($AD$26,AR29:AS32,2,0) ->  | AT33: =VLOOKUP($AD$26,AR29:AT32,3,0) ->  | BY33: 5 | BZ33: =IFERROR(IF(OR($U$28="",$U$28=" "),"",IF($U$19=$AB$19,$U$28,365-$U$28)),"") ->  | CA33: =IFERROR(IF($BZ$33="","",IF($U$19=$AB$20,$U$28,365-$U$28)),"") -> 
AB34: #Shared: | AC34: =VLOOKUP($AD$26,$AL$28:$AN$32,3,FALSE) ->  | BY34: 6 | BZ34: =IFERROR(IF(OR($U$30="",$U$30=" "),"",IF($U$19=$AB$19,$U$30,365-$U$30)),"") ->  | CA34: =IFERROR(IF($BZ$33="","",IF($U$19=$AB$20,$U$30,365-$U$30)),"") -> 
AB35: CP | AC35: =VLOOKUP(AD26,AL28:AO32,4,FALSE) -> 
E101: Yes | F101: =IF($N$9>1,"children","child") -> child | G101: =#REF! ->  | I101: 91
E102: No | G102: =H18 -> 0 | I102: 91.5
G103: =H20 -> 0 | I103: 92
G104: =H22 -> 0 | I104: 92.5
G105: =H24 -> 0 | I105: 93
G106: =H26 -> 0 | I106: 93.5
I107: 94
I108: 94.5
I109: 95
I110: 95.5
I111: 96
I112: 96.5
I113: 97
I114: 97.5
I115: 98
I116: 98.5
I117: 99
I118: 99.5
I119: 100
I120: 100.5
I121: 101
I122: 101.5
I123: 102
I124: 102.5
I125: 103
I126: 103.5
I127: 104
I128: 104.5
I129: 105
I130: 105.5
I131: 106
I132: 106.5
I133: 107
I134: 107.5
I135: 108
I136: 108.5
I137: 109
I138: 109.5
I139: 110
I140: 110.5
I141: 111
I142: 111.5
I143: 112
I144: 112.5
I145: 113
I146: 113.5
I147: 114
I148: 114.5
I149: 115
I150: 115.5
I151: 116
I152: 116.5
I153: 117
I154: 117.5
I155: 118
I156: 118.5
I157: 119
I158: 119.5
I159: 120
I160: 120.5
I161: 121
I162: 121.5
I163: 122
I164: 122.5
I165: 123
I166: 123.5
I167: 124
I168: 124.5
I169: 125
I170: 125.5
I171: 126
I172: 126.5
I173: 127
I174: 127.5
I175: 128
I176: 128.5
I177: 129
I178: 129.5
I179: 130
I180: 130.5
I181: 131
I182: 131.5
I183: 132
I184: 132.5
I185: 133
I186: 133.5
I187: 134
I188: 134.5
I189: 135
I190: 135.5
I191: 136
I192: 136.5
I193: 137
I194: 137.5
I195: 138
I196: 138.5
I197: 139
I198: 139.5
I199: 140
I200: 140.5
I201: 141
I202: 141.5
I203: 142
I204: 142.5
I205: 143
I206: 143.5
I207: 144
I208: 144.5
I209: 145
I210: 145.5
I211: 146
I212: 146.5
I213: 147
I214: 147.5
I215: 148
I216: 148.5
I217: 149
I218: 149.5
I219: 150
I220: 150.5
I221: 151
I222: 151.5
I223: 152
I224: 152.5
I225: 153
I226: 153.5
I227: 154
I228: 154.5
I229: 155
I230: 155.5
I231: 156
I232: 156.5
I233: 157
I234: 157.5
I235: 158
I236: 158.5
I237: 159
I238: 159.5
I239: 160
I240: 160.5
I241: 161
I242: 161.5
I243: 162
I244: 162.5
I245: 163
I246: 163.5
I247: 164
I248: 164.5
I249: 165
I250: 165.5
I251: 166
I252: 166.5
I253: 167
I254: 167.5
I255: 168
I256: 168.5
I257: 169
I258: 169.5
I259: 170
I260: 170.5
I261: 171
I262: 171.5
I263: 172
I264: 172.5
I265: 173
I266: 173.5
I267: 174
I268: 174.5
... 199 more rows

Sheet Prorate
A1: Calculations for the month of the new order's effective date | F1: Proration Worksheet | I1: DATA ENTRY
A2: Effective date | B2: End of month | C2: Per diem amount | D2: # of days per order | E2: Support Owed | F2: =DAY(B3) ->  | I2: Effective Date of new order | L2: =Interface!M7 -> 
A3: =$L$2 ->  | B3: =EOMONTH(L2,0) ->  | I3: New Order Amount | L3: =Interface!M5 -> 0
A4: Prior Order Amount | B4: =$L$4 -> 0 | C4: =IFERROR(IF(Interface!$AG$14=2,ROUND((B4/$F$2),2),ROUND((B4*12)/365,2)),0) -> 0 | D4: =($A$3-1)-EOMONTH($A$3,-1) ->  | E4: =IFERROR($C$4*$D$4,0) -> 0 | I4: Prior Order Amount | L4: =IF(Interface!$M$9=" ",0,Interface!$M$9) -> 0
A5: New Order Amount | B5: =$L$3 -> 0 | C5: =IF(Interface!$AG$14=2,ROUND((B5/$F$2),2),ROUND((B5*12)/365,2)) ->  | D5: =($B$3+1)-$A$3 ->  | E5: =$C$5*$D$5 -> 
B6: Total for Mth | D6: =D4+D5 ->  | E6: =E4+E5 -> 
I10: Party: | J10: =IF(Interface!$B$4=""," ",Interface!$B$4) -> 
I13: Party: | J13: =Interface!$B$6 -> 
I16: DCSE# | J16: =Info!$S$12 -> 
B17: =IF(OR(Interface!M13="",Interface!M13=" ")," ","Interest Arrearage as of") ->  | E17: =IF(OR(Interface!M13=" ",Interface!M13="")," ",TODAY()) ->  | G17: =IFERROR('Interest Worksheet'!$L$6,0) -> 0
B18: Total Arrearage as of | E18: =TODAY() -> 2025-04-07 | G18: =SUM(G16:G17) -> 0 | I18: Docket # | J18: =Info!S11 ->  | L18: =Info!$Q$2 -> 2025 B Ed.

Sheet Macro1

Sheet Blank

Sheet Empl Income (hidden)
I2: Employment Income | Y2: PA1 | BA2: Switch | BB2: Yes | BC2: Yes
E3: ='Family Info'!$AB$19&"'s"&" "&"work income" -> 's work income | T3: ='Family Info'!$AB$19 ->  | V3: ='Family Info'!$AB$20 ->  | Y3: Party A | Z3: ='Family Info'!AB19 ->  | AA3: Yes | AB3: Regular | AC3: Varies | AD3: Regular | AF3: Salary | AH3: Hourly | AJ3: Bonus | AK3: Column1 | BC3: No
B4: Getting Started | R4: ="Primary Employer" -> Primary Employer | T4: =IFERROR(ROUND(IF($H$5="No",0,IF(AND($L$8="Salary",$S$9="No"),$Z$12,IF(AND($L$8="Salary",$S$9="Yes"),$AA$12,IF(AND($L$8="Hourly",$S$9="No"),$Z$9,IF(AND($L$8="Hourly",$S$9="Yes"),$AA$9,IF(AND($L$8="Year-to-date",$S$9="No"),$Z$13,IF(AND($L$8="Year-to-date",$S$9="Yes"),$AA$14,IF($L$8="Recent Quarterly",$AD$14,0)))))))),2)," ") -> 0 | V4: =IFERROR(ROUND(IF($M$77="No",0,IF(AND($M$80="Salary",$S$83="No"),$Z$84,IF(AND($M$80="Salary",$S$83="Yes"),$AA$84,IF(AND($M$80="Hourly",$S$83="No"),$Z$81,IF(AND($M$80="Hourly",$S$83="Yes"),$AA$81,IF(AND($M$80="Year-to-date",$S$83="No"),$Z$85,IF(AND($M$80="Year-to-date",$S$83="Yes"),$Z$86,IF($M$80="Recent Quarterly",$AD$86,0)))))))),2)," ") -> 0 | Y4: Party B | Z4: ='Family Info'!AB20 ->  | AA4: No | AB4: Varies | AC4: Year-to-date | AD4: Salary | AF4: Weekly | AH4: Weekly | AJ4: Annual | AM4: Weeks
E5: ="Is"&" "&$Z$3&" "&"employed?" -> Is employed? | H5: Yes | J5: =IF(H5="Yes","Employer:","Reason:") -> Employer: | R5: ="Secondary Empl." -> Secondary Empl. | T5: =IFERROR(ROUND(IF(AND($M$29="Salary",$S$32="No"),$Z$23,IF(AND($M$29="Salary",$S$32="Yes"),$AA$23,IF(AND($M$29="Hourly",$S$32="No"),$Z$20,IF(AND($M$29="Hourly",$S$32="Yes"),$AA$20,IF(AND($M$29="Year-to-date",$S$32="No"),$Z$24,IF(AND($M$29="Year-to-date",$S$32="Yes"),$AA$25,IF(M29="Recent Quarterly",$AD$24,0))))))),2),0) -> 0 | V5: =IFERROR(ROUND(IF(AND($M$98="Salary",$S$101="No"),$Z$102,IF(AND($M$98="Salary",$S$101="Yes"),$AA$102,IF(AND($M$98="Hourly",$S$101="No"),$Z$99,IF(AND($M$98="Hourly",$S$101="Yes"),$AA$99,IF(AND($M$98="Year-to-date",$S$101="No"),$Z$103,IF(AND($M$98="Year-to-date",$S$101="Yes"),$Z$104,IF($M$98="Recent Quarterly",$AD$104," "))))))),2),0) -> 0 | AC5: Recent Quarterly | AD5: Hourly | AF5: Bi-weekly | AH5: Bi-weekly | AJ5: Quarterly | AM5: Months
B6: Getting Started | R6: Total Empl. Inc. | T6: =IFERROR(IF($AP$55=TRUE,$T$4+$T$5+$T$7,IF($AP$55=FALSE,$T$4+$T$5,0)),0) -> 0 | V6: =IFERROR(IF($AP$56=TRUE,$V$4+$V$5+$V$7,IF($AP$56=FALSE,$V$4+$V$5,0)),0) -> 0 | Y6: Party A Primary Empl | AF6: Monthly | AH6: Monthly | AJ6: Semi-Annual
R7: Income Imputation | T7: =IFERROR(ROUND(IF(AND($I$55="Salary",$N$58="No"),$Z$56,IF(AND($I$55="Salary",$N$58="Yes"),$AA$56,IF(AND($I$55="Hourly",$N$58="No"),$Z$53,IF(AND($I$55="Hourly",$N$58="Yes"),$AA$53,IF(AND($I$55="Year-to-date",$N$58="No"),$Z$57,IF(AND($I$55="Year-to-date",$N$58="Yes"),$AB$57,IF($I$55="Prior annual earnings",$AD$57,IF(AND($I$55="Monthly",$N$58="No"),$Z$58,IF(AND($I$55="Monthly",$N$58="Yes"),$AB$58,0))))))))),2)," ") -> 0 | V7: =ROUND(IF(AND($I$121="Salary",$S$124="No"),$Z$121,IF(AND($I$121="Salary",S$124="Yes"),$AA$121,IF(AND($I$121="Hourly",$S$124="No"),$Z$118,IF(AND($I$121="Hourly",$S$124="Yes"),$AA$118,IF(AND($I$121="Monthly",$S$124="No"),$Z$123,IF(AND($I$121="Monthly",$S$124="Yes"),$AB$123,IF(AND($I$121="Year-to-date",$S$124="No"),$Z$122,IF(AND($I$121="Year-to-date",$S$124="Yes"),$AB$122,IF($I$121="Prior annual earnings",$AD$122,0))))))))),2) -> 0 | Y7: Hourly | Z7: =IF(AND($I$8="Regular",$L$8="Hourly"),(($G$11*$I$11)*IF($P$8="Weekly",52,IF($P$8="Bi-weekly",26,IF($P$8="Semi-Monthly",24,IF($P$8="Monthly",12," "))))))/12 -> 0 | AF7: Semi-Monthly | AH7: Semi-Monthly | AJ7: Monthly
B8: Family Information | E8: =IF(OR($H$5="No",$H$5=" ",$H$5="")," ","Gross Monthly Employment Income:") -> Gross Monthly Employment Income: | J8: =IF(OR($H$5="No",$H$5=" ",$H$5="")," ", "Pay Calculation:") -> Pay Calculation: | N8: =IF(OR($H$5="No",$H$5=" ",$H$5="")," ",IF($I$8="Regular","Pay Period"," ")) ->  | R8: =IF(OR($H$5="No",$H$5=" ",$H$5="",AND($I$8="Varies",$L$8="Recent Quarterly"),$L$8=" ",$I$8="",$I$8=" ")," ","Seasonal Employment?") ->  | V8: Weeks | Y8: Overtime | Z8: =IF(AND($K$11="Yes",$L$8="Hourly",$I$8="Regular"),(($M$11*$P$11)*IF($P$8="Weekly",52,IF($P$8="Bi-weekly",26,IF($P$8="Semi-Monthly",24,IF($P$8="Monthly",12))))))/12 -> 0 | AA8: ="Seasonal" -> Seasonal | AC8: Quarterly | AF8: Annual | AJ8: Semi-Monthly
S9: No | Y9: Total | Z9: =$Z$7+$Z$8 -> 0 | AA9: =IFERROR(IF(V8="Months",ROUND(($V$9*Z9)/12,2),ROUND(($V$9*($Z$9/4.333))/12,2)),"Seasonal Monthly?") -> 0 | AC9: 1st quarter | AD9: =IF($J$18="","",$J$18) ->  | AE9: =ISNUMBER(AD9) -> FALSE | AJ9: Weekly
B10: Income | G10: =IF(OR(OR($H$5="No",$H$5=" ",$H$5=""),OR($P$8=" ",$P$8=""))," ",IF($I$8="Regular","Pay"&" "&"Rate"," ")) ->  | H10: =IF(OR($H$5="No",$H$5=" ",$P$8="",$P$8=" ")," ",IF(AND($I$8="Regular",$L$8="Hourly"),"Hours"&"/"&P8," ")) ->  | K10: =IF(OR($H$5="No",$H$5="",$H$5=" ",$P$8=" ",$P$8="")," ",IF(AND($I$8="Regular",$L$8="Hourly"),"Overtime",IF(AND($I$8="Regular",$L$8="Salary"),"Bonus",IF($I$8="Varies"," "," ")))) ->  | M10: =IF($H$5="No"," ",IF(AND($I$8="Regular",$L$8="Hourly",$K$11="Yes"),"Overtime Rate",IF(AND($I$8="Regular",$L$8="Salary",$K$11="Yes"),"Bonus"," "))) ->  | P10: =IF(OR($H$5="No",H5=" ",$P$8=" ",$P$8="")," ",IF(AND($I$8="Regular",$L$8="Hourly",$K$11="Yes"),"Overtime Hours"," ")) ->  | R10: =IF(AND($H$5="Yes",$I$8="Regular",$L$8="Salary",$K$11="Yes"),"Bonus"," ") ->  | Y10: Salary | Z10: =ROUND(IF(AND(I8="Regular",$L$8="Salary"),IF(P8="Weekly",(G11*52)/12,IF(P8="Bi-weekly",(G11*26)/12,IF(P8="Monthly",G11,IF(P8="Semi-Monthly",(G11*24)/12,IF(P8="Annual",G11/12," "))))),0),2) -> 0 | AC10: 2nd quarter | AD10: =IF($N$18="","",$N$18) ->  | AE10: =ISNUMBER($AD$10) -> FALSE | AJ10: Bi-Weekly
B11: Employment Income | E11: =IF(OR($H$5="No",$H$5=" ",$H$5="",$P$8=" ",$P$8="")," ",IF(AND($I$8="Regular",$L$8="Salary"),$P$8&":",IF(AND($I$8="Regular",$L$8="Hourly"),"Per hour:"," "))) ->  | H11: =IF(OR($H$5="No",H5=" ",$P$8=" ",$P$8="")," ",IF(AND($I$8="Regular",$L$8="Hourly"),"No.:"," ")) ->  | K11: No | L11: =IF($H$5="No"," ",IF(AND($I$8="Regular",$K$11="Yes",K10="Bonus"),"Amt:",IF(AND($I$8="Regular",$K$11="Yes",K10="Overtime"),"Per Hr:"," "))) ->  | Q11: =IF(AND($H$5="Yes",$I$8="Regular",$L$8="Salary",$K$11="Yes"),"Frequency"," ") ->  | Y11: Bonus | Z11: =IF(AND(I8="Regular",L8="Salary",K11="Yes"),(M11*IF(R11="Annual",1,IF(R11="Quarterly",4,IF(R11="Semi-Annual",2,IF(R11="Monthly",12,IF(R11="Semi-monthly",24,IF(R11="Weekly",52,IF(R11="Bi-weekly",26))))))))/12,0) -> 0 | AA11: ="Seasonal" -> Seasonal | AC11: 3rd quarter | AD11: =IF($R$18="","",$R$18) ->  | AE11: =ISNUMBER($AD$11) -> FALSE
B12: Other Income | Y12: Total | Z12: =ROUND(Z10+Z11,2) -> 0 | AA12: =IFERROR(IF(V8="Months",ROUND(($V$9*$Z$12)/12,2),ROUND(($V$9*($Z$12/4.333))/12,2)),"Seasonal Monthly?") -> 0 | AC12: 4th quarter | AD12: =IF($V$18="","",$V$18) ->  | AE12: =ISNUMBER(AD12) -> FALSE
B13: Income Adjustments | H13: =IF($H$5="No"," ",IF(AND($I$8="Varies",$L$8="Year-to-date"),"Start Date"," ")) ->  | N13: =IF($H$5="No"," ",IF(AND($I$8="Varies",$L$8="Year-to-Date"),"End Date"," ")) ->  | T13: =IF($H$5="No"," ",IF(AND($I$8="Varies",$L$8="Year-to-Date"),"Amount"," ")) ->  | Y13: Year to date | Z13: =IFERROR(ROUND(IF(AND(I8="Varies",L8="Year-to-date"),((T14/((N14-H14)+1))*365)/12,0),2),"Error YTD") -> 0 | AA13: Seasonal | AC13: Quarterly Total | AD13: =SUM(AD9:AD12) -> 0 | AE13: =COUNTIF(AE9:AE12,TRUE) -> 0
F14: =IF($H$5="No"," ",IF(AND($I$8="Varies",$L$8="Year-to-Date"),"Year-to-Date Earnings:"," ")) ->  | K14: =IF($H$5="No"," ",IF(AND($I$8="Varies",$L$8="Year-to-Date"),"Most recent pay stub"," ")) ->  | Q14: =IF($H$5="No"," ",IF(AND($I$8="Varies",$L$8="Year-to-Date"),"Year-to-Date Earnings:"," ")) ->  | AA14: =IFERROR(IF($V$8="Months",(ROUND(($V$9*$Z$13)/12,2)),ROUND(($V$9*($Z$13/4.333))/12,2)),"Seasonal Monthly?") -> 0 | AC14: Quarterly | AD14: =ROUND(IF($AE$13=1,$AD$13/3,IF($AE$13=2,$AD$13/6,IF($AE$13=3,$AD$13/9,IF($AE$13=4,$AD$13/12,0)))),2) -> 0
B15: Health Care
B17: Day Care Cost | Y17: Party A Secondary Empl
E18: =IF($H$5="No"," ",IF(AND($I$8="Varies",$L$8="Recent Quarterly"),"Recent Quarterly Earnings"," ")) ->  | H18: =IF($H$5="No"," ",IF(AND($I$8="Varies",$L$8="Recent Quarterly"),"1st Quarter"," ")) ->  | L18: =IF($H$5="No"," ",IF(AND($I$8="Varies",$L$8="Recent Quarterly"),"2nd Quarter"," ")) ->  | P18: =IF($H$5="No"," ",IF(AND($I$8="Varies",$L$8="Recent Quarterly"),"3rd Quarter"," ")) ->  | T18: =IF($H$5="No"," ",IF(AND($I$8="Varies",$L$8="Recent Quarterly"),"4th Quarter"," ")) ->  | Y18: Hourly | Z18: =IF(AND($I$29="Regular",$M$29="Hourly"),(($U$29*$F$32)*IF($Q$29="Weekly",52,IF($Q$29="Bi-weekly",26,IF($Q$29="Semi-Monthly",24,IF($Q$29="Monthly",12," "))))))/12 -> 0 | AC18: Quarterly
B19: Results | Y19: Overtime | Z19: =IF(AND($H$32="Yes",$M$29="Hourly",$I$29="Regular"),(($M$32*$J$32)*IF($Q$29="Weekly",52,IF($Q$29="Bi-weekly",26,IF($Q$29="Semi-Monthly",24,IF($Q$29="Monthly",12))))))/12 -> 0 | AA19: ="Seasonal" -> Seasonal | AC19: 1st quarter | AD19: =IF($J$42="","",$J$42) ->  | AE19: =ISNUMBER(AD19) -> FALSE
Y20: Total | Z20: =$Z$18+$Z$19 -> 0 | AA20: =IFERROR(IF($U$31="Months",(ROUND(($U$32*$Z$20/12),2)),ROUND(($U$32*($Z$20/4.333))/12,2)),"Seasonal Monthly?") -> 0 | AC20: 2nd quarter | AD20: =IF($N$42="","",$N$42) ->  | AE20: =ISNUMBER(AD20) -> FALSE
B21: Save Work | Y21: Salary | Z21: =IF(AND(I29="Regular",$M$29="Salary"),IF($Q$29="Weekly",$U$29*52,IF($Q$29="Bi-weekly",$U$29*26,IF($Q$29="Monthly",$U$29*12,IF($Q$29="Semi-Monthly",$U$29*24,IF($Q$29="Annual",$U$29*1," "))))))/12 -> 0 | AC21: 3rd quarter | AD21: =IF($R$42="","",$R$42) ->  | AE21: =ISNUMBER(AD21) -> FALSE
Y22: Bonus | Z22: =IF(AND($I$29="Regular",$M$29="Salary",$H$32="Yes"),($J$32*IF($P$32="Annual",1,IF($P$32="Quarterly",4,IF($P$32="Semi-Annual",2,IF($P$32="Monthly",12,IF($P$32="Semi-monthly",24,IF($P$32="Weekly",52,IF($P$32="Bi-weekly",26))))))))/12,0) -> 0 | AA22: ="Seasonal" -> Seasonal | AC22: 4th quarter | AD22: =IF($V$42="","",$V$42) ->  | AE22: =ISNUMBER(AD22) -> FALSE
B23: Calculator Reset | Y23: Total | Z23: =ROUND($Z$21+$Z$22,2) -> 0 | AA23: =IFERROR(IF($U$31="Months",(ROUND(($U$32*$Z$23)/12,2)),ROUND(($U$32*($Z$23/4.333))/12,2)),"Seasonal?") -> 0 | AC23: Quarterly Total | AD23: =SUM($AD$19:$AD$22) -> 0 | AE23: =COUNTIF(AE19:AE22,TRUE) -> 0
Y24: Year to date | Z24: =ROUND(IF(AND($I$29="Varies",$M$29="Year-to-date"),(($T$38/(($N$38-$H$38)+1))*365)/12,0),2) -> 0 | AA24: Seasonal | AC24: Quarterly | AD24: =ROUND(IF($AE$23=1,$AD$23/3,IF($AE$23=2,$AD$23/6,IF($AE$23=3,$AD$23/9,IF($AE$23=4,$AD$23/12,0)))),2) -> 0
AA25: =IFERROR(IF($U$31="Months",(ROUND(($U$32*$Z$24)/12,2)),ROUND(($U$32*($Z$24/4.333))/12,2)),"Seasonal?") -> 0
E27: ='Family Info'!$AB$19&"'s"&" "&"Secondary Employment" -> 's Secondary Employment | N27: ="Employer:" -> Employer:
V28: =IF(OR($I$29=" ",$I$29="",$M$29="",$M$29=" ")," ",IF($I$29="Regular","Pay"&" "&"Rate"," ")) -> 
E29: ="Gross Monthly Employment Income:" -> Gross Monthly Employment Income: | K29: ="Pay Calculation:" -> Pay Calculation: | P29: =IF($I$29="Varies"," ",IF($I$29="Regular","Pay Period"," ")) ->  | T29: =IF(AND($I$29="Regular",$M$29="Salary",$Q$29<>""),$Q$29&":",IF(AND($I$29="Regular",$M29="Hourly"),"Per hour:",IF(OR($Q$29=" ",Q29="")," "," "))) -> 
I30: 89000
F31: =IF(AND($I$29="Regular",$M$29="Hourly"),"Hours"&"/"&Q29,IF($I$29="Varies"," "," ")) ->  | H31: =IF(AND($I$29="Regular",$M$29="Hourly"),"Overtime",IF(AND($I$29="Regular",$M$29="Salary"),"Bonus",IF($I$29="Varies"," "," "))) ->  | J31: =IF(AND($I$29="Regular",$M$29="Hourly",$H$32="Yes"),"Overtime",IF(AND($I$29="Regular",$M$29="Salary",$H$32="Yes"),"Bonus"," ")) ->  | M31: =IF(AND($I$29="Regular",$M$29="Hourly",$H$32="Yes"),"Overtime Hours",IF($I$29="Varies"," "," ")) ->  | P31: =IF(AND(I29="Regular",$M$29="Salary",$H$32="Yes"),"Bonus"," ") ->  | R31: =IF(OR(AND($I$29="Varies",$M$29="Recent Quarterly"),$I$29="",$M$29=" ",$M$29="")," ","Seasonal Employment?") ->  | U31: Weeks
E32: =IF(AND($I$29="Regular",$M$29="Hourly"),"No.:"," ") ->  | H32: No | I32: =IF(AND($I$29="Regular",$H$32="Yes",OR($M$29="Hourly",$M$29="Salary")),"Amt:",IF(OR($I$29="Varies",$I$29="",$I$29=" ",$M$29=" ",$M$29="")," "," ")) ->  | O32: =IF(AND($I$29="Regular",$M$29="Salary",$H$32="Yes"),"Frequency"," ") ->  | S32: No
H37: =IF(AND($I$29="Varies",$M$29="Year-to-Date"),"Start Date"," ") ->  | N37: =IF(AND($I$29="Varies",$M$29="Year-to-Date"),"End Date"," ") ->  | T37: =IF(AND($I$29="Varies",$M$29="Year-to-Date"),"Amount"," ") -> 
F38: =IF(AND($I$29="Varies",$M$29="Year-to-Date"),"Year-to-Date Earnings:"," ") ->  | K38: =IF(AND($I$29="Varies",$M$29="Year-to-Date"),"Most recent pay stub"," ") ->  | Q38: =IF(AND($I$29="Varies",$M$29="Year-to-Date"),"Year-to-Date Earnings:"," ") -> 
E42: =IF(AND($I$29="Varies",$M$29="Recent Quarterly"),"Recent Quarterly Earnings"," ") ->  | H42: =IF(AND($I$29="Varies",$M$29="Recent Quarterly"),"1st Quarter"," ") ->  | L42: =IF(AND($I$29="Varies",$M$29="Recent Quarterly"),"2nd Quarter"," ") ->  | P42: =IF(AND($I$29="Varies",$M$29="Recent Quarterly"),"3rd Quarter"," ") ->  | T42: =IF(AND($I$29="Varies",$M$29="Recent Quarterly"),"4th Quarter"," ") -> 
E50: ='Family Info'!$AB$19&"'s"&" "&"Imputation Analysis" -> 's Imputation Analysis | Y50: Party A Imputed Income | AE50: 1
Y51: Hourly | Z51: =IF($I$55="Hourly",((R55*$U$55)*IF($N$55="Weekly",52,IF($N$55="Bi-weekly",26,IF($N$55="Semi-Monthly",24,IF($N$55="Monthly",12,0))))))/12 -> 0 | AC51: Prior Annual Earnings | AG51: Earnings from former employer -voluntarily terminated | AM51: Salary | AP51: Voluntary Unemployment
P52: Basis for Earnings | Y52: Overtime | Z52: =IF(AND($F$58="Yes",$I$55="Hourly"),(($H$58*$K$58)*IF($N$55="Weekly",52,IF($N$55="Bi-weekly",26,IF($N$55="Semi-Monthly",24,IF($N$55="Monthly",12,0))))))/12 -> 0 | AA52: ="Seasonal" -> Seasonal | AC52: =$H$68 ->  | AD52: =IF($I$68="","",$I$68) ->  | AE52: =ISNUMBER(AD52) -> FALSE | AG52: Earnings from former employer - terminated for cause | AM52: Hourly | AP52: Voluntary Underemployment
F53: Criteria to Impute | Y53: Total | Z53: =SUM($Z$51:$Z$52) -> 0 | AA53: =IFERROR(IF($P$57="Months",(ROUND(($P$58*$Z$53/12),2)),ROUND(($P$58*($Z$53/4.333))/12,2)),"Seasonal Monthly") -> 0 | AC53: =$L$68 ->  | AD53: =IF($M$68="","",$M$68) ->  | AE53: =ISNUMBER(AD53) -> FALSE | AG53: Recent past earnings | AM53: Year-to-date | AP53: Agreement to Impute
R54: =IF(OR($I$55="Hourly",$I$55="Salary"),"Pay Rate",IF($I$55="Monthly","Amount"," ")) ->  | U54: =IF($I$55="Hourly","Hours"&"/"&$N$55," ") ->  | Y54: Salary | Z54: =IF($I$55="Salary",IF($N$55="Weekly",$R$55*52,IF($N$55="Bi-weekly",$R$55*26,IF($N$55="Monthly",$R$55*12,IF($N$55="Semi-Monthly",$R$55*24,IF($N$55="Annual",$R$55*1,0))))))/12 -> 0 | AC54: =$P$68 ->  | AD54: =IF($Q$68="","",Q$68) ->  | AE54: =ISNUMBER(AD54) -> FALSE | AG54: Reasonably foreseeable future event | AM54: Prior annual earnings | AP54: DCSE: Failed to return Fin. Stat.
E55: Type of Imputed Gross Monthly Earnings | M55: =IF(OR($I$55="Salary",$I$55="Hourly"),"Pay Period"," ") ->  | Q55: =IF(AND($I$55="Salary",ISTEXT(N55)),$N$55&":",IF($I$55="Hourly","Per hour:",IF($I$55="Monthly","Monthly"," "))) ->  | T55: =IF($I$55="Hourly","No.:"," ") ->  | AA55: ="Seasonal" -> Seasonal | AC55: =$T$68 ->  | AD55: =IF($U$68="","",$U$68) ->  | AE55: =ISNUMBER(AD55) -> FALSE | AG55: Stipulated earnings | AM55: Monthly | AP55: FALSE | AQ55: Adds imputed income to earned income Party A
Y56: Total | Z56: =$Z$54 -> 0 | AA56: =IFERROR(IF($P$57="Months",(ROUND(($P$58*$Z$56)/12,2)),ROUND(($P$58*($Z$56/4.333))/12,2)),"Seasonal?") -> 0 | AC56: Total Earnings | AD56: =SUM($AD$52:$AD$55) -> 0 | AE56: =COUNTIF(AE52:AE55,TRUE) -> 0 | AG56: Earning Capacity & Job Availability | AP56: FALSE | AQ56: Adds imputed income to earned income Party B
F57: =IF($I$55="Hourly","Overtime"," ") ->  | H57: =IF(AND($I$55="Hourly",$F$58="Yes"),"Overtime pay rate"," ") ->  | K57: =IF(AND($I$55="Hourly",$F$58="Yes"),"Overtime Hours"," ") ->  | M57: =IF(OR($I$55= "Prior annual earnings",$I$55=" ",$I$55="")," ","Seasonal Employment?") ->  | P57: Months | Y57: Year to date | Z57: =IF($I$55="Year-to-date",(($T$61/(($N$61-$H$61)+1))*365)/12,0) -> 0 | AA57: Seasonal | AB57: =IFERROR(IF($P$57="Months",(ROUND(($P$58*$Z$57)/12,2)),ROUND(($P$58*($Z$57/4.333))/12,2)),"Seasonal Monthly?") -> 0 | AC57: Prior A. Earnings | AD57: =IF($AE$56=1,$AD$56/12,IF($AE$56=2,$AD$56/24,IF($AE$56=3,$AD$56/36,IF($AE$56=4,$AD$56/48,0)))) -> 0
F58: No | G58: =IF(AND($F$58="Yes",$I$55="Hourly"), "Per hour:"," ") ->  | N58: No | Y58: Monthly | Z58: =IF($R$55=" ",0,$R$55) -> 0 | AA58: Seasonal | AB58: =IFERROR(IF($P$58="Months",(($R$55*$P$58)/12),ROUND(($P$58*($Z$58/4.333))/12,2)),"Seasonal Monthly?") -> 0
H60: =IF($I$55="Year-to-Date","Start Date"," ") ->  | N60: =IF($I$55="Year-to-Date","End Date"," ") ->  | T60: =IF($I$55="Year-to-Date","Amount"," ") -> 
F61: =IF($I$55="Year-to-Date","Year-to-Date Earnings:"," ") ->  | K61: =IF($I$55="Year-to-Date","Most recent pay stub"," ") ->  | Q61: =IF($I$55="Year-to-Date","Year-to-Date Earnings:"," ") -> 
I67: =IF($I$55="Prior annual earnings","Prior Annual Earnings"," ") ->  | M67: =IF($I$55="Prior annual earnings","Prior Annual Earnings"," ") ->  | Q67: =IF($I$55="Prior annual earnings","Prior Annual Earnings"," ") ->  | U67: =IF($I$55="Prior annual earnings","Prior Annual Earnings"," ") -> 
E68: =IF(AND($I$55="Prior annual earnings"),"Prior Annual Earnings"," ") ->  | H68: =IF(AND($I$55="Prior annual earnings"),YEAR(TODAY())-1," ") ->  | L68: =IF(AND($I$55="Prior annual earnings"),YEAR(TODAY())-2," ") ->  | P68: =IF(AND($I$55="Prior annual earnings"),YEAR(TODAY())-3," ") ->  | T68: =IF(AND($I$55="Prior annual earnings"),YEAR(TODAY())-4," ") -> 
E77: ='Family Info'!$AB$20&"'s"&" "&"work income" -> 's work income | J77: ="Is"&" "&$Z$4&" "&"employed?" -> Is employed? | M77: Yes | O77: =IF(M77="Yes","Employer:","Reason:") -> Employer:
Y78: Party B Primary Empl
U79: =IF(AND($I$80="Regular",$M$77="Yes"),"Pay Rate"," ") ->  | Y79: Hourly | Z79: =IF(AND($I$80="Regular",$M$80="Hourly"),((F83*$U$80)*IF($Q$80="Weekly",52,IF($Q$80="Bi-weekly",26,IF($Q$80="Semi-Monthly",24,IF($Q$80="Monthly",12," "))))))/12 -> 0
E80: =IF(OR($M$77 ="No",$M$77=" ")," ","Gross Monthly Employment Income:") -> Gross Monthly Employment Income: | K80: =IF($M$77= "Yes","Pay Calculation:"," ") -> Pay Calculation: | P80: =IF(OR($I$80="Varies",$M$77="No"), " ",IF($I$80="Regular","Pay Period"," ")) ->  | T80: =IF(AND($I$80="Regular",$M$80="Salary",$M$77="Yes"),$Q$80&":",IF(AND($I$80="Regular",$M$80="Hourly",$M$77="Yes"),"Per hour:"," ")) ->  | Y80: Overtime | Z80: =IF(AND($H$83="Yes",$M$80="Hourly",$I$80="Regular"),(($J$83*$M$83)*IF($Q$80="Weekly",52,IF($Q$80="Bi-weekly",26,IF($Q$80="Semi-Monthly",24,IF($Q$80="Monthly",12,0))))))/12 -> 0 | AA80: ="Seasonal" -> Seasonal | AC80: Quarterly
Y81: Total | Z81: =$Z$79+$Z$80 -> 0 | AA81: =IFERROR(IF($V$82="Months",ROUND(($V$83*$Z$81)/12,2),ROUND(($V$83*($Z$81/4.333))/12,2)),"Seasonal?") -> 0 | AC81: 1st quarter | AD81: =IF($J$89="","",$J$89) ->  | AE81: =ISNUMBER(AD81) -> FALSE
F82: =IF(AND($I$80="Regular",$M$80="Hourly",$M$77="Yes"),"Hours"&"/"&$Q$80,IF(OR($I$80="Varies",$M$77="No")," "," ")) ->  | H82: =IF(AND($I$80="Regular",$M$80="Hourly",$M$77="Yes"),"Overtime",IF(AND($I$80="Regular",$M$80="Salary",$M$77="Yes"),"Bonus",IF(OR($I$80="Varies",$M$77="No")," "," "))) ->  | J82: =IF(AND($I$80="Regular",$M$80="Hourly",$H$83="Yes",$M$77="Yes"),"Overtime",IF(AND($I$80="Regular",$M$80="Salary",$H$83="Yes",$M$77="Yes"),"Bonus"," ")) ->  | M82: =IF(AND($I$80="Regular",$M$80="Hourly",$H$83="Yes",$M$77="Yes"),"Overtime Hours",IF(OR($I$80="Varies",$M$77="No")," "," ")) ->  | P82: =IF(AND($I$80="Regular",$M$80="Salary",$H$83="Yes",$M$77="Yes"),"Bonus"," ") ->  | R82: =IF(OR(AND($I$80="Varies",$M$80="Recent Quarterly"),$M$77="No",$M$77=" ")," ","Seasonal Employment?") -> Seasonal Employment? | V82: Weeks | Y82: Salary | Z82: =IF(AND($I$80="Regular",$M$80="Salary"),IF($Q$80="Weekly",($U$80*52)/12,IF($Q$80="Bi-weekly",($U$80*26)/12,IF($Q$80="Monthly",$U$80,IF($Q$80="Semi-Monthly",($U$80*24)/12,IF($Q$80="Annual",$U$80/12,0))))),0) -> 0 | AC82: 2nd quarter | AD82: =IF($N$89="","",$N$89) ->  | AE82: =ISNUMBER(AD82) -> FALSE
E83: =IF(AND($I$80="Regular",$M$80="Hourly",$M$77="Yes"),"No.:"," ") ->  | H83: No | I83: =IF(AND($I$80="Regular",$H$83="Yes",$M$77="Yes"),"Amt:",IF(OR($I$80="Varies",$M$77="No")," "," ")) ->  | O83: =IF(AND($I$80="Regular",$M$80="Salary",$H$83="Yes",$M$77="Yes"),"Frequency"," ") ->  | S83: No | Y83: Bonus | Z83: =IF(AND($I$80="Regular",$M$80="Salary",$H$83="Yes"),($J$83*IF($P$83="Annual",1,IF($P$83="Quarterly",4,IF($P$83="Semi-Annual",2,IF($P$83="Monthly",12,IF($P$83="Semi-monthly",24,IF($P$83="Weekly",52,IF($P$83="Bi-weekly",26))))))))/12,0) -> 0 | AA83: ="Seasonal" -> Seasonal | AC83: 3rd quarter | AD83: =IF($R$89="","",$R$89) ->  | AE83: =ISNUMBER(AD83) -> FALSE
Y84: Total | Z84: =$Z$82+$Z$83 -> 0 | AA84: =IFERROR(IF($V$82="Months",ROUND(($V$83*$Z$84)/12,2),ROUND(($V$83*($Z$84/4.333))/12,2)),"Seasonal?") -> 0 | AC84: 4th quarter | AD84: =IF($V$89="","",$V$89) ->  | AE84: =ISNUMBER(AD84) -> FALSE
Y85: Year to date | Z85: =IF(AND($I$80="Varies",$M$80="Year-to-date"),(($T$87/(($N$87-$H$87)+1))*365)/12,0) -> 0 | AC85: Quarterly Total | AD85: =SUM(AD81:AD84) -> 0 | AE85: =COUNTIF(AE81:AE84,TRUE) -> 0
H86: =IF(AND($I$80="Varies",$M$80="Year-to-Date",$M$77="Yes"),"Start Date"," ") ->  | N86: =IF(AND($I$80="Varies",$M$80="Year-to-Date",$M$77="Yes"),"End Date"," ") ->  | T86: =IF(AND($I$80="Varies",$M$80="Year-to-Date",$M$77="Yes"),"Amount"," ") ->  | Y86: Seasonal | Z86: =IFERROR(IF($V$82="Months",ROUND(($V$83*$Z$85)/12,2),ROUND(($V$83*($Z$85/4.333))/12,2)),"Seasonal?") -> 0 | AC86: Quarterly | AD86: =ROUND(IF($AE$85=1,$AD$85/3,IF($AE$85=2,$AD$85/6,IF($AE$85=3,$AD$85/9,IF($AE$85=4,$AD$85/12,0)))),2) -> 0
F87: =IF(AND($I$80="Varies",$M$80="Year-to-Date",$M$77="Yes"),"Year-to-Date Earnings:"," ") ->  | K87: =IF(AND($I$80="Varies",$M$80="Year-to-Date",$M$77="Yes"),"Most recent pay stub"," ") ->  | Q87: =IF(AND($I$80="Varies",$M$80="Year-to-Date",$M$77="Yes"),"Year-to-Date Earnings:"," ") -> 
E89: =IF(AND($I$80="Varies",$M$80="Recent Quarterly",$M$77="Yes"),"Recent Quarterly Earnings"," ") ->  | H89: =IF(AND($I$80="Varies",$M$80="Recent Quarterly",$M$77="Yes"),"1st Quarter"," ") ->  | L89: =IF(AND($I$80="Varies",$M$80="Recent Quarterly",$M$77="Yes"),"2nd Quarter"," ") ->  | P89: =IF(AND($I$80="Varies",$M$80="Recent Quarterly",$M$77="Yes"),"3rd Quarter"," ") ->  | T89: =IF(AND($I$80="Varies",$M$80="Recent Quarterly",$M$77="Yes"),"4th Quarter"," ") -> 
E96: ='Family Info'!$AB$20&"'s"&" "&"Secondary Employment" -> 's Secondary Employment | N96: ="Employer:" -> Employer: | Y96: Party B Secondard Empl
U97: =IF($I$98="Regular","Pay Rate"," ") ->  | Y97: Hourly | Z97: =IF(AND($I$98="Regular",$M$98="Hourly"),(($F$101*$U$98)*IF($Q$98="Weekly",52,IF($Q$98="Bi-weekly",26,IF($Q$98="Semi-Monthly",24,IF($Q$98="Monthly",12,0))))))/12 -> 0
E98: ="Gross Monthly Employment Income:" -> Gross Monthly Employment Income: | K98: ="Pay Calculation:" -> Pay Calculation: | P98: =IF($I$98="Varies"," ",IF(OR(AND($I$98="Regular",$M$98="Salary"),AND($I$98="Regular",$M$98="Hourly")),"Pay Period"," ")) ->  | T98: =IF(AND($I$98="Regular",$M$98="Salary",NOT(ISBLANK($Q$98))),$Q$98&":",IF(AND($I$98="Regular",$M$98="Hourly"),"Per hour:"," ")) ->  | Y98: Overtime | Z98: =IF(AND($H$101="Yes",$M$98="Hourly",$I$98="Regular"),(($J$101*$M$101)*IF($Q$98="Weekly",52,IF($Q$98="Bi-weekly",26,IF($Q$98="Semi-Monthly",24,IF($Q$98="Monthly",12,0))))))/12 -> 0 | AA98: ="Seasonal" -> Seasonal | AC98: Quarterly
Y99: Total | Z99: =$Z$97+$Z$98 -> 0 | AA99: =IFERROR(IF($V$100="Months",ROUND(($V$101*$Z$99)/12,2),ROUND(($V$101*($Z$99/4.333))/12,2)),"Seasonal?") -> 0 | AC99: 1st quarter | AD99: =IF($J$106="","",$J$106) ->  | AE99: =ISNUMBER(AD99) -> FALSE
F100: =IF(AND($I$98="Regular",$M$98="Hourly"),"Hours"&"/"&$Q$98,IF($I$98="Varies"," "," ")) ->  | H100: =IF(AND($I$98="Regular",$M$98="Hourly"),"Overtime",IF(AND($I$98="Regular",$M$98="Salary"),"Bonus",IF($I$98="Varies"," "," "))) ->  | J100: =IF(AND($I$98="Regular",$M$98="Hourly",$H$101="Yes"),"Overtime",IF(AND($I$98="Regular",$M$98="Salary",$H$101="Yes"),"Bonus"," ")) ->  | M100: =IF(AND($I$98="Regular",$M$98="Hourly",$H$101="Yes"),"Overtime Hours",IF($I$98="Varies"," "," ")) ->  | P100: =IF(AND($I$98="Regular",$M$98="Salary",$H$101="Yes"),"Bonus"," ") ->  | R100: =IF(AND($I$98="Varies",$M$98="Recent Quarterly")," ","Seasonal Employment?") -> Seasonal Employment? | V100: Weeks | Y100: Salary | Z100: =IF(AND($I$98="Regular",$M$98="Salary"),IF($Q$98="Weekly",($U$98*52)/12,IF($Q$98="Bi-weekly",($U$98*26)/12,IF($Q$98="Monthly",$U$98,IF($Q$98="Semi-Monthly",($U$98*24)/12,IF($Q$98="Annual",$U$98/12,0))))),0) -> 0 | AC100: 2nd quarter | AD100: =IF($N$106="","",$N$106) ->  | AE100: =ISNUMBER(AD100) -> FALSE
E101: =IF(AND($I$98="Regular",$M$98="Hourly"),"No.:"," ") ->  | H101: No | I101: =IF(AND($I$98="Regular",$H$101="Yes"),"Amt:",IF($I$29="Varies"," "," ")) ->  | O101: =IF(AND($I$98="Regular",$M$98="Salary",$H$101="Yes"),"Frequency"," ") ->  | S101: No | Y101: Bonus | Z101: =IF(AND($I$98="Regular",$M$98="Salary",$H$101="Yes"),($J$101*IF($P$101="Annual",1,IF($P$101="Quarterly",4,IF($P$101="Semi-Annual",2,IF($P$101="Monthly",12,IF($P$101="Semi-monthly",24,IF($P$101="Weekly",52,IF($P$101="Bi-weekly",26))))))))/12,0) -> 0 | AA101: ="Seasonal" -> Seasonal | AC101: 3rd quarter | AD101: =IF($R$106="","",$R$106) ->  | AE101: =ISNUMBER(AD101) -> FALSE
Y102: Total | Z102: =$Z$100+$Z$101 -> 0 | AA102: =IFERROR(IF($V$100="Months",ROUND(($V$101*$Z$102)/12,2),ROUND(($V$101*($Z$102/4.333))/12,2)),"Seasonal?") -> 0 | AC102: 4th quarter | AD102: =IF($V$106="","",$V$106) ->  | AE102: =ISNUMBER(AD102) -> FALSE
H103: =IF(AND($I$98="Varies",$M$98="Year-to-Date"),"Start Date"," ") ->  | N103: =IF(AND($I$98="Varies",$M$98="Year-to-Date"),"End Date"," ") ->  | T103: =IF(AND($I$98="Varies",$M$98="Year-to-Date"),"Amount"," ") ->  | Y103: Year to date | Z103: =IF(AND($I$98="Varies",$M$98="Year-to-date"),(($T$104/(($N$104-$H$104)+1))*365)/12,0) -> 0 | AC103: Quarterly Total | AD103: =SUM(AD99:AD102) -> 0 | AE103: =COUNTIF(AE99:AE102,TRUE) -> 0
F104: =IF(AND($I$98="Varies",$M$98="Year-to-Date"),"Year-to-Date Earnings:"," ") ->  | K104: =IF(AND($I$98="Varies",$M$98="Year-to-Date"),"Most recent pay stub"," ") ->  | Q104: =IF(AND($I$98="Varies",$M$98="Year-to-Date"),"Year-to-Date Earnings:"," ") ->  | Y104: Seasonal | Z104: =IFERROR(IF($V$100="Months",ROUND(($V$101*$Z$103)/12,2),ROUND(($V$101*($Z$103/4.333))/12,2)),"Seasonal") -> 0 | AC104: Quarterly | AD104: =IF($AE$103=1,$AD$103/3,IF($AE$103=2,$AD$103/6,IF($AE$103=3,$AD$103/9,IF($AE$103=4,$AD$103/12,0)))) -> 0
E106: =IF(AND($I$98="Varies",$M$98="Recent Quarterly"),"Recent Quarterly Earnings"," ") ->  | H106: =IF(AND($I$98="Varies",$M$98="Recent Quarterly"),"1st Quarter"," ") ->  | L106: =IF(AND($I$98="Varies",$M$98="Recent Quarterly"),"2nd Quarter"," ") ->  | P106: =IF(AND($I$98="Varies",$M$98="Recent Quarterly"),"3rd Quarter"," ") ->  | T106: =IF(AND($I$98="Varies",$M$98="Recent Quarterly"),"4th Quarter"," ") -> 
E114: ='Family Info'!$AB$20&"'s"&" "&"Imputation Analysis" -> 's Imputation Analysis
Y115: Party B Imputed Income
O116: Basis for Earnings | Y116: Hourly | Z116: =IF($I$121="Hourly",(($R$121*$U$121)*IF($O$121="Weekly",52,IF($O$121="Bi-weekly",26,IF($O$121="Semi-Monthly",24,IF($O$121="Monthly",12,0))))))/12 -> 0 | AC116: Prior Annual Earnings
G117: Criteria to Impute | Y117: Overtime | Z117: =IF(AND($F$124="Yes",$I$121="Hourly"),(($I$124*$M$124)*IF($O$121="Weekly",52,IF($O$121="Bi-weekly",26,IF($O$121="Semi-Monthly",24,IF($O$121="Monthly",12,0))/12))))/12 -> 0 | AA117: ="Seasonal" -> Seasonal | AC117: =$H$130 ->  | AD117: =IF($I$130="","",$I$130) ->  | AE117: =ISNUMBER(AD117) -> FALSE
Y118: Total | Z118: =SUM($Z$116:$Z$117) -> 0 | AA118: =IFERROR(IF($V$123="Months",ROUND(($V$124*$Z$118/12),2),ROUND(($V$124*($Z$118/4.333))/12,2)),"Seasonal?") -> 0 | AC118: =$L$130 ->  | AD118: =IF($M$130="","",$M$130) ->  | AE118: =ISNUMBER(AD118) -> FALSE
Y119: Salary | Z119: =IF($I$121="Salary",IF($O$121="Weekly",$R$121*52,IF($O$121="Bi-weekly",$R$121*26,IF($O$121="Monthly",$R$121*12,IF($O$121="Semi-Monthly",$R$121*24,IF($O$121="Annual",$R$121*1,0))))))/12 -> 0 | AC119: =$P$130 ->  | AD119: =IF($Q$130="","",$Q$130) ->  | AE119: =ISNUMBER(AD119) -> FALSE
R120: =IF(OR($I$121="Hourly",$I$121="Salary"),"Pay Rate",IF($I$121="Monthly","Amount"," ")) ->  | U120: =IF($I$121="Hourly","Hours"&"/"&$O$121," ") ->  | AA120: ="Seasonal" -> Seasonal | AC120: =$T$130 ->  | AD120: =IF($U$130="","",$U$130) ->  | AE120: =ISNUMBER(AD120) -> FALSE
E121: Type of Imputed Gross Monthly Earnings | N121: =IF(OR($I$121="Salary",$I$121="Hourly"),"Pay Period"," ") ->  | Q121: =IF(AND($I$121="Salary",ISTEXT($O$121)),$O$121&":",IF($I$121="Hourly","Per hour:",IF($I$121="Monthly","Monthly"," "))) ->  | T121: =IF($I$121="Hourly","No.:"," ") ->  | Y121: Total | Z121: =$Z$119 -> 0 | AA121: =IFERROR(IF($V$123="Months",ROUND((V$124*$Z$121)/12,2),ROUND(($V$124*($Z$121/4.333))/12,2)),"Seasonal?") -> 0 | AC121: Total Earnings | AD121: =SUM(AD117:AD120) -> 0 | AE121: =COUNTIF(AE117:AE120,TRUE) -> 0
Y122: Year to date | Z122: =IF($I$121="Year-to-date",(($T$127/(($N$127-$H$127)+1))*365)/12,0) -> 0 | AA122: Seasonal | AB122: =IFERROR(IF($V$123="Months",ROUND((V$124*$Z$122)/12,2),ROUND(($V$124*($Z$122/4.333))/12,2)),"Seasonal?") -> 0 | AC122: Prior A. Earnings | AD122: =IF($AE$121=1,$AD$121/12,IF($AE$121=2,$AD$121/24,IF($AE$121=3,$AD$121/36,IF($AE$121=4,$AD$121/48,0)))) -> 0
F123: =IF($I$121="Hourly","Overtime"," ") ->  | I123: =IF(AND($I$121="Hourly",$F$124="Yes"),"Overtime"," ") ->  | M123: =IF(AND($I$121="Hourly",$F$124="Yes"),"Overtime Hours"," ") ->  | R123: =IF(OR($I$121="Salary",$I$121="Hourly",I121="Monthly",$I$121="Year-to-date"),"Seasonal Employment?"," ") ->  | V123: Months | Y123: Monthly | Z123: =IF($R$121=" ",0,$R$121) -> 0 | AA123: Seasonal | AB123: =IFERROR(IF($V$123="Months",($Z$123*$V$124)/12,ROUND(($V$124*($Z$123/4.333))/12,2)),"Seasonal?") -> 0
F124: No | H124: =IF(AND($I$121="Hourly",$F$124="Yes"),"Amt:"," ") ->  | S124: No
H126: =IF($I$121="Year-to-Date","Start Date"," ") ->  | N126: =IF($I$121="Year-to-Date","End Date"," ") ->  | T126: =IF($I$121="Year-to-Date","Amount"," ") -> 
F127: =IF($I$121="Year-to-Date","Year-to-Date Earnings:"," ") ->  | K127: =IF($I$121="Year-to-Date","Most recent pay stub"," ") ->  | Q127: =IF($I$121="Year-to-Date","Year-to-Date Earnings:"," ") -> 
I129: =IF($I$121="Prior annual earnings","Prior Annual Earnings"," ") ->  | M129: =IF($I$121="Prior annual earnings","Prior Annual Earnings"," ") ->  | Q129: =IF($I$121="Prior annual earnings","Prior Annual Earnings"," ") ->  | U129: =IF($I$121="Prior annual earnings","Prior Annual Earnings"," ") -> 
E130: =IF($I$121="Prior annual earnings","Prior Annual Earnings"," ") ->  | H130: =IF($I$121="Prior annual earnings",YEAR(TODAY())-1," ") ->  | L130: =IF($I$121="Prior annual earnings",YEAR(TODAY())-2," ") ->  | P130: =IF($I$121="Prior annual earnings",YEAR(TODAY())-3," ") ->  | T130: =IF($I$121="Prior annual earnings",YEAR(TODAY())-4," ") -> 

Sheet Other Income (hidden)
AI1: FALSE
E2: Other Income | Y2: PA1 | DA2: Switch | DB2: No | DC2: Yes
Q3: Inc. Type | R3: =$AD$5 ->  | U3: =$AD$6 ->  | DC3: No
Q4: SSDI | R4: =IFERROR(ROUND(IF($AI$5=TRUE,$U$17,0),2),0) -> 0 | U4: =IFERROR(ROUND(IF($AL$5=TRUE,$U$91,0),2),0) -> 0 | AH4: =AD5&" "&"Checkboxes" -> Checkboxes | AK4: =AD6&" "&"Checkboxes" -> Checkboxes
B5: Getting Started | F5: ='Family Info'!$AB$19&" "&"Other Income" -> Other Income | Q5: SPSL | R5: =IFERROR(ROUND(IF(AND($AI$6=TRUE,$AD$31=TRUE,ISNUMBER(AF30)),AF30,IF(AND($AI$6=TRUE,$AD$31=TRUE,NOT(ISNUMBER(AF30))),0,IF(AND($AI$6=TRUE,$AD$31=FALSE),$U$25,0))),2)," ") -> 0 | U5: =IFERROR(ROUND(IF(AND($AL$6=TRUE,$AD$87=TRUE,ISNUMBER($U$101)),$U$101,IF(AND($AL$6=TRUE,$AD$87=TRUE,NOT(ISNUMBER($U$101))),0,IF(AND($AL$6=TRUE,$AD$87=FALSE),$U$99,0))),2)," ") -> 0 | AC5: Yes | AD5: ='Family Info'!$AB$19 ->  | AE5: ='Family Info'!$AB$23 ->  | AF5: =IF('Family Info'!J7="Yes","Caretaker","Parents") -> Parents | AH5: SSDI | AI5: TRUE | AK5: SSDI | AL5: TRUE
B6: Family Information | F6: Select | G6: Social Security Disability Benefits | L6: Unemployment Benefits | Q6: W-C | R6: =IFERROR(ROUND(IF($AI$7=TRUE,$T$31,0),2)," ") -> 0 | U6: =IFERROR(ROUND(IF($AL$7=TRUE,$T$105,0),2)," ") -> 0 | AC6: No | AD6: ='Family Info'!$AB$20 ->  | AF6: =INDIRECT(AF5) ->  | AH6: Spousal | AI6: TRUE | AK6: Spousal | AL6: TRUE
Q7: UEB | R7: =IFERROR(ROUND(IF($AI$8=TRUE,$T$39,0),2)," ") -> 0 | U7: =IFERROR(ROUND(IF($AL$8=TRUE,$T$113,0),2)," ") -> 0 | AH7: WC | AI7: TRUE | AK7: WC | AL7: TRUE
B8: Income | H8: Spousal Support Received | L8: Veteran's Benefits | Q8: VET. BEN. | R8: =IFERROR(ROUND(IF($AI$9=TRUE,$T$47,0),2)," ") -> 0 | U8: =IFERROR(ROUND(IF($AL$9=TRUE,$T$121,0),2)," ") -> 0 | AH8: UEB | AI8: TRUE | AK8: UEB | AL8: TRUE
B9: Employment Income | Q9: RET. BEN. | R9: =IFERROR(ROUND(IF($AI$10=TRUE,$T$55,0),2)," ") -> 0 | U9: =IFERROR(ROUND(IF($AL$10=TRUE,$T$129,0),2)," ") -> 0 | AH9: VB | AI9: TRUE | AK9: VB | AL9: TRUE
B10: Other Income | H10: Worker's Compensation | L10: Retirement Benefits | Q10: Other Inc A | R10: =IFERROR(ROUND(IF($AI$11=TRUE,$T$63,0),2)," ") -> 0 | U10: =IFERROR(ROUND(IF($AL$11=TRUE,$T$137,0),2)," ") -> 0 | AH10: RB | AI10: TRUE | AK10: RB | AL10: TRUE
B11: Income Adjustments | Q11: Other Inc B | R11: =IFERROR(ROUND(IF($AI$12=TRUE,$U$71,0),2)," ") -> 0 | U11: =IFERROR(ROUND(IF($AL$12=TRUE,$U$145,0),2)," ") -> 0 | AH11: Other A | AI11: TRUE | AK11: Other A | AL11: TRUE
Q12: Total | R12: =IFERROR(ROUND(SUM(R4:R11),2)," ") -> 0 | U12: =SUM(U4:U11) -> 0 | AH12: Other B | AI12: TRUE | AK12: Other B | AL12: TRUE
B13: Health Care | H13: Input Other Income Source | L13: Input Other Income Source | AH13: Count | AI13: =COUNTIF(R4:R11,">0") -> 0 | AL13: =COUNTIF($U$4:$U$11,">0") -> 0
B14: Day Care Cost
B15: Results
F17: ='Family Info'!$AB$19&"'"&"s"&" "&"Social Security Disability Benefits (SSDI):" -> 's Social Security Disability Benefits (SSDI): | R17: SSDI Gross Total: | U17: =IF($I$19=" ",0,IF($Q$19<>"Yes",$I$19,IFERROR(($I$19+$Q$22),0))) -> 0
F19: ="SSDI Gross Monthly Amount:" -> SSDI Gross Monthly Amount: | K19: =IF('Family Info'!N9=1,"Does","Do")&" "&" "& "the"&" "&IF('Family Info'!N9=1,"child","children")&" "&"receive a derivative benefit?" -> Do the children receive a derivative benefit?
F22: ="Who receives the"&" "&IF('Family Info'!N9=1,"child's","children's")&" "&"benefit?" -> Who receives the children's benefit? | M22: ="How much is the"&" "&IF('Family Info'!N9=1," child's","children's")&" "&"benefit:" -> How much is the children's benefit: | AD22: =$AD$5&"'s"&" "&"Spousal Support [Received]" -> 's Spousal Support [Received]
AF23: =AD5 ->  | AJ23: =AD6 -> 
AD24: Employent Income | AF24: =IF(ISNUMBER('Empl Income'!$T$7),IF('Empl Income'!$T$7>1,'Empl Income'!$T$7,'Empl Income'!$T$6),0) -> 0 | AH24: Employent Income | AJ24: =IF(ISNUMBER('Empl Income'!$V$7),IF('Empl Income'!$V$7>1,'Empl Income'!$V$7,'Empl Income'!$V$6)) -> 0 | AM24: Workers Compensation | AU24: Unemployment | BC24: Veteran's Benefits | BK24: Retirement Benefits | BS24: =F63 -> 's Other Income Income: | CA24: ='Family Info'!$AB$19&"'"&"s"&" "&IF($L$12="","Other",$L$12)&" " &"Income:" -> 's Other Income:
E25: ='Family Info'!$AB$19&"'"&"s"&" "&"Spousal Support received:" -> 's Spousal Support received: | P25: Spousal Support Gross Total: | U25: =IF($M$27="Annual",$I$27/12,IF($M$27="Semi-Annual",$I$27/6,IF($M$27="Quarterly",$I$27/3,IF($M$27="Monthly",$I$27,IF($M$27="Semi-Monthly",$I$27*2,IF($M$27="Weekly",($I$27*52)/12,IF($M$27="Bi-Weekly",(I27*26)/12,0))))))) -> 0 | AD25: Other Income | AF25: =$U$17+$T$31+$T$39+$T$47+$T$55+$T$63+$U$71 -> 0 | AH25: Other Income | AJ25: =IFERROR(($U$91+$T$105+$T$113+$T$121+$T$129+$T$137+$T$145),0) -> 0 | AM25: Mthly Amt | AO25: =IF($O$33="Annual",$I$33/12,IF($O$33="Semi-Annual",$I$33/6,IF($O$33="Quarterly",$I$33/3,IF($O$33="Monthly",$I$33,IF($O$33="Semi-Monthly",$I$33*2,IF($O$33="Weekly",($I$33*52)/12,IF($O$33="Bi-Weekly",($I$33*26)/12,0))))))) -> 0 | AR25: Years | AS25: =IF($AO$28="Yes",$AO$25,0) -> 0 | AU25: Mthly Amt | AW25: =IF($O$41="Annual",$I$41/12,IF($O$41="Semi-Annual",$I$41/6,IF($O$41="Quarterly",$I$41/3,IF($O$41="Monthly",$I$41,IF($O$41="Semi-Monthly",$I$41*2,IF($O$41="Weekly",($I$41*52)/12,IF($O$41="Bi-Weekly",($I$41*26)/12,0))))))) -> 0 | AZ25: Years | BA25: =IF(AW28="Yes",$AW$25,0) -> 0 | BC25: Mthly Amt | BE25: =IF($O$49="Annual",$I$49/12,IF($O$49="Semi-Annual",$I$49*2/12,IF($O$49="Quarterly",$I$49/3,IF($O$49="Monthly",$I$49,IF($O$49="Semi-Monthly",$I$49*2,IF($O$49="Weekly",($I$49*52)/12,IF($O$49="Bi-Weekly",($I$49*26)/12,0))))))) -> 0 | BH25: Years | BI25: =IF(BE28="Yes",$BE$25,0) -> 0 | BK25: Mthly Amt | BM25: =IF($O$57="Annual",$I$57/12,IF($O$57="Semi-Annual",$I$57/6,IF($O$57="Quarterly",$I$57/3,IF($O$57="Monthly",$I$57,IF($O$57="Semi-Monthly",$I$57*2,IF($O$57="Weekly",($I$57*52)/12,IF($O$57="Bi-Weekly",($I$57*26)/12,0))))))) -> 0 | BP25: Years | BQ25: =IF($BM$28="Yes",$BM$25,0) -> 0 | BS25: Mthly Amt | BU25: =IF($BU$26="Annual",$I$65/12,IF($BU$26="Semi-Annual",$I$65/6,IF($BU$26="Quarterly",$I$65/3,IF($BU$26="Monthly",$I$65,IF($BU$26="Semi-Monthly",$I$65*2,IF($BU$26="Weekly",($I$65*52)/12,IF($BU$26="Bi-Weekly",($I$65*26)/12,0))))))) -> 0 | BX25: Years | BY25: =IF($BU$28="Yes",$BU$25,0) -> 0 | CA25: Mthly Amt | CC25: =IF($CC$26="Annual",$J$73/12,IF($CC$26="Semi-Annual",$J$73/6,IF($CC$26="Quarterly",$J$73/3,IF($CC$26="Monthly",$J$73,IF($CC$26="Semi-Monthly",$J$73*2,IF($CC$26="Weekly",($J$73*52)/12,IF($CC$26="Bi-Weekly",($J$73*26)/12,0))))))) -> 0 | CF25: Years | CG25: =IF(CC28="Yes",$CC$25,0) -> 0
AD26: Other Child Support | AF26: =IFERROR(IF('Income Adjustment'!L44=" ",0,'Income Adjustment'!L44),0) -> 0 | AH26: Other Child Support | AJ26: =IFERROR(IF('Income Adjustment'!$L$85=" ",0,'Income Adjustment'!$L$85),0) -> 0 | AN26: Frequ: | AO26: =$O$33 -> 0 | AQ26: Semi-Annual | AS26: =IF(AND(AO28="Yes",AO27=1),$I$33/12,$AO$25) -> 0 | AV26: Frequ: | AW26: =$O$41 -> 0 | AY26: Semi-Annual | BA26: =IF(AND($I$43="Yes",$O$43=1),$I$41/12,$AW$25) -> 0 | BD26: Frequ: | BE26: =$O$49 -> 0 | BG26: Semi-Annual | BI26: =IF(AND($I$51="Yes",$O$51=1),$I$49/12,$BE$25) -> 0 | BL26: Frequ: | BM26: =$O$57 -> 0 | BO26: Semi-Annual | BQ26: =IF(AND($I$59="Yes",$O$59=1),$I$57/12,$BM$25) -> 0 | BT26: Frequ: | BU26: =$O$65 -> 0 | BW26: Semi-Annual | BY26: =IF(AND($BU$28="Yes",$BU$27=1),$I$65/12,$BU$25) -> 0 | CB26: Frequ: | CC26: =$P$73 -> 0 | CE26: Semi-Annual | CG26: =IF(AND($CC$28="Yes",$CC$27=1),$J$73/12,$CC$25) -> 0
F27: Spousal Support Amount: | K27: Frequency: | P27: Spousal Support Calculation: | U27: =AF30 -> 0 | AD27: 1/2 employment tax | AF27: =IFERROR(IF('Income Adjustment'!$S$36=" ",0,'Income Adjustment'!$S$36),0) -> 0 | AH27: 1/2 employment tax | AJ27: =IFERROR(IF('Income Adjustment'!$S$77=" ",0,'Income Adjustment'!$S$77),0) -> 0 | AM27: Total# Periods: | AO27: =$O$35 -> 0 | AR27: Quarterly | AS27: =IF(AND($AO$28="Yes",$AO$27<4),($I$33*$AO$27)/12,$AO$25) -> 0 | AU27: Total# Periods: | AW27: =$O$43 -> 0 | AZ27: Quarterly | BA27: =IF(AND($AW$28="Yes",$AW$27<4),($I$41*$AW$27)/12,$AW$25) -> 0 | BC27: Total# Periods: | BE27: =$O$51 -> 0 | BH27: Quarterly | BI27: =IF(AND($BE28="Yes",$BE$27<4),($I$49*$BE$27)/12,$BE$25) -> 0 | BK27: Total# Periods: | BM27: =$O$59 -> 0 | BP27: Quarterly | BQ27: =IF(AND($BM28="Yes",$BM$27<4),($I$57*$BE$27)/12,$BE$25) -> 0 | BS27: Total# Periods: | BU27: =$O$67 -> 0 | BX27: Quarterly | BY27: =IF(AND($BU28="Yes",$BU$27<4),($I$65*$BU$27)/12,$BU$25) -> 0 | CA27: Total# Periods: | CC27: =$P$75 -> 0 | CF27: Quarterly | CG27: =IF(AND($CC$28="Yes",$CC$27<4),($J$73*$CC$27)/12,$CC$25) -> 0
AD28: other Adjustments | AF28: =IFERROR(IF('Income Adjustment'!$U$12=" ",0,'Income Adjustment'!$U$12),0) -> 0 | AH28: other Adjustments | AJ28: ='Income Adjustment'!$U$52 -> 0 | AN28: Limted | AO28: =$I$35 -> 0 | AR28: Monthly | AS28: =IF(AND($AO$28="Yes",$AO$27<12),($I$33*$AO$27)/12,$AO$25) -> 0 | AV28: Limted | AW28: =$I$43 -> 0 | AZ28: Monthly | BA28: =IF(AND($AW$28="Yes",$AW$27<12),($I$41*$AW$27)/12,$AW$25) -> 0 | BD28: Limted | BE28: =$I$51 -> 0 | BH28: Monthly | BI28: =IF(AND($BE$28="Yes",$BE$27<12),($I$49*$BE$27)/12,$BE$25) -> 0 | BL28: Limted | BM28: =$I$59 -> 0 | BP28: Monthly | BQ28: =IF(AND($BM$28="Yes",$BM$27<12),($I$57*$BM$27)/12,$BM$25) -> 0 | BT28: Limted | BU28: =$I$67 -> 0 | BX28: Monthly | BY28: =IF(AND($BU$28="Yes",$BU$27<12),($I$65*$BU$27)/12,$BU$25) -> 0 | CB28: Limted | CC28: =$J$75 -> 0 | CF28: Monthly | CG28: =IF(AND($CC$28="Yes",$CC$27<12),($J$73*$CC$27)/12,$CC$25) -> 0
AD29: Total | AF29: =AF24+AF25-AF26-AF27-AF28 -> 0 | AH29: Total | AJ29: =AJ24+AJ25-AJ26-AJ27-AJ28 -> 0 | AM29: Annual Amortiz: | AO29: =IF($AO$28="Yes",IF($O$33="Annual",AS25,IF($O$33="Semi-Annual",AS26,IF($O$33="Quarterly",AS27,IF($O$33="Monthly",$AS$28,IF($O$33="Semi-Monthly",$AS$29,IF($O$33="Weekly",$AS$30,IF($O$33="Bi-weekly",$AS$31))))))),$AO$25) -> 0 | AQ29: Semi-Monthly | AS29: =IF(AND($AO$28="Yes",$AO$27<24),($I$33*$AO$27)/12,$AO$25) -> 0 | AU29: Annual Amortiz: | AW29: =IF(AW28="Yes",IF($AW$26="Annual",$BA$25,IF($AW$26="Semi-Annual",$BA$26,IF($AW26="Quarterly",$BA$27,IF($AW$26="Monthly",$BA$28,IF($AW$26="Semi-Monthly",$BA$29,IF($AW$26="Weekly",$BA$30,IF($AW$26="Bi-weekly",$BA$31))))))),$AW$25) -> 0 | AY29: Semi-Monthly | BA29: =IF(AND($AW$28="Yes",$AW$27<24),($I$41*$AW$27)/12,$AW$25) -> 0 | BC29: Annual Amortiz: | BE29: =IF($BE$28="Yes",IF($BE$26="Annual",$BI$25,IF($BE$26="Semi-Annual",$BI$26,IF($BE26="Quarterly",$BI$27,IF($BE$26="Monthly",$BI$28,IF($BE$26="Semi-Monthly",$BI$29,IF($BE$26="Weekly",$BI$30,IF($BE$26="Bi-weekly",$BI$31))))))),$BE$25) -> 0 | BG29: Semi-Monthly | BI29: =IF(AND($BE$28="Yes",$BE$27<24),($I$49*$BE$27)/12,$BE$25) -> 0 | BK29: Annual Amortiz: | BM29: =IF($BM$28="Yes",IF($BM$26="Annual",$BQ$25,IF($BM$26="Semi-Annual",$BQ$26,IF($BM26="Quarterly",$BQ$27,IF($BM$26="Monthly",$BQ$28,IF($BM$26="Semi-Monthly",$BQ$29,IF($BM$26="Weekly",$BQ$30,IF($BM$26="Bi-weekly",$BQ$31))))))),$BM$25) -> 0 | BO29: Semi-Monthly | BQ29: =IF(AND($BM$28="Yes",$BM$27<24),($I$57*$BM$27)/12,$BM$25) -> 0 | BS29: Annual Amortiz: | BU29: =IF($BU$28="Yes",IF($BU$26="Annual",$BY$25,IF($BU$26="Semi-Annual",$BY$26,IF($BU26="Quarterly",$BY$27,IF($BU$26="Monthly",$BY$28,IF($BU$26="Semi-Monthly",$BY$29,IF($BU$26="Weekly",$BY$30,IF($BU$26="Bi-weekly",$BY$31))))))),$BU$25) -> 0 | BW29: Semi-Monthly | BY29: =IF(AND($BU$28="Yes",$BU$27<24),($I$65*$BU$27)/12,$BU$25) -> 0 | CA29: Annual Amortiz: | CC29: =IF($CC$28="Yes",IF($CC$26="Annual",$CG$25,IF($CC$26="Semi-Annual",$CG$26,IF($CC26="Quarterly",$CG$27,IF($CC$26="Monthly",$CG$28,IF($CC$26="Semi-Monthly",$CG$29,IF($CC$26="Weekly",$CG$30,IF($CC$26="Bi-weekly",$CG$31))))))),$CC$25) -> 0 | CE29: Semi-Monthly | CG29: =IF(AND($CC$28="Yes",$CC$27<24),($J$73*$CC$27)/12,$CC$25) -> 0
AD30: Spousal Support | AF30: =IF(AD31=FALSE,0,IF(($AF$29+$AJ$29)>10000,"Combined Gross Income Exceeds $10,000",IF($AJ$29*26%<$AF$29*58%,"No Spousal Support is owed.",($AJ$29*26%)-($AF$29*58%)))) -> 0 | AH30: Spousal Support | AR30: Weekly | AS30: =IF(AND($AO$28="Yes",$AO$27<52),($I$33*$AO$27)/12,$AO$25) -> 0 | AZ30: Weekly | BA30: =IF(AND($AW$28="Yes",$AW$27<52),($I$41*$AW$27)/12,$AW$25) -> 0 | BH30: Weekly | BI30: =IF(AND($BE$28="Yes",$BE$27<52),($I$49*$BE$27)/12,$BE$25) -> 0 | BP30: Weekly | BQ30: =IF(AND($BM$28="Yes",$BM$27<52),($I$57*$BM$27)/12,$BM$25) -> 0 | BX30: Weekly | BY30: =IF(AND($BU$28="Yes",$BU$27<52),($I$65*$BU$27)/12,$BU$25) -> 0 | CF30: Weekly | CG30: =IF(AND($CC$28="Yes",$CC$27<52),($J$73*$CC$27)/12,$CC$25) -> 0
F31: ='Family Info'!$AB$19&"'"&"s"&" "&"Worker's Compensation:" -> 's Worker's Compensation: | N31: Gross monthly Worker's Comp. Amt: | T31: =$AO$29 -> 0 | AD31: FALSE | AR31: biweekly | AS31: =IF(AND($AO$28="Yes",$AO$27<26),($I$33*$AO$27)/12,$AO$25) -> 0 | AU31: TRUE | AZ31: biweekly | BA31: =IF(AND($AW$28="Yes",$AW$27<26),($I$41*$AW$27)/12,$AW$25) -> 0 | BH31: biweekly | BI31: =IF(AND($BE$28="Yes",$BE$27<26),($I$49*$BE$27)/12,$BE$25) -> 0 | BP31: biweekly | BQ31: =IF(AND($BM$28="Yes",$BM$27<26),($I$57*$BM$27)/12,$BM$25) -> 0 | BX31: biweekly | BY31: =IF(AND($BU$28="Yes",$BU$27<26),($I$65*$BU$27)/12,$BU$25) -> 0 | CF31: biweekly | CG31: =IF(AND($CC$28="Yes",$CC$27<26),($J$73*$CC$27)/12,$CC$25) -> 0
F33: Worker's Comp. Amount: | M33: Frequency: | AU33: Unemployment Quarterly
AV34: Mthly Amt | AW34: =IFERROR($AV$39/$AW$39,0) -> 0
H35: Limited Period: | K35: ="# of"&" "&LOWER($O$33)&" "&"payments:" -> # of payments: | AU35: 1st Qu | AV35: =$U$41 -> 0 | AW35: =IF(ISNUMBER($U$41),3,0) -> 0
AU36: 2nd Qu | AV36: =$U$42 -> 0 | AW36: =IF(ISNUMBER($U$42),3,0) -> 0
AU37: 3rd Qu | AV37: =$U$43 -> 0 | AW37: =IF(ISNUMBER($U$43),3,0) -> 0
AU38: 4th Qu | AV38: =$U$44 -> 0 | AW38: =IF(ISNUMBER($U$44),3,0) -> 0
F39: ='Family Info'!$AB$19&"'"&"s"&" "&"Unemployment Compensation:" -> 's Unemployment Compensation: | M39: Gross monthly Unemployment Comp. Amt: | T39: =IF(AU31=TRUE,$AW$34,$AW$29) -> 0 | AU39: Total | AV39: =SUM($AV$35:$AV$38) -> 0 | AW39: =SUM(AW35:AW38) -> 0
E41: Unemployment Comp. Amount: | M41: Frequency: | T41: 1st Qu.
T42: 2nd Qu.
H43: Limited Period: | K43: ="# of"&" "&LOWER($O$41)&" "&"payments:" -> # of payments: | T43: 3rd Qu
T44: 4th Qu
F47: ='Family Info'!$AB$19&"'"&"s"&" "&"Veteran's Benefits:" -> 's Veteran's Benefits: | M47: Gross monthly Veteran's Benefit Amt: | T47: =$BE$29 -> 0
E49: Veteran's Benefit Amount: | M49: Frequency:
H51: Limited Period: | K51: ="# of"&" "&LOWER($O$49)&" "&"payments:" -> # of payments:
F55: ='Family Info'!$AB$19&"'"&"s"&" "&"Retirement Benefits:" -> 's Retirement Benefits: | M55: Gross monthly Retirement Benefit Amt: | T55: =$BM$29 -> 0
E57: Retirement Benefit Amount: | M57: Frequency:
H59: Limited Period: | K59: ="# of"&" "&LOWER($O$57)&" "&"payments:" -> # of payments:
F63: ='Family Info'!$AB$19&"'"&"s"&" "&IF(H12="","Other Income",H12)&" " &"Income:" -> 's Other Income Income: | M63: ="Gross monthly"&" "&IF(H12="","Other Income",$H$12)&" "& "Amt:" -> Gross monthly Other Income Amt: | T63: =$BU$29 -> 0
E65: =IF($H$12="","Other Income",$H$12&" "&"Income")&" "&"Amount:" -> Other Income Amount: | M65: Frequency:
H67: Limited Period: | K67: ="# of"&" "&LOWER($O$65)&" "&"payments:" -> # of payments:
G71: ='Family Info'!$AB$19&"'"&"s"&" "&IF($L$12="","Other",$L$12)&" " &"Income:" -> 's Other Income: | N71: ="Gross monthly"&" "&IF($L$12="","Other Income",L$12)&" "& "Amt:" -> Gross monthly Other Income Amt: | U71: =$CC$29 -> 0
F73: =IF($L$12="","Other Income",$L$12&" "&"Income")&" "&"Amount:" -> Other Income Amount: | N73: Frequency:
I75: Limited Period: | L75: ="# of"&" "&LOWER($P$73)&" "&"payments:" -> # of payments:
AD78: =$AH$79&"'s"&" "&"Spousal Support"&" "&"[Received]" -> 's Spousal Support [Received]
B79: Save Work | F79: ='Family Info'!$AB$20&" "&"Other Income" -> Other Income | AD79: =AD5 ->  | AH79: =AD6 ->  | AM79: Workers Compensation | AU79: Unemployment | BC79: Veteran's Benefits | BK79: Retirement Benefits | BS79: =$F$137 -> 's Other Income: | CA79: =$F$145 -> 's Other Income:
F80: Select | G80: Social Security Disability Benefits | L80: Unemployment Benefits | AD80: Employent Income | AF80: =IF(ISNUMBER('Empl Income'!$T$7),IF('Empl Income'!$T$7>1,'Empl Income'!$T$7,'Empl Income'!$T$6)) -> 0 | AH80: Employent Income | AJ80: =IF(ISNUMBER('Empl Income'!$V$7),IF('Empl Income'!$V$7>1,'Empl Income'!$V$7,'Empl Income'!$V$6)) -> 0 | AM80: Mthly Amt | AO80: =IF($O$107="Annual",$I$107/12,IF($O$107="Semi-Annual",$I$107/6,IF($O$107="Quarterly",$I$107/3,IF($O$107="Monthly",$I$107,IF($O$107="Semi-Monthly",$I$107*2,IF($O$107="Weekly",($I$107*52)/12,IF($O$107="Bi-Weekly",($I$107*26)/12,0))))))) -> 0 | AR80: Years | AS80: =IF($AO$83="Yes",$AO$80,AO80) -> 0 | AU80: Mthly Amt | AW80: =IF($O$115="Annual",$I$115/12,IF($O$115="Semi-Annual",$I$115/6,IF($O$115="Quarterly",$I$115/3,IF($O$115="Monthly",$I$115,IF($O$115="Semi-Monthly",$I$115*2,IF($O$115="Weekly",($I$115*52)/12,IF($O$115="Bi-Weekly",($I$115*26)/12,0))))))) -> 0 | AZ80: Years | BA80: =IF(AW83="Yes",$I$115/12,$AW$80) -> 0 | BC80: Mthly Amt | BE80: =IF($BE$81="Annual",$I$123/12,IF($BE$81="Semi-Annual",$I$123/6,IF($BE$81="Quarterly",$I$123/3,IF($BE$81="Monthly",$I$123,IF($BE$81="Semi-Monthly",$I$123*2,IF($BE$81="Weekly",($I$123*52)/12,IF($BE$81="Bi-Weekly",($I$123*26)/12,0))))))) -> 0 | BH80: Years | BI80: =IF($BE$83="Yes",$BE$80,$BE$80) -> 0 | BK80: Mthly Amt | BM80: =IF($BM$81="Annual",$I$131/12,IF($BM$81="Semi-Annual",$I$131/6,IF($BM$81="Quarterly",$I$131/3,IF($BM$81="Monthly",$I$131,IF($BM$81="Semi-Monthly",$I$131*2,IF($BM$81="Weekly",($I$131*52)/12,IF($BM$81="Bi-Weekly",($I$131*26)/12,0))))))) -> 0 | BP80: Years | BQ80: =IF($BM$83="Yes",$BM$80,$BM$80) -> 0 | BS80: Mthly Amt | BU80: =IF($BU$81="Annual",$I$139/12,IF($BU$81="Semi-Annual",$I$139/6,IF($BU$81="Quarterly",$I$139/3,IF($BU$81="Monthly",$I$139,IF($BU$81="Semi-Monthly",$I$139*2,IF($BU$81="Weekly",($I$139*52)/12,IF($BU$81="Bi-Weekly",($I$139*26)/12,0))))))) -> 0 | BX80: Years | BY80: =IF(BU83="Yes",BU80,$BU$80) -> 0 | CA80: Mthly Amt | CC80: =IF($P$147="Annual",$J$147/12,IF($P$147="Semi-Annual",$J$147/6,IF($P$147="Quarterly",$J$147/3,IF($P$147="Monthly",$J$147,IF($P$147="Semi-Monthly",$J$147*2,IF($P$147="Weekly",($J$147*52)/12,IF($P$147="Bi-Weekly",($J$147*26)/12,0))))))) -> 0 | CF80: Years | CG80: =IF(CC83="Yes",$CC$80,$CC$80) -> 0
B81: Calculator Reset | AD81: Other Income | AF81: =$U$17+$T$31+$T$39+$T$47+$T$55+$T$63+$U$71 -> 0 | AH81: Other Income | AJ81: =IF($AJ$25=" ",0,$AJ$25) -> 0 | AN81: Frequ: | AO81: =$O$107 -> 0 | AQ81: Semi-Annual | AS81: =IF(AND($AO$83="Yes",AO82=1),$I$107/12,$AO$80) -> 0 | AV81: Frequ: | AW81: =$O$115 -> 0 | AY81: Semi-Annual | BA81: =IF(AND($AW$83="Yes",AW82=1),$I$115/12,$AW$25) -> 0 | BD81: Frequ: | BE81: =$O$123 -> 0 | BG81: Semi-Annual | BI81: =IF(AND($BE$83="Yes",$BE$82=1),$I$123/12,$BE$80) -> 0 | BL81: Frequ: | BM81: =$O$131 -> 0 | BO81: Semi-Annual | BQ81: =IF(AND($BM$83="Yes",$BM$82=1),$I$131/12,$BM$80) -> 0 | BT81: Frequ: | BU81: =$O$139 -> 0 | BW81: Semi-Annual | BY81: =IF(AND($BU$83="Yes",$BU$82=1),$I$139/12,$BU$80) -> 0 | CB81: Frequ: | CC81: =$P$147 -> 0 | CE81: Semi-Annual | CG81: =IF(AND($CC$83="Yes",$CC$82=1),$J$147/12,$CC$80) -> 0
H82: Spousal Support Received | L82: Veteran's Benefits | AD82: Other Child Support | AF82: =IF($AF$26=" ",0,$AF$26) -> 0 | AH82: Other Child Support | AJ82: =IF($AJ$26=" ",0,$AJ$26) -> 0 | AM82: Total# Periods: | AO82: =$O$109 -> 0 | AR82: Quarterly | AS82: =IF(AND($AO$83="Yes",$AO$82<4),($I$107*$AO$82)/12,$AO$80) -> 0 | AU82: Total# Periods: | AW82: =$O$117 -> 0 | AZ82: Quarterly | BA82: =IF(AND($AW$83="Yes",$AW$82<4),($I$115*$AW$82)/12,$AW$80) -> 0 | BC82: Total# Periods: | BE82: =$O$125 -> 0 | BH82: Quarterly | BI82: =IF(AND($BE83="Yes",$BE$82<4),($I$123*$BE$82)/12,$BE$80) -> 0 | BK82: Total# Periods: | BM82: =$O$133 -> 0 | BP82: Quarterly | BQ82: =IF(AND($BM$83="Yes",$BM$82<4),($I$131*$BM82)/12,$BM$80) -> 0 | BS82: Total# Periods: | BU82: =$O$141 -> 0 | BX82: Quarterly | BY82: =IF(AND($BU83="Yes",$BU$82<4),($I$139*$BU$82)/12,$BU$80) -> 0 | CA82: Total# Periods: | CC82: =$P$149 -> 0 | CF82: Quarterly | CG82: =IF(AND($CC$83="Yes",$CC$82<4),($J$147*$CC$82)/12,$CC$80) -> 0
AD83: 1/2 employment tax | AF83: =IF(AF27=" ",0,$AF$27) -> 0 | AH83: 1/2 employment tax | AJ83: =IF($AJ$27=" ",0,$AJ$27) -> 0 | AN83: Limted | AO83: =I109 -> 0 | AR83: Monthly | AS83: =IF(AND($AO$83="Yes",$AO$82<12),($I$107*$AO$82)/12,$AO$80) -> 0 | AV83: Limted | AW83: =$I$117 -> 0 | AZ83: Monthly | BA83: =IF(AND($AW$83="Yes",$AW$82<12),($I$115*$AW$82)/12,$AW$80) -> 0 | BD83: Limted | BE83: =$I$125 -> 0 | BH83: Monthly | BI83: =IF(AND($BE$83="Yes",$BE$82<12),($I$123*$BE$82)/12,$BE$80) -> 0 | BL83: Limted | BM83: =$I$133 -> 0 | BP83: Monthly | BQ83: =IF(AND($BM$83="Yes",$BM$82<12),($I$131*$BM$82)/12,$BM$80) -> 0 | BT83: Limted | BU83: =$I$141 -> 0 | BX83: Monthly | BY83: =IF(AND($BU$83="Yes",$BU$82<12),($I$139*$BU$82)/12,$BU$80) -> 0 | CB83: Limted | CC83: =$J$149 -> 0 | CF83: Monthly | CG83: =IF(AND($CC$83="Yes",$CC$82<12),($J$147*$CC$82)/12,$CC$80) -> 0
H84: Worker's Compensation | L84: Retirement Benefits | AD84: other Adjustments | AF84: =IF($AF$28=" ",0,$AF$28) -> 0 | AH84: other Adjustments | AJ84: =IF($AJ$28=" ",0,$AJ$28) -> 0 | AM84: Annual Amortiz: | AO84: =IF(AO83="Yes",IF($AO$81="Annual",AS80,IF($AO$83="Semi-Annual",AS81,IF($AO$81="Quarterly",AS82,IF($AO$81="Monthly",AS83,IF($AO$81="Semi-Monthly",AS84,IF($AO$81="Weekly",$AS$85,IF(AO81="Bi-weekly",AS86))))))),AO80) -> 0 | AQ84: Semi-Monthly | AS84: =IF(AND($AO$83="Yes",$AO$82<24),($I$107*$AO$82)/12,$AO$80) -> 0 | AU84: Annual Amortiz: | AW84: =IF(AW83="Yes",IF($AW$81="Annual",$BA$80,IF($AW$81="Semi-Annual",$BA$81,IF($AW$81="Quarterly",$BA$82,IF($AW$81="Monthly",$BA$83,IF($AW$81="Semi-Monthly",$BA$84,IF($AW$81="Weekly",$BA$85,IF($AW$81="Bi-weekly",$BA$86))))))),$AW$80) -> 0 | AY84: Semi-Monthly | BA84: =IF(AND($AW$83="Yes",$AW$82<24),($I$115*$AW$82)/12,$AW$80) -> 0 | BC84: Annual Amortiz: | BE84: =IF($BE$83="Yes",IF($BE$81="Annual",$BI$80,IF($BE$81="Semi-Annual",$BI$81,IF($BE81="Quarterly",$BI$82,IF($BE$81="Monthly",$BI$83,IF($BE$81="Semi-Monthly",$BI$84,IF($BE$81="Weekly",$BI$85,IF($BE$81="Bi-weekly",$BI$86))))))),$BE$80) -> 0 | BG84: Semi-Monthly | BI84: =IF(AND($BE$83="Yes",$BE$82<24),($I$123*$BE$82)/12,$BE$80) -> 0 | BK84: Annual Amortiz: | BM84: =IF($BM$83="Yes",IF($BM$81="Annual",$BQ$80,IF($BM$81="Semi-Annual",$BQ$81,IF($BM81="Quarterly",$BQ$82,IF($BM$81="Monthly",$BQ$83,IF($BM$81="Semi-Monthly",$BQ$84,IF($BM$81="Weekly",$BQ$85,IF($BM$81="Bi-weekly",$BQ$86))))))),$BM$80) -> 0 | BO84: Semi-Monthly | BQ84: =IF(AND($BM$28="Yes",$BM$27<24),($I$57*$BM$27)/12,$BM$25) -> 0 | BS84: Annual Amortiz: | BU84: =IF($BU$83="Yes",IF($BU$81="Annual",$BY$80,IF($BU$81="Semi-Annual",$BY$81,IF($BU81="Quarterly",$BY$82,IF($BU$81="Monthly",$BY$83,IF($BU$81="Semi-Monthly",$BY$84,IF($BU$81="Weekly",$BY$85,IF($BU$81="Bi-weekly",$BY$86))))))),$BU$80) -> 0 | BW84: Semi-Monthly | BY84: =IF(AND($BU$83="Yes",$BU$82<24),($I$139*$BU$82)/12,$BU$80) -> 0 | CA84: Annual Amortiz: | CC84: =IF($CC$83="Yes",IF($CC$81="Annual",$CG$80,IF($CC$81="Semi-Annual",$CG$81,IF($CC81="Quarterly",$CG$82,IF($CC$81="Monthly",$CG$83,IF($CC$81="Semi-Monthly",$CG$84,IF($CC$81="Weekly",$CG$85,IF($CC$81="Bi-weekly",$CG$86))))))),$CC$80) -> 0 | CE84: Semi-Monthly | CG84: =IF(AND($CC$83="Yes",$CC$82<24),($J$147*$CC$82)/12,$CC$80) -> 0
AD85: Total | AF85: =SUM(AF80:AF81)-SUM($AF$82:$AF$84) -> 0 | AH85: Total | AJ85: =SUM($AJ$80:$AJ$81)-SUM($AJ$82:$AJ$84) -> 0 | AR85: Weekly | AS85: =IF(AND($AO$83="Yes",$AO$82<52),($I$107*$AO$82)/12,$AO$80) -> 0 | AZ85: Weekly | BA85: =IF(AND($AW$83="Yes",$AW$82<52),($I$115*$AW$82)/12,$AW$80) -> 0 | BH85: Weekly | BI85: =IF(AND($BE$83="Yes",$BE$82<52),($I$123*$BE$82)/12,$BE$80) -> 0 | BP85: Weekly | BQ85: =IF(AND($BM$83="Yes",$BM$82<52),($I$131*$BM$82)/12,$BM$80) -> 0 | BX85: Weekly | BY85: =IF(AND($BU$83="Yes",$BU$82<52),($I$139*$BU$82)/12,$BU$80) -> 0 | CF85: Weekly | CG85: =IF(AND($CC$83="Yes",$CC$82<52),($J$147*$CC$82)/12,$CC$80) -> 0
AD86: Spousal Support | AH86: Spousal Support | AJ86: =IF(AD87=FALSE,0,IF(($AF$85+$AJ$85)>10000,"Combined Gross Income Exceeds $10,000",IF($AF$85*26%<$AJ$85*58%,"No Spousal Support is owed.",($AF$85*26%)-($AJ$85*58%)))) -> 0 | AR86: biweekly | AS86: =IF(AND($AO$83="Yes",$AO$82<26),($I$107*$AO$82)/12,$AO$80) -> 0 | AU86: FALSE | AZ86: biweekly | BA86: =IF(AND($AW$83="Yes",$AW$82<26),($I$115*$AW$82)/12,$AW$80) -> 0 | BH86: biweekly | BI86: =IF(AND($BE$83="Yes",$BE$82<26),($I$123*$BE$82)/12,$BE$80) -> 0 | BP86: biweekly | BQ86: =IF(AND($BM$83="Yes",$BM$82<26),($I$131*$BM$82)/12,$BM$80) -> 0 | BX86: biweekly | BY86: =IF(AND($BU$83="Yes",$BU$82<26),($I$139*$BU$82)/12,$BU$80) -> 0 | CF86: biweekly | CG86: =IF(AND($CC$83="Yes",$CC$82<26),($J$147*$CC$82)/12,$CC$80) -> 0
H87: Input Other Income Source | L87: Input Other Income Source | AD87: FALSE
AU88: Unemployment Quarterly
AV89: Mthly Amt | AW89: =IFERROR($AV$94/$AW$94,0) -> 0
AU90: 1st Qu | AV90: =U115 -> 0 | AW90: =IF(ISNUMBER($U$115),3,0) -> 0
F91: ='Family Info'!$AB$20&"'"&"s"&" "&"Social Security Disability Benefits (SSDI):" -> 's Social Security Disability Benefits (SSDI): | R91: SSDI Gross Total: | U91: =IF($Q$93<>"Yes",$I$93,IFERROR(($I$93+$Q$96),0)) -> 0 | AU91: 2nd Qu | AV91: =U116 -> 0 | AW91: =IF(ISNUMBER($U$116),3,0) -> 0
AU92: 3rd Qu | AV92: =U117 -> 0 | AW92: =IF(ISNUMBER($U$117),3,0) -> 0
F93: ="SSDI Gross Monthly Amount:" -> SSDI Gross Monthly Amount: | K93: =IF('Family Info'!N83=1,"Does","Do")&" "&" "& "the"&" "&IF('Family Info'!N83=1,"child","children")&" "&"receive a derivative benefit?" -> Do the children receive a derivative benefit? | AU93: 4th Qu | AV93: =U118 -> 0 | AW93: =IF(ISNUMBER($U$118),3,0) -> 0
AU94: Total | AV94: =SUM(AV90:AV93) -> 0 | AW94: =SUM(AW90:AW93) -> 0
F96: ="Who receives the"&" "&IF('Family Info'!N83=1,"child's","children's")&" "&"benefit?" -> Who receives the children's benefit? | M96: ="How much is the"&" "&IF('Family Info'!N83=1," child's","children's")&" "&"benefit:" -> How much is the children's benefit:
F99: ='Family Info'!$AB$20&"'"&"s"&" "&"Spousal Support received:" -> 's Spousal Support received: | P99: Spousal Support Gross Total: | U99: =IF($M$101="Annual",$I$101/12,IF($M$101="Quarterly",$I$101/3,IF($M$101="Semi-Annual",$I$101/6,IF($M$101="Monthly",$I$101,IF($M$101="Semi-Monthly",$I$101*2,IF($M$101="Weekly",($I$101*52)/12,IF($M$101="Bi-Weekly",(I101*26)/12,0))))))) -> 0
F101: Spousal Support Amount: | K101: Frequency: | P101: Spousal Support Calculation: | U101: =IFERROR(AJ86," ") -> 0
F105: ='Family Info'!$AB$20&"'"&"s"&" "&"Worker's Compensation:" -> 's Worker's Compensation: | N105: Gross monthly Worker's Comp. Amt: | T105: =AO84 -> 0
F107: Worker's Comp. Amount: | M107: Frequency:
H109: Limited Period: | K109: ="# of"&" "&LOWER($O$107)&" "&"payments:" -> # of payments:
F113: ='Family Info'!$AB$20&"'"&"s"&" "&"Unemployment Compensation:" -> 's Unemployment Compensation: | M113: Gross monthly Unemployment Comp. Amt: | T113: =IF($AU$86=TRUE,$AW$89,$AW$84) -> 0
E115: Unemployment Comp. Amount: | M115: Frequency: | T115: 1st Qu.
T116: 2nd Qu.
H117: Limited Period: | K117: ="# of"&" "&LOWER($O$115)&" "&"payments:" -> # of payments: | T117: 3rd Qu
T118: 4th Qu
F121: ='Family Info'!$AB$20&"'"&"s"&" "&"Veteran's Benefits:" -> 's Veteran's Benefits: | M121: Gross monthly Veteran's Benefit Amt: | T121: =$BE$84 -> 0
E123: Veteran's Benefit Amount: | M123: Frequency:
H125: Limited Period: | K125: ="# of"&" "&LOWER($O$41)&" "&"payments:" -> # of payments:
F129: ='Family Info'!$AB$20&"'"&"s"&" "&"Retirement Benefits:" -> 's Retirement Benefits: | M129: Gross monthly Retirement Benefit Amt: | T129: =$BM$84 -> 0
E131: Retirement Benefit Amount: | M131: Frequency:
H133: Limited Period: | K133: ="# of"&" "&LOWER($O$131)&" "&"payments:" -> # of payments:
F137: ='Family Info'!$AB$20&"'"&"s"&" "&IF($H$86="","Other",$H$86)&" " &"Income:" -> 's Other Income: | M137: ="Gross monthly"&" "&IF($H$86="","Other Income",$H$86)&" "& "Amt:" -> Gross monthly Other Income Amt: | T137: =$BU$84 -> 0
E139: =IF($H$86="","Other Income",$H$86&" "&"Income")&" "&"Amount:" -> Other Income Amount: | M139: Frequency:
H141: Limited Period: | K141: ="# of"&" "&LOWER($O$139)&" "&"payments:" -> # of payments:
F145: ='Family Info'!$AB$20&"'"&"s"&" "&IF($L$86="","Other",$L$86)&" " &"Income:" -> 's Other Income: | N145: ="Gross monthly"&" "&IF($L$86="","Other Income",$L$86)&" "& "Amt:" -> Gross monthly Other Income Amt: | U145: =$CC$84 -> 0
F147: =IF($L$86="","Other Income",$L$86&" "&"Income")&" "&"Amount:" -> Other Income Amount: | N147: Frequency:
I149: Yes | L149: ="# of"&" "&LOWER($P$147)&" "&"payments:" -> # of payments:

Sheet Income Adjustment (hidden)
E2: Income Adjustment | Y2: PA1 | AA2: 6 | AB2: ='Family Info'!$AB$19 ->  | AG2: ='Family Info'!AB$19 ->  | AI2: ='Family Info'!$AB$20 ->  | BA2: Switch | BB2: Yes | BC2: Yes
S3: =AB2 ->  | V3: =AB3 ->  | AA3: 10 | AB3: ='Family Info'!$AB$20 ->  | AD3: Reg. Inc. | AE3: Employment Income | AG3: =IF('Empl Income'!$T$6=" ",0,'Empl Income'!$T$6) -> 0 | AI3: =IF('Empl Income'!$V$6=" ",0,'Empl Income'!$V$6) -> 0 | AK3: Imputed Income | AM3: Employment Income | AO3: =IF('Empl Income'!$T$7=0,'Empl Income'!$T$6,'Empl Income'!$T$7) -> 0 | AQ3: =IF('Empl Income'!$V$7=0,'Empl Income'!$V$6,'Empl Income'!$V$7) -> 0 | AS3: Report info needed for worksheet activate | BC3: No
Q4: Reas. Bus. Exp. | S4: =IFERROR(ROUND(IF($U$12=" ",0,$U$12),2)," ") -> 0 | V4: =IFERROR(ROUND(IF($U$52=" ",0,$U$52),2)," ") -> 0 | AA4: 10 | AB4: ='Family Info'!$AB$19 ->  | AE4: Other Income | AG4: ='Other Income'!$R$12 -> 0 | AI4: ='Other Income'!$U12 -> 0 | AM4: Other Income | AO4: ='Other Income'!$R$12 -> 0 | AQ4: ='Other Income'!$U12 -> 0 | AS4: Party A | AT4: =COUNTIF(S4:S8,">0") -> 0
Q5: 1/2 Self Empl. Tax | S5: =IFERROR(ROUND(IF($S$36=" ",0,$S$36),2)," ") -> 0 | V5: =IFERROR(ROUND(IF($S$77=" ",0,$S$77),2)," ") -> 0 | AE5: Income Adjustment | AG5: =SUM($S$4:$T$7) -> 0 | AI5: =SUM($V$4:$V$7) -> 0 | AM5: Income Adjustment | AO5: =SUM($S$4:$T$7) -> 0 | AQ5: =SUM($V$4:$V$7) -> 0 | AS5: Party B | AT5: =COUNTIF(V4:V8,">0") -> 0
B6: Getting Started | Q6: Spousal Sup. Paid | S6: =IFERROR(ROUND(IF($L$40=" ",0,$L$40),2)," ") -> 0 | V6: =IFERROR(ROUND(IF($L$81=" ",0,$L$81),2)," ") -> 0 | AE6: Net | AG6: =($AG$3+$AG$4)-$AG$5 -> 0 | AI6: =($AI$3+$AI$4)-$AI$5 -> 0 | AM6: Net | AO6: =($AO$3+$AO$4)-$AO$5 -> 0 | AQ6: =($AQ$3+$AQ$4)-$AQ$5 -> 0
Q7: Other Child Support | S7: =IFERROR(ROUND(IF($L$44=" ",0,$L$44),2)," ") -> 0 | V7: =IFERROR(ROUND(IF($L$85=" ",0,$L$85),2)," ") -> 0 | AE7: Net + | AG7: =IF($AG$6>0,$AG$6,0) -> 0 | AI7: =IF($AI$6>0,$AI$6,0) -> 0 | AM7: Net + | AO7: =IF($AO$6>0,$AO$6,0) -> 0 | AQ7: =IF($AQ$6>0,$AQ$6,0) -> 0
B8: Family Information | Q8: Child reside in home | S8: =IFERROR(ROUND(IF(AND($AG4>=0,$AG$7<=35000),$AG$8,IF($L$48=1,1989+($AG$7-35000)*2.6%,IF($L$48=2,2927+($AG$7-35000)*3.4%,IF($L$48=3,3408+($AG$7-35000)*3.8%,IF($L$48=4,3807+($AG$7-35000)*4.2%,IF($L$48=5,4188+($AG$7-35000)*4.6%,IF($L$48=6,4552+($AG$7-35000)*5%))))))),2),0) -> 0 | V8: =IFERROR(ROUND(IF(AND($AI$8>=0,$AI$7<=35000),$AI$8,IF($L$89=1,1989+($AG$7-35000)*2.6%,IF($L$89=2,2927+($AI$7-35000)*3.4%,IF($L$89=3,3408+($AI$7-35000)*3.8%,IF($L$89=4,3807+($AI$7-35000)*4.2%,IF($L$89=5,4188+($AI$7-35000)*4.6%,IF($L$89=6,4552+($AI$7-35000)*5%))))))),2),0) -> 0 | W8: =IF($AI$8=0,0,IF(AND($AI$8>=0,$AI$7<=35000),$AI$8,IF($L$89=1,1989+($AG$7-35000)*2.6%,IF($L$89=2,2927+($AI$7-35000)*3.4%,IF($L$89=3,3408+($AI$7-35000)*3.8%,IF($L$89=4,3807+($AI$7-35000)*4.2%,IF($L$89=5,4188+($AI$7-35000)*4.6%,IF($L$89=6,4552+($AI$7-35000)*5%)))))))) -> 0 | AE8: Chld reside home | AG8: =IFERROR('Behind Curtain'!$S$12,0) -> 0 | AI8: =IFERROR('Behind Curtain'!$S$13,0) -> 0 | AM8: Chld reside home | AO8: =IFERROR('Behind Curtain'!$S$34,0) -> 0 | AQ8: =IFERROR('Behind Curtain'!$S$35,0) -> 0
Q9: Total Adjustment | S9: =IFERROR(ROUND(SUM(S4:S8),2)," ") -> 0 | V9: =IFERROR(ROUND(SUM(V4:V8),2)," ") -> 0 | AE9: Adjusted Income | AG9: =ROUND($AG$7-$AG$8,2) -> 0 | AI9: =ROUND($AI$7-$AI$8,2) -> 0 | AM9: Adjusted Income | AO9: =ROUND($AO$7-$AO$8,2) -> 0 | AQ9: =ROUND($AQ$7-$AQ$8,2) -> 0
B10: Income | AE10: Adjusted Income+ | AG10: =IF($AG$9<0,0,$AG$9) -> 0 | AI10: =IF($AI$9<0,0,$AI$9) -> 0 | AM10: Adjusted Income+ | AO10: =IF($AO$9<0,0,$AO$9) -> 0 | AQ10: =IF($AQ$9<0,0,$AQ$9) -> 0
B11: Employment Income | E11: =$AB$2 ->  | AE11: Combined Gross | AG11: =$AG$10+$AI$10 -> 0 | AM11: Combined Gross | AO11: =$AO$10+$AQ$10 -> 0
B12: Other Income | G12: Self Employment | M12: Reasonable Business Expenses Monthly Net Cost: | U12: =IFERROR(IF($AA$3=0,0,IF($AA$3=1,$N$15,IF($AA$3=2,$N$15+$N$17,IF($AA$3=3,$N$15+$N$17+$N$19,IF($AA$3=4,$N$15+$N$17+$N$19+$N$21,IF($AA$3=5,$N$15+$N$17+$N$19+$N$21+N$23,IF($AA$3=6,$N$15+$N$17+$N$19+$N$21+$N$23+$N$25,IF($AA$3=7,$N$15+$N$17+$N$19+$N$21+$N$23+$N$25+$N$27,IF($AA$3=8,$N$15+$N$17+$N$19+$N$21+$N$23+$N$25+$N$27+$N$29,IF($AA$3=9,$N$15+$N$17+$N$19+$N$21+$N$23+$N$25+$N$27+$N$29+$N$31,IF($AA$3>=10,$N$15+$N$17+$N$19+$N$21+$N$23+$N$25+$N$27+$N$29+$N$31+$N$33)))))))))))," ") -> 0
B13: Income Adjustments | G13: Reasonable Business Expenses | L13: Click Here
G14: Expense Type | J14: Monthly Cost | L14: Pers. Use% | N14: Net Monthly Cost
B15: Health Care | F15: 1 | N15: =IF(OR($J15=" ",$J15=""),0,IF(OR($L15=" ",$L15=""),$J15,$J15-($J15*$L15))) -> 0
B17: Day Care Cost | F17: 2 | N17: =IF(OR($J17=" ",$J17=""),0,IF(OR($L17=" ",$L17=""),$J17,$J17-($J17*$L17))) -> 0
B19: Results | F19: 3 | N19: =IF(OR($J19=" ",$J19=""),0,IF(OR($L19=" ",$L19=""),$J19,$J19-($J19*$L19))) -> 0
B21: Save Work | F21: 4 | N21: =IF(OR($J21=" ",$J21=""),0,IF(OR($L21=" ",$L21=""),$J21,$J21-($J21*$L21))) -> 0
B23: Calculator Reset | F23: 5 | N23: =IF(OR($J23=" ",$J23=""),0,IF(OR($L23=" ",$L23=""),$J23,$J23-($J23*$L23))) -> 0
F25: 6 | N25: =IF(OR($J25=" ",$J25=""),0,IF(OR($L25=" ",$L25=""),$J25,$J25-($J25*$L25))) -> 0
F27: 7 | N27: =IF(OR($J27=" ",$J27=""),0,IF(OR($L27=" ",$L27=""),$J27,$J27-($J27*$L27))) -> 0
F29: 8 | N29: =IF(OR($J29=" ",$J29=""),0,IF(OR($L29=" ",$L29=""),$J29,$J29-($J29*$L29))) -> 0
F31: 9 | N31: =IF(OR($J31=" ",$J31=""),0,IF(OR($L31=" ",$L31=""),$J31,$J31-($J31*$L31))) -> 0
F33: 10 | N33: =IF(OR($J33=" ",$J33=""),0,IF(OR($L33=" ",$L33=""),$J33,$J33-($J33*$L33))) -> 0
E35: =$AB$2 -> 
G36: Gross Self Employment Tax: | O36: Net Self Employment Tax: | S36: =IF($L$36=" "," ",$L$36/2) -> 0
L37: Monthly Amt
G40: Spousal Support Paid:
L41: Monthly Amt
E44: Child Support paid for other children:
L45: Monthly Amt
E48: ="Other children"&" "&"residing with" &" "&$AB$2 -> Other children residing with
E51: =$AB$3 -> 
G52: Self Employment | M52: Reasonable Business Expenses Monthly Net Cost: | U52: =IFERROR(IF($AA$4=0,0,IF($AA$4=1,$N$55,IF($AA$4=2,$N$55+$N$57,IF($AA$4=3,$N$55+$N$57+$N$59,IF($AA$4=4,$N$55+$N$57+$N$59+$N$61,IF($AA$4=5,$N$55+$N$57+$N$59+$N$61+N$63,IF($AA$4=6,$N$55+$N$57+$N$59+$N$61+$N$63+$N$65,IF($AA$4=7,$N$55+$N$57+$N$59+$N$61+$N$63+$N$65+$N$67,IF($AA$4=8,$N$55+$N$57+$N$59+$N$61+$N$63+$N$65+$N$67+$N$69,IF($AA$4=9,$N$55+$N$57+$N$59+$N$61+$N$63+$N$65+$N$67+$N$69+$N$71,IF($AA$4>=10,$N$55+$N$57+$N$59+$N$61+$N$63+$N$65+$N$67+$N$69+$N$71+$N$73)))))))))))," ") -> 0
G53: Reasonable Business Expenses | L53: Click Here
G54: Expense Type | J54: Monthly Cost | L54: Pers. Use% | N54: Net Monthly Cost
F55: 1 | N55: =IF(OR($J55=" ",$J55=""),0,IF(OR($L55=" ",$L55=""),$J55,$J55-($J55*$L55))) -> 0
F57: 2 | N57: =IF(OR($J57=" ",$J57=""),0,IF(OR($L57=" ",$L57=""),$J57,$J57-($J57*$L57))) -> 0
F59: 3 | N59: =IF(OR($J59=" ",$J59=""),0,IF(OR($L59=" ",$L59=""),$J59,$J59-($J59*$L59))) -> 0
F61: 4 | N61: =IF(OR($J61=" ",$J61=""),0,IF(OR($L61=" ",$L61=""),$J61,$J61-($J61*$L61))) -> 0
F63: 5 | N63: =IF(OR($J63=" ",$J63=""),0,IF(OR($L63=" ",$L63=""),$J63,$J63-($J63*$L63))) -> 0
F65: 6 | N65: =IF(OR($J65=" ",$J65=""),0,IF(OR($L65=" ",$L65=""),$J65,$J65-($J65*$L65))) -> 0
F67: 7 | N67: =IF(OR($J67=" ",$J67=""),0,IF(OR($L67=" ",$L67=""),$J67,$J67-($J67*$L67))) -> 0
F69: 8 | N69: =IF(OR($J69=" ",$J69=""),0,IF(OR($L69=" ",$L69=""),$J69,$J69-($J69*$L69))) -> 0
F71: 9 | N71: =IF(OR($J71=" ",$J71=""),0,IF(OR($L71=" ",$L71=""),$J71,$J71-($J71*$L71))) -> 0
F73: 10 | N73: =IF(OR($J73=" ",$J73=""),0,IF(OR($L73=" ",$L73=""),$J73,$J73-($J73*$L73))) -> 0
E76: =$AB$3 -> 
G77: Gross Self Employment Tax: | O77: Net Self Employment Tax: | S77: =IF(L77=" "," ",$L$77/2) -> 0
L78: Monthly Amt
G81: Spousal Support Paid:
L82: Monthly Amt
E85: Child Support paid for other children:
L86: Monthly Amt
E89: ="Other children"&" "&"residing with"&" "&$AB$3 -> Other children residing with

Sheet Health Ins (hidden)
E2: Health Insurance | BA2: Switch | BB2: Yes | BC2: Yes
R3: ='Family Info'!$AB$19 ->  | T3: ='Family Info'!$AB$20 ->  | V3: ='Family Info'!$AB$23 ->  | AE3: =IF('Family Info'!J7="Yes","HCThirdParty","HCParent") -> HCParent | AG3: First HCC | AI3: Monthly | AJ3: R.H.C.Cost | AL3: Second HCC | AN3: Monthly | BC3: No
P4: Health Insurance | R4: =IFERROR(ROUND(IF($AD$5=FALSE," ",$AM$14),2)," ") ->  | T4: =IFERROR(ROUND(IF($AD$5=FALSE," ",$AM$15),2)," ") ->  | V4: =IFERROR(ROUND(IF($AD$5=FALSE," ",$AM$16),2)," ") ->  | AD4: HI Yes/No | AE4: =$R$3 ->  | AG4: weekly | AH4: =$M$23 ->  | AI4: =(AH4*52)/12 ->  | AJ4: =IF('Empl Income'!$T$7=0,'Empl Income'!$T$6+'Other Income'!$R$12-'Income Adjustment'!$S$9,'Empl Income'!T$7+'Other Income'!$R$12-'Income Adjustment'!$S$9)*5% -> 0 | AL4: weekly | AM4: =$M$46 ->  | AN4: =(AM4*52)/12 -> 
F5: =IF('Family Info'!$N$9=1,"Does the child have private health ins.?","Do the children have private health ins.?") -> Do the children have private health ins.? | P5: Dental Insurance | R5: =Dental!R5 -> 0 | T5: =Dental!T5 -> 0 | V5: =Dental!V5 -> 0 | AD5: TRUE | AE5: =$R$3&"'s"&" "&"Spouse" -> 's Spouse | AG5: bi-weekly | AH5: =$M$23 ->  | AI5: =(AH5*26)/12 ->  | AL5: bi-weekly | AM5: =$M$46 ->  | AN5: =(AM5*26)/12 -> 
B6: Getting Started | P6: Vision Insurance | R6: =Vision!R6 -> 0 | T6: =Vision!T6 -> 0 | V6: =Vision!V6 -> 0 | AD6: FALSE | AE6: =$T$3 ->  | AG6: semi-monthly | AI6: =AH6*2 ->  | AJ6: =IF('Empl Income'!$V$7=0,'Empl Income'!$V$6+'Other Income'!$U$12-'Income Adjustment'!$V$9,'Empl Income'!V$7+'Other Income'!$U$12-'Income Adjustment'!$V$9)*5% -> 0 | AL6: semi-monthly | AN6: =AM6*2 -> 
F7: Which Party provides the health insurance? | P7: Total Health Care Cost | R7: =SUM(R4:S6) -> 0 | T7: =SUM(T4:U6) -> 0 | V7: =SUM(V4:W6) -> 0 | AE7: =$T$3&"'s"&" "&"Spouse" -> 's Spouse | AG7: monthly | AI7: =AH7*1 ->  | AL7: monthly | AN7: =AM7*1 -> 
B8: Family Information | P8: Reasonable Cost | R8: =IF($R$7=0,"",IFERROR($AJ$4," ")) ->  | T8: =IF($T$7=0,"",IFERROR($AJ$6," ")) ->  | V8: =IFERROR(IF(OR($R$4>$R$8,$T$4>$T$8),"Exceeds Reas. Cost"," ")," ") -> Exceeds Reas. Cost | AE8: =$V$3 ->  | AG8: quarterly | AI8: =AH8/3 ->  | AL8: quarterly | AN8: =AM8/3 -> 
F9: What is the name of the Health Insurance Co.? | AE9: =IF(V3=" "," ",$V$3&"'s"&" "&"Spouse") -> 's Spouse | AG9: semi-annual | AI9: =AH9/2 ->  | AL9: semi-annual | AN9: =AM9/2 -> 
B10: Income Information | AG10: yearly | AI10: =AH10/12 ->  | AL10: yearly | AN10: =AM10/12 -> 
F11: ="How often does"&" "&L7&" "&"pay the health ins. premium?" -> How often does pay the health ins. premium?
B12: Health Care | AJ12: Add 2nd HCC
B13: Health Ins. | F13: ="What is the"&" "&$N$11&" "&"cost for the health insurance?" -> What is the cost for the health insurance? | AI13: Pays HCC | AK13: FALSE | AL13: HCC Answer
B14: Dental Ins. | AH14: =$L$7 -> 0 | AI14: =IF(OR($AH$14=$AE$4,$AH$14=$AE$5),$AE$4,IF(OR($AH$14=$AE$6,$AH$14=$AE$7),$AE$6,IF(OR($AH$14=$AE$8,$AH$14=$AE$9),AE$8))) -> FALSE | AJ14: HC1 | AK14: =$L$25 ->  | AL14: =$R$3 ->  | AM14: =IF($AI$17=$AL$14,$AK$16,IF($AI$14=$AL$14,$AK$14,IF($AI$15=$AL$14,$AK$15," "))) -> 
B15: Vision Ins. | F15: ="What would be"&" "&$L$7&"'s"&" "&$N$11&" "&"cost for individual coverage, if known?" -> What would be 's cost for individual coverage, if known? | AH15: =$L$30 -> 0 | AI15: =IF(OR($AH$15=$AE$4,$AH$15=$AE$5),$AE$4,IF(OR($AH$15=$AE$6,$AH$15=$AE$7),$AE$6,IF(OR($AH$15=$AE$8,$AH$15=$AE$9),AE$8))) -> FALSE | AJ15: HC2 | AK15: =$L$48 ->  | AL15: =$T$3 ->  | AM15: =IF($AI$17=$AL$15,$AK$16,IF($AI$14=$AL$15,$AK$14,IF($AI$15=$AL$15,$AK$15," "))) -> 
AH16: =IF(AI16="Yes","Together","Sep") -> Together | AI16: =IF(AI14=AI15,"Yes","No") -> Yes | AJ16: TOTAL | AK16: =SUM($AK$14:$AK$15) -> 0 | AL16: =$V$3 ->  | AM16: =IF($AI$17=$AL$16,$AK$16,IF($AI$14=$AL$16,$AK$14,IF($AI$15=$AL$16,$AK$15," "))) -> 
B17: Day Care Cost | F17: =IF(OR($R$15=" ",$R$15=""),"How many people are on the health insurance policy, including"&" "&$L$7,"How many people are on the health insurance policy other than"&" "&L7&"?") -> How many people are on the health insurance policy, including | AI17: =IF($AI$16="Yes",$AI$14,"False") -> FALSE
B19: Results | F19: ="The number of children who are subject of the present proceeding:" -> The number of children who are subject of the present proceeding: | O19: 2 | AL19: Number of Children | AN19: =IF('Family Info'!$T$4="Split",'Family Info'!$P$16+'Family Info'!$V$16,'Family Info'!$N$9) -> 0
B21: Save Work | F21: ="Per person's"&" "&$N$11&" "&"health insurance cost:" -> Per person's health insurance cost: | M21: =IFERROR(IF($R$15=" ",$M$13/$Q$17,($M$13-$R$15)/$Q$17)," ") -> 
B23: Calculator Reset | F23: =IF($O$19=1,"Child's"&" "&$N$11&" "&"health insurance cost:","Children's"&" "&$N$11&" "&"health insurance cost:") -> Children's health insurance cost: | M23: =IFERROR($M$21*$O$19," ") -> 
F25: =IF($O$19=1,"Child's monthly health insurance cost:","Children's monthly health insurance cost:") -> Children's monthly health insurance cost: | L25: =IFERROR(VLOOKUP($N$11,$AG$4:$AI$10,3,FALSE)," ") -> 
F30: Which Party provides the health insurance?
F32: What is the name of the Health Insurance Co.?
F34: ="How ofter does"&" "&L30&" "&"pay the health ins. premium?" -> How ofter does pay the health ins. premium?
F36: ="What is the"&" "&$N$34&" "&"cost for the health insurance?" -> What is the cost for the health insurance?
F38: ="What would be"&" "&$L$30&"'s"&" "&$N$34&" "&"cost for individual coverage, if known?" -> What would be 's cost for individual coverage, if known?
F40: =IF(OR($R$38=" ",$R$38=""),"How many people are on the health insurance policy, including"&" "&$L$30,"How many people are on the health insurance policy other than"&" "&$L$30&"?") -> How many people are on the health insurance policy, including
F42: ="The number of children who are subject of the present proceeding:" -> The number of children who are subject of the present proceeding: | O42: 2
F44: ="Per person's"&" "&$N$34&" "&"health insurance cost:" -> Per person's health insurance cost: | M44: =IFERROR(IF($R$38=" ",$M$36/$Q$40,($M$36-$R$38)/$Q$40)," ") -> 
F46: =IF($O$19=1,"Child's"&" "&$N$34&" "&"health insurance cost:","Children's"&" "&$N$34&" "&"health insurance cost:") -> Children's health insurance cost: | M46: =IFERROR($M$44*$O$42," ") -> 
F48: =IF($O$19=1,"Child's monthly health insurance cost:","Children's monthly health insurance cost:") -> Children's monthly health insurance cost: | L48: =IFERROR(VLOOKUP($N$34,$AL$4:$AN$10,3,FALSE)," ") -> 

Sheet Dental (hidden)
E2: Dental Insurance | BA2: Switch | BB2: No | BC2: Yes
R3: ='Family Info'!$AB$19 ->  | T3: ='Family Info'!$AB$20 ->  | V3: ='Family Info'!$AB$23 ->  | BC3: No
P4: Health Insurance | R4: ='Health Ins'!$R$4 ->  | T4: ='Health Ins'!T4 ->  | V4: ='Health Ins'!V4:W4 ->  | AC4: ='Health Ins'!AE4 ->  | AD4: Dental Yes/No | AE4: Who provides | AG4: weekly | AH4: =M23 -> 0 | AI4: =(AH4*52)/12 -> 0
F5: =IF('Family Info'!N9=1,"Does the child have dental insurance?","Do the children have dental insurance?") -> Do the children have dental insurance? | P5: Dental Insurance | R5: =IF($AD$5=FALSE," ",IFERROR(IF(OR($L$7=$AC$4,$L$7=$AC$5),$L$25," ")," ")) -> 0 | T5: =IF($AD$5=FALSE," ",IFERROR(IF(OR($L$7=$AC$6,$L$7=$AC$7),$L$25," ")," ")) -> 0 | V5: =IF($AD$5=FALSE," ",IFERROR(IF(OR($L$7=$AC$8,$L$7=$AC$9),$L$25," ")," ")) -> 0 | AC5: ='Health Ins'!AE5 -> 's Spouse | AD5: TRUE | AE5: =L7 -> 0 | AG5: bi-weekly | AH5: =$M$23 -> 0 | AI5: =(AH5*26)/12 -> 0
B6: Getting Started | P6: Vision Insurance | R6: =Vision!R6 -> 0 | T6: =Vision!T6 -> 0 | V6: =Vision!V6 -> 0 | AC6: ='Health Ins'!AE6 ->  | AD6: FALSE | AG6: semi-monthly | AH6: =M23 -> 0 | AI6: =AH6*2 -> 0
F7: Which Party provides the dental insurance? | P7: Total Health Care Cost | R7: =SUM(R4:S6) -> 0 | T7: =SUM(T4:U6) -> 0 | V7: =SUM(V4:W6) -> 0 | AC7: ='Health Ins'!AE7 -> 's Spouse | AG7: monthly | AH7: =M23 -> 0 | AI7: =AH7*1 -> 0
B8: Family Information | P8: Reasonable Cost | R8: =IF($R$7=0,"",'Health Ins'!R8:S8) ->  | T8: =IF($T$7=0,"",'Health Ins'!T8:U8) ->  | V8: =IF(OR($R$4>$R$8,$T$4>$T$8),"Exceeds Reas. Cost"," ") -> Exceeds Reas. Cost | AC8: ='Health Ins'!AE8 ->  | AG8: quarterly | AH8: =M23 -> 0 | AI8: =AH8/3 -> 0
F9: What is the name of the Dental Insurance Co.? | AC9: ='Health Ins'!AE9 -> 's Spouse | AG9: semi-annual | AH9: =M23 -> 0 | AI9: =AH9/2 -> 0
B10: Income Information | AG10: yearly | AH10: =M23 -> 0 | AI10: =AH10/12 -> 0
F11: ="How ofter does"&" "&L7&" "&"pay the dental ins. premium?" -> How ofter does pay the dental ins. premium?
B12: Health Care Information
B13: Health Ins. | F13: ="What is the"&" "&$N$11&" "&"cost for the dental insurance?" -> What is the cost for the dental insurance?
B14: Dental Ins.
B15: Vision Ins. | F15: ="What would be"&" "&$L$7&"'s"&" "&$N$11&" "&"cost for individual coverage, if known?" -> What would be 's cost for individual coverage, if known?
B17: Day Care Cost | F17: =IF(OR($R$15=" ",$R$15=""),"How many people are on the dental insurance policy including"&" "&$L$7&"?","How many people are on the dental insurance policy other than"&" "&$L$7&"?") -> How many people are on the dental insurance policy including ?
B19: Results | F19: ="The number of children who are subject of the present proceeding:" -> The number of children who are subject of the present proceeding:
B21: Save Work | F21: ="Per person's"&" "&$N$11&" "&"dental insurance cost:" -> Per person's dental insurance cost: | M21: =IFERROR(IF($R$15=" ",($M$13-0)/$Q$17,($M$13-$R$15)/$Q$17),0) -> 0
B23: Calculator Reset | F23: =IF($O$19=1,"Child's"&" "&$N$11&" "&"dental insurance cost:","Children's"&" "&$N$11&" "&"dental insurance cost:") -> Children's dental insurance cost: | M23: =M21*O19 -> 0
F25: =IF($O$19=1,"Child's monthly dental insurance cost:","Children's monthly dental insurance cost:") -> Children's monthly dental insurance cost: | L25: =IFERROR(VLOOKUP($N$11,$AG$4:$AI$10,3,FALSE),0) -> 0

Sheet Vision (hidden)
E2: Vision Insurance | BA2: Switch | BB2: Yes | BC2: Yes
R3: ='Family Info'!$AB$19 ->  | T3: ='Family Info'!$AB$20 ->  | V3: ='Family Info'!$AB$23 ->  | BC3: No
P4: Health Insurance | R4: ='Health Ins'!R4:S4 ->  | T4: ='Health Ins'!T4 ->  | V4: ='Health Ins'!V4 ->  | AC4: ='Health Ins'!AE4 ->  | AG4: weekly | AH4: =ROUND($M$23,2) -> 0 | AI4: =(AH4*52)/12 -> 0
F5: =IF('Family Info'!N9=1,"Does the child have vision insurance?","Do the children have vision insurance?") -> Do the children have vision insurance? | P5: Dental Insurance | R5: =Dental!$R$5 -> 0 | T5: =Dental!$T$5 -> 0 | V5: =Dental!$V$5 -> 0 | AC5: ='Health Ins'!AE5 -> 's Spouse | AD5: TRUE | AG5: bi-weekly | AH5: 0 | AI5: =(AH5*26)/12 -> 0
P6: Vision Insurance | R6: =IF($AD$5=FALSE," ",IFERROR(IF(OR($L$7=$AC$4,$L$7=$AC$5),$L$25," ")," ")) -> 0 | T6: =IFERROR(IF(OR($L$7=$AC$6,$L$7=$AC$7),$L$25," ")," ") -> 0 | V6: =IFERROR(IF(OR($L$7=$AC$8,$L$7=$AC$9),$L$25," ")," ") -> 0 | AC6: ='Health Ins'!AE6 ->  | AD6: FALSE | AG6: semi-monthly | AH6: 0 | AI6: =AH6*2 -> 0
B7: Getting Started | F7: Which Party provides the vision insurance? | P7: Total Health Care Cost | R7: =SUM(R4:S6) -> 0 | T7: =SUM(T4:U6) -> 0 | V7: =SUM(V4:W6) -> 0 | AC7: ='Health Ins'!AE7 -> 's Spouse | AG7: monthly | AH7: 0 | AI7: =AH7*1 -> 0
P8: Reasonable Cost | R8: =IF(R7=0,"",'Health Ins'!R8:S8) ->  | T8: =IF(T7=0,"",'Health Ins'!T8:U8) ->  | V8: =IF(OR($R$4>$R$8,$T$4>$T$8),"Exceeds Reas. Cost"," ") -> Exceeds Reas. Cost | AC8: ='Health Ins'!AE8 ->  | AG8: quarterly | AH8: 0 | AI8: =AH8/3 -> 0
B9: Family Information | F9: What is the name of the Vision Insurance Co.? | AC9: ='Health Ins'!AE9 -> 's Spouse | AG9: semi-annual | AH9: 0 | AI9: =AH9/2 -> 0
AC10: ='Health Ins'!AE10 -> 0 | AG10: yearly | AH10: 0 | AI10: =AH10/12 -> 0
B11: Income Information | F11: ="How ofter does"&" "&L7&" "&"pay the vision ins. premium?" -> How ofter does pay the vision ins. premium?
B13: Health Care Information | F13: ="What is the"&" "&$N$11&" "&"cost for the vision insurance?" -> What is the cost for the vision insurance?
B14: Health Ins.
B15: Dental Ins. | F15: ="What would be"&" "&$L$7&"'s"&" "&$N$11&" "&"cost for individual coverage, if known?" -> What would be 's cost for individual coverage, if known?
B16: Vision Ins.
F17: =IF(OR(R15=" ",R15=""),"How many people are on the vision insurance policy including"&" "&L7&"?","How many people are on the vision insurance policy other than"&" "&L7&"?") -> How many people are on the vision insurance policy including ?
B18: Day Care Cost
F19: ="The number of children who are subject of the present proceeding:" -> The number of children who are subject of the present proceeding:
B20: Results
F21: ="Per person's"&" "&$N$11&" "&"vision insurance cost:" -> Per person's vision insurance cost: | M21: =IFERROR(IF(R15=" ",$M$13/$Q$17,($M$13-$R$15)/$Q$17),0) -> 0
B22: Save Work
F23: =IF($O$19=1,"Child's"&" "&$N$11&" "&"vision insurance cost:","Children's"&" "&$N$11&" "&"vision insurance cost:") -> Children's vision insurance cost: | M23: =M21*O19 -> 0
B24: Calculator Reset
F25: =IF($O$19=1,"Child's monthly vision insurance cost:","Children's monthly vision insurance cost:") -> Children's monthly vision insurance cost: | L25: =IFERROR(VLOOKUP($N$11,$AG$4:$AI$10,3,FALSE),0) -> 0

Sheet Day Care (hidden)
E2: Day Care Cost | BA2: Switch | BB2: Yes | BC2: Yes
P3: DayCare Provider | R3: =IFERROR('Family Info'!$AB$19," ") ->  | T3: =IFERROR('Family Info'!$AB$20," ") ->  | V3: =IFERROR('Family Info'!$AB$23," ") ->  | AF3: Daycare 1 | AH3: Daycare 2 | AJ3: Daycare 3 | AL3: Daycare 4 | AN3: Daycare 5 | AP3: Daycare 6 | AS3: # of Daycare Providers | BC3: No
P4: =$J$8 -> 0 | R4: =IFERROR(ROUND(IF($L$6=$AC$5,$AF$11," "),2)," ") ->  | T4: =IFERROR(ROUND(IF($L$6=$AC$6,$AF$11," "),2)," ") ->  | V4: =IFERROR(ROUND(IF($L$6=$AC$7,$AF$11," "),2)," ") ->  | AC4: =IF('Family Info'!$J$7="No","DCParent","DCThirdParty") -> DCParent | AF4: Monthly | AG4: Seasonal | AH4: Monthly | AI4: Seasonal | AJ4: Monthly | AK4: Seasonal | AL4: Monthly | AM4: Seasonal | AN4: Monthly | AO4: Seasonal | AP4: Monthly | AQ4: Seasonal | AS4: =IFERROR(IF(AF11>0,1,0),0) -> 0 | AV4: Weekly
P5: =$J$21 -> 0 | R5: =IFERROR(ROUND(IF($L$19=$R$3,$AH$11," "),2)," ") ->  | T5: =IFERROR(ROUND(IF($L$19=$T$3,$AH$11," "),2)," ") ->  | V5: =IFERROR(ROUND(IF($L$19=$V$3,$AH$11," "),2)," ") ->  | AC5: =R3 ->  | AD5: FALSE | AE5: hourly rate | AF5: =(($K$12*$S$12)*52)/12 -> 0 | AG5: =(($K$12*$S$12)*$L$16)/12 -> 0 | AH5: =(($K$25*$S$25)*52)/12 -> 0 | AI5: =(($K$25*$S$25)*$L$29)/12 -> 0 | AJ5: =(($K$39*$S$39)*52)/12 -> 0 | AK5: =(($K$39*$S$39)*$L$43/12) -> 0 | AL5: =(($K$53*$S$53)*52)/12 -> 0 | AM5: =(($K$53*$S$53)*$L$57)/12 -> 0 | AN5: =(($K$67*$S$67)*52)/12 -> 0 | AO5: =((($K$67*$S$67)*$L$71)/12) -> 0 | AP5: =(($K$81*$S$81)*52)/12 -> 0 | AQ5: =(($K$81*$S$81)*$L$85)/12 -> 0 | AS5: =IFERROR(IF(AH$11>0,1,0),0) -> 0 | AV5: Monthly
F6: Which party pays this work-related daycare cost? | P6: =J35 -> 0 | R6: =IFERROR(ROUND(IF($L$33=$R$3,$AJ$11," "),2)," ") ->  | T6: =IFERROR(ROUND(IF($L$33=$T$3,$AJ$11," "),2)," ") ->  | V6: =IFERROR(ROUND(IF($L$33=$V$3,$AJ$11," "),2)," ") ->  | AC6: =T3 ->  | AD6: TRUE | AE6: weekly rate | AF6: =($K$12*52)/12 -> 0 | AG6: =IF(K14="Weekly",($K$12*$L$16)/12,($AF$6*$L$16)/12) -> 0 | AH6: =($K$25*52)/12 -> 0 | AI6: =($K$25*$L$29)/12 -> 0 | AJ6: =($K$39*52)/12 -> 0 | AK6: =($K$39*$L$43)/12 -> 0 | AL6: =($K$53*52)/12 -> 0 | AM6: =($K$53*$L$57)/12 -> 0 | AN6: =($K$67*52)/12 -> 0 | AO6: =($K$67*$L$71)/12 -> 0 | AP6: =($K$81*52)/12 -> 0 | AQ6: =($K$81*$L$85)/12 -> 0 | AS6: =IFERROR(IF(AJ$11>0,1,0),0) -> 0
B7: Getting Started | P7: =J49 -> 0 | R7: =IFERROR(ROUND(IF($L$47=$R$3,$AL$11," "),2)," ") ->  | T7: =IFERROR(ROUND(IF($L$47=$T$3,$AL$11," "),2)," ") ->  | V7: =IFERROR(ROUND(IF($L$47=$V$3,$AL$11," "),2)," ") ->  | AC7: =V3 ->  | AD7: Yes | AE7: bi-weekly rate | AF7: =($K$12*26)/12 -> 0 | AG7: =IF(K14="Weekly",($AF$7/4.333)*L16/12,($AF$7*$L$16)/12) -> 0 | AH7: =($K$25*26)/12 -> 0 | AI7: =($AH$7*$L$29)/12 -> 0 | AJ7: =($K$39*26)/12 -> 0 | AK7: =($AJ$7*$L$43)/12 -> 0 | AL7: =($K$53*26)/12 -> 0 | AM7: =($AL$7*$L$57)/12 -> 0 | AN7: =($K$67*26)/12 -> 0 | AO7: =($AN$7*$L$71)/12 -> 0 | AP7: =($K$81*26)/12 -> 0 | AQ7: =($AP$7*$L$85)/12 -> 0 | AS7: =IFERROR(IF(AL$11>0,1,0),0) -> 0
F8: Who is the daycare provider? | P8: =J63 -> 0 | R8: =IFERROR(ROUND(IF($L$61=$R$3,$AN$11," "),2)," ") ->  | T8: =IFERROR(ROUND(IF($L$61=$T$3,$AN$11," "),2)," ") ->  | V8: =IFERROR(ROUND(IF($L$61=$V$3,$AN$11," "),2)," ") ->  | AD8: No | AE8: monthly rate | AF8: =$K$12 -> 0 | AG8: =IF($K$14="Weekly",(($AF$8/4.333)*$L$16)/12,($AF$8*$L$16)/12) -> 0 | AH8: =$K$25 -> 0 | AI8: =($AH$8*$L$29)/12 -> 0 | AJ8: =$K$39 -> 0 | AK8: =($AJ$8*$L$43)/12 -> 0 | AL8: =$K$53 -> 0 | AM8: =($AL$8*$L$57)/12 -> 0 | AN8: =$K$67 -> 0 | AO8: =($AN$8*$L$71)/12 -> 0 | AP8: =$K$81 -> 0 | AQ8: =($AP$8*$L$85)/12 -> 0 | AS8: =IFERROR(IF(AN$11>0,1,0),0) -> 0
B9: Family Information | P9: =J77 -> 0 | R9: =IFERROR(ROUND(IF($L$75=$R$3,$AP$11," "),2)," ") ->  | T9: =IFERROR(ROUND(IF($L$75=$T$3,$AP$11," "),2)," ") ->  | V9: =IFERROR(ROUND(IF($L$75=$V$3,$AP$11," "),2)," ") ->  | AD9: FALSE | AE9: semi-monthly rate | AF9: =($K$12*24)/12 -> 0 | AG9: =IF($K$14="Weekly",($AF$9/4.333)*$L$16/12,($AF$9*$L$16)/12) -> 0 | AH9: =($K$25*24)/12 -> 0 | AI9: =($AH$9*$L$29)/12 -> 0 | AJ9: =($K$39*24)/12 -> 0 | AK9: =($AJ$9*$L$43)/12 -> 0 | AL9: =($K$53*24)/12 -> 0 | AM9: =($AL$9*$L$57)/12 -> 0 | AN9: =($K$67*24)/12 -> 0 | AO9: =($AN$9*$L$71)/12 -> 0 | AP9: =($K$81*24)/12 -> 0 | AQ9: =($AP$9*$L$85)/12 -> 0 | AS9: =IFERROR(IF(AP$11>0,1,0),0) -> 0
F10: ="What is"&" "&$J$8&"'s "&"rate of pay (hourly, weekly)?" -> What is 's rate of pay (hourly, weekly)? | P10: Total | R10: =SUM($R$4:$S$9) -> 0 | T10: =SUM($T$4:$U$9) -> 0 | V10: =SUM($V$4:$W$9) -> 0 | AE10: Answer | AF10: =VLOOKUP($L$10,$AE$5:$AF$9,2,FALSE) ->  | AG10: =IF($AF$12="weeks",(($AF$10*12)/52)*$L$16/12,($AF$10*$L$16)/12) ->  | AH10: =VLOOKUP($L$23,$AE$5:$AH$9,4,FALSE) ->  | AI10: =IF($AH$12="weeks",(($AH$10*12)/52)*$L$29/12,($AH$10*$L$29)/12) ->  | AJ10: =VLOOKUP($L$37,$AE$5:$AJ$9,6,FALSE) ->  | AK10: =IF($AJ$12="weeks",(($AJ$10*12)/52)*$L$43/12,($AJ$10*$L$43)/12) ->  | AL10: =VLOOKUP($L$51,$AE$5:$AL$9,8,FALSE) ->  | AM10: =IF($AL$12="weeks",(($AL$10*12)/52)*$L$57/12,($AL$10*$L$57)/12) ->  | AN10: =VLOOKUP($L$65,$AE$5:$AN$9,10,FALSE) ->  | AO10: =IF($AN$12="weeks",(($AN$10*12)/52)*$L$71/12,($AN$10*$L$71)/12) ->  | AP10: =VLOOKUP($L$79,$AE$5:$AP$9,12,FALSE) ->  | AQ10: =IF($AP$12="weeks",(($AP$10*12)/52)*$L$85/12,($AP$10*$L$85)/12) ->  | AS10: =SUM(AS4:AS9) -> 0
B11: Income Information | AF11: =IF($I$14="Yes",$AG$10,$AF$10) ->  | AH11: =IF($I$27="Yes",$AI$10,$AH$10) ->  | AJ11: =IF($I$41="Yes",$AK$10,$AJ$10) ->  | AL11: =IF($I$55="Yes",$AM$10,$AL$10) ->  | AN11: =IF($I$69="Yes",$AO$10,$AN$10) ->  | AP11: =IF($I$83="Yes",$AQ$10,$AP$10) -> 
F12: ="What is"&" "&$J$8&"'s"&" "&$L$10&"?" -> What is 's ? | M12: ="How many hours per week at"&" "&$J$8&"'s?" -> How many hours per week at 's? | AF12: =IF($K$14="Weekly","weeks","months") -> weeks | AH12: =IF($K$27="Weekly","weeks","months") -> months | AJ12: =IF($K$41="Weekly","weeks","months") -> weeks | AL12: =IF($K$55="Weekly","weeks","months") -> months | AN12: =IF($K$69="Weekly","weeks","months") -> weeks | AP12: =IF($K$83="Weekly","weeks","months") -> months
B13: Health Care
F14: Is this daycare seasonal? | I14: No | K14: Weekly
B15: Day Care Cost | AE15: =500/4.333 -> 115.3934918
F16: ="How many"&" "&IF($K$14="Weekly","weeks","months")&" "&"out of the year is this daycare?" -> How many weeks out of the year is this daycare? | AE16: =AE15*4.33 -> 499.6538195
B17: Results | AE17: =4.333*12 -> 51.996
F19: Which party pays this work-related daycare cost?
B21: Save Work | F21: Who is the daycare provider?
F23: ="What is"&" "&$J$21&"'s "&"rate of pay (hourly, weekly)?" -> What is 's rate of pay (hourly, weekly)?
B24: Calculator Reset
F25: ="What is"&" "&$J$21&"'s"&" "&$L$23&"?" -> What is 's ? | M25: ="How many hours per week at"&" "&$J$21&"'s?" -> How many hours per week at 's?
F27: Is this daycare seasonal? | K27: Monthly
F29: ="How many"&" "&$AH$12&" "&"out of the year is this daycare?" -> How many months out of the year is this daycare?
F33: Which party pays this work-related daycare cost?
F35: Who is the daycare provider?
F37: ="What is"&" "&$J$35&"'s "&"rate of pay (hourly, weekly)?" -> What is 's rate of pay (hourly, weekly)?
F39: ="What is"&" "&$J$35&"'s"&" "&$L$37&"?" -> What is 's ? | M39: ="How many hours per week at"&" "&$J$35&"'s?" -> How many hours per week at 's?
F41: Is this daycare seasonal? | K41: Weekly
F43: ="How many"&" "&$AJ$12&" "&"out of the year is this daycare?" -> How many weeks out of the year is this daycare?
F47: Which party pays this work-related daycare cost?
F49: Who is the daycare provider?
F51: ="What is"&" "&$J$49&"'s "&"rate of pay (hourly, weekly)?" -> What is 's rate of pay (hourly, weekly)?
F53: ="What is"&" "&$J$49&"'s"&" "&$L$51&"?" -> What is 's ? | M53: ="How many hours per week at"&" "&$J$49&"'s?" -> How many hours per week at 's?
F55: Is this daycare seasonal? | K55: Monthly
F57: ="How many"&" "&$AL$12&" "&"out of the year is this daycare?" -> How many months out of the year is this daycare?
F61: Which party pays this work-related daycare cost?
F63: Who is the daycare provider?
F65: ="What is"&" "&$J$63&"'s "&"rate of pay (hourly, weekly)?" -> What is 's rate of pay (hourly, weekly)?
F67: ="What is"&" "&$J$63&"'s"&" "&$L$65&"?" -> What is 's ? | M67: ="How many hours per week at"&" "&$J$63&"'s?" -> How many hours per week at 's?
F69: Is this daycare seasonal? | K69: Weekly
F71: ="How many"&" "&$AN$12&" "&"out of the year is this daycare?" -> How many weeks out of the year is this daycare?
F75: Which party pays this work-related daycare cost?
F77: Who is the daycare provider?
F79: ="What is"&" "&$J$77&"'s "&"rate of pay (hourly, weekly)?" -> What is 's rate of pay (hourly, weekly)?
F81: ="What is"&" "&$J$77&"'s"&" "&$L$79&"?" -> What is 's ? | M81: ="How many hours per week at"&" "&$J$77&"'s?" -> How many hours per week at 's?
F83: Is this daycare seasonal? | K83: Monthly
F85: ="How many"&" "&$AP$12&" "&"out of the year is this daycare?" -> How many months out of the year is this daycare?

Sheet Results (hidden)
E2: Results | BA2: Switch | BB2: Yes | BC2: Yes
AA3: Party A | BC3: No
B4: Cardinal Express | E4: =IFERROR(IF(Info!R7="Card","Results page does not work with Cardinal Express",IF(Info!R7=""," ",Info!$AA$14))," ") -> Results page does not work with Cardinal Express | AA4: Condition
E5: =Info!$N$12 ->  | AA5: Salary
B6: Arrearage Calculator | E6: Family Information | AA6: Hourly
E7: ="This is a"&" "&'Family Info'!T4&" "&"custody matter involving"&" "&'Family Info'!$V$3&"."&" "&IF('Family Info'!$T$4="Sole",'Family Info'!$T$5&" "&"is the custodian.",IF('Family Info'!$T$4="Shared",'Family Info'!$T$6&" "&"has"&" "&'Family Info'!$T$7&" "&"days and"&" "&'Family Info'!$V$6&" "&"has"&" "&'Family Info'!$V$7&" "&"days.",IF('Family Info'!$T$4="Split",'Family Info'!$T$6&" "&"has"&" "&'Family Info'!$T$7&" "&"child(ren) and"&" "&'Family Info'!$V$6&" "&"has"&" "&'Family Info'!$V$7&" "&"child(ren).",IF('Family Info'!$T$4="Sole-Shared",'Family Info'!$T$5&" "&"is the custodian of"&" "&'Family Info'!$V$5&" "&"child(ren) and shares custody of"&" "&'Family Info'!$W$5&" "&"child(ren).",IF('Family Info'!$T$4="Split-Shared",'Family Info'!$T$5&" "&"has custody of"&" "&'Family Info'!$T$7&" "&"child(ren) and"&" "&'Family Info'!$V$5&" "&"has custody of"&" "&'Family Info'!$V$7&" "&"child(ren).",IF('Family Info'!$T$4="Multi-Shared",'Family Info'!$T$6&" "&"has a"&" "&'Family Info'!$T$7&" "&"average day count and"&" "&'Family Info'!$V$6&" "&"has a"&" "&'Family Info'!$V$7&" "&"average day count.",)))))) -> This is a Sole custody matter involving 0 Child. 0 is the custodian. | AA7: Year to date
E8: =IF('Family Info'!$J$7="Yes",'Family Info'!$T$5&" "&"is a third party caretaker.",IF('Family Info'!$T$4="Sole-Shared",'Family Info'!$T$6&" "&"day count is"&" "&'Family Info'!$T$7&" "&"days a year and"&" "&'Family Info'!$V$6&"'s"&" "&"day count is"&" "&'Family Info'!$V$7&" "&"days a year.",IF('Family Info'!$T$4="Split-Shared","For the"&" "&'Family Info'!$W$7&" "&"child(ren) in shared custody,"&" "&'Family Info'!$T$5&"'s"&" "&"day count is"&" "&'Family Info'!$T$6&" "&"days per year and"&" "&'Family Info'!$V$5&"'s"&" "&"day count is"&" "&'Family Info'!$V$6&" "&"days per year."," "))) ->  | AA8: Quarterly
AD9: FALSE
B10: Go to Worksheet | E10: Monthly Income Information | I10: ='Family Info'!$AB$19&"'s"&" "&"Adjusted Income Amount: "&"$"&IF('Empl Income'!$T$6+'Other Income'!$R$12-'Income Adjustment'!$S$9<=0,0,'Empl Income'!$T$6+'Other Income'!$R$12-'Income Adjustment'!$S$9) -> 's Adjusted Income Amount: $0 | Q10: ='Family Info'!$AB$20&"'s"&" "&"Adjusted Income Amount: "&"$"&IF('Empl Income'!$V$6+'Other Income'!$U$12-'Income Adjustment'!$V$9<=0,0,'Empl Income'!$V$6+'Other Income'!$U$12-'Income Adjustment'!$V$9) -> 's Adjusted Income Amount: $0
B12: Add DCSE/Docket No. | E12: ='Empl Income'!$E$3&":" -> 's work income: | J12: =IF('Empl Income'!$AP$55=FALSE,"Total Work Income Amount:"&" "&"$"&ROUND('Empl Income'!$T$6,2),"Total Work Income Amount:"&" "&"$"&ROUND('Empl Income'!$T$6,2)&" "&"including") -> Total Work Income Amount: $0 | P12: ="Imputation Amount:"&" "&"$"&'Empl Income'!$T$7 -> Imputation Amount: $0
E13: =IF('Empl Income'!$H$5="No",'Family Info'!$AB$19&" "&"is unemployed.",IF('Empl Income'!$I$8=" "," ",IF(AND('Empl Income'!$I$8="Regular",'Empl Income'!$L$8="hourly",'Empl Income'!$H$5="Yes",'Empl Income'!$S$9="Yes",'Empl Income'!$K$11="Yes"),IF(OR('Empl Income'!$L$5=" ",'Empl Income'!$L$5=""),"Employer",'Empl Income'!$L$5)&" "&"pays"&" "&'Empl Income'!$T$3&" "&"$"&ROUND('Empl Income'!$G$11,2)&" "&"per hour"&" "&"for"&" "&'Empl Income'!$I$11&" "&"hours"&" "&'Empl Income'!$P$8&" "&"along with"&" "&'Empl Income'!$P$11&" "&"hours overtime @"&" "&"$"&ROUND('Empl Income'!$M$11,2)&" "&"per hour"&" "&'Empl Income'!$V$9&" "&IF($V$8="Months","months out of the year","weeks out of the year.")&" "&"for a"&" "&"$"&ROUND('Empl Income'!$T$4,2)&" "&"monthly total.",IF(AND('Empl Income'!$I$8="Regular",'Empl Income'!$L$8="Salary",'Empl Income'!$H$5="Yes",'Empl Income'!$S$9="Yes",'Empl Income'!$K$11="Yes"),IF(OR('Empl Income'!$L$5=" ",'Empl Income'!$L$5=""),"Employer",'Empl Income'!$L$5)&" "&"pays"&" "&'Empl Income'!$T$3&" "&"$"&'Empl Income'!$G$11&" "&'Empl Income'!$P$8&" "&'Empl Income'!$L$8&" "&"and a"&" "&"$"&ROUND('Empl Income'!$M$11,2)&" "&'Empl Income'!$R$11&" "&"bonus for"&" "&'Empl Income'!$V$9&" "&IF('Empl Income'!V8="Months","months out of the year for a","weeks out of the year for a")&" "&"$"&ROUND('Empl Income'!$T$4,2)&" "&"monthly total.",IF(AND('Empl Income'!$I$8="Regular",'Empl Income'!$L$8="hourly",'Empl Income'!$H$5="Yes",'Empl Income'!$S$9="No",'Empl Income'!$K$11="Yes"),IF(OR('Empl Income'!$L$5=" ",'Empl Income'!$L$5=""),"Employer",'Empl Income'!$L$5)&" "&"pays"&" "&'Empl Income'!$T$3&" "&"$"&ROUND('Empl Income'!$G$11,2)&" "&"per hour"&" "&"for"&" "&'Empl Income'!$I$11&" "&"hours"&" "&'Empl Income'!$P$8&" "&"along with"&" "&'Empl Income'!$P$11&" "&"hours overtime @"&" "&"$"&ROUND('Empl Income'!$M$11,2)&" "&"per hour"&" "&"for a"&" "&"$"&ROUND('Empl Income'!$T$4,2)&" "&"monthly total.",IF('Empl Income'!$H$5="No",'Empl Income'!$T$3&" "&"is unemployed.",IF(AND('Empl Income'!$I$8="Regular",'Empl Income'!$L$8="Salary",'Empl Income'!$H$5="Yes",'Empl Income'!$S$9="No",'Empl Income'!$K$11="No"),IF(OR('Empl Income'!$L$5=" ",'Empl Income'!$L$5=""),"Employer",'Empl Income'!$L$5)&" "&"pays"&" "&'Empl Income'!$T$3&" "&"a"&" "&"$"&ROUND('Empl Income'!$G$11,2)&" "&'Empl Income'!$P$8&" "&'Empl Income'!$L$8&IF('Empl Income'!$P$8<>"Monthly"," "&"for a"&" "&"$"&ROUND('Empl Income'!$T$4,2)&" "&"monthly total.","."),IF(AND('Empl Income'!$I$8="Regular",'Empl Income'!$L$8="Hourly",'Empl Income'!$H$5="Yes",'Empl Income'!$S$9="No",'Empl Income'!$K$11="No"),IF(OR('Empl Income'!$L$5=" ",'Empl Income'!$L$5=""),"Employer",'Empl Income'!$L$5)&" "&"pays"&" "&'Empl Income'!$T$3&" "&"$"&ROUND('Empl Income'!$G$11,2)&" "&"per hour"&" "&"for"&" "&'Empl Income'!$I$11&" "&"hours"&" "&'Empl Income'!$P$8&" "&"for a"&" "&"$"&ROUND('Empl Income'!$T$4,2)&" "&"monthly total.",IF(AND('Empl Income'!$I$8="Varies",'Empl Income'!$L$8="Year-to-date",'Empl Income'!$S$9="No"),"Paystub from"&" "&IF(OR('Empl Income'!$L$5=" ",'Empl Income'!$L$5=""),"Employer",'Empl Income'!$L$5)&" "&"beginning"&" "&TEXT('Empl Income'!$H$14,"m/d/yy")&" "&"ending"&" "&TEXT('Empl Income'!$N$14,"m/d/yy")&" "&"- total earnings of"&" "&"$"&ROUND('Empl Income'!$T$14,2)&" "&"for a"&" "&"$"&'Empl Income'!$T$4&" "&"monthly total.",IF(AND('Empl Income'!$I$8="Varies",'Empl Income'!$L$8="Recent Quarterly"),"Employment income based on"&" "&'Empl Income'!$AE$13&" "&"recent quarters from"&" "&IF(OR('Empl Income'!$L$5=" ",'Empl Income'!$L$5=""),"Employer",'Empl Income'!$L$5)&" "&"totalling"&" "&"$"&'Empl Income'!$AD$13&" "&"which averages out to"&" "&"$"&ROUND('Empl Income'!$T$4,2)&" "&"per month.",IF(AND('Empl Income'!$I$8="Regular",'Empl Income'!$L$8="Salary",'Empl Income'!$H$5="Yes",'Empl Income'!$S$9="Yes",'Empl Income'!$K$11="No"),'Empl Income'!$T$3&" "&"on average earns"&" "&"$"&ROUND('Empl Income'!$T$4,2)&" "&"per month."&" "&IF(OR('Empl Income'!$L$5=" ",'Empl Income'!$L$5=""),"Employer",'Empl Income'!$L$5)&" "&"pays"&" "&'Empl Income'!$T$3&" "&"a"&" "&"$"&ROUND('Empl Income'!$G$11,2)&" "&'Empl Income'!$P$8&" "&'Empl Income'!$L$8&" "&"for"&" "&'Empl Income'!$V$9&" "&IF('Empl Income'!$V$8="Months","months out of the year.","weeks out of the year."),IF(AND('Empl Income'!I8="Regular",'Empl Income'!$L$8="Hourly",'Empl Income'!$H$5="Yes",'Empl Income'!$S$9="Yes",'Empl Income'!$K$11="No"),'Empl Income'!$T$3&" "&"on average earns"&" "&"$"&ROUND('Empl Income'!$T$4,2)&" "&"per month."&" "&IF(OR('Empl Income'!$L$5=" ",'Empl Income'!$L$5=""),"Employer",'Empl Income'!$L$5)&" "&"pays"&" "&'Empl Income'!$T$3&" "&"$"&ROUND('Empl Income'!$G$11,2)&" "&"per hour"&" "&"for"&" "&'Empl Income'!$I$11&" "&"hours"&" "&'Empl Income'!$P$8&" "&"for"&" "&'Empl Income'!$V$9&" "&IF('Empl Income'!$V$8="Months","months out of the year.","weeks out of the year."),IF(AND('Empl Income'!$I$8="Varies",'Empl Income'!$L$8="Year-to-date",'Empl Income'!$S$9="Yes"),"Paystub from"&" "&IF(OR('Empl Income'!$L$5=" ",'Empl Income'!$L$5=""),"Employer",'Empl Income'!$L$5)&" "&"beginning"&" "&TEXT('Empl Income'!$H$14,"m/d/yy")&" "&"ending"&" "&TEXT('Empl Income'!$N$14,"m/d/yy")&" "&"- total earnings of"&" "&"$"&ROUND('Empl Income'!$T$14,2)&" "&"for a"&" "&"$"&ROUND('Empl Income'!$Z$13,2)&" "&"average monthly total seasonally adjusted for"&" "&'Empl Income'!$V$9&" "&IF('Empl Income'!$V$8="Months","months to","weeks to")&" "&"$"&ROUND('Empl Income'!$AA$14,2)&".",IF(AND('Empl Income'!$I$8="Regular",'Empl Income'!$L$8="Salary",'Empl Income'!$H$5="Yes",'Empl Income'!$S$9="No",'Empl Income'!$K$11="Yes"),IF(OR('Empl Income'!$L$5=" ",'Empl Income'!$L$5=""),"Employer",'Empl Income'!$L$5)&" "&"pays"&" "&'Empl Income'!$T$3&" "&"a"&" "&"$"&ROUND('Empl Income'!$G$11,2)&" "&'Empl Income'!$P$8&" "&'Empl Income'!$L$8&" "&"along with a"&" "&"$"&ROUND('Empl Income'!$M$11,2)&" "&'Empl Income'!$R$11&" "&"bonus"&" "&IF('Empl Income'!$P$8<>"Monthly"," "&"for a"&" "&"$"&ROUND('Empl Income'!$T$4,2)&" "&"monthly total."," "))))))))))))))) -> FALSE
B14: Deviation Cost Adjustment | E14: =IF('Empl Income'!$I$29=" "," ",IF(AND('Empl Income'!$I$29="Regular",'Empl Income'!$M$29="hourly",'Empl Income'!$S$32="Yes",'Empl Income'!$H$32="Yes"),IF(OR('Empl Income'!$P$27=" ",'Empl Income'!$P$27=""),"Employer",'Empl Income'!$P$27)&" "&"pays"&" "&'Empl Income'!$T$3&" "&"$"&'Empl Income'!$U$29&" "&"per hour"&" "&"for"&" "&'Empl Income'!$F$32&" "&"hours"&" "&'Empl Income'!$Q$29&" "&"along with"&" "&'Empl Income'!$M$32&" "&"hours overtime @"&" "&"$"&'Empl Income'!$J$32&" "&"per hour"&" "&'Empl Income'!$U$32&" "&IF('Empl Income'!$U$31="Months","months out of the year","weeks out of the year")&" "&"for a"&" "&"$"&'Empl Income'!$T$5&" "&"monthly total.",IF(AND('Empl Income'!$I$29="Regular",'Empl Income'!$M$29="Salary",'Empl Income'!$S$32="Yes",'Empl Income'!$H$32="Yes"),IF(OR('Empl Income'!$P$27=" ",'Empl Income'!$P$27=""),"Employer",'Empl Income'!$P$27)&" "&"pays"&" "&'Empl Income'!$T$3&" "&"$"&'Empl Income'!$U$29&" "&'Empl Income'!$Q$29&" "&'Empl Income'!$M$29&" "&"and a"&" "&"$"&'Empl Income'!$J$32&" "&'Empl Income'!$P$32&" "&"bonus for"&" "&'Empl Income'!$U$32&" "&IF('Empl Income'!$U$31="Months","months out of the year for a","weeks out of the year for a")&" "&"$"&'Empl Income'!$T$5&" "&"monthly total.",IF(AND('Empl Income'!$I$29="Regular",'Empl Income'!$M$29="hourly",'Empl Income'!$S$32="No",'Empl Income'!$H$32="Yes"),IF(OR('Empl Income'!$P$27=" ",'Empl Income'!$P$27=""),"Employer",'Empl Income'!P27)&" "&"pays"&" "&'Empl Income'!$T$3&" "&"$"&'Empl Income'!$U$29&" "&"per hour"&" "&"for"&" "&'Empl Income'!$F$32&" "&"hours"&" "&'Empl Income'!$Q$29&" "&"along with"&" "&'Empl Income'!$M$32&" "&"hours overtime @"&" "&"$"&'Empl Income'!$J$32&" "&"per hour"&" "&"for a"&" "&"$"&'Empl Income'!$T$5&" "&"monthly total.",IF(AND('Empl Income'!$I$29="Regular",'Empl Income'!$M$29="Salary",'Empl Income'!$S$32="No",'Empl Income'!$H$32="No"),IF(OR('Empl Income'!$P$27=" ",'Empl Income'!$P$27=""),"Employer",'Empl Income'!$P$27)&" "&"pays"&" "&'Empl Income'!$T$3&" "&"a"&" "&"$"&'Empl Income'!$U$29&" "&'Empl Income'!$Q$29&" "&'Empl Income'!$M$29&IF('Empl Income'!$Q$29<>"Monthly"," "&"for a"&" "&"$"&'Empl Income'!$T$5&" "&"monthly total.","."),IF(AND('Empl Income'!$I$29="Regular",'Empl Income'!$M$29="Hourly",'Empl Income'!$S$32="No",'Empl Income'!$H$32="No"),IF(OR('Empl Income'!$P$27=" ",'Empl Income'!$P$27=""),"Employer",'Empl Income'!$P$27)&" "&"pays"&" "&'Empl Income'!$T$3&" "&"$"&'Empl Income'!$U$29&" "&"per hour"&" "&"for"&" "&'Empl Income'!$F$32&" "&"hours"&" "&'Empl Income'!$Q$29&" "&"for a"&" "&"$"&'Empl Income'!$T$5&" "&"monthly total.",IF(AND('Empl Income'!$I$29="Varies",'Empl Income'!$M$29="Year-to-date",'Empl Income'!$S$32="No"),"Paystub from"&" "&IF(OR('Empl Income'!$P$27=" ",'Empl Income'!$P$27=""),"Employer",'Empl Income'!$P$27)&" "&"beginning"&" "&TEXT('Empl Income'!$H$38,"m/d/yy")&" "&"ending"&" "&TEXT('Empl Income'!$N$38,"m/d/yy")&" "&"- total earnings of"&" "&"$"&'Empl Income'!$T$38&" "&"for a"&" "&"$"&'Empl Income'!$T$5&" "&"monthly total.",IF(AND('Empl Income'!$I$29="Varies",'Empl Income'!$M$29="Recent Quarterly"),"Employment income based on"&" "&'Empl Income'!$AE$23&" "&"recent quarters from"&" "&IF(OR('Empl Income'!$P$27=" ",'Empl Income'!$P$27=""),"Employer",'Empl Income'!$P$27)&" "&"totalling"&" "&"$"&'Empl Income'!$AD$23&" "&"which averages out to"&" "&"$"&'Empl Income'!$T$5&" "&"per month.",IF(AND('Empl Income'!$I$29="Regular",'Empl Income'!$M$29="Salary",'Empl Income'!$S$32="Yes",'Empl Income'!$H$32="No"),'Empl Income'!$T$3&" "&"on average earns"&" "&"$"&'Empl Income'!$T$4&" "&"per month."&" "&IF(OR('Empl Income'!$P$27=" ",'Empl Income'!$P$27=""),"Employer",'Empl Income'!$P$27)&" "&"pays"&" "&'Empl Income'!$T$3&" "&"a"&" "&"$"&'Empl Income'!$U$29&" "&'Empl Income'!$Q$29&" "&'Empl Income'!$M$29&" "&"for"&" "&'Empl Income'!$U$32&" "&IF('Empl Income'!$U$31="Months","months out of the year.","weeks out of the year."),IF(AND('Empl Income'!$I$29="Regular",'Empl Income'!$M$29="Hourly",'Empl Income'!$S$32="Yes",'Empl Income'!$H$32="No"),'Empl Income'!$T$3&" "&"on average earns"&" "&"$"&'Empl Income'!$T$5&" "&"per month."&" "&IF(OR('Empl Income'!$P$27=" ",'Empl Income'!$P$27=""),"Employer",'Empl Income'!$P$27)&" "&"pays"&" "&'Empl Income'!$T$3&" "&"$"&'Empl Income'!$U$29&" "&"per hour"&" "&"for"&" "&'Empl Income'!$F$32&" "&"hours"&" "&'Empl Income'!$Q$29&" "&"for"&" "&'Empl Income'!$U$32&" "&IF('Empl Income'!$U$31="Months","months out of the year.","weeks out of the year."),IF(AND('Empl Income'!$I$29="Varies",'Empl Income'!$M$29="Year-to-date",'Empl Income'!$S$32="Yes"),"Paystub from"&" "&IF(OR('Empl Income'!$P$27=" ",'Empl Income'!$P$27=""),"Employer",'Empl Income'!$P$27)&" "&"beginning"&" "&TEXT('Empl Income'!$H$38,"m/d/yy")&" "&"ending"&" "&TEXT('Empl Income'!$N$38,"m/d/yy")&" "&"- total earnings of"&" "&"$"&'Empl Income'!$T$38&" "&"for a"&" "&"$"&ROUND('Empl Income'!$Z$24,2)&" "&"average monthly total seasonally adjusted for"&" "&'Empl Income'!$U$32&" "&IF('Empl Income'!$U$31="Months","months to","weeks to")&" "&"$"&'Empl Income'!$AA$25&".",IF(AND('Empl Income'!$I$29="Regular",'Empl Income'!$M$29="Salary",'Empl Income'!$S$32="No",'Empl Income'!$H$32="Yes"),IF(OR('Empl Income'!$P$27=" ",'Empl Income'!$P$27=""),"Employer",'Empl Income'!$P$27)&" "&"pays"&" "&'Empl Income'!$T$3&" "&"a"&" "&"$"&'Empl Income'!$U$29&" "&'Empl Income'!$Q$29&" "&'Empl Income'!$M$29&" "&"along with a"&" "&"$"&'Empl Income'!$J$32&" "&'Empl Income'!$P$32&" "&"bonus"&" "&IF('Empl Income'!$Q$29<>"Monthly"," "&"for a"&" "&"$"&'Empl Income'!$T$5&" "&"monthly total."," "))))))))))))) -> FALSE
E15: =IF(OR('Empl Income'!$H$53=" ",'Empl Income'!$H$53=0)," ",IF('Empl Income'!$H$53<>'Empl Income'!$AP$53,"The court imputes the below earnings based on"&" "&'Empl Income'!$T$3&"'s"&" "&'Empl Income'!$H$53&" "&"and calculates this income on"&" "&'Empl Income'!$P$53&". ","The parties agree to impute below earnings to"&" "&'Empl Income'!$T$3&" "&"based on"&" "&'Empl Income'!$P$53&".")) -> 
B16: Other Dev. Adjustment | E16: =IF(OR('Empl Income'!$H$53=" ",'Empl Income'!$P$53=" ")," ",IF(AND('Empl Income'!$I$55="hourly",'Empl Income'!$N$58="Yes",'Empl Income'!$F$58="Yes"),"Prior employer paid"&" "&'Empl Income'!$T$3&" "&"$"&ROUND('Empl Income'!$R$55,2)&" "&"per hour"&" "&"for"&" "&'Empl Income'!$U$55&" "&"hours"&" "&'Empl Income'!$N$55&" "&"along with"&" "&'Empl Income'!$K$58&" "&"hours overtime @"&" "&"$"&ROUND('Empl Income'!$H$58,2)&" "&"per hour"&" "&'Empl Income'!$P$58&" "&"months out of the year"&" "&"for a"&" "&"$"&ROUND('Empl Income'!$T$7,2)&" "&"monthly total.",IF(AND('Empl Income'!$I$55="hourly",'Empl Income'!$N$58="No",'Empl Income'!$F$58="Yes"),"Prior employer"&" "&"paid"&" "&'Empl Income'!$T$3&" "&"$"&ROUND('Empl Income'!$R$55,2)&" "&"per hour"&" "&"for"&" "&'Empl Income'!$U$55&" "&"hours"&" "&'Empl Income'!$N$55&" "&"along with"&" "&'Empl Income'!$K$58&" "&"hours overtime @"&" "&"$"&ROUND('Empl Income'!$H$58,2)&" "&"per hour"&" "&"for a"&" "&"$"&ROUND('Empl Income'!$T$7,2)&" "&"monthly total.",IF(AND('Empl Income'!$I$55="Salary",'Empl Income'!$N$58="No"),"Prior employer paid"&" "&'Empl Income'!$T$3&" "&"a"&" "&"$"&ROUND('Empl Income'!$R$55,2)&" "&'Empl Income'!$N$55&" "&'Empl Income'!$I$55&" "&"for a"&" "&"$"&ROUND('Empl Income'!$T$7,2)&" "&"monthly total.",IF(AND('Empl Income'!$I$55="Hourly",'Empl Income'!$N$58="No",'Empl Income'!$F$58="No"),"Prior employer paid"&" "&'Empl Income'!$T$3&" "&"$"&ROUND('Empl Income'!$R$55,2)&" "&"per hour"&" "&"for"&" "&'Empl Income'!$U$55&" "&"hours"&" "&'Empl Income'!$N$55&" "&"for a"&" "&"$"&ROUND('Empl Income'!$T$7,2)&" "&"monthly total.",IF(AND('Empl Income'!$I$55="Year-to-date",'Empl Income'!$N$58="No"),"Paystub from"&" "&" Previous employer"&" "&"beginning"&" "&TEXT('Empl Income'!$H$61,"m/d/yy")&" "&"ending"&" "&TEXT('Empl Income'!$N$61,"m/d/yy")&" "&"- total earnings of"&" "&"$"&ROUND('Empl Income'!$T$61,2)&" "&"for a"&" "&"$"&ROUND('Empl Income'!$T$7,2)&" "&"monthly total.",IF(AND('Empl Income'!$I$55="Prior annual earnings"),"Employment income based on"&" "&'Empl Income'!$AE$56&" "&"recent annual earnings from"&" "&"prior employment"&" "&"totalling"&" "&"$"&ROUND('Empl Income'!$AD$56,2)&" "&"which averages out to"&" "&"$"&ROUND('Empl Income'!$T$7,2)&" "&"per month.",IF(AND('Empl Income'!$I$55="Salary",'Empl Income'!$N$58="Yes"),'Empl Income'!$T$3&" "&"on average earns"&" "&"$"&ROUND('Empl Income'!$T$7,2)&" "&"per month."&" "&"Prior employer paid"&" "&'Empl Income'!$T$3&" "&"a"&" "&"$"&ROUND('Empl Income'!$R$55,2)&" "&'Empl Income'!$N$55&" "&'Empl Income'!$I$55&" "&"for"&" "&'Empl Income'!$P$58&" "&IF('Empl Income'!$P$57="Months","months out of the year.","weeks out of the year."),IF(AND('Empl Income'!$I$55="Monthly",'Empl Income'!$N$58="No"),"Prior employer paid"&" "&'Empl Income'!$T$3&" "&"$"&ROUND('Empl Income'!$T$7,2)&" "&"monthly.",IF(AND('Empl Income'!$I$55="Monthly",'Empl Income'!$N$58="Yes"),'Empl Income'!$T$3&" "&"on average earned"&" "&"$"&ROUND('Empl Income'!$T$7,2)&" "&"per month."&" "&"Prior employer paid"&" "&'Empl Income'!$T$3&" "&"$"&ROUND('Empl Income'!$R$55,2)&" monthly "&"for"&" "&'Empl Income'!$P$58&" "&IF('Empl Income'!$P$57="Months","months out of the year.","weeks out of the year."),IF(AND('Empl Income'!$I$55="Hourly",'Empl Income'!$N$58="Yes",'Empl Income'!$F$58="No"),'Empl Income'!$T$3&" "&"on average earned"&" "&"$"&ROUND('Empl Income'!$T$7,2)&" "&"per month."&" "&"Prior employer paid"&" "&'Empl Income'!$T$3&" "&"$"&ROUND('Empl Income'!$R$55,2)&" "&"per hour"&" "&"for"&" "&'Empl Income'!$U$55&" "&"hours"&" "&'Empl Income'!$N$55&" "&"for"&" "&'Empl Income'!$P$58&" "&IF('Empl Income'!$P$57="Months","months out of the year.","weeks out of the year."),IF(AND('Empl Income'!$I$55="Year-to-date",'Empl Income'!$N$58="Yes"),"Paystub from"&" "&"Prior employer"&" "&"beginning"&" "&TEXT('Empl Income'!$H$61,"m/d/yy")&" "&"ending"&" "&TEXT('Empl Income'!$N$61,"m/d/yy")&" "&"- total earnings of"&" "&"$"&ROUND('Empl Income'!$T$61,2)&" "&"for a"&" "&"$"&ROUND('Empl Income'!$Z$57,2)&" "&"average monthly total seasonally adjusted for"&" "&'Empl Income'!$P$58&" "&IF('Empl Income'!$P$57="Months","months to","weeks to")&" "&"$"&ROUND('Empl Income'!$AB$57,2)&"."," ")))))))))))) -> 
B18: Child Support Report | E18: ='Other Income'!$F$5 -> Other Income | J18: ="Total Other Income Amount:"&" "&"$"&ROUND('Other Income'!$R$12,2) -> Total Other Income Amount: $0
E19: =IF('Other Income'!$R$12=0," ",'Family Info'!$AB$19&"'s"&" "&"other monthly income includes"&" "&IF('Other Income'!$R$4>0,"SSDI - "&"$"&'Other Income'!$R$4&";"&" ","")&IF('Other Income'!$R$5>0,"spousal support - "&"$"&'Other Income'!$R$5&";"&" ","")&IF('Other Income'!$R$6>0,"workers comp. - "&"$"&'Other Income'!$R$6&";"&" ","")&IF('Other Income'!$R$7>0,"unemployment benefits - "&"$"&'Other Income'!$R$7&";"&" ","")&IF('Other Income'!$R$8>0,"veteran benefits - "&"$"&ROUND('Other Income'!$R$8,2)&";"&" ","")&IF('Other Income'!$R$9>0,"retirement benefits - "&"$"&ROUND('Other Income'!$R$9,2)&";"&" ","")&IF('Other Income'!$R$10<1," ",IF(AND('Other Income'!$R$10>0,'Other Income'!$H$12<>" "),'Other Income'!$H$12&" - "&"$"&ROUND('Other Income'!$R$10,2)&";","other Income - $"&ROUND('Other Income'!$R$10,2)&";")&IF('Other Income'!$R$11<1," ",IF(AND('Other Income'!$R$11>0,'Other Income'!$L$12<>" "),'Other Income'!$L$12&" - "&"$"&ROUND('Other Income'!$R$11,2)&";","other Income - $"&ROUND('Other Income'!$R$11,2)&";")))) -> 
B21: Getting Started | E21: ='Income Adjustment'!$E$11&" "&"Income Adjustments" -> Income Adjustments | J21: ="Total Income Adjustments:"&" "&"$"&'Income Adjustment'!$S$9 -> Total Income Adjustments: $0
E22: =IF('Income Adjustment'!$S$9=0," ",'Family Info'!$AB$19&"'s"&" "&"income adjustments include"&" "&IF('Income Adjustment'!$S$4>0,"reasonable business expenses - "&"$"&'Income Adjustment'!$S$4&";"&" ","")&IF('Income Adjustment'!$S$5>0,"1/2 self employment tax - "&"$"&'Income Adjustment'!$S$5&";"&" ","")&IF('Income Adjustment'!$S$6>0,"spousal support paid out - "&"$"&'Income Adjustment'!$S$6&";"&" ","")&IF('Income Adjustment'!$S$7>0,"other child support - "&"$"&ROUND('Income Adjustment'!$S$7,2)&";"&" ","")&IF('Income Adjustment'!$S$8>0,"other child(ren) residing in the home - "&"$"&ROUND('Income Adjustment'!$S$8,2)&";"&" ","")) -> 
B23: Family Information | E23: =I10 -> 's Adjusted Income Amount: $0
B25: Income Information | E25: ='Empl Income'!$E$77&":" -> 's work income: | J25: =IF('Empl Income'!$AP$56=FALSE,"Total Work Income Amount:"&" "&"$"&'Empl Income'!$V$6,"Total Work Income Amount:"&" "&"$"&'Empl Income'!$V$6&" "&"including") -> Total Work Income Amount: $0 | P25: ="Imputation Amount:"&" "&"$"&'Empl Income'!$V$7 -> Imputation Amount: $0
E26: =IF('Empl Income'!M77="No",'Family Info'!$AB$20&" "&"is unemployed.",IF('Empl Income'!$I$80=" "," ",IF(AND('Empl Income'!$I$80="Regular",'Empl Income'!$M$80="hourly",'Empl Income'!$M$77="Yes",'Empl Income'!$S$83="Yes",'Empl Income'!$H$83="Yes"),IF(OR('Empl Income'!$Q$77=" ",'Empl Income'!$Q$77=""),"Employer",'Empl Income'!$Q$77)&" "&"pays"&" "&'Empl Income'!$V$3&" "&"$"&ROUND('Empl Income'!$U$80,2)&" "&"per hour"&" "&"for"&" "&'Empl Income'!$F$83&" "&"hours"&" "&'Empl Income'!$Q$80&" "&"along with"&" "&'Empl Income'!$M$83&" "&"hours overtime @"&" "&"$"&ROUND('Empl Income'!$J$83,2)&" "&"per hour"&" "&'Empl Income'!$V$83&" "&IF('Empl Income'!$V$82="Months","months out of the year","weeks out of the year")&" "&"for a"&" "&"$"&ROUND('Empl Income'!$V$4,2)&" "&"monthly total.",IF(AND('Empl Income'!$I$80="Regular",'Empl Income'!$M$80="Salary",'Empl Income'!$M$77="Yes",'Empl Income'!$S$83="Yes",'Empl Income'!$H$83="Yes"),IF(OR('Empl Income'!$Q$77=" ",'Empl Income'!$Q$77=""),"Employer",'Empl Income'!$Q$77)&" "&"pays"&" "&'Empl Income'!$V$3&" "&"$"&ROUND('Empl Income'!$U$80,2)&" "&'Empl Income'!$Q$80&" "&'Empl Income'!$M$80&" "&"and a"&" "&"$"&ROUND('Empl Income'!$J$83,2)&" "&'Empl Income'!$P$83&" "&"bonus for"&" "&'Empl Income'!$V$83&" "&IF('Empl Income'!$V$82="Months","months out of the year for a","weeks out of the year for a")&" "&"$"&'Empl Income'!$V$4&" "&"monthly total.",IF(AND('Empl Income'!$I$80="Regular",'Empl Income'!$M$80="hourly",'Empl Income'!$M$77="Yes",'Empl Income'!$S$83="No",'Empl Income'!$H$83="Yes"),IF(OR('Empl Income'!$Q$77=" ",'Empl Income'!$Q$77=""),"Employer",'Empl Income'!$Q$77)&" "&"pays"&" "&'Empl Income'!$V$3&" "&"$"&ROUND('Empl Income'!$U$80,2)&" "&"per hour"&" "&"for"&" "&'Empl Income'!$F$83&" "&"hours"&" "&'Empl Income'!$Q$80&" "&"along with"&" "&'Empl Income'!$M$83&" "&"hours overtime @"&" "&"$"&ROUND('Empl Income'!$J$83,2)&" "&"per hour"&" "&"for a"&" "&"$"&ROUND('Empl Income'!$V$4,2)&" "&"monthly total.",IF('Empl Income'!$M$77="No",'Empl Income'!$V$3&" "&"is unemployed because"&" "&'Empl Income'!$Q$77&".",IF(AND('Empl Income'!$I$80="Regular",'Empl Income'!$M$80="Salary",'Empl Income'!$M$77="Yes",'Empl Income'!$S$83="No",'Empl Income'!$H$83="No"),IF(OR('Empl Income'!$Q$77=" ",'Empl Income'!$Q$77=""),"Employer",'Empl Income'!$Q$77)&" "&"pays"&" "&'Empl Income'!$V$3&" "&"a"&" "&"$"&ROUND('Empl Income'!$U$80,2)&" "&'Empl Income'!$Q$80&" "&'Empl Income'!$M$80&IF('Empl Income'!$M$80<>"Monthly"," "&"for a"&" "&"$"&'Empl Income'!$V$4&" "&"monthly total.","."),IF(AND('Empl Income'!$I$80="Regular",'Empl Income'!$M$80="Hourly",'Empl Income'!$M$77="Yes",'Empl Income'!$S$83="No",'Empl Income'!$H$83="No"),IF(OR('Empl Income'!$Q$77=" ",'Empl Income'!$Q$77=""),"Employer",'Empl Income'!$Q$77)&" "&"pays"&" "&'Empl Income'!$V$3&" "&"$"&ROUND('Empl Income'!$U$80,2)&" "&"per hour"&" "&"for"&" "&'Empl Income'!$F$83&" "&"hours"&" "&'Empl Income'!$Q$80&" "&"for a"&" "&"$"&ROUND('Empl Income'!$V$4,2)&" "&"monthly total.",IF(AND('Empl Income'!$I$80="Varies",'Empl Income'!$M$80="Year-to-date",'Empl Income'!$S$83="No"),"Paystub from"&" "&IF(OR('Empl Income'!$Q$77=" ",'Empl Income'!$Q$77=""),"Employer",'Empl Income'!$Q$77)&" "&"beginning"&" "&TEXT('Empl Income'!$H$87,"m/d/yy")&" "&"ending"&" "&TEXT('Empl Income'!$N$87,"m/d/yy")&" "&"- total earnings of"&" "&"$"&ROUND('Empl Income'!$T$87,2)&" "&"for a"&" "&"$"&ROUND('Empl Income'!$V$4,2)&" "&"monthly total.",IF(AND('Empl Income'!$I$80="Varies",'Empl Income'!$M$80="Recent Quarterly"),"Employment income based on"&" "&'Empl Income'!$AE$85&" "&"recent quarters from"&" "&IF(OR('Empl Income'!$Q$77=" ",'Empl Income'!$Q$77=""),"Employer",'Empl Income'!$Q$77)&" "&"totalling"&" "&"$"&ROUND('Empl Income'!$AD$85,2)&" "&"which averages out to"&" "&"$"&ROUND('Empl Income'!$V$4,2)&" "&"per month.",IF(AND('Empl Income'!$I$80="Regular",'Empl Income'!$M$80="Salary",'Empl Income'!$M$77="Yes",'Empl Income'!$S$83="Yes",'Empl Income'!$H$83="No"),'Empl Income'!$V$3&" "&"on average earns"&" "&"$"&ROUND('Empl Income'!$V$4,2)&" "&"per month."&" "&IF(OR('Empl Income'!$Q$77=" ",'Empl Income'!$Q$77=""),"Employer",'Empl Income'!$Q$77)&" "&"pays"&" "&'Empl Income'!$V$3&" "&"a"&" "&"$"&ROUND('Empl Income'!$U$80,2)&" "&'Empl Income'!$Q$80&" "&'Empl Income'!$M$80&" "&"for"&" "&'Empl Income'!$V$83&" "&IF('Empl Income'!$V$82="Months","months out of the year.","weeks out of the year."),IF(AND('Empl Income'!$I$80="Regular",'Empl Income'!$M$80="Hourly",'Empl Income'!$M$77="Yes",'Empl Income'!$S$83="Yes",'Empl Income'!$H$83="No"),'Empl Income'!$V$3&" "&"on average earns"&" "&"$"&ROUND('Empl Income'!$V$4,2)&" "&"per month."&" "&IF(OR('Empl Income'!$Q$77=" ",'Empl Income'!$Q$77=""),"Employer",'Empl Income'!$Q$77)&" "&"pays"&" "&'Empl Income'!$V$3&" "&"$"&'Empl Income'!$U$80&" "&"per hour"&" "&"for"&" "&'Empl Income'!$F$83&" "&"hours"&" "&'Empl Income'!$Q$80&" "&"for"&" "&'Empl Income'!$V$83&" "&IF('Empl Income'!$V$82="Months","months out of the year.","weeks out of the year."),IF(AND('Empl Income'!$I$80="Varies",'Empl Income'!$M$80="Year-to-date",'Empl Income'!$S$83="Yes"),"Paystub from"&" "&IF(OR('Empl Income'!$Q$77=" ",'Empl Income'!$Q$77=""),"Employer",'Empl Income'!$Q$77)&" "&"beginning"&" "&TEXT('Empl Income'!$H$87,"m/d/yy")&" "&"ending"&" "&TEXT('Empl Income'!$N$87,"m/d/yy")&" "&"- total earnings of"&" "&"$"&ROUND('Empl Income'!$T$87,2)&" "&"for a"&" "&"$"&ROUND('Empl Income'!$Z$85,2)&" "&"average monthly total seasonally adjusted for"&" "&'Empl Income'!$V$83&" "&IF('Empl Income'!$V$82="Months","months to","weeks to")&" "&"$"&ROUND('Empl Income'!$Z$86,2)&".",IF(AND('Empl Income'!$I$80="Regular",'Empl Income'!$M$80="Salary",'Empl Income'!$M$77="Yes",'Empl Income'!$S$83="No",'Empl Income'!$H$83="Yes"),IF(OR('Empl Income'!$Q$77=" ",'Empl Income'!$Q$77=""),"Employer",'Empl Income'!$Q$77)&" "&"pays"&" "&'Empl Income'!$V$3&" "&"a"&" "&"$"&ROUND('Empl Income'!$U$80,2)&" "&'Empl Income'!$Q$80&" "&'Empl Income'!$M$80&" "&"along with a"&" "&"$"&ROUND('Empl Income'!$J$83,2)&" "&'Empl Income'!$P$83&" "&"bonus"&" "&IF('Empl Income'!$Q$80<>"Monthly"," "&"for a"&" "&"$"&ROUND('Empl Income'!$V$4,2)&" "&"monthly total."," "))))))))))))))) -> FALSE
B27: Health Care | E27: =IF('Empl Income'!$I$98=" "," ",IF(AND('Empl Income'!$I$98="Regular",'Empl Income'!$M$98="hourly",'Empl Income'!$S$101="Yes",'Empl Income'!$H$101="Yes"),IF(OR('Empl Income'!$P$96=" ",'Empl Income'!$P$96=""),"Employer",'Empl Income'!$P$96)&" "&"pays"&" "&'Empl Income'!$V$3&" "&"$"&ROUND('Empl Income'!$U$98,2)&" "&"per hour"&" "&"for"&" "&'Empl Income'!$F$101&" "&"hours"&" "&'Empl Income'!$Q$98&" "&"along with"&" "&'Empl Income'!$M$83&" "&"hours overtime @"&" "&"$"&ROUND('Empl Income'!$J$101,2)&" "&"per hour"&" "&'Empl Income'!$V$101&" "&IF('Empl Income'!$V$100="Months","months out of the year","weeks out of the year")&" "&"for a"&" "&"$"&ROUND('Empl Income'!$V$5,2)&" "&"monthly total.",IF(AND('Empl Income'!$I$98="Regular",'Empl Income'!$M$98="Salary",'Empl Income'!$S$101="Yes",'Empl Income'!$H$101="Yes"),IF(OR('Empl Income'!$P$96=" ",'Empl Income'!$P$96=""),"Employer",'Empl Income'!$P$96)&" "&"pays"&" "&'Empl Income'!$V$3&" "&"$"&ROUND('Empl Income'!$U$98,2)&" "&'Empl Income'!$Q$98&" "&'Empl Income'!$M$98&" "&"and a"&" "&"$"&ROUND('Empl Income'!$J$101,2)&" "&'Empl Income'!$P$101&" "&"bonus for"&" "&'Empl Income'!$V$101&" "&IF('Empl Income'!$V$100="Months","months out of the year for a","weeks out of the year for a")&" "&"$"&ROUND('Empl Income'!$V$5,2)&" "&"monthly total.",IF(AND('Empl Income'!$I$98="Regular",'Empl Income'!$M$98="hourly",'Empl Income'!$S$101="No",'Empl Income'!$H$101="Yes"),IF(OR('Empl Income'!$P$96=" ",'Empl Income'!$P$96=""),"Employer",'Empl Income'!$P$96)&" "&"pays"&" "&'Empl Income'!$V$3&" "&"$"&ROUND('Empl Income'!$U$98,2)&" "&"per hour"&" "&"for"&" "&'Empl Income'!$F$101&" "&"hours"&" "&'Empl Income'!$Q$98&" "&"along with"&" "&'Empl Income'!$M$83&" "&"hours overtime @"&" "&"$"&ROUND('Empl Income'!$J$101,2)&" "&"per hour"&" "&"for a"&" "&"$"&ROUND('Empl Income'!$V$5,2)&" "&"monthly total.",IF(AND('Empl Income'!$I$98="Regular",'Empl Income'!$M$98="Salary",'Empl Income'!$S$101="No",'Empl Income'!$H$101="No"),IF(OR('Empl Income'!$P$96=" ",'Empl Income'!$P$96=""),"Employer",'Empl Income'!$P$96)&" "&"pays"&" "&'Empl Income'!$V$3&" "&"a"&" "&"$"&ROUND('Empl Income'!$U$98,2)&" "&'Empl Income'!$Q$98&" "&'Empl Income'!$M$98&IF('Empl Income'!$Q$98<>"Monthly"," "&"for a"&" "&"$"&'Empl Income'!$V$5&" "&"monthly total.","."),IF(AND('Empl Income'!$I$98="Regular",'Empl Income'!$M$98="Hourly",'Empl Income'!$S$101="No",'Empl Income'!$H$101="No"),IF(OR('Empl Income'!$P$96=" ",'Empl Income'!$P$96=""),"Employer",'Empl Income'!$P$96)&" "&"pays"&" "&'Empl Income'!$V$3&" "&"$"&ROUND('Empl Income'!$U$98,2)&" "&"per hour"&" "&"for"&" "&'Empl Income'!$F$101&" "&"hours"&" "&'Empl Income'!$Q$98&" "&"for a"&" "&"$"&ROUND('Empl Income'!$V$5,2)&" "&"monthly total.",IF(AND('Empl Income'!$I$98="Varies",'Empl Income'!$M$98="Year-to-date",'Empl Income'!$S$101="No"),"Paystub from"&" "&IF(OR('Empl Income'!$P$96=" ",'Empl Income'!$P$96=""),"Employer",'Empl Income'!$P$96)&" "&"beginning"&" "&TEXT('Empl Income'!$H$104,"m/d/yy")&" "&"ending"&" "&TEXT('Empl Income'!$N$104,"m/d/yy")&" "&"- total earnings of"&" "&"$"&ROUND('Empl Income'!$T$104,2)&" "&"for a"&" "&"$"&ROUND('Empl Income'!$V$5,2)&" "&"monthly total.",IF(AND('Empl Income'!$I$98="Varies",'Empl Income'!$M$98="Recent Quarterly"),"Employment income based on"&" "&'Empl Income'!$AE$103&" "&"recent quarters from"&" "&IF(OR('Empl Income'!$P$96=" ",'Empl Income'!$P$96=""),"Employer",'Empl Income'!$P$96)&" "&"totalling"&" "&"$"&ROUND('Empl Income'!$AD$103,2)&" "&"which averages out to"&" "&"$"&ROUND('Empl Income'!$V$5,2)&" "&"per month.",IF(AND('Empl Income'!$I$98="Regular",'Empl Income'!$M$98="Salary",'Empl Income'!$S$101="Yes",'Empl Income'!$H$101="No"),'Empl Income'!$V$3&" "&"on average earns"&" "&"$"&ROUND('Empl Income'!$V$5,2)&" "&"per month."&" "&IF(OR('Empl Income'!$P$96=" ",'Empl Income'!$P$96=""),"Employer",'Empl Income'!$P$96)&" "&"pays"&" "&'Empl Income'!$V$3&" "&"a"&" "&"$"&ROUND('Empl Income'!$U$98,2)&" "&'Empl Income'!$Q$98&" "&'Empl Income'!$M$98&" "&"for"&" "&'Empl Income'!$V$101&" "&IF('Empl Income'!$V$100="Months","months out of the year.","weeks out of the year."),IF(AND('Empl Income'!$I$98="Regular",'Empl Income'!$M$98="Hourly",'Empl Income'!$S$101="Yes",'Empl Income'!$H$101="No"),'Empl Income'!$V$3&" "&"on average earns"&" "&"$"&'Empl Income'!$V$5&" "&"per month."&" "&IF(OR('Empl Income'!$P$96=" ",'Empl Income'!$P$96=""),"Employer",'Empl Income'!$P$96)&" "&"pays"&" "&'Empl Income'!$V$3&" "&"$"&ROUND('Empl Income'!$U$98,2)&" "&"per hour"&" "&"for"&" "&'Empl Income'!$F$101&" "&"hours"&" "&'Empl Income'!$Q$98&" "&"for"&" "&'Empl Income'!$V$101&" "&IF('Empl Income'!$V$100="Months","months out of the year.","weeks out of the year."),IF(AND('Empl Income'!$I$98="Varies",'Empl Income'!$M$98="Year-to-date",'Empl Income'!$S$101="Yes"),"Paystub from"&" "&IF(OR('Empl Income'!$P$96=" ",'Empl Income'!$P$96=""),"Employer",'Empl Income'!$P$96)&" "&"beginning"&" "&TEXT('Empl Income'!$H$104,"m/d/yy")&" "&"ending"&" "&TEXT('Empl Income'!$N$104,"m/d/yy")&" "&"- total earnings of"&" "&"$"&ROUND('Empl Income'!$T$104,2)&" "&"for a"&" "&"$"&ROUND('Empl Income'!$Z$103,2)&" "&"average monthly total seasonally adjusted for"&" "&'Empl Income'!$V$101&" "&IF('Empl Income'!$V$100="Months","months to","weeks to")&" "&"$"&ROUND('Empl Income'!$Z$104,2)&".",IF(AND('Empl Income'!$I$98="Regular",'Empl Income'!$M$98="Salary",'Empl Income'!$S$101="No",'Empl Income'!$H$101="Yes"),IF(OR('Empl Income'!$P$96=" ",'Empl Income'!$P$96=""),"Employer",'Empl Income'!$P$96)&" "&"pays"&" "&'Empl Income'!$V$3&" "&"a"&" "&"$"&ROUND('Empl Income'!$U$98,2)&" "&'Empl Income'!$Q$98&" "&'Empl Income'!$M$98&" "&"along with a"&" "&"$"&ROUND('Empl Income'!$J$101,2)&" "&'Empl Income'!$P$101&" "&"bonus"&" "&IF('Empl Income'!$Q$98<>"Monthly"," "&"for a"&" "&"$"&ROUND('Empl Income'!$V$5,2)&" "&"monthly total."," "))))))))))))) -> FALSE
E28: =IF(OR('Empl Income'!$I$117=" ",'Empl Income'!$I$117=0)," ",IF('Empl Income'!$I$117<>'Empl Income'!$AP$53,"The court imputes the below earnings based on"&" "&'Empl Income'!$V$3&"'s"&" "&'Empl Income'!$I$117&" "&"and calculates this income on"&" "&'Empl Income'!$O$117&". ","The parties agree to impute below earnings to"&" "&'Empl Income'!$V$3&" "&"based on"&" "&'Empl Income'!$O$117&".")) -> 
B29: Day Care Cost | E29: =IF(OR('Empl Income'!$I$117=" ",'Empl Income'!$O$117=" ")," ",IF(AND('Empl Income'!$I$121="hourly",'Empl Income'!$S$124="Yes",'Empl Income'!$F$124="Yes"),"Prior employer paid"&" "&'Empl Income'!$V$3&" "&"$"&ROUND('Empl Income'!$R$121,2)&" "&"per hour"&" "&"for"&" "&'Empl Income'!$U$121&" "&"hours"&" "&'Empl Income'!$O$121&" "&"along with"&" "&'Empl Income'!$M$124&" "&"hours overtime @"&" "&"$"&ROUND('Empl Income'!$I$124,2)&" "&"per hour"&" "&'Empl Income'!$V$124&" "&IF('Empl Income'!$V$123="Months","months out of the year","weeks out of the year")&" "&"for a"&" "&"$"&ROUND('Empl Income'!$V$7,2)&" "&"monthly total.",IF(AND('Empl Income'!$I$121="hourly",'Empl Income'!$S$124="No",'Empl Income'!$F$124="Yes"),"Prior employer"&" "&"paid"&" "&'Empl Income'!$V$3&" "&"$"&ROUND('Empl Income'!$R$121,2)&" "&"per hour"&" "&"for"&" "&'Empl Income'!$U$121&" "&"hours"&" "&'Empl Income'!$O$121&" "&"along with"&" "&'Empl Income'!$M$124&" "&"hours overtime @"&" "&"$"&ROUND('Empl Income'!$I$124,2)&" "&"per hour"&" "&"for a"&" "&"$"&'Empl Income'!$V$7&" "&"monthly total.",IF(AND('Empl Income'!$I$121="Salary",'Empl Income'!$S$124="No"),"Prior employer paid"&" "&'Empl Income'!$V$3&" "&"a"&" "&"$"&ROUND('Empl Income'!$R$121,2)&" "&'Empl Income'!$O$121&" "&'Empl Income'!$I$121&" "&"for a"&" "&"$"&ROUND('Empl Income'!$V$7,2)&" "&"monthly total.",IF(AND('Empl Income'!$I$121="Hourly",'Empl Income'!$S$124="No",'Empl Income'!$F$124="No"),"Prior employer paid"&" "&'Empl Income'!$V$3&" "&"$"&ROUND('Empl Income'!$R$121,2)&" "&"per hour"&" "&"for"&" "&'Empl Income'!$U$121&" "&"hours"&" "&'Empl Income'!$O$121&" "&"for a"&" "&"$"&ROUND('Empl Income'!$V$7,2)&" "&"monthly total.",IF(AND('Empl Income'!$I$121="Year-to-date",'Empl Income'!$S$124="No"),"Paystub from"&" "&" Previous employer"&" "&"beginning"&" "&TEXT('Empl Income'!$H$127,"m/d/yy")&" "&"ending"&" "&TEXT('Empl Income'!$N$127,"m/d/yy")&" "&"- total earnings of"&" "&"$"&ROUND('Empl Income'!$T$127,2)&" "&"for a"&" "&"$"&'Empl Income'!$V$7&" "&"monthly total.",IF(AND('Empl Income'!$I$121="Prior annual earnings"),"Employment income based on"&" "&'Empl Income'!$AE$121&" "&"recent annual earnings from"&" "&"prior employment"&" "&"totalling"&" "&"$"&ROUND('Empl Income'!$AD$121,2)&" "&"which averages out to"&" "&"$"&ROUND('Empl Income'!$V$7,2)&" "&"per month.",IF(AND('Empl Income'!$I$121="Salary",'Empl Income'!$S$124="Yes"),'Empl Income'!$V$3&" "&"on average earns"&" "&"$"&ROUND('Empl Income'!$V$7,2)&" "&"per month."&" "&"Prior employer paid"&" "&'Empl Income'!$V$3&" "&"a"&" "&"$"&ROUND('Empl Income'!$R$121,2)&" "&'Empl Income'!$O$121&" "&'Empl Income'!$I$121&" "&"for"&" "&'Empl Income'!$V$124&" "&IF('Empl Income'!$V$123="Months","months out of the year.","weeks out of the year."),IF(AND('Empl Income'!$I$121="Monthly",'Empl Income'!$S$124="No"),"Prior employer paid"&" "&'Empl Income'!$V$3&" "&"$"&ROUND('Empl Income'!$V$7,2)&" "&"monthly.",IF(AND('Empl Income'!$I$121="Monthly",'Empl Income'!$S$124="Yes"),'Empl Income'!$V$3&" "&"on average earned"&" "&"$"&ROUND('Empl Income'!$V$7,2)&" "&"per month."&" "&"Prior employer paid"&" "&'Empl Income'!$V$3&" "&"$"&ROUND('Empl Income'!$R$121,2)&" monthly "&"for"&" "&'Empl Income'!$V$124&" "&IF('Empl Income'!$V$123="Months","months out of the year.","weeks out of the year."),IF(AND('Empl Income'!$I$121="Hourly",'Empl Income'!$S$124="Yes",'Empl Income'!$F$124="No"),'Empl Income'!$V$3&" "&"on average earned"&" "&"$"&ROUND('Empl Income'!$V$7,2)&" "&"per month."&" "&"Prior employer paid"&" "&'Empl Income'!$V$3&" "&"$"&ROUND('Empl Income'!$R$121,2)&" "&"per hour"&" "&"for"&" "&'Empl Income'!$U$121&" "&"hours"&" "&'Empl Income'!$O$121&" "&"for"&" "&'Empl Income'!$V$124&" "&IF('Empl Income'!$V$123="Months","months out of the year.","months out of the year."),IF(AND('Empl Income'!$I$121="Year-to-date",'Empl Income'!$S$124="Yes"),"Paystub from"&" "&"Prior employer"&" "&"beginning"&" "&TEXT('Empl Income'!$H$127,"m/d/yy")&" "&"ending"&" "&TEXT('Empl Income'!$N$127,"m/d/yy")&" "&"- total earnings of"&" "&"$"&ROUND('Empl Income'!$T$127,2)&" "&"for a"&" "&"$"&ROUND('Empl Income'!$Z$122,2)&" "&"average monthly total seasonally adjusted for"&" "&'Empl Income'!$V$124&" "&IF('Empl Income'!$V$123="Months","months to","weeks to")&" "&"$"&ROUND('Empl Income'!$AB$122,2)&"."," ")))))))))))) -> 
B31: Results | E31: ='Other Income'!$F$79 -> Other Income | J31: ="Total Other Income Amount:"&" "&"$"&ROUND('Other Income'!$U$12,2) -> Total Other Income Amount: $0
E32: =IF('Other Income'!$U$12=0," ",'Family Info'!$AB$20&"'s"&" "&"other monthly income includes"&" "&IF('Other Income'!$U$4>0,"SSDI - "&"$"&'Other Income'!$U$4&";"&" ","")&IF('Other Income'!$U$5>0,"spousal support - "&"$"&'Other Income'!$U$5&";"&" ","")&IF('Other Income'!$U$6>0,"workers comp. - "&"$"&'Other Income'!$U$6&";"&" ","")&IF('Other Income'!$U$7>0,"unemployment benefits - "&"$"&'Other Income'!$U$7&";"&" ","")&IF('Other Income'!$U$8>0,"veteran benefits - "&"$"&'Other Income'!$U$8&";"&" ","")&IF('Other Income'!$U$9>0,"retirement benefits - "&"$"&'Other Income'!$U$9&";"&" ","")&IF('Other Income'!$U$10<1," ",IF(AND('Other Income'!$U$10>0,'Other Income'!$H$86<>" "),'Other Income'!$H$86&" - "&"$"&'Other Income'!$U$10&";","other Income - $"&'Other Income'!$U$10&";")&IF('Other Income'!$U$11<1," ",IF(AND('Other Income'!$U$11>0,'Other Income'!$L$86<>" "),'Other Income'!$L$86&" - "&"$"&'Other Income'!$U$11&";","other Income - $"&'Other Income'!$U$11&";")))) -> 
B34: Save Work | E34: ='Income Adjustment'!$E$51&" "&"Income Adjustments" -> Income Adjustments | J34: ="Total Income Adjustments:"&" "&"$"&ROUND('Income Adjustment'!$V$9,2) -> Total Income Adjustments: $0
E35: =IF('Income Adjustment'!$V$9=0," ",'Family Info'!$AB$20&"'s"&" "&"income adjustments include"&" "&IF('Income Adjustment'!$V$4>0,"reasonable business expenses -"&"$"&ROUND('Income Adjustment'!$V$4,2)&";"&" ","")&IF('Income Adjustment'!$V$5>0,"1/2 self employment tax - "&"$"&ROUND('Income Adjustment'!$V$5,2)&";"&" ","")&IF('Income Adjustment'!$V$6>0,"spousal support paid out - "&"$"&ROUND('Income Adjustment'!$V$6,2)&";"&" ","")&IF('Income Adjustment'!$V$7>0,"other child support - "&"$"&ROUND('Income Adjustment'!$V$7,2)&";"&" ","")&IF('Income Adjustment'!$V$8>0,"other child(ren) residing in the home - "&"$"&ROUND('Income Adjustment'!$V$8,2)&";"&" ","")) -> 
B36: Calculator Reset | E36: =$Q$10 -> 's Adjusted Income Amount: $0
AC37: Health Ins | AF37: Dental Ins | AI37: Vision | AL37: Health Ins
B38: Exit Calculator | AC38: Mnth Amt | AD38: =IF('Health Ins'!$R$4<>" ",'Health Ins'!$R$4,IF('Health Ins'!$T$4<>" ",'Health Ins'!$T$4,IF('Health Ins'!$V$4<>" ",'Health Ins'!$V$4," "))) ->  | AF38: Mnth Amt | AG38: =IF(Dental!$R$5<>" ",Dental!$R$5,IF(Dental!$T$5<>" ",Dental!$T$5,IF(Dental!$V$5<>" ",Dental!$V$5," "))) -> 0 | AI38: Mnth Amt | AJ38: =IF(Vision!$R$6<>" ",Vision!$R$6,IF(Vision!$T$6<>" ",Vision!$T$6,IF(Vision!$V$6<>" ",Vision!$V$6," "))) -> 0 | AL38: Mnth Amt | AM38: =IF('Health Ins'!$R$4<>" ",'Health Ins'!$R$4,IF('Health Ins'!$T$4<>" ",'Health Ins'!$T$4,IF('Health Ins'!$V$4<>" ",'Health Ins'!$V$4," "))) -> 
E39: =IF('Family Info'!N9>1,"Monthly Children's Healthcare Cost","Monthly Child's Healthcare Cost") -> Monthly Child's Healthcare Cost | AC39: Ins Co | AD39: =IF(OR('Health Ins'!$L$9=" ",'Health Ins'!$L$9="",'Health Ins'!$L$9=0),"Insurer",'Health Ins'!$L$9) -> Insurer | AF39: Ins Co | AG39: =IF(OR(Dental!$L$9=" ",Dental!$L$9="",Dental!$L$9=0),"Insurer",Dental!$L$9) -> Insurer | AI39: Ins Co | AJ39: =IF(OR(Vision!$L$9=" ",Vision!$L$9="",Vision!$L$9=0),"Insurer",Vision!$L$9) -> Insurer | AL39: Ins Co | AM39: =IF(OR('Health Ins'!$L$9=" ",'Health Ins'!$L$9="",'Health Ins'!$L$9=0),"Insurer",'Health Ins'!$L$9) -> Insurer
AC40: Owner cost | AD40: =IF(OR('Health Ins'!$R$15<>"",'Health Ins'!$R$15<>" "),'Health Ins'!$R$15," ") -> 0 | AF40: Owner cost | AG40: =IF(OR(Dental!$R$15<>"",Dental!$R$15<>" "),Dental!$R$15," ") -> 0 | AI40: Owner cost | AJ40: =Dental!$U$15 -> 0 | AL40: Owner cost | AM40: =IF(OR('Health Ins'!$R$15<>"",'Health Ins'!$R$15<>" "),'Health Ins'!$R$15," ") -> 0
E41: Health Insurance | AC41: # | AD41: =IF('Health Ins'!$Q$17=1,"person","people") -> people | AF41: # | AG41: =IF(Dental!$Q$17=1,"person","people") -> people | AI41: # | AJ41: =IF(Dental!$Q$17=1,"person","people") -> people | AL41: # | AM41: =IF('Health Ins'!$Q$17=1,"person","people") -> people
E42: =IFERROR(IF('Health Ins'!$AO$2=TRUE,'Health Ins'!$AO$3,IF('Health Ins'!$AD$5=FALSE,"The child(ren) do not have health insurance.",IF(OR('Health Ins'!$L$7="",'Health Ins'!$L$7=" ")," ",'Health Ins'!$L$7&" "&"pays monthly $"&" "&ROUND('Health Ins'!$L$25,2)&" "&"for the child(ren)'s health insurance: $"&ROUND('Health Ins'!$M$13,2)&" "&'Health Ins'!$N$11&" "&"premium to"&" "&$AD$39&":"))),"") -> 
E43: =IFERROR(IF(OR('Health Ins'!$L$7="",'Health Ins'!$L$7=" ")," ",IF('Health Ins'!$AD$5=FALSE," ",IF('Health Ins'!$R$15<>0,'Health Ins'!$L$7&"'s "&" "&'Health Ins'!$N11&" "&"cost alone is"&" "&"$"&ROUND('Health Ins'!$R$15,2)&" "&"with a $"&ROUND('Health Ins'!$M$21,2)&" "&'Health Ins'!$N$11&" "&"per person cost"&" "&"for "&'Health Ins'!$Q$17&" "&"other people on the plan: the "&'Health Ins'!$N$11&" cost for "&'Health Ins'!$O$19&" child(ren) "&"is $"&ROUND('Health Ins'!$M$23,2),"The per person"&" "&'Health Ins'!$N$11&" cost for "&'Health Ins'!$Q$17&" people is $"&ROUND('Health Ins'!$M$21,2)&": "&"The "&'Health Ins'!$N$11&" cost for "&'Health Ins'!$O$19&" child(ren)"&" is $"& ROUND('Health Ins'!$M$23,2)&".")))," ") ->  | AF43: Daycare 1 | AI43: Daycare 2 | AL43: Daycare 3 | AO43: Daycare 4 | AR43: Daycare 5 | AU43: Daycare 6
AC44: Daycare | AF44: ='Day Care'!$L$10 -> 0 | AI44: ='Day Care'!$L$23 -> 0 | AL44: ='Day Care'!$L$37 -> 0 | AO44: ='Day Care'!$L$51 -> 0 | AR44: ='Day Care'!$L$65 -> 0 | AU44: ='Day Care'!$L$79 -> 0
E45: Health Insurance Secondary | AC45: # providers | AD45: ='Day Care'!$AS$10 -> 0 | AF45: hourly rate | AG45: weeks | AI45: hourly rate | AJ45: weeks | AL45: hourly rate | AM45: weeks | AO45: hourly rate | AP45: weeks | AR45: hourly rate | AS45: weeks | AU45: hourly rate | AV45: weeks
E46: =IFERROR(IF('Health Ins'!$L$30=0," ",IF('Health Ins'!$AM$4=" "," ",'Health Ins'!$L$30&" "&"pays monthly $"&" "&ROUND('Health Ins'!$L$48,2)&" "&"for the child(ren)'s health insurance: $"&ROUND('Health Ins'!$M$36,2)&" "&'Health Ins'!$N$34&" "&"premium to"&" "&$AD$39&":"))," ") ->  | AF46: weekly rate | AG46: weeks | AI46: weekly rate | AJ46: weeks | AL46: weekly rate | AM46: weeks | AO46: weekly rate | AP46: weeks | AR46: weekly rate | AS46: weeks | AU46: weekly rate | AV46: weeks
E47: =IFERROR(IF('Health Ins'!$AD$5=FALSE," ",IF('Health Ins'!$R$38<>0,'Health Ins'!$L$30&"'s "&" "&'Health Ins'!$N34&" "&"cost alone is"&" "&"$"&ROUND('Health Ins'!$R$38,2)&" "&"with a $"&ROUND('Health Ins'!$M$44,2)&" "&'Health Ins'!$N$34&" "&"per person cost"&" "&"for "&'Health Ins'!$Q$40&" "&"other people on the plan: the "&'Health Ins'!$N$34&" cost for "&'Health Ins'!$O$19&" child(ren) "&"is $"&ROUND('Health Ins'!$M$46,2),"The per person"&" "&'Health Ins'!$N$34&" cost for "&'Health Ins'!$Q$40&" people is $"&ROUND('Health Ins'!$M$44,2)&": "&"The "&'Health Ins'!$N$34&" cost for "&'Health Ins'!$O$19&" child(ren)"&'Health Ins'!$N$34&" is $"&ROUND('Health Ins'!$M$46,2)&"."))," ") ->  | AF47: bi-weekly rate | AG47: months | AI47: bi-weekly rate | AJ47: months | AL47: bi-weekly rate | AM47: months | AO47: bi-weekly rate | AP47: months | AR47: bi-weekly rate | AS47: months | AU47: bi-weekly rate | AV47: months
E48: =IF(OR('Health Ins'!$L$25=" ",'Health Ins'!$L$48=" ")," ","The child(ren)'s total monthly cost is $"&ROUND('Health Ins'!$L$25+'Health Ins'!$L$48,2)) ->  | AF48: semi-monthly rate | AG48: months | AI48: semi-monthly rate | AJ48: months | AL48: semi-monthly rate | AM48: months | AO48: semi-monthly rate | AP48: months | AR48: semi-monthly rate | AS48: months | AU48: semi-monthly rate | AV48: months
AF49: monthly rate | AG49: months | AI49: monthly rate | AJ49: months | AL49: monthly rate | AM49: months | AO49: monthly rate | AP49: months | AR49: monthly rate | AS49: months | AU49: monthly rate | AV49: months
E50: Dental Insurance | AF50: =VLOOKUP($AF$44,$AF$45:$AG$49,2,FALSE) ->  | AI50: =VLOOKUP($AI$44,$AI$45:$AJ$49,2,FALSE) ->  | AL50: =VLOOKUP($AL$44,$AL$45:$AM$49,2,FALSE) ->  | AO50: =VLOOKUP(AO44,AO45:AP49,2,FALSE) ->  | AR50: =VLOOKUP($AR$44,$AR$45:$AS$49,2,FALSE) ->  | AU50: =VLOOKUP($AU$44,$AU$45:$AV$49,2,FALSE) -> 
E51: =IFERROR(IF(Dental!$AD$5=FALSE,"The child(ren) do not have dental insurance.",IF(OR(Dental!$L$7="",Dental!$L$7=" ")," ",Dental!$L$7&" "&"pays monthly $"&" "&ROUND($AG$38,2)&" "&"for the child(ren)'s dental insurance: $"&Dental!$M$13&" "&Dental!$N$11&" "&"premium to"&" "&$AG$39&":"))," ") -> 
E52: =IFERROR(IF(Dental!$AD$5=FALSE," ",IF(OR(Dental!$L$7="",Dental!$L$7=" ")," ",IF(Dental!$R$15<>0,Dental!$L$7&"'s "&" "&Dental!$N$11&" "&"cost alone is"&" "&"$"&ROUND(Dental!$R$15,2)&" "&"with a $"&ROUND(Dental!$M$21,2)&" "&Dental!$N$11&" "&"per person cost"&" "&"for "&Dental!$Q$17&" "&"other people on the plan: the "&Dental!$N$11&" cost for "&Dental!$O$19&" child(ren) "&"is $"&ROUND(Dental!$M$23,2),"The per person"&" "&Dental!$N$11&" cost for "&Dental!$Q$17&" people is $"&ROUND(Dental!$M$21,2)&": "&"The "&Dental!$N$11&" cost for "&Dental!$O$19&" child(ren)"&Dental!$N$11&" is $"&ROUND(Dental!$M$23,2)&".")))," ") -> 
E54: Vision Insurance
E55: =IFERROR(IF(Vision!$AD$5=FALSE,"The child(ren) do not have vision insurance",IF(OR(Vision!$L$7="",Vision!$L$7=" ")," ",Vision!$L$7&" "&"pays monthly $"&" "&ROUND($AJ$38,2)&" "&"for the child(ren)'s vision insurance: $"&Vision!$M$13&" "&Vision!$N$11&" "&"premium to"&" "&$AJ$39&":"))," ") -> 
E56: =IFERROR(IF(Vision!$AD$5=FALSE," ",IF(OR(Vision!$L$7="",Vision!$L$7=" ")," ",IF(Vision!$R$15<>0,Vision!$L$7&"'s "&" "&Vision!$N$11&" "&"cost alone is"&" "&"$"&ROUND(Vision!$R$15,2)&" "&"with a $"&ROUND(Vision!$M$21,2)&" "&Vision!$N$11&" "&"per person cost"&" "&"for "&Vision!$Q$17&" "&"other people on the plan: the "&Vision!$N$11&" cost for "&Vision!$O$19&" child(ren) "&"is $"&ROUND(Vision!$M$23,2),"The per person"&" "&Vision!$N$11&" cost for "&Vision!$Q$17&" people is $"&ROUND(Vision!$M$21,2)&": "&"The "&Vision!$N$11&" cost for "&Vision!$O$19&" child(ren)"&Vision!$N$11&" is $"&ROUND(Vision!$M$23,2)&".")))," ") -> 
E58: =IF(Vision!$R$7>Vision!$R$8,Vision!$R$3&"'s $"&ROUND(Vision!$R$7,2)&" "&"monthly healthcare cost for the child(ren) exceeds the $"&ROUND(Vision!$R$8,2)& " amount for reasonable healthcarecosts by $"&ROUND(Vision!$R$7-Vision!$R$8,2)&" "&"per month."," ") -> 
E59: =IF(Vision!$T$7>Vision!$T$8,Vision!$T$3&"'s $"&ROUND(Vision!$T$7,2)&" "&"monthly healthcare cost for the child(ren) exceeds the $"&ROUND(Vision!$T$8,2)&" amount for reasonable healthcare costs by $"&ROUND(Vision!$T$7-Vision!$T$8,2)&" "&"per month."," ") -> 
E62: Monthly Daycare Cost
E63: =IFERROR(IF(OR('Day Care'!$L$6="",'Day Care'!$L$6=" "),"No cost for daycare.",'Day Care'!$L$6&" "&"pays $"&ROUND('Day Care'!$AF$11,2)&" "&"monthly to "&'Day Care'!$J$8&" "&"based on a"&" "&'Day Care'!$L$10&" "&"of"&" $"&'Day Care'!$K$12&" "&IF('Day Care'!$L$10="hourly rate","for"&" "&'Day Care'!$S$12&" "&"hours per week"," ")&IF('Day Care'!$I$14="Yes"," "&"for"&" "&'Day Care'!$L$16&" "&$AF$50&" "&"out of the year.","."))," ") -> No cost for daycare.
E64: =IFERROR('Day Care'!$L$19&" "&"pays $"&ROUND('Day Care'!$AH$11,2)&" "&"monthly to "&'Day Care'!$J$21&" "&"based on a"&" "&'Day Care'!$L$23&" "&"of"&" $"&'Day Care'!$K$25&" "&IF('Day Care'!$L$23="hourly rate","for"&" "&'Day Care'!$S$25&" "&"hours per week"," ")&IF('Day Care'!$I$27="Yes"," "&"for"&" "&'Day Care'!$L$29&" "&$AI$50&" "&"out of the year.",".")," ") -> 
E65: =IFERROR('Day Care'!$L$33&" "&"pays $"&ROUND('Day Care'!$AJ$11,2)&" "&"monthly to "&'Day Care'!$J$35&" "&"based on a"&" "&'Day Care'!$L$37&" "&"of"&" $"&'Day Care'!$K$39&" "&IF('Day Care'!$L$37="hourly rate","for"&" "&'Day Care'!$S$39&" "&"hours per week"," ")&IF('Day Care'!$I$41="Yes"," "&"for"&" "&'Day Care'!$L$43&" "&$AL$50&" "&"out of the year.",".")," ") -> 
E66: =IFERROR('Day Care'!$L$47&" "&"pays $"&ROUND('Day Care'!$AL$11,2)&" "&"monthly to "&'Day Care'!$J$49&" "&"based on a"&" "&'Day Care'!$L$51&" "&"of"&" $"&'Day Care'!$K$53&" "&IF('Day Care'!$L$51="hourly rate","for"&" "&'Day Care'!$S$53&" "&"hours per week"," ")&IF('Day Care'!$I$55="Yes"," "&"for"&" "&'Day Care'!$L$57&" "&$AO$50&" "&"out of the year.",".")," ") -> 
E67: =IFERROR('Day Care'!$L$61&" "&"pays $"&ROUND('Day Care'!$AN$11,2)&" "&"monthly to "&'Day Care'!$J$63&" "&"based on a"&" "&'Day Care'!$L$65&" "&"of"&" $"&'Day Care'!$K$67&" "&IF('Day Care'!$L$65="hourly rate","for"&" "&'Day Care'!$S$67&" "&"hours per week"," ")&IF('Day Care'!$I$69="Yes"," "&"for"&" "&'Day Care'!$L$71&" "&$AR$50&" "&"out of the year.",".")," ") -> 
E68: =IFERROR('Day Care'!$L$75&" "&"pays $"&ROUND('Day Care'!$AP$11,2)&" "&"monthly to "&'Day Care'!$J$77&" "&"based on a"&" "&'Day Care'!$L$79&" "&"of"&" $"&'Day Care'!$K$81&" "&IF('Day Care'!$L$79="hourly rate","for"&" "&'Day Care'!$S$81&" "&"hours per week"," ")&IF('Day Care'!$I$83="Yes"," "&"for"&" "&'Day Care'!$L$85&" "&$AU$50&" "&"out of the year.",".")," ") -> 
E72: Deviation Adjustments
E74: Deviation Cost Adjustments
E75: =IFERROR(Info!$AI$11,"") -> 
E77: Other Deviation Adjustments
E78: =IFERROR(IF(Info!$E$6=1," ",Info!$AQ$12)," ") -> 

Sheet Report (hidden)
A1: Child Support Guideline Report
A2: Date: | B2: =TODAY() -> 2025-04-07 | E2: DCSE# | F2: =Info!H5 -> 0
D3: Docket No. | F3: =Info!H4 -> 0
A4: Party A | B4: =Info!B1 ->  | G4: Party B | H4: =Info!$B$2 -> 
A6: ="Custody: "&Results!E7 -> Custody: This is a Sole custody matter involving 0 Child. 0 is the custodian.
A8: Child Support Owed: | D8: Father's monthly support obl. is: $1640.46
D9: Mother's Imputed Monthly Support Obl: $104
D10: Mother's monthly support obl. is: 1417.91
D11: Jill 's Imputed Monthly Support Obl: $399.09
A13: =Info!B14&"'s "&"Income Information: "&"Total Adjusted Income - $"&IF('Empl Income'!$T$6+'Other Income'!$R$12-'Income Adjustment'!$S$9<=0,0,'Empl Income'!$T$6+'Other Income'!$R$12-'Income Adjustment'!$S$9)&IF(OR(Results!$E$15=" ",Results!$E$15=""),"","; Imputed Adj. Income -$"&'Empl Income'!$T$7+'Other Income'!$R$12-'Income Adjustment'!$S$9) -> 's Income Information: Total Adjusted Income - $0
A14: =IF(Results!E13=FALSE,"Primary Employer: None","Primary Employer: "&Results!E13) -> Primary Employer: None
A15: Secondary Empl: | C15: =IF(Results!E14=FALSE,"None",Results!E14) -> None
A16: =IF(Results!E16=" ","Imputed Income: None",Results!$E$15) -> Imputed Income: None
A17: =Results!$E$16 -> 
A18: =Results!$E$19&IF('Other Income'!$AI$13>1,Results!$J$18,"") -> 
A19: =Results!$E$22 -> 
A20: =IF('Income Adjustment'!$AT$4>1,Results!$J$21,"") -> 
A22: =Info!$D$14&"'s "&"Income Information: "&"Total Adjusted Income - $"&IF('Empl Income'!$V$6+'Other Income'!$U$12-'Income Adjustment'!$V$9<=0,0,'Empl Income'!$V$6+'Other Income'!$U$12-'Income Adjustment'!$V$9)&IF(OR(Results!$E$28=" ",Results!$E$28=""),"","; Imputed Adj. Income -$"&'Empl Income'!$V$7+'Other Income'!$U$12-'Income Adjustment'!$V$9) -> 's Income Information: Total Adjusted Income - $0
A23: =IF(Results!$E$26=FALSE,"Primary Employer: None","Primary Employer: "&Results!$E$26) -> Primary Employer: None
A24: Secondary Empl: | C24: =IF(Results!$E$27=FALSE,"None",Results!$E$27) -> None
A25: =IF(Results!E29=" ","Imputed Income: None",Results!$E$28) -> Imputed Income: None
A26: =Results!$E$29 -> 
A27: =Results!$E$32&IF('Other Income'!$AL$13>1,Results!$J$31,"") -> 
A28: =Results!$E$35 -> 
A29: =IF('Income Adjustment'!$AT$5>1,Results!$J$34,"") -> 
A31: ="Healthcare Cost $"&ROUND(IF(OR('Health Ins'!$R$7="",'Health Ins'!$T$7=" "),"None","")&IF(AND('Health Ins'!$R$7>0,'Health Ins'!$T$7>0),'Health Ins'!R7+'Health Ins'!T7,IF('Health Ins'!$R$7>0,'Health Ins'!$R$7,'Health Ins'!$T$7)),2) -> Healthcare Cost $0
A32: ="Health Ins: "&Results!$E$42 -> Health Ins:
A33: =Results!$E$43 -> 
A34: ="2nd Health Ins.: "&Results!$E$46 -> 2nd Health Ins.:
A35: =Results!$E$47 -> 
A36: =Results!$E$48 -> 
A37: ="Dental Ins.: "&Results!$E$51 -> Dental Ins.:
A38: =Results!$E$52 -> 
A39: ="Vision Ins.: "&Results!$E$55 -> Vision Ins.:
A40: =Results!$E$56 -> 
A42: =Results!$E$58 -> 
A43: =Results!$E$42 -> 
A44: ="Daycare Cost $"&IF(AND(ISNUMBER('Day Care'!$R$10)=FALSE,ISNUMBER('Day Care'!$T$10)=FALSE),"None",'Day Care'!$R$10+'Day Care'!$T$10) -> Daycare Cost $0
A45: =Results!$E$63 -> No cost for daycare.
A46: =Results!$E$64 -> 
A47: =Results!$E$65 -> 
A48: =Results!$E$66 -> 
A49: =Results!$E$67 -> 
A50: =Results!$E$68 -> 

Sheet Behind Curtain (hidden)
A1: Gross INCOME | B1: 1 | C1: 2 | D1: 3 | E1: 4 | F1: 5 | G1: 6
A2: 0 | B2: 68 | C2: 104 | D2: 126 | E2: 141 | F2: 155 | G2: 169 | I2: =IF(Info!$E$6=3,"Parent A","Schedule Amt Calc.") -> Schedule Amt Calc. | P2: =IF(Info!$E$6=3,"Parent B","Split Custody Only") -> Split Custody Only
A3: 350 | B3: 68 | C3: 104 | D3: 126 | E3: 141 | F3: 155 | G3: 169 | I3: Combined Gross Income | J3: =IF(Info!$R$7="Card",Info!$T$10,IF('Income Adjustment'!$AG$11=35000,35000-0.0001,'Income Adjustment'!$AG$11)) -> 0 | K3: Interpolation Calculation | P3: Combined Gross Income | Q3: =IF(Info!$R$7="Card",Info!$T$10,IF('Income Adjustment'!$AG$11=35000,35000-0.0001,'Income Adjustment'!$AG$11)) -> 0 | R3: Interpolation Calculation
A4: 400 | B4: 78 | C4: 119 | D4: 144 | E4: 161 | F4: 177 | G4: 192 | I4: Number of Children | J4: =Info!$B$8 -> 0 | K4: Low Sched G Inc. Amt | L4: =VLOOKUP($J$3,$A$2:$A$696,1,TRUE) -> 0 | P4: Number of Children | Q4: =IF(Info!$E$6=3,Info!$B$9," ") ->  | R4: Low Sched G Inc. Amt | S4: =VLOOKUP($Q$3,$A$2:$A$696,1,TRUE) -> 0
A5: 450 | B5: 88 | C5: 133 | D5: 162 | E5: 181 | F5: 199 | G5: 216 | I5: Gross Income Row | J5: =MATCH($J$3,$A$2:$A$696,1) -> 1 | K5: High Sched G Inc. Amt | L5: =HLOOKUP($J$5+1,$A$2:$A$696,$J$5+1,1) -> 350 | P5: Gross Income Row | Q5: =MATCH($Q$3,$A$2:$A$696,1) -> 1 | R5: High Sched G Inc. Amt | S5: =HLOOKUP($Q$5+1,$A$2:$A$696,$Q$5+1,1) -> 350
A6: 500 | B6: 97 | C6: 148 | D6: 179 | E6: 200 | F6: 220 | G6: 239 | I6: Uninterpolated Guideline Amt | J6: =INDEX($B$2:$G$696,$J$5,$J$4) ->  | K6: High Sched Guideline Amt | L6: =INDEX($B$2:$G$696,$J$5+1,$J$4) ->  | P6: Uninterpolated Guideline Amt | Q6: =INDEX($B$2:$G$696,$Q$5,$Q$4) ->  | R6: High Sched Guideline Amt | S6: =INDEX($B$2:$G$696,$Q$5+1,$Q$4) -> 
A7: 550 | B7: 107 | C7: 162 | D7: 197 | E7: 220 | F7: 242 | G7: 263 | I7: Over $35,000 Amount | J7: =IFERROR(ROUND(IF(AND($J$3>=0,$J$3<35000),$L$7,IF($J$4=1,(1989+(($J$3-35000)*2.6%)),IF($J$4=2,(2927+($J$3-35000)*3.4%),IF($J$4=3,(3408+($J$3-35000)*3.8%),IF($J$4=4,(3807+($J$3-35000)*4.2%),IF($J$4=5,(4188+($J$3-35000)*4.6%),IF($J$4=6,(4552+($J$3-35000)*5%)))))))),2),0) -> 0 | K7: Interpolated Guideline Amt | L7: =$J$6+($J$3-$L$4)*(($L$6-$J$6)/($L$5-$L$4)) ->  | P7: Over $35,000 Amount | Q7: =IFERROR(ROUND(IF(AND($Q$3>=0,$Q$3<35000),$S$7,IF($Q$4=1,(1989+(($Q$3-35000)*2.6%)),IF($Q$4=2,(2927+($Q$3-35000)*3.4%),IF($Q$4=3,(3408+($Q$3-35000)*3.8%),IF($Q$4=4,(3807+($Q$3-35000)*4.2%),IF($Q$4=5,(4188+($Q$3-35000)*4.6%),IF($Q$4=6,(4552+($Q$3-35000)*5%)))))))),2),0) -> 0 | R7: Interpolated Guideline Amt | S7: =$Q$6+($Q$3-$S$4)*(($S$6-$Q$6)/($S$5-$S$4)) -> 
A8: 600 | B8: 116 | C8: 177 | D8: 215 | E8: 240 | F8: 264 | G8: 287
A9: 650 | B9: 126 | C9: 191 | D9: 232 | E9: 259 | F9: 285 | G9: 310 | R9: Answer Box
A10: 700 | B10: 135 | C10: 206 | D10: 250 | E10: 279 | F10: 307 | G10: 333 | R10: Schedule Amount | S10: =IFERROR(ROUND(IF($J$3<350,$J$6,IF($J$3<35000,$L$7,$J$7)),2),0) -> 0
A11: 750 | B11: 145 | C11: 220 | D11: 267 | E11: 298 | F11: 328 | G11: 357 | I11: ='Income Adjustment'!$AB$2&" "&"Additional Children" -> Additional Children | K11: Interpolation Calculation | R11: Split | S11: =IFERROR(ROUND(IF($Q$3<350,$Q$6,IF($Q$3<35000,$S$7,$Q$7)),2),0) -> 0
A12: 800 | B12: 154 | C12: 234 | D12: 284 | E12: 317 | F12: 349 | G12: 379 | I12: ='Income Adjustment'!$AB$2&" "&"gross income" -> gross income | J12: =IF(Info!$R$7="Card",Info!$T$8,'Income Adjustment'!$AG$7) -> 0 | K12: Low Sched G Inc. Amt | L12: =VLOOKUP($J$12,$A$2:$A$696,1,TRUE) -> 0 | R12: ='Income Adjustment'!$AB$2&" "&"Additional Children" -> Additional Children | S12: =IFERROR(ROUND(IF($J$12<350,$J$15,IF($J$12<35000,$L$15,$Q$15)),2),0) -> 0
A13: 850 | B13: 163 | C13: 248 | D13: 300 | E13: 336 | F13: 369 | G13: 401 | I13: ='Income Adjustment'!$AB$2&" "&"other children" -> other children | J13: =Info!$B$21 -> 0 | K13: High Sched G Inc. Amt | L13: =HLOOKUP($J$14+1,$A$2:$A$696,$J$14+1,1) -> 350 | R13: ='Income Adjustment'!$AB$3&" "&"Additional Children" -> Additional Children | S13: =IFERROR(ROUND(IF($J$17<350,$J$20,IF($J$17<35000,$L$20,$Q$20)),2),0) -> 0
A14: 900 | B14: 171 | C14: 260 | D14: 316 | E14: 353 | F14: 388 | G14: 422 | I14: Gross Income Row | J14: =MATCH($J$12,$A$2:$A$696,1) -> 1 | K14: High Sched Guideline Amt | L14: =INDEX($B$2:$G$696,$J$14+1,$J$13) -> 
A15: 950 | B15: 179 | C15: 273 | D15: 331 | E15: 369 | F15: 406 | G15: 442 | I15: Uninterpolated Guideline Amt | J15: =INDEX($B$2:$G$696,$J$14,$J$13) ->  | K15: Interpolated Guideline Amt | L15: =$J$15+($J$12-$L$12)*(($L$14-$J$15)/($L$13-$L$12)) ->  | P15: ="$35,000 or over"&" "&'Income Adjustment'!$AB$2 -> $35,000 or over | Q15: =IFERROR(ROUND(IF(AND($J$12>=0,$J$12<35000),$L$15,IF($J$13=1,(1989+(($J$12-35000)*2.6%)),IF($J$13=2,(2927+($J$12-35000)*3.4%),IF($J$13=3,(3408+($J$12-35000)*3.8%),IF($J$13=4,(3807+($J$12-35000)*4.2%),IF($J$13=5,(4188+($J$12-35000)*4.6%),IF($J$13=6,(4552+($J$12-35000)*5%)))))))),2),0) -> 0
A16: 1000 | B16: 187 | C16: 285 | D16: 346 | E16: 386 | F16: 425 | G16: 462 | I16: ='Income Adjustment'!$AB$3&" "&"Additional Children" -> Additional Children | K16: Interpolation Calculation
A17: 1050 | B17: 196 | C17: 298 | D17: 361 | E17: 403 | F17: 443 | G17: 482 | I17: ='Income Adjustment'!$AB$3&" "&"gross income" -> gross income | J17: =IF(Info!$R$7="Card",Info!$U$8,'Income Adjustment'!$AI$7) -> 0 | K17: Low Sched G Inc. Amt | L17: =VLOOKUP($J$17,$A$2:$A$696,1,TRUE) -> 0
A18: 1100 | B18: 204 | C18: 310 | D18: 375 | E18: 419 | F18: 461 | G18: 501 | I18: ='Income Adjustment'!$AB$3&" "&"other children" -> other children | J18: =Info!$D$21 -> 0 | K18: High Sched G Inc. Amt | L18: =HLOOKUP($J$19+1,$A$2:$A$696,$J$19+1,1) -> 350
A19: 1150 | B19: 212 | C19: 323 | D19: 390 | E19: 436 | F19: 480 | G19: 521 | I19: Gross Income Row | J19: =MATCH($J$17,$A$2:$A$696,1) -> 1 | K19: High Sched Guideline Amt | L19: =INDEX($B$2:$G$696,$J$19+1,$J$18) -> 
A20: 1200 | B20: 220 | C20: 335 | D20: 405 | E20: 453 | F20: 498 | G20: 541 | I20: Uninterpolated Guideline Amt | J20: =INDEX($B$2:$G$696,$J$19,$J$18) ->  | K20: Interpolated Guideline Amt | L20: =$J$20+($J$17-$L$17)*(($L$19-$J$20)/($L$18-$L$17)) ->  | P20: ="$35,000 or over"&" "&'Income Adjustment'!$AB$3 -> $35,000 or over | Q20: =IFERROR(ROUND(IF(AND($J$17>=0,$J$17<35000),$L$20,IF($J$18=1,(1989+(($J$17-35000)*2.6%)),IF($J$18=2,(2927+($J$17-35000)*3.4%),IF($J$18=3,(3408+($J$17-35000)*3.8%),IF($J$18=4,(3807+($J$17-35000)*4.2%),IF($J$18=5,(4188+($J$17-35000)*4.6%),IF($J$18=6,(4552+($J$17-35000)*5%)))))))),2),0) -> 0
A21: 1250 | B21: 228 | C21: 347 | D21: 420 | E21: 469 | F21: 516 | G21: 561
A22: 1300 | B22: 237 | C22: 360 | D22: 435 | E22: 486 | F22: 535 | G22: 581
A23: 1350 | B23: 245 | C23: 372 | D23: 450 | E23: 503 | F23: 553 | G23: 601 | M23: Imputation Calculation
A24: 1400 | B24: 253 | C24: 385 | D24: 465 | E24: 519 | F24: 571 | G24: 621 | I24: =IF(Info!$E$6=3,"Parent A","Schedule Amt Calc.") -> Schedule Amt Calc. | P24: =IF(Info!$E$6=3,"Parent B","Split Custody Only") -> Split Custody Only
A25: 1450 | B25: 261 | C25: 397 | D25: 480 | E25: 536 | F25: 589 | G25: 641 | I25: Combined Gross Income | J25: =IF('Income Adjustment'!$AO$11=35000,35000-0.0001,'Income Adjustment'!$AO$11) -> 0 | K25: Interpolation Calculation | P25: Combined Gross Income | Q25: =IF(Info!$E$6=3,IF('Income Adjustment'!$AO$11=35000,35000-0.0001,'Income Adjustment'!$AO$11)," ") ->  | R25: Interpolation Calculation
A26: 1500 | B26: 269 | C26: 410 | D26: 495 | E26: 552 | F26: 608 | G26: 661 | I26: Number of Children | J26: =Info!$B$8 -> 0 | K26: Low Sched G Inc. Amt | L26: =VLOOKUP($J$25,$A$2:$A$696,1,TRUE) -> 0 | P26: Number of Children | Q26: =IF(Info!$E$6=3,Info!$B$9," ") ->  | R26: Low Sched G Inc. Amt | S26: =VLOOKUP($Q$25,$A$2:$A$696,1,TRUE) -> 
A27: 1550 | B27: 278 | C27: 422 | D27: 509 | E27: 569 | F27: 626 | G27: 680 | I27: Gross Income Row | J27: =MATCH($J$25,$A$2:$A$696,1) -> 1 | K27: High Sched G Inc. Amt | L27: =HLOOKUP($J$27+1,$A$2:$A$696,$J$27+1,1) -> 350 | P27: Gross Income Row | Q27: =MATCH($Q$25,$A$2:$A$696,1) ->  | R27: High Sched G Inc. Amt | S27: =HLOOKUP($Q$27+1,$A$2:$A$696,$Q$27+1,1) -> 
A28: 1600 | B28: 286 | C28: 434 | D28: 524 | E28: 585 | F28: 644 | G28: 700 | I28: Uninterpolated Guideline Amt | J28: =INDEX($B$2:$G$696,$J$27,$J$26) ->  | K28: High Sched Guideline Amt | L28: =INDEX($B$2:$G$696,$J$27+1,$J$26) ->  | P28: Uninterpolated Guideline Amt | Q28: =INDEX($B$2:$G$696,$Q$27,$Q$26) ->  | R28: High Sched Guideline Amt | S28: =INDEX($B$2:$G$696,$Q$27+1,$Q$26) -> 
A29: 1650 | B29: 293 | C29: 446 | D29: 538 | E29: 601 | F29: 661 | G29: 718 | I29: Over $35,000 Amount | J29: =IFERROR(ROUND(IF(AND($J$25>=0,$J$25<35000),$L$29,IF($J$26=1,(1989+(($J$25-35000)*2.6%)),IF($J$26=2,(2927+($J$25-35000)*3.4%),IF($J$26=3,(3408+($J$25-35000)*3.8%),IF($J$26=4,(3807+($J$25-35000)*4.2%),IF($J$26=5,(4188+($J$25-35000)*4.6%),IF($J$26=6,(4552+($J$25-35000)*5%)))))))),2),0) -> 0 | K29: Interpolated Guideline Amt | L29: =$J$28+($J$25-$L$26)*(($L$28-$J$28)/($L$27-$L$26)) ->  | P29: Over $35,000 Amount | Q29: =IFERROR(ROUND(IF(AND($Q$25>=0,$Q$25<35000),$S$29,IF($Q$26=1,(1989+(($Q$25-35000)*2.6%)),IF($Q$26=2,(2927+($Q$25-35000)*3.4%),IF($Q$26=3,(3408+($Q$25-35000)*3.8%),IF($Q$26=4,(3807+($Q$25-35000)*4.2%),IF($Q$26=5,(4188+($Q$25-35000)*4.6%),IF($Q$26=6,(4552+($Q$25-35000)*5%)))))))),2),0) -> 0 | R29: Interpolated Guideline Amt | S29: =$Q$28+($Q$25-$S$26)*(($S$28-$Q$28)/($S$27-$S$26)) -> 
A30: 1700 | B30: 301 | C30: 457 | D30: 552 | E30: 616 | F30: 678 | G30: 737
A31: 1750 | B31: 309 | C31: 469 | D31: 566 | E31: 632 | F31: 695 | G31: 756 | R31: Answer Box
A32: 1800 | B32: 316 | C32: 481 | D32: 579 | E32: 647 | F32: 712 | G32: 774 | R32: Schedule Amount | S32: =IFERROR(ROUND(IF($J$25<350,$J$28,IF($J$25<35000,$L$29,$J$29)),2),0) -> 0
A33: 1850 | B33: 324 | C33: 492 | D33: 593 | E33: 663 | F33: 729 | G33: 792 | I33: ='Income Adjustment'!$AB$2&" "&"Additional Children" -> Additional Children | K33: Interpolation Calculation | R33: Split | S33: =IFERROR(ROUND(IF($Q$25<350,$Q$28,IF($Q$25<35000,$S$29,$Q$29)),2),0) -> 0
A34: 1900 | B34: 331 | C34: 504 | D34: 607 | E34: 678 | F34: 746 | G34: 811 | I34: ='Income Adjustment'!$AB$2&" "&"gross income" -> gross income | J34: ='Income Adjustment'!$AO$7 -> 0 | K34: Low Sched G Inc. Amt | L34: =VLOOKUP($J$34,$A$2:$A$696,1,TRUE) -> 0 | R34: ='Income Adjustment'!$AB$2&" "&"Additional Children" -> Additional Children | S34: =IFERROR(ROUND(IF($J$34<350,$J$37,IF($J$34<35000,$L$37,$Q$37)),2),0) -> 0
A35: 1950 | B35: 339 | C35: 515 | D35: 621 | E35: 693 | F35: 763 | G35: 829 | I35: ='Income Adjustment'!$AB$2&" "&"other children" -> other children | J35: =Info!B$21 -> 0 | K35: High Sched G Inc. Amt | L35: =HLOOKUP($J$36+1,$A$2:$A$696,$J$36+1,1) -> 350 | R35: ='Income Adjustment'!$AB$3&" "&"Additional Children" -> Additional Children | S35: =IFERROR(ROUND(IF($J$39<350,$J$42,IF($J$39<35000,$L$42,$Q$42)),2),0) -> 0
A36: 2000 | B36: 347 | C36: 527 | D36: 635 | E36: 709 | F36: 780 | G36: 848 | I36: Gross Income Row | J36: =MATCH($J$34,$A$2:$A$696,1) -> 1 | K36: High Sched Guideline Amt | L36: =INDEX($B$2:$G$696,$J$36+1,$J$35) -> 
A37: 2050 | B37: 354 | C37: 538 | D37: 648 | E37: 724 | F37: 797 | G37: 866 | I37: Uninterpolated Guideline Amt | J37: =INDEX($B$2:$G$696,$J$36,$J$35) ->  | K37: Interpolated Guideline Amt | L37: =$J$37+($J$34-$L$34)*(($L$36-$J$37)/($L$35-$L$34)) ->  | P37: ="Over $35,000 Amount"&" "&'Income Adjustment'!$AB$2 -> Over $35,000 Amount | Q37: =IFERROR(ROUND(IF(AND($J$34>=0,$J$34<35000),$L$37,IF($J$35=1,(1989+(($J$34-35000)*2.6%)),IF($J$35=2,(2927+($J$34-35000)*3.4%),IF($J$35=3,(3408+($J$34-35000)*3.8%),IF($J$35=4,(3807+($J$34-35000)*4.2%),IF($J$35=5,(4188+($J$34-35000)*4.6%),IF($J$35=6,(4552+($J$34-35000)*5%)))))))),2),0) -> 0
A38: 2100 | B38: 362 | C38: 550 | D38: 662 | E38: 740 | F38: 814 | G38: 884 | I38: ='Income Adjustment'!$AB$3&" "&"Additional Children" -> Additional Children | K38: Interpolation Calculation
A39: 2150 | B39: 369 | C39: 561 | D39: 676 | E39: 755 | F39: 830 | G39: 903 | I39: ='Income Adjustment'!$AB$3&" "&"gross income" -> gross income | J39: ='Income Adjustment'!$AQ$7 -> 0 | K39: Low Sched G Inc. Amt | L39: =VLOOKUP($J$39,$A$2:$A$696,1,TRUE) -> 0
A40: 2200 | B40: 377 | C40: 573 | D40: 690 | E40: 770 | F40: 847 | G40: 921 | I40: ='Income Adjustment'!$AB$3&" "&"other children" -> other children | J40: =Info!$D$21 -> 0 | K40: High Sched G Inc. Amt | L40: =HLOOKUP($J$41+1,$A$2:$A$696,$J$41+1,1) -> 350
A41: 2250 | B41: 385 | C41: 584 | D41: 703 | E41: 786 | F41: 864 | G41: 940 | I41: Gross Income Row | J41: =MATCH($J$39,$A$2:$A$696,1) -> 1 | K41: High Sched Guideline Amt | L41: =INDEX($B$2:$G$696,$J$41+1,$J$40) -> 
A42: 2300 | B42: 392 | C42: 596 | D42: 717 | E42: 801 | F42: 881 | G42: 958 | I42: Uninterpolated Guideline Amt | J42: =INDEX($B$2:$G$696,$J$41,$J$40) ->  | K42: Interpolated Guideline Amt | L42: =$J$42+($J$39-$L$39)*(($L$41-$J$42)/($L$40-$L$39)) ->  | P42: ="Over $35,000 Amount"&" "&'Income Adjustment'!$AB$3 -> Over $35,000 Amount | Q42: =IFERROR(ROUND(IF(AND($J$39>=0,$J$39<35000),$L$42,IF($J$40=1,(1989+(($J$39-35000)*2.6%)),IF($J$40=2,(2927+($J$39-35000)*3.4%),IF($J$40=3,(3408+($J$39-35000)*3.8%),IF($J$40=4,(3807+($J$39-35000)*4.2%),IF($J$40=5,(4188+($J$39-35000)*4.6%),IF($J$40=6,(4552+($J$39-35000)*5%)))))))),2),0) -> 0
A43: 2350 | B43: 400 | C43: 607 | D43: 731 | E43: 817 | F43: 898 | G43: 976
A44: 2400 | B44: 407 | C44: 619 | D44: 745 | E44: 832 | F44: 915 | G44: 995
A45: 2450 | B45: 415 | C45: 630 | D45: 759 | E45: 847 | F45: 932 | G45: 1013
A46: 2500 | B46: 423 | C46: 642 | D46: 772 | E46: 863 | F46: 949 | G46: 1032
A47: 2550 | B47: 430 | C47: 653 | D47: 786 | E47: 878 | F47: 966 | G47: 1050
A48: 2600 | B48: 438 | C48: 665 | D48: 800 | E48: 894 | F48: 983 | G48: 1068
A49: 2650 | B49: 445 | C49: 676 | D49: 814 | E49: 909 | F49: 1000 | G49: 1087
A50: 2700 | B50: 453 | C50: 688 | D50: 828 | E50: 924 | F50: 1017 | G50: 1105
A51: 2750 | B51: 460 | C51: 699 | D51: 841 | E51: 940 | F51: 1034 | G51: 1124
A52: 2800 | B52: 468 | C52: 711 | D52: 855 | E52: 955 | F52: 1051 | G52: 1142
A53: 2850 | B53: 476 | C53: 722 | D53: 869 | E53: 971 | F53: 1068 | G53: 1160
A54: 2900 | B54: 483 | C54: 734 | D54: 883 | E54: 986 | F54: 1084 | G54: 1179
A55: 2950 | B55: 491 | C55: 745 | D55: 896 | E55: 1001 | F55: 1101 | G55: 1197
A56: 3000 | B56: 498 | C56: 757 | D56: 910 | E56: 1017 | F56: 1118 | G56: 1216
A57: 3050 | B57: 506 | C57: 768 | D57: 924 | E57: 1032 | F57: 1135 | G57: 1234
A58: 3100 | B58: 514 | C58: 780 | D58: 938 | E58: 1047 | F58: 1152 | G58: 1252
A59: 3150 | B59: 521 | C59: 791 | D59: 952 | E59: 1063 | F59: 1169 | G59: 1271
A60: 3200 | B60: 529 | C60: 803 | D60: 965 | E60: 1078 | F60: 1186 | G60: 1289
A61: 3250 | B61: 536 | C61: 814 | D61: 979 | E61: 1094 | F61: 1203 | G61: 1308
A62: 3300 | B62: 544 | C62: 826 | D62: 993 | E62: 1109 | F62: 1220 | G62: 1326
A63: 3350 | B63: 551 | C63: 837 | D63: 1006 | E63: 1123 | F63: 1236 | G63: 1343
A64: 3400 | B64: 559 | C64: 848 | D64: 1019 | E64: 1138 | F64: 1252 | G64: 1361
A65: 3450 | B65: 566 | C65: 859 | D65: 1032 | E65: 1152 | F65: 1268 | G65: 1378
A66: 3500 | B66: 574 | C66: 870 | D66: 1045 | E66: 1167 | F66: 1283 | G66: 1395
A67: 3550 | B67: 581 | C67: 881 | D67: 1057 | E67: 1181 | F67: 1299 | G67: 1412
A68: 3600 | B68: 588 | C68: 892 | D68: 1070 | E68: 1196 | F68: 1315 | G68: 1430
A69: 3650 | B69: 596 | C69: 903 | D69: 1083 | E69: 1210 | F69: 1331 | G69: 1447
A70: 3700 | B70: 603 | C70: 914 | D70: 1096 | E70: 1224 | F70: 1347 | G70: 1464
A71: 3750 | B71: 611 | C71: 925 | D71: 1109 | E71: 1239 | F71: 1363 | G71: 1481
A72: 3800 | B72: 618 | C72: 936 | D72: 1122 | E72: 1253 | F72: 1379 | G72: 1499
A73: 3850 | B73: 626 | C73: 947 | D73: 1135 | E73: 1268 | F73: 1395 | G73: 1516
A74: 3900 | B74: 632 | C74: 956 | D74: 1146 | E74: 1280 | F74: 1408 | G74: 1531
A75: 3950 | B75: 638 | C75: 966 | D75: 1157 | E75: 1293 | F75: 1422 | G75: 1546
A76: 4000 | B76: 645 | C76: 975 | D76: 1168 | E76: 1305 | F76: 1436 | G76: 1561
A77: 4050 | B77: 651 | C77: 985 | D77: 1180 | E77: 1318 | F77: 1449 | G77: 1575
A78: 4100 | B78: 658 | C78: 994 | D78: 1191 | E78: 1330 | F78: 1463 | G78: 1590
A79: 4150 | B79: 664 | C79: 1004 | D79: 1202 | E79: 1342 | F79: 1477 | G79: 1605
A80: 4200 | B80: 670 | C80: 1013 | D80: 1213 | E80: 1355 | F80: 1490 | G80: 1620
A81: 4250 | B81: 677 | C81: 1023 | D81: 1224 | E81: 1367 | F81: 1504 | G81: 1635
A82: 4300 | B82: 682 | C82: 1030 | D82: 1233 | E82: 1377 | F82: 1515 | G82: 1647
A83: 4350 | B83: 687 | C83: 1038 | D83: 1242 | E83: 1387 | F83: 1526 | G83: 1658
A84: 4400 | B84: 693 | C84: 1046 | D84: 1251 | E84: 1397 | F84: 1537 | G84: 1670
A85: 4450 | B85: 698 | C85: 1054 | D85: 1260 | E85: 1407 | F85: 1548 | G85: 1682
A86: 4500 | B86: 704 | C86: 1062 | D86: 1268 | E86: 1417 | F86: 1559 | G86: 1694
A87: 4550 | B87: 709 | C87: 1069 | D87: 1277 | E87: 1427 | F87: 1569 | G87: 1706
A88: 4600 | B88: 714 | C88: 1077 | D88: 1286 | E88: 1437 | F88: 1580 | G88: 1718
A89: 4650 | B89: 720 | C89: 1085 | D89: 1295 | E89: 1447 | F89: 1591 | G89: 1730
A90: 4700 | B90: 725 | C90: 1093 | D90: 1304 | E90: 1457 | F90: 1602 | G90: 1742
A91: 4750 | B91: 731 | C91: 1100 | D91: 1313 | E91: 1466 | F91: 1613 | G91: 1753
A92: 4800 | B92: 736 | C92: 1108 | D92: 1322 | E92: 1476 | F92: 1624 | G92: 1765
A93: 4850 | B93: 741 | C93: 1116 | D93: 1331 | E93: 1486 | F93: 1635 | G93: 1777
A94: 4900 | B94: 747 | C94: 1124 | D94: 1339 | E94: 1496 | F94: 1646 | G94: 1789
A95: 4950 | B95: 752 | C95: 1131 | D95: 1348 | E95: 1506 | F95: 1656 | G95: 1800
A96: 5000 | B96: 755 | C96: 1136 | D96: 1353 | E96: 1511 | F96: 1662 | G96: 1807
A97: 5050 | B97: 759 | C97: 1141 | D97: 1358 | E97: 1516 | F97: 1668 | G97: 1813
A98: 5100 | B98: 762 | C98: 1145 | D98: 1362 | E98: 1522 | F98: 1674 | G98: 1820
A99: 5150 | B99: 766 | C99: 1150 | D99: 1367 | E99: 1527 | F99: 1680 | G99: 1826
A100: 5200 | B100: 769 | C100: 1155 | D100: 1372 | E100: 1533 | F100: 1686 | G100: 1833
A101: 5250 | B101: 773 | C101: 1159 | D101: 1377 | E101: 1538 | F101: 1692 | G101: 1839
A102: 5300 | B102: 776 | C102: 1164 | D102: 1382 | E102: 1544 | F102: 1698 | G102: 1846
A103: 5350 | B103: 780 | C103: 1169 | D103: 1387 | E103: 1549 | F103: 1704 | G103: 1852
A104: 5400 | B104: 783 | C104: 1173 | D104: 1392 | E104: 1554 | F104: 1710 | G104: 1859
A105: 5450 | B105: 787 | C105: 1178 | D105: 1397 | E105: 1560 | F105: 1716 | G105: 1865
A106: 5500 | B106: 790 | C106: 1183 | D106: 1401 | E106: 1565 | F106: 1722 | G106: 1872
A107: 5550 | B107: 794 | C107: 1187 | D107: 1406 | E107: 1571 | F107: 1728 | G107: 1878
A108: 5600 | B108: 797 | C108: 1192 | D108: 1411 | E108: 1576 | F108: 1734 | G108: 1885
A109: 5650 | B109: 800 | C109: 1196 | D109: 1416 | E109: 1582 | F109: 1740 | G109: 1891
A110: 5700 | B110: 803 | C110: 1201 | D110: 1421 | E110: 1587 | F110: 1746 | G110: 1897
A111: 5750 | B111: 806 | C111: 1205 | D111: 1425 | E111: 1592 | F111: 1751 | G111: 1904
A112: 5800 | B112: 809 | C112: 1209 | D112: 1430 | E112: 1598 | F112: 1757 | G112: 1910
A113: 5850 | B113: 812 | C113: 1213 | D113: 1435 | E113: 1603 | F113: 1763 | G113: 1917
A114: 5900 | B114: 815 | C114: 1217 | D114: 1440 | E114: 1608 | F114: 1769 | G114: 1923
A115: 5950 | B115: 818 | C115: 1221 | D115: 1444 | E115: 1613 | F115: 1775 | G115: 1929
A116: 6000 | B116: 821 | C116: 1226 | D116: 1449 | E116: 1619 | F116: 1781 | G116: 1936
A117: 6050 | B117: 823 | C117: 1230 | D117: 1454 | E117: 1624 | F117: 1787 | G117: 1942
A118: 6100 | B118: 826 | C118: 1234 | D118: 1459 | E118: 1629 | F118: 1792 | G118: 1948
A119: 6150 | B119: 829 | C119: 1238 | D119: 1464 | E119: 1635 | F119: 1798 | G119: 1955
A120: 6200 | B120: 832 | C120: 1242 | D120: 1468 | E120: 1640 | F120: 1804 | G120: 1961
A121: 6250 | B121: 835 | C121: 1246 | D121: 1473 | E121: 1645 | F121: 1810 | G121: 1967
A122: 6300 | B122: 838 | C122: 1251 | D122: 1478 | E122: 1651 | F122: 1816 | G122: 1974
A123: 6350 | B123: 841 | C123: 1255 | D123: 1483 | E123: 1656 | F123: 1822 | G123: 1980
A124: 6400 | B124: 844 | C124: 1259 | D124: 1487 | E124: 1661 | F124: 1827 | G124: 1986
A125: 6450 | B125: 847 | C125: 1263 | D125: 1492 | E125: 1667 | F125: 1833 | G125: 1993
A126: 6500 | B126: 849 | C126: 1267 | D126: 1497 | E126: 1672 | F126: 1839 | G126: 1999
A127: 6550 | B127: 852 | C127: 1271 | D127: 1502 | E127: 1677 | F127: 1845 | G127: 2005
A128: 6600 | B128: 855 | C128: 1276 | D128: 1506 | E128: 1683 | F128: 1851 | G128: 2012
A129: 6650 | B129: 858 | C129: 1280 | D129: 1511 | E129: 1688 | F129: 1857 | G129: 2018
A130: 6700 | B130: 861 | C130: 1285 | D130: 1517 | E130: 1694 | F130: 1864 | G130: 2026
A131: 6750 | B131: 865 | C131: 1291 | D131: 1524 | E131: 1703 | F131: 1873 | G131: 2036
A132: 6800 | B132: 869 | C132: 1297 | D132: 1532 | E132: 1711 | F132: 1882 | G132: 2046
A133: 6850 | B133: 873 | C133: 1303 | D133: 1539 | E133: 1719 | F133: 1891 | G133: 2056
A134: 6900 | B134: 877 | C134: 1309 | D134: 1547 | E134: 1728 | F134: 1900 | G134: 2066
A135: 6950 | B135: 881 | C135: 1315 | D135: 1554 | E135: 1736 | F135: 1909 | G135: 2076
A136: 7000 | B136: 885 | C136: 1321 | D136: 1561 | E136: 1744 | F136: 1919 | G136: 2085
A137: 7050 | B137: 889 | C137: 1328 | D137: 1569 | E137: 1752 | F137: 1928 | G137: 2095
A138: 7100 | B138: 893 | C138: 1334 | D138: 1576 | E138: 1761 | F138: 1937 | G138: 2105
A139: 7150 | B139: 897 | C139: 1340 | D139: 1584 | E139: 1769 | F139: 1946 | G139: 2115
A140: 7200 | B140: 901 | C140: 1346 | D140: 1591 | E140: 1777 | F140: 1955 | G140: 2125
A141: 7250 | B141: 905 | C141: 1352 | D141: 1599 | E141: 1786 | F141: 1964 | G141: 2135
A142: 7300 | B142: 909 | C142: 1358 | D142: 1606 | E142: 1794 | F142: 1973 | G142: 2145
A143: 7350 | B143: 913 | C143: 1364 | D143: 1613 | E143: 1802 | F143: 1982 | G143: 2155
A144: 7400 | B144: 917 | C144: 1370 | D144: 1621 | E144: 1810 | F144: 1991 | G144: 2165
A145: 7450 | B145: 921 | C145: 1376 | D145: 1628 | E145: 1819 | F145: 2001 | G145: 2175
A146: 7500 | B146: 925 | C146: 1382 | D146: 1636 | E146: 1827 | F146: 2010 | G146: 2185
A147: 7550 | B147: 929 | C147: 1389 | D147: 1643 | E147: 1835 | F147: 2019 | G147: 2194
A148: 7600 | B148: 933 | C148: 1395 | D148: 1650 | E148: 1844 | F148: 2028 | G148: 2204
A149: 7650 | B149: 937 | C149: 1401 | D149: 1658 | E149: 1852 | F149: 2037 | G149: 2214
A150: 7700 | B150: 941 | C150: 1407 | D150: 1665 | E150: 1860 | F150: 2046 | G150: 2224
A151: 7750 | B151: 944 | C151: 1411 | D151: 1670 | E151: 1865 | F151: 2051 | G151: 2230
A152: 7800 | B152: 946 | C152: 1413 | D152: 1672 | E152: 1867 | F152: 2054 | G152: 2233
A153: 7850 | B153: 948 | C153: 1416 | D153: 1674 | E153: 1870 | F153: 2057 | G153: 2236
A154: 7900 | B154: 950 | C154: 1419 | D154: 1676 | E154: 1873 | F154: 2060 | G154: 2239
A155: 7950 | B155: 953 | C155: 1421 | D155: 1679 | E155: 1875 | F155: 2063 | G155: 2242
A156: 8000 | B156: 955 | C156: 1424 | D156: 1681 | E156: 1878 | F156: 2065 | G156: 2245
A157: 8050 | B157: 957 | C157: 1426 | D157: 1683 | E157: 1880 | F157: 2068 | G157: 2248
A158: 8100 | B158: 959 | C158: 1429 | D158: 1685 | E158: 1883 | F158: 2071 | G158: 2251
A159: 8150 | B159: 961 | C159: 1432 | D159: 1688 | E159: 1885 | F159: 2074 | G159: 2254
A160: 8200 | B160: 963 | C160: 1434 | D160: 1690 | E160: 1888 | F160: 2076 | G160: 2257
A161: 8250 | B161: 965 | C161: 1436 | D161: 1692 | E161: 1890 | F161: 2079 | G161: 2260
A162: 8300 | B162: 967 | C162: 1439 | D162: 1694 | E162: 1892 | F162: 2082 | G162: 2263
A163: 8350 | B163: 969 | C163: 1441 | D163: 1696 | E163: 1895 | F163: 2084 | G163: 2266
A164: 8400 | B164: 971 | C164: 1444 | D164: 1699 | E164: 1897 | F164: 2087 | G164: 2269
A165: 8450 | B165: 973 | C165: 1446 | D165: 1701 | E165: 1899 | F165: 2089 | G165: 2271
A166: 8500 | B166: 974 | C166: 1447 | D166: 1702 | E166: 1901 | F166: 2091 | G166: 2273
A167: 8550 | B167: 975 | C167: 1449 | D167: 1704 | E167: 1903 | F167: 2093 | G167: 2276
A168: 8600 | B168: 976 | C168: 1450 | D168: 1705 | E168: 1905 | F168: 2096 | G168: 2278
A169: 8650 | B169: 977 | C169: 1452 | D169: 1707 | E169: 1907 | F169: 2098 | G169: 2280
A170: 8700 | B170: 978 | C170: 1453 | D170: 1709 | E170: 1909 | F170: 2100 | G170: 2282
A171: 8750 | B171: 979 | C171: 1455 | D171: 1710 | E171: 1911 | F171: 2102 | G171: 2284
A172: 8800 | B172: 980 | C172: 1456 | D172: 1712 | E172: 1912 | F172: 2104 | G172: 2287
A173: 8850 | B173: 981 | C173: 1457 | D173: 1714 | E173: 1914 | F173: 2106 | G173: 2289
A174: 8900 | B174: 982 | C174: 1459 | D174: 1715 | E174: 1916 | F174: 2108 | G174: 2291
A175: 8950 | B175: 983 | C175: 1460 | D175: 1717 | E175: 1918 | F175: 2110 | G175: 2293
A176: 9000 | B176: 984 | C176: 1462 | D176: 1719 | E176: 1920 | F176: 2112 | G176: 2295
A177: 9050 | B177: 985 | C177: 1463 | D177: 1720 | E177: 1922 | F177: 2114 | G177: 2298
A178: 9100 | B178: 986 | C178: 1465 | D178: 1722 | E178: 1923 | F178: 2116 | G178: 2300
A179: 9150 | B179: 987 | C179: 1466 | D179: 1724 | E179: 1925 | F179: 2118 | G179: 2302
A180: 9200 | B180: 991 | C180: 1471 | D180: 1730 | E180: 1932 | F180: 2125 | G180: 2310
A181: 9250 | B181: 994 | C181: 1477 | D181: 1737 | E181: 1940 | F181: 2134 | G181: 2319
A182: 9300 | B182: 998 | C182: 1483 | D182: 1743 | E182: 1947 | F182: 2142 | G182: 2328
A183: 9350 | B183: 1002 | C183: 1488 | D183: 1750 | E183: 1955 | F183: 2150 | G183: 2337
A184: 9400 | B184: 1005 | C184: 1494 | D184: 1757 | E184: 1962 | F184: 2159 | G184: 2346
A185: 9450 | B185: 1009 | C185: 1499 | D185: 1764 | E185: 1970 | F185: 2167 | G185: 2355
A186: 9500 | B186: 1013 | C186: 1505 | D186: 1771 | E186: 1978 | F186: 2176 | G186: 2365
A187: 9550 | B187: 1017 | C187: 1511 | D187: 1778 | E187: 1986 | F187: 2185 | G187: 2375
A188: 9600 | B188: 1021 | C188: 1518 | D188: 1786 | E188: 1995 | F188: 2194 | G188: 2385
A189: 9650 | B189: 1025 | C189: 1524 | D189: 1793 | E189: 2003 | F189: 2203 | G189: 2395
A190: 9700 | B190: 1029 | C190: 1530 | D190: 1801 | E190: 2011 | F190: 2212 | G190: 2405
A191: 9750 | B191: 1033 | C191: 1536 | D191: 1808 | E191: 2020 | F191: 2222 | G191: 2415
A192: 9800 | B192: 1037 | C192: 1543 | D192: 1816 | E192: 2028 | F192: 2231 | G192: 2425
A193: 9850 | B193: 1041 | C193: 1549 | D193: 1823 | E193: 2036 | F193: 2240 | G193: 2435
A194: 9900 | B194: 1046 | C194: 1555 | D194: 1831 | E194: 2045 | F194: 2249 | G194: 2445
A195: 9950 | B195: 1050 | C195: 1561 | D195: 1838 | E195: 2053 | F195: 2258 | G195: 2455
A196: 10000 | B196: 1054 | C196: 1567 | D196: 1845 | E196: 2061 | F196: 2268 | G196: 2465
A197: 10050 | B197: 1058 | C197: 1574 | D197: 1853 | E197: 2070 | F197: 2277 | G197: 2475
A198: 10100 | B198: 1062 | C198: 1580 | D198: 1860 | E198: 2078 | F198: 2286 | G198: 2485
A199: 10150 | B199: 1066 | C199: 1586 | D199: 1868 | E199: 2086 | F199: 2295 | G199: 2495
A200: 10200 | B200: 1070 | C200: 1592 | D200: 1875 | E200: 2095 | F200: 2304 | G200: 2505
... 496 more rows

Sheet Info (hidden)
A1: ="Parent A" -> Parent A | B1: =IF($R$7="Card",TRIM(Cardinal!$B$1),TRIM('Family Info'!H5)) ->  | Q1: Invisible | S1: DayCount | U1: Card equates to Cardinal Express "" is Cardinal Delux | BG1: Cardinal Tool PA inc
A2: ="Parent B" -> Parent B | B2: =IF($R$7="Card",TRIM(Cardinal!$B$2),TRIM('Family Info'!$N$5)) ->  | G2: CE-Docket | L2: Normal | M2: Third_Party | O2: =IF(AND($E$6=1,$E$5=TRUE),$M$2,$L$2) -> Normal | Q2: 2025 B Ed. | S2: 1 | BG2: Cardinal Tool PB inc
A3: =IF(AND($E$5=TRUE,$E$6=1),"Third Party Caretaker"," ") ->  | B3: =IF($R$7="Card",TRIM(Cardinal!$B$3),IF('Family Info'!$O$7=0,"3rd_Party",TRIM('Family Info'!$O$7))) ->  | G3: CE-DCSE | J3: =TRIM(IF(ISBLANK($B$1),"PartyA",IF($B$1=" ","PartyA",IFERROR(LEFT($B$1,SEARCH(" ",$B$1)),$B$1)))) ->  | L3: =$J$3 ->  | M3: =$J$5 ->  | P3: next ed | Q3: 2026-03-01 | X3: Cardinal Express
G4: C-Docket | J4: =TRIM(IF(ISBLANK($B$2),"PartyB",IF($B$2=" ","PartyB",IFERROR(LEFT($B$2,SEARCH(" ",$B$2)),$B$2)))) ->  | L4: =$J$4 ->  | S4: Cardinal Express is Cardinal Tab | X4: PartyA | Y4: Party B | AB4: Cardinal Express
E5: =IF($R$7="Card",Cardinal!$E$5,IF('Family Info'!$J$7="Yes",TRUE,FALSE)) -> FALSE | G5: C-DCSE # | J5: =IF(ISBLANK($B$3),"Guardian",IF($B$3=" ","Guardian",IFERROR(LEFT($B$3,SEARCH(" ",$B$3)),$B$3))) ->  | N5: Cardinal Express integrationHI Child # | Q5: 3 | T5: Cardinal Express | W5: Empl Inc | X5: =IF(OR(Cardinal!$B$15=" ",Cardinal!$B$15=""),0,Cardinal!$B$15) -> 0 | Y5: =IF(OR(Cardinal!$D$15=" ",Cardinal!$D$15=""),0,Cardinal!$D$15) -> 0 | AB5: Child SSDI | AC5: =IF(OR(Cardinal!$B$30=" ",Cardinal!$B$30=""),0,Cardinal!$B$30) -> 0 | AI5: Other Cost Adjustments: for both Calcs | AN5: Non 3rd partySole GL | AQ5: Other Deviation Adjustments | AS5: Sole Custody | AT5: 3rd Party-Sole Custody | AW5: Col A | AX5: Col B | BA5: Party Receiving SSI
B6: Reg GL | C6: 150 Pov Test | E6: =IF($R$7="Card",Cardinal!$E$6,IF('Family Info'!T4="Sole",1,IF('Family Info'!T4="Shared",2,IF('Family Info'!T4="Split",3,IF('Family Info'!T4="Sole-Shared",4,IF('Family Info'!T4="Multi-Shared",5,IF('Family Info'!T4="Split-Shared",6))))))) -> 0 | H6: Shared Custody | K6: Impute | M6: Impute Other Child cal | O6: Imp CGI | P6: Imp CGI Split | R6: Cardinal | T6: Cardinal Income | W6: Spsl Inc | X6: =IF(OR(Cardinal!$B$16=" ",Cardinal!$B$16=""),0,Cardinal!$B$16) -> 0 | Y6: =IF(OR(Cardinal!$D$16=" ",Cardinal!$D$16=""),0,Cardinal!$D$16) -> 0 | AB6: Cardinal | AI6: Incurred | AK6: Reimburser | AL6: =IF($AJ$6=$J$3,$J$4,IF($AJ$6=$J$4,$J$3,IF($AJ$6=$J$5,$J$3))) ->  | AM6: =IF($AJ$6=$J$5,$J$4," ") ->  | AN6: Reimburser | AO6: =IF(Sole!$E$23=$AJ$6,"Party B","Party A") ->  | AQ6: Benefit Party | AS6: Sole Custody | AT6: 3rd Party | AU6: =IF($E$5=FALSE,"No","Yes") -> No | AW6: =IF(AND($E$5=TRUE,$E$6=1,$AU$7="Yes"),$AU$8,IF(AND($E$5=TRUE,$E$6=1,$AU$7="No",$AU$10="Party A"),$AU$11,IF(AND($E$5=TRUE,$E$6=1,$AU$7="No",$AU$10="Party B"),"",IF(AND($E$5=FALSE,$E$6=1)," ",IF(AND($E$6<>1,$AS$10="Party A"),$AS$11,""))))) -> 0 | AX6: =IF(AND($E$5=TRUE,$E$6=1,$AU$7="Yes"),$AU$9,IF(AND($E$5=TRUE,$E$6=1,$AU$7="No",$AU$10="Party A"),"",IF(AND($E$5=TRUE,$E$6=1,$AU$7="No",$AU$10="Party B"),$AU$11,IF(AND($E$5=FALSE,$E$6=1),$AS$8,IF(AND($E$6<>1,$AS$10="Party B"),$AS$11,""))))) ->  | BA6: =IF($BC$5="","",IF(AND($E$5=TRUE,$E$6=1,$BC$5="Both"),BC5&" parents, recipients of SSI, are exempt from the presumptive min. child support obl. 20-108.2(B)",IF(AND($E$5=TRUE,$E$6=1,$BC$5<>""),BC5&", a recipient of SSI, is exempt from the presumptive min. child support obl. 20-108.2(B)",IF(AND($E$6=1,IFERROR(Sole!K7,1)=BC5),BC5&", a recipient of SSI, is exempt from the presumptive min. child support obl. 20-108.2(B)",IF(AND($E$6=2,IFERROR(Shared!C56,BC5)<>BC5),BC5&", a recipient of SSI, is exempt from the presumptive min. child support obl. 20-108.2(B)",IF(AND($E$6=3,IFERROR(Split!C56,BC5)<>BC5),BC5&", a recipient of SSI, is exempt from the presumptive min. child support obl. 20-108.2(B)",IF(AND($E$6=4,IFERROR(SoleShared!$D$64,BC5)<>BC5),BC5&", a recipient of SSI, is exempt from the presumptive min. child support obl. 20-108.2(B)",IF(AND($E$6=5,IFERROR(Multi!$C$59,BC5)<>BC5),BC5&", a recipient of SSI, is exempt from the presumptive min. child support obl. 20-108.2(B)",IF(AND($E$6=6,IFERROR(SplitShared!C64,BC5)<>BC5),BC5&", a recipient of SSI, is exempt from the presumptive min. child support obl. 20-108.2(B)",""))))))))) -> 
A7: =IF(OR(E6=1,E6=4),"For sole custody, Identify the custodial parent"," ") ->  | B7: =IF($R$7="Card",Cardinal!$B$7,'Family Info'!$T$5) -> 0 | C7: =VLOOKUP($E$6,$I$17:$J$22,2,FALSE) ->  | H7: =IF(OR($E$6=2,$E$6=4,$E$6=5,$E$6=6),"Day Count"," ") ->  | I7: =IF(OR($E$6=2,$E$6=4,$E$6=5,$E$6=6),$J$3," ") ->  | K7: =$B$14 ->  | L7: =$D$14 ->  | M7: =$B$14 ->  | N7: =$D$14 ->  | O7: ='Behind Curtain'!$S$32 -> 0 | P7: ='Behind Curtain'!$S$33 -> 0 | R7: Card | T7: Party A | U7: Party B | W7: SSDI | X7: =IF(OR(Cardinal!$B$17=" ",Cardinal!$B$17=""),0,Cardinal!$B$17) -> 0 | Y7: =IF(OR(Cardinal!$D$17=" ",Cardinal!$D$17=""),0,Cardinal!$D$17) -> 0 | AB7: Party A | AC7: Party B | AD7: 3rd Party | AH7: Number | AI7: Description | AK7: Inc Share | AL7: =ROUND(IF($AJ$6=Shared!$I$6,Shared!$L$17,IF($AJ$6=Shared!$L$6,Shared!$I$17,IF($AJ$6=$J$5,Shared!$I$17))),2) -> 0.5 | AM7: =1-$AL$7 -> 0.5 | AN7: "+" or "-" | AO7: =IF($AO$6="Party A",-($AL$10),IF($AO$6="Party B",$AL$10," ")) ->  | AP7: number | AQ7: Description | AS7: =IF(AR6=Sole!$I$7,"Add","Subtract") ->  | AT7: 3rd party Beneficiary | AU7: =IF(AR6=J5,"Yes","No") -> Yes
A8: =IF(OR($E$6=1,$E$6=2,$E$6=4,$E$6=5,$E$6=6),"Number of children for whom support is sought",IF($E$6=3,"Number of children for whom support is sought & living with"&" "&$J$3," ")) ->  | B8: =IF($R$7="Card",Cardinal!$B$8,IF(OR(E6=1,E6=2,E6=4,E6=5,E6=6),'Family Info'!N9,IF($E$6=3,'Family Info'!$T$7))) -> 0 | H8: =IF(OR($E$6=2,$E$6=4,$E$6=5,$E$6=6),$J$3," ") ->  | I8: =IF(OR($E$6=2,$E$6=4,$E$6=5,$E$6=6),$J$4," ") ->  | J8: Impute | K8: ='Empl Income'!$T$7 -> 0 | L8: ='Empl Income'!$V$7 -> 0 | M8: ='Behind Curtain'!$S$34 -> 0 | N8: ='Behind Curtain'!S35 -> 0 | R8: PreotherKids | T8: =SUM($X$5:$X$8)-SUM($X$10:$X$13) -> 0 | U8: =SUM($Y$5:$Y$8)-SUM($Y$10:$Y$13) -> 0 | W8: Other Inc | X8: =IF(OR(Cardinal!$B$18=" ",Cardinal!$B$18=""),0,Cardinal!$B$18) -> 0 | Y8: =IF(OR(Cardinal!$D$18=" ",Cardinal!$D$18=""),0,Cardinal!$D$18) -> 0 | AA8: HCC | AB8: =IF(OR(Cardinal!$B$26=" ",Cardinal!$B$26=""),0,Cardinal!$B$26) -> 0 | AC8: =IF(OR(Cardinal!$D$26=" ",Cardinal!$D$26=""),0,Cardinal!$D$26) -> 0 | AD8: =IF(OR(Cardinal!$F$26=" ",Cardinal!$F$26=""),0,Cardinal!$F$26) -> 0 | AH8: =AJ8 -> 0 | AI8: Amount | AK8: 3rd Party | AL8: =DOLLAR(($AH$8*$AJ$10)*$AL$7,2) ->  | AM8: =DOLLAR(($AH$8*$AJ$10)*$AM$7,2) ->  | AN8: Other than Sole Custody | AP8: =VALUE($AR$8) -> 0 | AQ8: Amount | AS8: =IF(AS7="Subtract",-($AP$8),$AP$8) ->  | AT8: Party A prorata share | AU8: =IF(AND($AU$6="Yes",$AU$7="Yes"),$AP$8*Sole!$I$34," ") -> 
A9: =IF($E$6=3,"Number of children for whom support is sought & living with"&" "&$J$4,IF(E6=4,B7&" "&"is the custodial parent for how many of these children?",IF(E6=6,J3&" "&"is the Custodial Parent for how many of these children"," "))) ->  | B9: =IF(R7="Card",Cardinal!$B$9,IF($E$6=3,'Family Info'!$V$7,IF($E$6=4,'Family Info'!$V$5,IF($E$6=6,'Family Info'!$T$7)))) -> 0 | G9: =IF(AND(E6=5,B8>0),"Child 1",IF(AND(B8=1,OR(E6=2,E6=4,E6=6)),"Child",IF(AND(B8>1,OR(E6=2,E6=4,E6=6)),"Children"," "))) ->  | H9: =TRIM(IF(R7="Card",Cardinal!$H$9,IF(E6=2,'Family Info'!$T$7,IF($E$6=4,'Family Info'!$T$7,IF($E$6=6,'Family Info'!$T$6,IF($E$6=5,'Family Info'!BZ29)))))) ->  | I9: =IF(H9=0," ",IFERROR(365-H9," ")) ->  | J9: Empl Inc | K9: =$B$15 -> 0 | L9: =$D$15 -> 0 | S9: otherKids | T9: ='Behind Curtain'!$S$12 -> 0 | U9: ='Behind Curtain'!$S$13 -> 0 | W9: Deduction | AA9: DCC | AB9: =IF(OR(Cardinal!$B$27=" ",Cardinal!$B$27=""),0,Cardinal!$B$27) -> 0 | AC9: =IF(OR(Cardinal!$D$27=" ",Cardinal!$D$27=""),0,Cardinal!$D$27) -> 0 | AD9: =IF(OR(Cardinal!$F$27=" ",Cardinal!$F$27=""),0,Cardinal!$F$27) -> 0 | AI9: Cost% | AL9: Case Type | AM9: =IF($E$5=FALSE,"Non3rdParty","3rdParty") -> Non3rdParty | AN9: Incurred by | AO9: =IF($AJ$6=$L$3,"Party A",IF($AJ$6=$L$4,"Party B"," ")) -> Party A | AQ9: Other than Sole cases | AT9: Party B prorata share | AU9: =IF(AND($AU$6="Yes",$AU$7="Yes"),$AP$8*Sole!$K$34," ") -> 
A10: =IF($E$6=6,J4&" "&"is the Custodial Parent for how many of these children",IF($E$6=4,"Number of these children in a shared custody arrangement","")) ->  | B10: =IF($R$7="Card",Cardinal!$B$10,IF($E$6=6,'Family Info'!$V$7,IF($E$6=4,'Family Info'!$W$5))) -> 0 | G10: =IF(AND(E6=5,B8>1),"Child 2"," ") ->  | H10: =IF(R7="Card",Cardinal!$H$10,IF($E$6=5,'Family Info'!$BZ$30)) -> 0 | J10: Apply | K10: =IF($K$8=0,$K$9,$K$8) -> 0 | L10: =IF($L$8=0,$L$9,$L$8) -> 0 | S10: CGI | T10: =IF(SUM($T$8:$U$8)<SUM($T$9:$U$9),0,SUM($T$8:$U$8)-SUM($T$9:$U$9)) -> 0 | W10: Spsl | X10: =IF(OR(Cardinal!$B$20=" ",Cardinal!$B$20=""),0,Cardinal!$B$20) -> 0 | Y10: =IF(OR(Cardinal!$D$20=" ",Cardinal!$D$20=""),0,Cardinal!$D$20) -> 0 | AA10: HCItest | AI10: % | AJ10: =IF($AJ$9="25% of the cost",0.25,IF($AJ$9="50% of the cost",0.5,IF($AJ$9="75% of the cost",0.75,IF($AJ$9="100% of the cost",1,IF($AJ$9="Income Share",$AL$7," "))))) ->  | AK10: Amt Owed | AL10: =IFERROR(IF($AH$8="","",ROUND($AH$8*$AJ$10,2)),"") ->  | AN10: benefit amt | AO10: =IFERROR(-($AL$10),"") ->  | AQ10: Benefit Party | AS10: =AU10 -> Party A | AT10: Nonthirdparty benef. | AU10: =IF($AR$6=$J$3,"Party A",IF($AR$6=$J$4,"Party B"," ")) -> Party A
A11: =IF(E6=6,"Number of these children in a shared custody arrangement"," ") ->  | B11: =IF($R$7="Card",Cardinal!$B$11,IF($E$6=6,IFERROR($B$8-SUM($B$9:$B$10)," ")," ")) -> 1 | G11: =IF(AND($E$6=5,$B$8>2),"Child 3"," ") ->  | H11: =IF($R$7="Card",Cardinal!$H$11,IF($E$6=5,'Family Info'!$BZ$31,0)) -> 0 | J11: Total Imp Inc | K11: =$K$10+$B$17+$B$18 -> 0 | L11: =$L$10+$D$17+$D$18 -> 0 | N11: Imputation Result | R11: Docket# | S11: =IF($R$7="Card",IF($H$2=0,"",$H$2),IF($H$4=0,"",$H$4)) ->  | V11: Other Child Support | X11: =IF(OR(Cardinal!$B$22=" ",Cardinal!$B$22=""),0,Cardinal!$B$22) -> 0 | Y11: =IF(OR(Cardinal!$D$22=" ",Cardinal!$D$22=""),0,Cardinal!$D$22) -> 0 | AI11: =IF(AND($AM$30="",$AN$30=""),"",IFERROR(IF($AJ$6<>$J$5,$AL$6&" reimburses "&$AJ$10*100&"% of "&$AJ$6&"'s "&$AJ$8&" "&$AJ$7&" cost.","Parties reimburse "&$AJ$6&"'s $"&$AH$8&" cost based on income shares."),"")) ->  | AQ11: Benefit Amount | AS11: =AU11 -> 0 | AT11: =$AU$10&" benefit" -> Party A benefit | AU11: =$AP$8 -> 0 | AZ11: CP | BF11: NCP
G12: =IF(AND($E$6=5,$B$8>3),"Child 4"," ") ->  | H12: =IF($R$7="Card",Cardinal!$H$12,IF($E$6=5,'Family Info'!$BZ$32,0)) -> 0 | J12: Yes/No | K12: =IF(OR($R$7="Card",(AND($K$8=0,$L$8=0))),"No","Yes") -> No | N12: =IFERROR(IF($E$6=1,Sole!G49,IF($E$6=2,Shared!$B$59&" $"&ROUND(Shared!$F$59,2),IF($E$6=3,Split!$C$37,IF($E$6=4,SoleShared!$B$68,IF($E$6=5,Multi!B63,IF($E$6=6,SplitShared!$B$67,""))))))," ") ->  | R12: DCSE# | S12: =IF($R$7="Card",IF($H$3=0,"",$H$3),IF($H$5=0,"",$H$5)) ->  | T12: 5% HC test Express | U12: 5% AGI | V12: Self Employment | X12: =IF(OR(Cardinal!$B$23=" ",Cardinal!$B$23=""),0,Cardinal!$B$23/2) -> 0 | Y12: =IF(OR(Cardinal!$D$23=" ",Cardinal!$D$23=""),0,Cardinal!$D$23/2) -> 0 | AA12: Cardinal Express | AQ12: =IF($AR$6="","","Due to "&$AR$7&" "&$AR$6&" receives a $"&$AP$8&" monthly credit") ->  | AY12: Split | AZ12: Sole/Sh | BA12: Spl/Sh | BF12: Split | BG12: Sole/Sh | BH12: Spl/Sh
G13: =IF(AND($E$6=5,$B$8>4),"Child 5"," ") ->  | H13: =IF($R$7="Card",Cardinal!$H$13,IF($E$6=5,'Family Info'!$BZ$33)) -> 0 | K13: =B14 ->  | L13: =D14 ->  | S13: PartyA-AGI | T13: =IF($T$8-$T$9<0,0,$T$8-$T$9) -> 0 | U13: =T13*5% -> 0 | V13: Business Expenses | X13: =IF(OR(Cardinal!$B$24=" ",Cardinal!$B$24=""),0,Cardinal!$B$24) -> 0 | Y13: =IF(OR(Cardinal!$D$24=" ",Cardinal!$D$24=""),0,Cardinal!$D$24) -> 0 | AA13: Results | AI13: Sole cost incurred by 3rd Party | AN13: reimburse | AW13: 1 | AX13: 68 | AY13: =IF(Split!$I$24*Split!$I$17<68,68,Split!$I$24*Split!$I$17) -> 68 | AZ13: =IF(SoleShared!$N$28<68,68,SoleShared!$N$28) ->  | BA13: =IF(SplitShared!$P$27<68,68,SplitShared!$P$27) ->  | BD13: 1 | BE13: 1 | BF13: =IF(Split!$L$24*Split!$L$17<68,68,Split!$L$24*Split!$L$17) -> 68 | BG13: =IF(SoleShared!$N$28<68,68,SoleShared!$N$28) ->  | BH13: =IF(SplitShared!$R$27<68,68,SplitShared!$R$27) -> 
A14: ="Monthly Gross Income information:" -> Monthly Gross Income information: | B14: =IFERROR(J3," ") ->  | D14: =IFERROR($J$4," ") ->  | E14: =IFERROR(M3," ") ->  | G14: =IF(AND($E$6=5,$B$8>5),"Child 6","") ->  | H14: =IF($R$7="Card",Cardinal!$H$14,IF($E$6=5,'Family Info'!$BZ$34)) -> 0 | J14: 150 Poverty | K14: =Shared!$I$46 -> 1956.25 | L14: =Shared!$L$46 -> 1956.25 | S14: PartyB-AGI | T14: =IF(U8-U9<0,0,U8-U9) -> 0 | U14: =T14*5% -> 0 | V14: Other Kids in home | X14: ='Behind Curtain'!$S$12 -> 0 | Y14: ='Behind Curtain'!$S$13 -> 0 | AA14: =IF($E$6=1,Sole!B49&" "&"$"&ROUND(Sole!$F$49,2),IF($E$6=2,Shared!$B$58&" "&"$"&ROUND(Shared!$F$58,2),IF($E$6=3,Split!$B$36&" "&"$"&ROUND(Split!$F$36,2),IF($E$6=4,SoleShared!$B$67&" "&"$"&ROUND(SoleShared!$F$67,2),IF($E$6=5,Multi!$B$62&" "&"$"&ROUND(Multi!$F$62,2),IF($E$6=6,SplitShared!$B$66&" "&"$"&ROUND(SplitShared!$G$66,2))))))) -> FALSE | AI14: 3rd party case | AJ14: =IF($E$5=FALSE,"No","Yes") -> No | AK14: PA inc sh | AL14: =Shared!$I$17 -> 0.5 | AM14: Party A Amt | AN14: =IF(AND($AJ$14="Yes",$AJ$15="Yes"),ROUND(($AH$8*$AJ$16)*$AL$14,2),"") ->  | AW14: 2 | AX14: 104 | AY14: =IF(Split!$I$24*Split!$I$17<104,104,Split!$I$24*Split!$I$17) -> 104 | AZ14: =IF(SoleShared!$N$28<104,104,SoleShared!$N$28) ->  | BA14: =IF(SplitShared!$P$27<104,104,SplitShared!$P$27) ->  | BD14: 2 | BE14: 104 | BF14: =IF(Split!$L$24*Split!$L$17<104,104,Split!$L$24*Split!$L$17) -> 104 | BG14: =IF(SoleShared!$N$28<104,104,SoleShared!$N$28) ->  | BH14: =IF(SplitShared!$R$27<104,104,SplitShared!$R$27) -> 
A15: ="Parent's Gross Employment Income:" -> Parent's Gross Employment Income: | B15: =IF($R$7="Card",$X$5,'Empl Income'!$T$6) -> 0 | D15: =IF($R$7="Card",$Y$5,'Empl Income'!V6) -> 0 | H15: For 150% Poverty Test Sole GL | S15: =IF($R$7=0,"",IF($AB$10>$U$13,$B$14&"'s"&" "&"statutory maximum amount for reasonable healthcare cost is set at $"&ROUND($U$13,2)&" "&"per month."," ")) ->  | AA15: =VALUE(IFERROR(RIGHT(AA14,(LEN(AA14)-SEARCH("$",AA14))),0)) -> 0 | AB15: Arrearage Calculator Current Support | AI15: 3P incur cost | AJ15: =IF($AJ$6=$J$5,"Yes","No") -> Yes | AK15: PB inc sh | AL15: =Shared!$L$17 -> 0.5 | AM15: Party B Amt | AN15: =IF(AND($AJ$14="Yes",$AJ$15="Yes"),ROUND(($AH$8*$AJ$16)*$AL$15,2),"") ->  | AW15: 3 | AX15: 126 | AY15: =IF(Split!$I$24*Split!$I$17<126,126,Split!$I$24*Split!$I$17) -> 126 | AZ15: =IF(SoleShared!$N$28<126,126,SoleShared!$N$28) ->  | BA15: =IF(SplitShared!$P$27<126,126,SplitShared!$P$27) ->  | BD15: 3 | BE15: 126 | BF15: =IF(Split!$L$24*Split!$L$17<126,126,Split!$L$24*Split!$L$17) -> 126 | BG15: =IF(SoleShared!$N$28<126,126,SoleShared!$N$28) ->  | BH15: =IF(SplitShared!$P$27<R27,126,SplitShared!$R$27) -> 
A16: ="Spousal Support Income" -> Spousal Support Income | B16: =IF($R$7="Card",$X$6,'Other Income'!$R$5) -> 0 | D16: =IF($R$7="Card",$Y$6,'Other Income'!$U$5) -> 0 | I16: Custody | J16: CP | K16: Fails | L16: Income | M16: Cardinal 5% Health Insurance | S16: =IF($R$7=0,"",IF($AB$10>$U$13,$B$14&"'s $"&ROUND($AB$10,2)&" "&"healthcare cost exceeds this amount by $"&ROUND($AB$10-$U$13,2)&" "&"per month."," ")) ->  | AI16: Cost % | AJ16: =0.01*100 -> 1 | AW16: 4 | AX16: 141 | AY16: =IF(Split!$I$24*Split!$I$17<141,141,Split!$I$24*Split!$I$17) -> 141 | AZ16: =IF(SoleShared!$N$28<141,141,SoleShared!$N$28) ->  | BA16: =IF(SplitShared!$P$27<141,141,SplitShared!$P$27) ->  | BD16: 4 | BE16: 141 | BF16: =IF(Split!$L$24*Split!$L$17<141,141,Split!$L$24*Split!$L$17) -> 141 | BG16: =IF(SoleShared!$N$28<141,141,SoleShared!$N$28) ->  | BH16: =IF(SplitShared!$R$27<141,141,SplitShared!$R$27) -> 
A17: ="Parent's SSDI Income" -> Parent's SSDI Income | B17: =IF($R$7="Card",$X$7,'Other Income'!$R$4) -> 0 | D17: =IF($R$7="Card",$Y$7,'Other Income'!$U$4) -> 0 | I17: 1 | J17: =$B$7 -> 0 | K17: NA | L17: NA | M17: Reasonable HCC test | P17: Sole HCC | Q17: =Sole!G25 ->  | S17: =IF($R$7=0,"",IF($AC$10>$U$14,$D$14&"'s"&" "&"statutory maximum amount for reasonable healthcare cost is set at $"&ROUND($U$14,2)&" "&"per month."," ")) ->  | AI17: Sole cost incurred by non3rd party | AW17: 5 | AX17: 155 | AY17: =IF(Split!$I$24*Split!$I$17<155,155,Split!$I$24*Split!$I$17) -> 155 | AZ17: =IF(SoleShared!$N$28<155,155,SoleShared!$N$28) ->  | BA17: =IF(SplitShared!$P$27<155,155,SplitShared!$P$27) ->  | BD17: 5 | BE17: 155 | BF17: =IF(Split!$L$24*Split!$L$17<155,155,Split!$L$24*Split!$L$17) -> 155 | BG17: =IF(SoleShared!$N$28<155,155,SoleShared!$N$28) ->  | BH17: =IF(SplitShared!$R$27<155,155,SplitShared!$R$27) -> 
A18: ="Other Income" -> Other Income | B18: =IF($R$7="Card",$X$8,SUM('Other Income'!$R$6:$R$11)) -> 0 | D18: =IF($R$7="Card",$Y$8,SUM('Other Income'!U6:U11)) -> 0 | I18: 2 | J18: =IF(Shared!$C$56=" ",Shared!$C$44,Shared!$C$56) ->  | K18: =IF(Info!$J$18=Shared!$I$42,Shared!$I$47,Shared!$L$47) -> Yes | L18: =IF(Info!$J$18=Shared!$I$6,Shared!$I$16,Shared!$L$16) -> 0 | M18: =IFERROR(IF($BA$6<>"",$BA$6,IF($R$7="Card",$S$15,IF(Vision!$R$4>Vision!$R$8,Vision!$R$3&"'s"&" "&"statutory maximum amount for reasonable healthcare cost is set at $"&ROUND(Vision!$R$8,2)&" "&"per month."," "))),"") ->  | S18: =IF($R$7=0,"",IF($AC$10>$U$14,$D$14&"'s $"&ROUND($AC$10,2)&" "&"healthcare cost exceeds this amount by $"&ROUND($AC$10-$U$14,2)&" "&"per month."," ")) ->  | AI18: Party incurred cost | AK18: =IF($AJ$14="No","",IF(AND($AJ$14="Yes",$AJ$15="Yes"),"",IF($AJ$6=$J$3,"Party A",IF($AJ$6=$J$4,"Party B","")))) ->  | AM18: Reimbursing Party | AW18: 6 | AX18: 169 | AY18: =IF(Split!$I$24*Split!$I$17<169,169,Split!$I$24*Split!$I$17) -> 169 | AZ18: =IF(SoleShared!$N$28<169,169,SoleShared!$N$28) ->  | BA18: =IF(SplitShared!$P$27<169,169,SplitShared!$P$27) ->  | BD18: 6 | BE18: 169 | BF18: =IF(Split!$L$24*Split!$L$17<169,169,Split!$L$24*Split!$L$17) -> 169 | BG18: =IF(SoleShared!$N$28<169,169,SoleShared!$N$28) ->  | BH18: =IF(SplitShared!$R$27<169,169,SplitShared!$R$27) -> 
A19: ="Income Adjustments" -> Income Adjustments | I19: 3 | K19: NA | M19: =IFERROR(IF($BA$6<>"","",IF($R$7="Card",$S$16,IF(Vision!$R$4>Vision!$R$8,Vision!$R$3&"'s $"&ROUND(Vision!$R$4,2)&" "&"healthcare cost exceeds this amount by $"&ROUND(Vision!$R$4-Vision!$R$8,2)&" "&"per month."," "))),"") ->  | AI19: Amount | AK19: =IF($AK$18="","",-($AH$8*$AJ$10)) ->  | AM19: =IF($AK$18="Party A","Party B",IF($AK$18="Party B","Party A",IF($AK$18="",""))) ->  | AN19: =IF($AM$19<>"",-($AK$19),"") -> 
A20: ="Spousal support deduction:" -> Spousal support deduction: | B20: =IF($R$7="Card",$X$10,IF('Income Adjustment'!$S$6=" ",0,'Income Adjustment'!$S$6)) -> 0 | D20: =IF($R$7="Card",$Y$10,IF('Income Adjustment'!$V$6=" ",0,'Income Adjustment'!$V$6)) -> 0 | F20: Guideline Amounts | I20: 4 | J20: =IF(SoleShared!$D$64=" ",SoleShared!$D$56,SoleShared!$D$64) ->  | K20: =IF($J$20=SoleShared!$I$30,SoleShared!$I$41,SoleShared!$L$41) ->  | L20: =IF($J$20=SoleShared!$I$30,SoleShared!$I$18,SoleShared!$L$18) ->  | M20: =IFERROR(IF(BA6<>"","",IF($R$7="Card",$S$17,IF(Vision!$T$4>Vision!$T$8,Vision!$T$3&"'s"&" "&"statutory maximum amount for reasonable healthcare cost is set at $"&ROUND(Vision!$T$8,2)&" "&"per month."," "))),"") ->  | AA20: Confirm before going to worksheet | AE20: Yes
A21: ="# of other biological or adopted children residing with each Parent:" -> # of other biological or adopted children residing with each Parent: | B21: =IF($R$7="Card",Cardinal!$B$21,IF('Income Adjustment'!$L$48=" ",0,IF('Income Adjustment'!$L$48>6,6,'Income Adjustment'!$L$48))) -> 0 | D21: =IF($R$7="Card",Cardinal!$D$21,IF('Income Adjustment'!$L$89=" ",0,IF('Income Adjustment'!$L$89>6,6,'Income Adjustment'!$L$89))) -> 0 | F21: =B14 ->  | G21: =D14 ->  | H21: GL Amt | I21: 5 | J21: =IF(Multi!$C$59=" ",Multi!$C$51,Multi!$C$59) ->  | K21: =IF($J$21=Multi!$I$21,Multi!$I$37,Multi!$L$37) -> Yes | L21: =IF($J$21=Multi!$I$6,Multi!$I$17,Multi!$L$17) -> 0 | M21: =IFERROR(IF(BA6<>"","",IF($R$7="Card",$S$18,IF(Vision!$T$4>Vision!$T$8,Vision!$T$3&"'s $"&ROUND(Vision!$T$7,2)&" "&"healthcare cost exceeds this amount by $"&ROUND(Vision!$T$4-Vision!$T$8,2)&" "&"per month."," "))),"") ->  | T21: Progress Gauge | AA21: Bypass Confirm. before going to worksheet | AE21: =IF(AND($B$21>0,$B$22>0,$D$21>0,$D$22>0,'Income Adjustment'!$S$9>0,'Income Adjustment'!$V$9>0,'Other Income'!$R$12>0,'Other Income'!$U$12>0)*OR('Health Ins'!$R$7>0,'Health Ins'!$T$7>0,'Health Ins'!$V$7>0)*AND(OR('Day Care'!R10>0,'Day Care'!T10>0)),"Skip","Proceed") -> Proceed | AG21: Who incurred cost | AI21: Sole-non3rd party | AK21: =IF($AJ$14="Yes","",$AO$7) ->  | BB21: Imputed
A22: ="Other child support obligations actually paid out:" -> Other child support obligations actually paid out: | B22: =IF($R$7="Card",$X$11,IF('Income Adjustment'!$S$7=" ",0,'Income Adjustment'!$S$7)) -> 0 | D22: =IF($R$7="Card",$Y$11,IF('Income Adjustment'!$V$7=" ",0,'Income Adjustment'!$V$7)) -> 0 | F22: ='Behind Curtain'!$S$12 -> 0 | G22: ='Behind Curtain'!$S$13 -> 0 | I22: 6 | J22: =IF(SplitShared!$C$64=" ",SplitShared!$C$56,SplitShared!$C$64) ->  | K22: =IF(Info!$J$22=SplitShared!$I$30,SplitShared!$I$41,SplitShared!$L$41) ->  | L22: =IF($J$22=SplitShared!$I$8,SplitShared!$I$19,SplitShared!$L$19) ->  | AH22: 3rd party | AI22: Sole-3rdPartyB | AK22: =IFERROR($AN$15,"") ->  | AM22: FPL Sole GL Cost Adj | AZ22: CP | BF22: NCP
A23: ="1/2 self-employment tax paid out:" -> 1/2 self-employment tax paid out: | B23: =IF($R$7="Card",$X$12,IF('Income Adjustment'!$S$5=" ",0,'Income Adjustment'!$S$5)) -> 0 | D23: =IF($R$7="Card",$Y$12,IF('Income Adjustment'!$V$5=" ",0,'Income Adjustment'!$V$5)) -> 0 | F23: CGI | G23: ='Income Adjustment'!$AG$11 -> 0 | H23: ='Behind Curtain'!S10 -> 0 | J23: =IFERROR(IF(AND($E$6=2,$K$18="Yes"),$J$18&"'s $"&L18&" "&"income is $"&ROUND(IF($J$18=$K$13,$K$14-$L$18,$L$14-$L$18),2)&" "&"below the 150% Fed. Poverty Guideline Amount. Applying Sole Guidelines"&" "&$J$24&" "&"owes $"&ROUND(Sole!$F$49,2)&".",IF(AND($E$6=5,$K$21="Yes"),$J$21&"'s $"&$L$21&" "&"income is $"&ROUND(IF($J$21=$K$13,$K$14-$L$21,$L$14-$L$21),2)&" "&"below the 150% Fed. Poverty Guideline Amount."&" "&"Applying Sole Guidelines"&" "&$J$24&" "&"owes $"&ROUND(Sole!$F$49,2)&".",IF(AND($E$6=4,$K$20="Yes"),$J$20&"'s $"&ROUND($L$20,2)&" "&"income is $"&ROUND(IF($J$20=$K$13,$K$14-$L$20,$L$14-$L$20),2)&" "&"below the 150% Fed."&" "&"Poverty Guideline Amount."&" "&"Applying Sole Guidelines"&" "&$J$24&" "&"owes $"&ROUND(Sole!$F$49,2)&".",IF(AND($E$6=6,$K$22="Yes"),$J$22&"'s $"&ROUND($L$22,2)&" "&"income is $"&ROUND(IF($J$22=$K$13,$K$14-$L$22,$L$14-$L$22),2)&" "&"below the 150% Fed. Poverty Guideline Amount. "&"Applying Sole Guidelines"&" "&$J$24&" "&"owes $"&ROUND(Sole!$F$49,2)&"."))))," ") ->  | T23: Party A | U23: =IF($R$7="Card",0,IF($B$1<>" ",5,0)) -> 0 | AH23: 3rd party | AI23: Sole-3rdPartyA | AK23: =IFERROR($AN$14,"") ->  | AN23: Col B | AY23: Split | AZ23: Sole/Sh | BA23: Spl/Sh | BF23: Split | BG23: Sole/Sh | BH23: Spl/Sh
A24: Business Deductions | B24: =IF($R$7="Card",$X$13,IF('Income Adjustment'!$S$4=" ",0,'Income Adjustment'!$S$4)) -> 0 | D24: =IF($R$7="Card",$Y$13,IF('Income Adjustment'!$V$4=" ",0,'Income Adjustment'!$V$4)) -> 0 | F24: =IF(AND($E$6=1,$E$5=TRUE),"Third Party"," ") ->  | G24: Split -2nd | H24: ='Behind Curtain'!S11 -> 0 | I24: Sole NCP | J24: =IF(Sole!$E$23=Sole!$I$22,Sole!$K$22,IF(Sole!$E$23=Sole!$K$22,Sole!$I$22," ")) ->  | T24: Party B | U24: =IF($R$7="Card",0,IF($B$2<>" ",5,0)) -> 0 | AH24: 3rd party | AI24: Incurred by non3rdparty | AK24: =$AK$18 ->  | AN24: =$AO$7 ->  | AW24: 1 | AX24: 68 | AY24: =IF(Split!$I$112*Split!$I$119<68,68,Split!$I$112*Split!$I$119) -> 68 | AZ24: =IF(SoleShared!$N$122<68,68,SoleShared!$N$122) ->  | BA24: =IF(SplitShared!$P$120<68,68,SplitShared!$P$120) ->  | BD24: 1 | BE24: 68 | BF24: =IF(Split!$L$112*Split!$L$119<68,68,Split!$L$112*Split!$L$119) -> 68 | BG24: =IF(SoleShared!$N$122<68,68,SoleShared!$N$122) ->  | BH24: =IF(SplitShared!$R$120<68,68,SplitShared!$R$120) -> 
B25: =IFERROR($J$3," ") ->  | D25: =IFERROR($J$4," ") ->  | F25: =IF($R$7="Card",Cardinal!$F$25,IF(AND($E$5=TRUE,$E$6=1),$J$5," ")) ->  | M25: ="Other Custody Arrangement SSDI Test" -> Other Custody Arrangement SSDI Test | T25: Custody | U25: =IF($R$7="Card",0,IF('Family Info'!N11<>" ",10,IF('Family Info'!V11<>" ",10,IF(AND('Family Info'!$P$16<>" ",'Family Info'!$V$16=" "),5,IF(AND('Family Info'!$P$16<>" ",'Family Info'!$V$16<>" "),10,IF('Family Info'!$W18<>" ",10,IF('Family Info'!$U$20<>" ",10,0))))))) -> 0 | AI25: Amount | AK25: =$AK$19 ->  | AW25: 2 | AX25: 104 | AY25: =IF(Split!$I$112*Split!$I$119<104,104,Split!$I$112*Split!$I$119) -> 104 | AZ25: =IF(SoleShared!$N$122<104,104,SoleShared!$N$122) ->  | BA25: =IF(SplitShared!$P$120<104,104,SplitShared!$P$120) ->  | BD25: 2 | BE25: 104 | BF25: =IF(Split!$L$112*Split!$L$119<104,104,Split!$L$112*Split!$L$119) -> 104 | BG25: =IF(SoleShared!$N$122<104,104,SoleShared!$N$122) ->  | BH25: =IF(SplitShared!$R$120<104,104,SplitShared!$R$120) -> 
A26: ="Children's Healthcare costs" -> Children's Healthcare costs | B26: =IF($R$7="Card",$AB$8,Vision!$R$7) -> 0 | D26: =IF($R$7="Card",$AC$8,Vision!$T$7) -> 0 | F26: =IF($R$7="Card",$AD$8,Vision!V7) -> 0 | H26: Third party HCC | T26: Income | U26: =IF($R$7="Card",0,IF(AND($B$15<>0,$D$15=0),13,IF(AND($B$15<>0,$D$15<>0),26,0))) -> 0 | W26: Inc. gage | X26: =IF($R$7="Card",0,50-(U26+U27+U28)) -> 0 | AH26: NonSole custody cases | AW26: 3 | AX26: 126 | AY26: =IF(Split!$I$112*Split!$I$119<126,126,Split!$I$112*Split!$I$119) -> 126 | AZ26: =IF(SoleShared!$N$122<126,126,SoleShared!$N$122) ->  | BA26: =IF(SplitShared!$P$120<126,126,SplitShared!$P$120) ->  | BD26: 3 | BE26: 126 | BF26: =IF(Split!$L$112*Split!$L$119<126,126,Split!$L$112*Split!$L$119) -> 126 | BG26: =IF(SoleShared!$N$122<126,126,SoleShared!$N$122) ->  | BH26: =IF(SplitShared!$R$120<126,126,SplitShared!$R$120) -> 
A27: ="Daycare costs" -> Daycare costs | B27: =IF($R$7="Card",$AB$9,'Day Care'!$R$10) -> 0 | D27: =IF($R$7="Card",$AC$9,'Day Care'!$T$10) -> 0 | F27: =IF($R$7="Card",$AD$9,'Day Care'!$V$10) -> 0 | M27: ="Which Parent is receiving SSDI?" -> Which Parent is receiving SSDI? | R27: =IF($B$17>0,$J$3,IF($D$17>0,$J$4," ")) ->  | T27: other Inc | U27: =IF($R$7="Card",0,IF(AND($V$27=0,$W$27=0),0,IF(AND($V$27=1,$W$27=0),6,IF(AND($V$27=1,$W$27=1),12,IF(AND($V$27=0,$W$27=1),16,0))))) -> 0 | V27: =IF($R$7="Card",0,IF(OR($B$16<>0,$B$17<>0,$B$18<>0),1,0)) -> 0 | W27: =IF($R$7="Card",0,IF(OR($D$16<>0,$D$17<>0,$D$18<>0),1,0)) -> 0 | AI27: incurred by | AK27: =$AO$9 -> Party A | AM27: Other than FPL sole | AW27: 4 | AX27: 141 | AY27: =IF(Split!$I$112*Split!$I$119<141,141,Split!$I$112*Split!$I$119) -> 141 | AZ27: =IF(SoleShared!$N$122<141,141,SoleShared!$N$122) ->  | BA27: =IF(SplitShared!$P$120<141,141,SplitShared!$P$120) ->  | BD27: 4 | BE27: 141 | BF27: =IF(Split!$L$112*Split!$L$119<141,141,Split!$L$112*Split!$L$119) -> 141 | BG27: =IF(SoleShared!$N$122<141,141,SoleShared!$N$122) ->  | BH27: =IF(SplitShared!$R$120<141,141,SplitShared!$R$120) -> 
B28: SSDI Child | D28: SSDI Child | F28: ="Sole Custody SSDI Test" -> Sole Custody SSDI Test | M28: ="Which parent is receiving child benefit" -> Which parent is receiving child benefit | R28: =IF($B$31<>" ",$B$31,IF($D$31<>" ",$D$31," ")) ->  | T28: Adjust | U28: =IF(AND($V$28=0,$W$28=0),0,IF(AND($V$28=1,$W$28=0),6,IF(AND($V$28=1,$W$28=1),12,IF(AND($V$28=0,$W$28=1),16,0)))) -> 0 | V28: =IF(OR($B$20<>0,$B$21<>0,$B$22<>0,$B$23<>0,$B$24<>0),1,0) -> 0 | W28: =IF(OR($D$20<>0,$D$21<>0,$D$22<>0,$D$23<>0,$D$24<>0),1,0) -> 0 | AI28: Amount | AK28: =$AO$10 ->  | AM28: Cost Adjustment | AW28: 5 | AX28: 155 | AY28: =IF(Split!$I$112*Split!$I$119<155,155,Split!$I$112*Split!$I$119) -> 155 | AZ28: =IF(SoleShared!$N$122<155,155,SoleShared!$N$122) ->  | BA28: =IF(SplitShared!$P$120<155,155,SplitShared!$P$120) ->  | BD28: 5 | BE28: 155 | BF28: =IF(Split!$L$112*Split!$L$119<155,155,Split!$L$112*Split!$L$119) -> 155 | BG28: =IF(SoleShared!$N$122<155,155,SoleShared!$N$122) ->  | BH28: =IF(SplitShared!$R$120<155,155,SplitShared!$R$120) -> 
A29: =IF(AND($B$17<>" ",B17>0),"Do the children receive a social security benefit due to"&" "&$B$14&"'s"&" "&"SSDI?",IF(AND($D$17<>" ",$D$17>0),"Do the children receive a social security benefit due to"&" "&$D$14&"'s"&" "&"SSDI?"," ")) ->  | B29: =IF($R$7="Card",IF(AND($B$17>0,Cardinal!$B$29="Yes"),Cardinal!B29," "),'Other Income'!$Q$19) ->  | D29: =IF($R$7="Card",IF(AND($D$17>0,Cardinal!$B$29="Yes"),Cardinal!B29," "),'Other Income'!$Q$93) ->  | F29: ="Yes" -> Yes | M29: ="Should a credit be given?" -> Should a credit be given? | R29: =IF(R27<>R28,"Yes","No") -> No | T29: HC | U29: =IF(OR(B26<>0,D26<>0,F26<>0),15+$X$26,0) -> 0 | W29: DC gage | X29: =IF($R$7="Card",0,IF($U$29=0,($X$26+15),0)) -> 0 | AM29: Col A | AN29: Col B | AW29: 6 | AX29: 169 | AY29: =IF(Split!$I$112*Split!$I$119<169,169,Split!$I$112*Split!$I$119) -> 169 | AZ29: =IF(SoleShared!$N$122<169,169,SoleShared!$N$122) ->  | BA29: =IF(SplitShared!$P$120<169,169,SplitShared!$P$120) ->  | BD29: 6 | BE29: 169 | BF29: =IF(Split!$L$112*Split!$L$119<169,169,Split!$L$112*Split!$L$119) -> 169 | BG29: =IF(SoleShared!$N$122<169,169,SoleShared!$N$122) ->  | BH29: =IF(SplitShared!$R$120<169,169,SplitShared!$R$120) -> 
A30: =IF(AND($B$29="Yes",$B$17>0),"How much cash benefit do the children receive?",IF(AND($D$29="Yes",$D$17>0),"How much cash benefit do the children receive?"," ")) ->  | B30: =IF($R$7="Card",IF($B$29="yes",Cardinal!$B$30," "),'Other Income'!$Q$22) ->  | D30: =IF($R$7="Card",IF($D$29="yes",Cardinal!$B$30," "),'Other Income'!$Q$96) ->  | F30: ="No" -> No | L30: For Sole | M30: ="If yes, then which column receives the credit?" -> If yes, then which column receives the credit? | R30: =IF(AND($R$29="Yes",$R$27=$J$3),1,IF(AND(R29="Yes",$R$27=$J$4),2," ")) ->  | T30: Daycare | U30: =IF($U$29=0,IF(OR($B$27<>0,$D$27<>0,$F$27<>0),15+$X$29,0),IF(OR($B$27<>0,$D$27<>0,$F$27<>0),15,0)) -> 0 | AM30: =IF(AND($E$5=TRUE,$E$6=1,$AJ$15="Yes"),$AK$23,IF(AND($E$5=TRUE,$E$6=1,$AJ$15="No",$AK$24="Party A"),$AK$25,IF(AND($E$5=TRUE,$E$6=1,$AJ$15="No",$AK$24="Party B")," ",IF(AND($E$5=FALSE,$E$6=1),0,IF(AND($E$6<>1,$AK$27="Party B"),$AK$28,""))))) ->  | AN30: =IF(AND($E$5=TRUE,$E$6=1,$AJ$15="Yes"),$AK$22,IF(AND($E$5=TRUE,$E$6=1,$AJ$15="No",$AK$24="Party A"),"",IF(AND($E$5=TRUE,$E$6=1,$AJ$15="No",$AK$24="Party B"),$AK$25,IF(AND($E$5=FALSE,$E$6=1),$AK$21,IF(AND($E$6<>1,$AK$27="Party A"),$AK$28,""))))) -> 
A31: =IF(AND($B$29=$F$29,$B$17>0),"Who receives the children's benefit?",IF(AND($D$29=$F$29,$D$17>0),"Who receives the children's benefit?"," ")) ->  | B31: =IF($R$7="Card",IF($B$29="yes",Cardinal!$B$31," "),'Other Income'!$J$22) ->  | D31: =IF($R$7="Card",IF($D$29="yes",Cardinal!$B$31," "),'Other Income'!$J$96) ->  | F31: ="Which Column is CP?" -> Which Column is CP? | J31: =IF(B7=B14,1,2) -> 2 | L31: All others | M31: Which parent receives credit | R31: =IF($R$29="Yes",$R$27," ") -> 
A32: Does the parent get the credit | B32: =IF(OR($B$31=$D$25,$B$31=$E$14),"Yes","No") -> No | D32: =IF(OR($D$31=$B$25,$D$31=$E$14),"Yes","No") -> No | F32: ="Is the NCP receiving the SSDI" -> Is the NCP receiving the SSDI | J32: =IF(AND(ISNUMBER($B$17),$J$31=2),"Yes",IF(AND(ISNUMBER($D$17),$J$31=1),"Yes","No")) -> Yes | M32: How Much does that parent receive | R32: =IF($R$31=$B$25,$B$30,IF($R$31=$D$25,$D$30,0)) -> 0
F33: ="Is the CP receiving the child's benefit" -> Is the CP receiving the child's benefit | J33: =IF(AND($B$29="yes",$B$31=$B$7),"Yes","No") -> No
F34: ="Which column does money go in" -> Which column does money go in | J34: =IF(AND($J$32="Yes",$J$33="Yes",$J$31=2),1,IF(AND($J$32="Yes",$J$33="Yes",$J$31=1),2," ")) ->  | AI34: Imputation
AH35: Other Cost Adjustments: for both Calcs | AM35: Non 3rd partySole GL
F36: Child SSDI to add into Parent's income | AH36: Incurred | AI36: =$AJ$6 -> 0 | AJ36: Reimburser | AK36: =IF($AJ$6=$J$3,$J$4,IF($AJ$6=$J$4,$J$3,IF($AJ$6=$J$5,$J$3))) ->  | AL36: =IF($AJ$6=$J$5,$J$4," ") ->  | AM36: Reimburser | AN36: =IF(Sole!$E$23=$AJ$6,"Party B","Party A") -> 
G37: =B14 ->  | H37: =D14 ->  | L37: Sole Cell | O37: I Cell | R37: Sole | S37: Key to col | U37: Progress Gauge | AG37: Number | AH37: Description | AI37: travel | AJ37: Inc Share | AK37: =ROUND(IF($AJ$6=Shared!$I$6,Shared!$L$112,IF($AJ$6=Shared!$L$6,Shared!$I$112,IF($AJ$6=$J$5,Shared!$I$112))),2) -> 0.5 | AL37: =1-$AL$7 -> 0.5 | AM37: "+" or "-" | AN37: =IF($AN$36="Party A",-($AK$40),IF($AN$36="Party B",$AK$40," ")) -> 
F38: SSDI | G38: =B17 -> 0 | H38: =D17 -> 0 | J38: CP | K38: =IF(AND($E$6<>3,$E$5=TRUE),$B$14,IF(AND($E$6<>3,$E$5=FALSE),B7," ")) -> 0 | L38: Col 1 | O38: =B14 ->  | P38: Col 1 | R38: Col 1 | S38: =IF($K$38=$O$38,"Col 1","Col 2") -> Col 2 | U38: =SUM(U23:U30) -> 0 | AG38: =AI38 -> 0 | AH38: Amount | AI38: =$AH$8 -> 0 | AJ38: 3rd Party | AK38: =DOLLAR(($AH$8*$AJ$10)*$AL$7,2) ->  | AL38: =DOLLAR(($AH$8*$AJ$10)*$AM$7,2) ->  | AM38: Other than Sole Custody
F39: Child # | G39: =IF(AND($B$29="yes",IF($G$38=" ",0,$G$38)>0),$B$30," ") ->  | H39: =IF(AND($D$29="yes",IF($H$38=" ",0,$H$38)>0),$D$30," ") ->  | J39: NCP | K39: =IF($K$38=$B$14,$D$14,$B$14) ->  | L39: Col 2 | O39: =D14 ->  | P39: Col 2 | R39: Col 2 | S39: =IF($K$39=$O$39,"Col 2","Col 1") -> Col 2 | AH39: Cost% | AI39: Income Share | AK39: Case Type | AL39: =IF($E$5=FALSE,"Non3rdParty","3rdParty") -> Non3rdParty | AM39: Incurred by | AN39: =IF($AJ$6=$L$3,"Party A",IF($AJ$6=$L$4,"Party B"," ")) -> Party A
F40: Sole Cust | G40: =IF($G$37=$K$38, "Col 1","Col 2") -> Col 2 | H40: =IF($H$37=$K$38,"Col 1","Col 2") -> Col 2 | AH40: % | AI40: =IF($AJ$9="25% of the cost",0.25,IF($AJ$9="50% of the cost",0.5,IF($AJ$9="75% of the cost",0.75,IF($AJ$9="100% of the cost",1,IF($AJ$9="Income Share",$AK$37," "))))) ->  | AJ40: Amt Owed | AK40: =IFERROR(IF($AH$8="","",ROUND($AH$8*$AI$40,2)),"") ->  | AM40: benefit amt | AN40: =IFERROR(-($AK$40),"") -> 
F41: Key SSDI | G41: =IF(AND(G39<>" ",$G$40="Col 1"),"Col 1",IF(AND(G39<>" ",$G$40="Col 2"),"Col 2"," ")) ->  | H41: =IF(AND($H$39<>" ",$H$40="Col 1"),"Col 1",IF(AND($H$39<>" ",$H$40="Col 2"),"Col 2"," ")) ->  | AH41: =IF(AND($AK$61="",$AL$61=""),"",IFERROR(IF($AJ$6<>$J$5,$AL$6&" reimburses "&$AI$40*100&"% of "&$AJ$6&"'s "&$AJ$8&" "&$AJ$7&" cost.","Parties reimburse "&$AI$36&"'s $"&$AH$8&" cost based on income shares."),"")) -> 
AA42: 150% Poverty GL
F43: Answer | G43: =IF(AND(G39<>" ",G41<>" "),G41,IF(AND(H39<>" ",H41<>" "),H41," ")) ->  | AA43: 1 | AB43: 1956.25
AA44: 2 | AB44: 2643.75 | AG44: Sole cost incurred by 3rd Party | AL44: reimburse
AA45: 3 | AB45: 3331.25 | AG45: 3rd party | AH45: =IF($E$5=FALSE,"No","Yes") -> No | AI45: PA inc sh | AJ45: =Shared!$I$112 -> 0.5 | AK45: Party A Amt | AL45: =IF(AND($AH$45="Yes",$AH$46="Yes"),ROUND((AG$38*$AH$47)*$AJ$45,2),"") -> 
AA46: 4 | AB46: 4018.75 | AG46: 3P incur cost | AH46: =IF($AJ$6=$J$5,"Yes","No") -> Yes | AI46: PB inc sh | AJ46: =Shared!$L$112 -> 0.5 | AK46: Party B Amt | AL46: =IF(AND($AJ$14="Yes",$AJ$15="Yes"),ROUND(($AG$38*$AH$47)*$AJ$46,2),"") -> 
AA47: 5 | AB47: 4706.25 | AG47: Cost % | AH47: =0.01*100 -> 1
AA48: 6 | AB48: 5393.75 | AG48: Sole cost incurred by non3rd party
AA49: 7 | AB49: 6081.25 | AG49: Party incurred cost | AI49: =IF($AH$45="No","",IF(AND($AH$45="Yes",$AH$46="Yes"),"",IF($AI$36=$J$3,"Party A",IF($AI$36=$J$4,"Party B","")))) ->  | AK49: Reimbursing Party
AA50: 8 | AB50: 6768.75 | AG50: Amount | AI50: =IF($AI$49="","",-($AG$38*$AI$40)) ->  | AK50: =IF($AI$49="Party A","Party B",IF($AI$49="Party B","Party A",IF($AI$49="",""))) ->  | AL50: =IF($AK$50<>"",-($AI$50),"") -> 
AA52: Shared v. Sole | AE52: Who incurred cost | AG52: Sole-non3rd party | AI52: =IF($AH$45="Yes","",$AN$37) -> 
Y53: BasicMnthlyChldSup | AA53: =Shared!J21 -> 0 | AF53: 3rd party | AG53: Sole-3rdPartyB | AI53: =IFERROR($AL$46,"") ->  | AK53: FPL Sole GL Cost Adj
Y54: Shared Supp Need | AA54: =AA53*1.4 -> 0 | AF54: 3rd party | AG54: Sole-3rdPartyA | AI54: =IFERROR($AL$45,"") ->  | AL54: Col B
AA55: Parent A | AB55: Parent B | AF55: 3rd party | AG55: Incurred by non3rdparty | AI55: =$AI$49 ->  | AL55: =$AN$37 -> 
Y56: Income Share | AA56: =Shared!I17 -> 0.5 | AB56: =Shared!L17 -> 0.5 | AG56: Amount | AI56: =$AI$50 -> 
Y57: Custody Share | AA57: =Shared!I26 ->  | AB57: =Shared!L26 ->  | AF57: NonSole custody cases
Y58: Shared Payor | AA58: =IF(Shared!C56=Shared!I50,"Parent B","Parent A") -> Parent B | AG58: incurred by | AI58: =$AN$39 -> Party A | AK58: Other than FPL sole
Y59: BasicMnthlyChldSup | AA59: =IF(AA58=AA55,AA53*AA56,AA53*AB56) -> 0 | AG59: Amount | AI59: =$AN$40 ->  | AK59: Cost Adjustment
Y60: Shared Supp Need | AA60: =IF(AA58=AA55,((AA54*AB57)*AA56-(AA54*AA57)*AB56),((AA54*AA57)*AB56-(AA54*AB57)*AA56)) ->  | AK60: Col A | AL60: Col B
Y61: Which Amt is less? | AA61: =IF(AA59<AA60,"sole","shared") ->  | AK61: =IF(AND($E$5=TRUE,$E$6=1,$AH$46="Yes"),$AI$54,IF(AND($E$5=TRUE,$E$6=1,$AH$46="No",$AI$55="Party A"),$AI$56,IF(AND($E$5=TRUE,$E$6=1,$AH$46="No",$AI$55="Party B")," ",IF(AND($E$5=FALSE,$E$6=1),0,IF(AND($E$6<>1,$AI$58="Party B"),$AI$59,""))))) ->  | AL61: =IF(AND($E$5=TRUE,$E$6=1,$AH$46="Yes"),$AI$53,IF(AND($E$5=TRUE,$E$6=1,$AH$46="No",$AI$55="Party A"),"",IF(AND($E$5=TRUE,$E$6=1,$AH$46="No",$AI$55="Party B"),$AI$56,IF(AND($E$5=FALSE,$E$6=1),$AI$52,IF(AND($E$6<>1,$AI$58="Party A"),$AI$59,""))))) -> 
Y62: Statutory Notice | AA62: =IF(AA61="sole","Because the sole guideline amount is less than the shared guideline amount, the sole guideline amount is the presumptive guideline amount pursuant to 20-108.2 (G)(3)(a)","") -> 

Sheet Cardinal (hidden)
A1: ="Parent A" -> Parent A | BA1: Switch | BB1: Yes | BC1: Yes
A2: ="Parent B" -> Parent B | L2: Normal | M2: Third_Party | O2: =IF(AND($E$6=1,$E$5=TRUE),$M$2,$L$2) -> Normal | BC2: No
A3: =IF(AND($E$5=TRUE,$E$6=1),"Third Party Caretaker"," ") ->  | J3: =IF(ISBLANK($B$1),"Party A",IF($B$1=" ","Party A",IFERROR(LEFT($B$1,SEARCH(" ",$B$1)),$B$1))) -> Party A | L3: =$J$3 -> Party A | M3: =$J$5 -> 3rd Party
G4: Docket # | J4: =IF(ISBLANK($B$2),"Party B",IF($B$2=" ","Party B",IFERROR(LEFT($B$2,SEARCH(" ",$B$2)),$B$2))) -> Party B | L4: =$J$4 -> Party B | AA4: 3rd Party Caretaker
E5: =$AA$5 -> FALSE | G5: DCSE # | J5: =IF(ISBLANK($B$3),"3rd Party",IF($B$3=" ","3rd Party",IFERROR(LEFT($B$3,SEARCH(" ",$B$3)),$B$3))) -> 3rd Party | AA5: FALSE
E6: =$AA$6 -> 0 | Z6: Custody Type | AA6: 0
A7: =IF(OR(E6=1,E6=4),"For sole custody, Identify the custodial parent"," ") ->  | H7: =IF(OR($E$6=2,$E$6=4,$E$6=5,$E$6=6),"Day Count"," ") ->  | I7: =IF(OR($E$6=2,$E$6=4,$E$6=5,$E$6=6),$J$3," ") -> 
A8: =IF(OR($E$6=1,$E$6=2,$E$6=4,$E$6=5,$E$6=6),"Number of children for whom support is sought",IF($E$6=3,"Number of children for whom support is sought & living with"&" "&$J$3," ")) ->  | H8: =IF(OR($E$6=2,$E$6=4,$E$6=5,$E$6=6),$J$3," ") ->  | I8: =IF(OR($E$6=2,$E$6=4,$E$6=5,$E$6=6),$J$4," ") -> 
A9: =IF($E$6=3,"Number of children for whom support is sought & living with"&" "&$J$4,IF(E6=4,B7&" "&"is the custodial parent for how many of these children?",IF(E6=6,J3&" "&"is the Custodial Parent for how many of these children"," "))) ->  | G9: =IF(AND(E6=5,B8>0),"Child 1",IF(AND(B8=1,OR(E6=2,E6=4,E6=6)),"Child",IF(AND(B8>1,OR(E6=2,E6=4,E6=6)),"Children"," "))) ->  | I9: 130
A10: =IF(E6=6,J4&" "&"is the Custodial Parent for how many of these children",IF(E6=4,"Number of these children in a shared custody arrangement","")) ->  | G10: =IF(AND(E6=5,B8>1),"Child 2"," ") ->  | I10: =IF(OR(H10="",H10=" "),"",IFERROR(365-H10," ")) -> 
A11: =IF(E6=6,"Number of these children in a shared custody arrangement"," ") ->  | B11: 1 | G11: =IF(AND($E$6=5,$B$8>2),"Child 3"," ") ->  | I11: =IF(OR(H11="",H11=" "),"",IFERROR(365-H11," ")) -> 
G12: =IF(AND($E$6=5,$B$8>3),"Child 4"," ") ->  | I12: =IF(OR(H12="",H12=" "),"",IFERROR(365-H12," ")) -> 
G13: =IF(AND($E$6=5,$B$8>4),"Child 5"," ") ->  | I13: =IF(OR(H13="",H13=" "),"",IFERROR(365-H13," ")) -> 
A14: ="Monthly Gross Income information:" -> Monthly Gross Income information: | B14: =IFERROR(J3," ") -> Party A | D14: =IFERROR($J$4," ") -> Party B | G14: =IF(AND($E$6=5,$B$8>5),"Child 6","") ->  | I14: =IF(OR(H14="",H14=" "),"",IFERROR(365-H14," ")) -> 
A15: ="Parent's Gross Employment Income:" -> Parent's Gross Employment Income:
A16: ="Spousal Support Income" -> Spousal Support Income
A17: ="Parent's SSDI Income" -> Parent's SSDI Income | C17: PA
A18: ="Other Income" -> Other Income
A19: ="Income Adjustments" -> Income Adjustments | U19: PartyA
A20: ="Spousal support deduction:" -> Spousal support deduction:
A21: ="# of other biological or adopted children residing with each Parent:" -> # of other biological or adopted children residing with each Parent:
A22: ="Other child support obligations actually paid out:" -> Other child support obligations actually paid out:
A23: ="Total self-employment tax paid out:" -> Total self-employment tax paid out:
A24: Business Deductions | F24: =IF(AND($E$6=1,$E$5=TRUE),"Third Party"," ") -> 
B25: =IFERROR($J$3," ") -> Party A | D25: =IFERROR($J$4," ") -> Party B | F25: =IF(AND($E$5=TRUE,$E$6=1),$J$5," ") ->  | M25: ="Other Custody Arrangement SSDI Test" -> Other Custody Arrangement SSDI Test
A26: ="Children's Healthcare costs" -> Children's Healthcare costs
A27: ="Daycare costs" -> Daycare costs | M27: ="Which Parent is receiving SSDI?" -> Which Parent is receiving SSDI? | R27: =IF(ISNUMBER($B$17),$J$3,IF(ISNUMBER($D$17),$J$4," ")) -> 
F28: ="Sole Custody SSDI Test" -> Sole Custody SSDI Test | M28: ="Which parent is receiving child benefit" -> Which parent is receiving child benefit | R28: =$B$31 -> 0
A29: =IF(AND($B$17<>" ",B17>0),"Do the children receive a social security benefit due to"&" "&$B$14&"'s"&" "&"SSDI?",IF(AND($D$17<>" ",$D$17>0),"Do the children receive a social security benefit due to"&" "&$D$14&"'s"&" "&"SSDI?"," ")) ->  | F29: ="yes" -> yes | M29: ="Should a credit be given?" -> Should a credit be given? | R29: =IF($R$27<>$R$28,"Yes","No") -> Yes
A30: =IF(AND($B$29="yes",$B$17>0),"How much cash benefit do the children receive?",IF(AND($B$29="yes",$D$17>0),"How much cash benefit do the children receive?"," ")) ->  | F30: ="no" -> no | M30: ="If yes, then which column receives the credit?" -> If yes, then which column receives the credit? | R30: =IF(AND($R$29="Yes",$R$27=$J$3),1,IF(AND(R29="Yes",$R$27=$J$4),2," ")) -> 
A31: =IF(AND($B$29=$F$29,$B$17>0),"Who receives the children's benefit?",IF(AND($B$29=$F$29,$D$17>0),"Who receives the children's benefit?"," ")) ->  | F31: ="Which Column is CP?" -> Which Column is CP? | J31: =IF(B7=B14,1,2) -> 2
F32: ="Is the NCP receiving the SSDI" -> Is the NCP receiving the SSDI | J32: =IF(AND(ISNUMBER($B$17),$J$31=2),"Yes",IF(AND(ISNUMBER($D$17),$J$31=1),"Yes","No")) -> No
F33: ="Is the CP receiving the child's benefit" -> Is the CP receiving the child's benefit | J33: =IF(AND($B$29="yes",$B$31=$B$7),"Yes","No") -> No
F34: ="Which column does money go in" -> Which column does money go in | J34: =IF(AND($J$32="Yes",$J$33="Yes",$J$31=2),1,IF(AND($J$32="Yes",$J$33="Yes",$J$31=1),2," ")) -> 
F36: Child SSDI to add into Parent's income
G37: =B14 -> Party A | H37: =D14 -> Party B | L37: Sole Cell | O37: I Cell | R37: Sole | S37: Key to col
F38: SSDI | G38: =B17 -> 0 | H38: =D17 -> 0 | J38: CP | K38: =IF(AND($E$6=1,$E$5=TRUE),$B$14,IF(AND($E$6=1,$E$5=FALSE),B7," ")) ->  | L38: Col 1 | O38: =B14 -> Party A | P38: Col 1 | R38: Col 1 | S38: =IF($K$38=$O$38,"Col 1","Col 2") -> Col 2
F39: Child # | G39: =IF(AND($B$29="yes",IF($G$38=" ",0,$G$38)>0),$B$30," ") ->  | H39: =IF(AND($B$29="yes",IF($H$38=" ",0,$H$38)>0),$B$30," ") ->  | J39: NCP | K39: =IF($K$38=$B$14,$D$14,$B$14) -> Party A | L39: Col 2 | O39: =D14 -> Party B | P39: Col 2 | R39: Col 2 | S39: =IF($K$39=$O$39,"Col 2","Col 1") -> Col 1
F40: Sole Cust | G40: =IF($G$37=$K$38, "Col 1","Col 2") -> Col 2 | H40: =IF($H$37=$K$38,"Col 1","Col 2") -> Col 2
F41: Key SSDI | G41: =IF(AND(G39<>" ",$G$40="Col 1"),"Col 1",IF(AND(G39<>" ",$G$40="Col 2"),"Col 2"," ")) ->  | H41: =IF(AND($H$39<>" ",$H$40="Col 1"),"Col 1",IF(AND($H$39<>" ",$H$40="Col 2"),"Col 2"," ")) -> 
F43: Answer | G43: =IF(AND(G39<>" ",G41<>" "),G41,IF(AND(H39<>" ",H41<>" "),H41," ")) -> 

Sheet Sole
A1: Sole Guideline Worksheet | BC1: Yes
B2: Date: | C2: =TODAY() -> 2025-04-07 | X2: No | BA2: Switch | BB2: Yes | BC2: No
B3: Parents' Names: | D3: =Info!$B$1 ->  | H3: Docket#: | J3: =Info!$S$11 -> 
D4: =Info!$B$2 ->  | I4: DCSE #: | J4: =Info!$S$12 -> 
Q6: Column Names | R6: Second Column Determination | V6: Child SSDI | W6: Other Kids | X6: Bus Exp | Y6: Health Ins | Z6: DayCare | AA6: SSDI Kids? | AB6: Parent get SSDA Credit | AC6: Impute | AD6: total Imput | AE6: Reg Inc | AF6: Spsl Rec | AG6: Spsl Paid | AH6: Other ChSp | AI6: 1/2 B. Tax | AJ6: Imp. Other Kids
A7: Guideline Calculation | I7: =$U$7 ->  | K7: =$R$9 ->  | M7: Reg Income | Q7: =TRIM(Info!$J$3) ->  | R7: =$Q$7 ->  | U7: =IF($R$7=$R$9,$R$8,$R$7) ->  | V7: =IF($U$7=$R$7,Info!$B$30,IF($U$7=$R$8,Info!$D$30," ")) ->  | W7: =IF($U$7=$R$7,Info!$F$22,IF($U$7=$R$8,Info!$G$22," ")) ->  | X7: =IF($U$7=$R$7,Info!$B$24,IF($U$7=$R$8,Info!$D$24," ")) ->  | Y7: =IF($U$7=$R$7,Info!$B$26,IF($U$7=$R$8,Info!$D$26," ")) ->  | Z7: =IF($U$7=$R$7,Info!$B$27,IF($U$7=$R$8,Info!$D$27," ")) ->  | AA7: =IF($U$7=$R$7,Info!$B$29,IF($U$7=$R$8,Info!$D$29," ")) ->  | AB7: =IF($U$7=$R$7,Info!$B$32,IF($U$7=$R$8,Info!$D$32," ")) ->  | AC7: =IF($U$7=$R$7,Info!$K$10,IF($U$7=$R$8,Info!$L$10," ")) ->  | AD7: =IF($U$7=$R$7,Info!$K$11,IF($U$7=$R$8,Info!$L$11," ")) ->  | AE7: =IF($U$7=$R$7,$M$10,IF($U$7=$R$8,$N$10," ")) ->  | AF7: =IF($U$7=$R$7,Info!$B$16,IF($U$7=$R$8,Info!$D$16," ")) ->  | AG7: =IF($U$7=$R$7,Info!$B$20,IF($U$7=$R$8,Info!$D$20," ")) ->  | AH7: =IF($U$7=$R$7,Info!$B$22,IF($U$7=$R$8,Info!$D$22," ")) ->  | AI7: =IF($U$7=$R$7,Info!$B$23,IF($U$7=$R$8,Info!$D$23," ")) ->  | AJ7: =IF($U$7=$R$7,Info!$M$8,IF($U$7=$R$8,Info!$N$8," ")) -> 
A8: Number of Children for whom parents share jt. legal resp. and support is being sought: | J8: =IF(AND(Info!$E$6<>3,ISNUMBER(Info!$B$8)),Info!$B$8," ") -> 0 | M8: Party A | N8: Party B | Q8: =TRIM(Info!$J$4) ->  | R8: =$Q$8 ->  | U8: =$K$7 ->  | V8: =IF($U$8=$R$7,Info!$B$30,IF($U$8=$R$8,Info!$D$30)) ->  | W8: =IF($U$8=$R$7,Info!$F$22,IF($U$8=$R$8,Info!$G$22)) ->  | X8: =IF($U$8=$R$7,Info!$B$24,IF($U$8=$R$8,Info!$D$24)) ->  | Y8: =IF($U$8=$R$7,Info!$B$26,IF($U$8=$R$8,Info!$D$26)) ->  | Z8: =IF($U$8=$R$7,Info!$B$27,IF($U$8=$R$8,Info!$D$27)) ->  | AA8: =IF($U$8=$R$7,Info!$B$29,IF($U$8=$R$8,Info!$D$29)) ->  | AB8: =IF($U$8=$R$7,Info!$B$32,IF($U$8=$R$8,Info!$D$32)) ->  | AC8: =IF($U$7=$R$7,Info!$L$10,IF($U$7=$R$8,Info!$K$10," ")) ->  | AD8: =IF($U$7=$R$7,Info!$L$11,IF($U$7=$R$8,Info!$K$11," ")) ->  | AE8: =IF($U$7=$R$7,$N$10,IF($U$7=$R$8,$M$10," ")) ->  | AF8: =IF($U$7=$R$7,Info!$D$16,IF($U$7=$R$8,Info!$B$16," ")) ->  | AG8: =IF($U$7=$R$7,Info!$D$20,IF($U$7=$R$8,Info!$B$20," ")) ->  | AH8: =IF($U$7=$R$7,Info!$D$22,IF($U$7=$R$8,Info!$B$22," ")) ->  | AI8: =IF($U$7=$R$7,Info!$D$23,IF($U$7=$R$8,Info!$B$23," ")) ->  | AJ8: =IF($U$7=$R$7,Info!$N$8,IF($U$7=$R$8,Info!$M$8," ")) -> 
A9: A. | B9: Income | M9: Col 1 | N9: Col 2 | Q9: Second Column | R9: =IF($E$23=$Q$7,$Q$8,IF($E$23=$Q$8,$Q$7,$Q$8)) -> 
A10: A1 | B10: Parent's monthly gross income: | I10: =$AE$7 ->  | K10: =$AE$8 ->  | M10: =IF(Info!$E$6<>3,IF(Info!$B$15=" ",0,Info!$B$15)+IF(Info!$B$17=" ",0,Info!$B$17)+IF(Info!$B$18=" ",0,Info!$B$18)," ") -> 0 | N10: =IF(Info!$E$6<>3,IF(Info!$D$15=" ",0,Info!$D$15)+IF(Info!$D$17=" ",0,Info!$D$17)+IF(Info!$D$18=" ",0,Info!$D$18)," ") -> 0 | Q10: Impute | R10: =Info!$K$12 -> No
A11: A2 | B11: Adjustments for spousal support received: | I11: =$AF$7 ->  | K11: =$AF$8 -> 
A12: A3 | B12: Adjustments for spousal support paid out: | I12: =$AG$7 ->  | K12: =$AG$8 ->  | M12: # of Other Children
A13: A4 | B13: # of other biological or adopted children residing with each Parent: | M13: Party A | N13: Party B
B14: =$I$7 ->  | C14: =IF($F$14=$M$14,$N$14,$M$14) -> 0 | E14: =$K$7 ->  | F14: =IF(Info!E$5=FALSE,IF(Info!$S$39="Col 1",$M$14,$N$14),$N$14) -> 0 | I14: =$W$7 ->  | K14: =$W$8 ->  | M14: =Info!$B$21 -> 0 | N14: =Info!$D$21 -> 0 | P14: NCP | Q14: =$K$7 -> 
A15: A5 | B15: Other child support obligations actually paid out: | I15: =$AH$7 ->  | K15: =$AH$8 ->  | M15: =IF(AND(Info!$E$6=1,ISNUMBER(Info!$B$22)),Info!$B$22,IF(Info!$E$6=1,0," ")) ->  | N15: =IF(AND(Info!$E$6=1,ISNUMBER(Info!$D$22)),Info!$D$22,IF(Info!$E$6=1,0," ")) ->  | P15: CP | Q15: =$I$7 -> 
A16: A6 | B16: Credit for 1/2 of any self-employment tax paid out: | I16: =$AI$7 ->  | K16: =$AI$8 ->  | M16: =IF(AND(Info!$E$6=1,ISNUMBER(Info!$B$23)),Info!$B$23,IF(Info!$E$6=1,0," ")) ->  | N16: =IF(AND(Info!$E$6=1,ISNUMBER(Info!$D$23)),Info!$D$23,IF(Info!$E$6=1,0," ")) -> 
A17: A7 | B17: Reasonable Business Expenses | I17: =$X$7 ->  | K17: =$X$8 -> 
A18: A8 | B18: Available combined monthly gross income (GI): | I18: =IF(AND($I$10=0,$I$11=0),0,IF(SUM($I$10:$I$11)-SUM($I$12:$I$17)<0,0,SUM($I$10:$I$11)-SUM($I$12:$I$17))) ->  | J18: ="+" -> + | K18: =IF(AND($K$10=0,$K$11=0),0,IF(SUM($K$10:$K$11)-SUM($K$12:$K$17)<0,0,SUM($K$10:$K$11)-SUM($K$12:$K$17))) ->  | L18: =IF(AND($I$18=" ",$K$18=" ")," ",IF($I$18=" ",$K$18-0,IF($K$18=" ",$I$18-0,$I$18+$K$18))) -> 
J19: =IF(AND($I$18=" ",$K$18=" ")," ",IF($I$18=" ",$K$18-0,IF($K$18=" ",$I$18-0,$I$18+$K$18))) -> 
J20: combined (GI)
A22: B. | B22: Sole Child Support Needs | I22: =$I$7 ->  | K22: =K7 ->  | M22: Info Sheet HCC/DC/RHCC | Q22: Sole Sheet
A23: B1 | B23: Identify custodial parent: | E23: =IF(Info!$E$6=1,Info!$B$7,Info!$C$7) ->  | M23: =Info!$L$3 ->  | N23: =Info!$D$14 ->  | Q23: =$I$7 ->  | R23: =$K$7 -> 
A24: B2 | B24: Monthly Basic Child Support Obligation | J24: =Info!$H$23 -> 0 | M24: Col 1 | N24: Col 2 | O24: 3rd party | Q24: Col 1 | R24: Col 2
A25: B3 | B25: Monthly amount allowable for health care coverage: | F25: ="Paid by:" -> Paid by: | G25: =IF($O$25>0,Info!$M$3,IF(AND($Q$25>0,$R$25>0),"Both Parents",IF(AND($Q$25>0,$R$25=0),$Q$23,IF(AND($Q$25=0,$R$25>0),$R$23," ")))) ->  | J25: =IF(ISNUMBER(Info!$B$26),Info!$B$26,0)+IF(ISNUMBER(Info!$D$26),Info!$D$26,0)+IF(AND(ISNUMBER(Info!$F$26),Info!$E$5=TRUE),Info!$F$26,0) -> 0 | M25: =IFERROR(ROUND(Info!$B$26,2),0) -> 0 | N25: =IFERROR(ROUND(Info!$D$26,2),0) -> 0 | O25: =ROUND(Info!$F$26,2) -> 0 | P25: HCC | Q25: =IF($Q$23=$M$23,$M$25,$N$25) ->  | R25: =IF($R$23=$M$23,$M$25,$N$25) -> 
A26: B4 | B26: Monthly amount allowable for employment-related child care | J26: =IF(AND(Info!$E$6=1,Info!$E$5=TRUE,ISNUMBER($O$26)),$O$26,$Q$26) ->  | M26: =IF(AND(Info!$E$6<>3,ISNUMBER(Info!$B$27)),Info!$B$27,IF(Info!$E$6=1,0," ")) -> 0 | N26: =IF(AND(Info!$E$6<>3,ISNUMBER(Info!$D$27)),Info!$D$27,IF(Info!$E$6=1,0," ")) -> 0 | O26: =IF(AND(Info!$E$6=1,Info!$E$5=TRUE,ISNUMBER(Info!$F$27)),Info!$F$27,IF(Info!$E$6=1,0," ")) ->  | P26: DC | Q26: =IF($Q$23=$M$23,$M$26,$N$26) ->  | R26: =IF($R$23=$M$23,$M$26,$N$26) -> 
M27: =ROUND(Vision!$R$8,2) ->  | N27: =ROUND(Vision!$T$8,2) ->  | P27: R.HCC | Q27: =IF($Q$23=$M$23,$M$27,$N$27) ->  | R27: =IF($R$23=$M$23,$M$27,$N$27) -> 
A29: B5 | B29: Total monthly child support obligation (add lines B2, B3 and B4) | J29: =IF($E$23=" "," ",SUM($J$24:$J$26)) ->  | P29: Reimburse DayCare 3rd party Caretaker Scenario
A32: C. | B32: Party's Obligations | I32: =$I$7 ->  | K32: =$K$7 ->  | P32: Col 1 | Q32: Col 2
A34: C1 | B34: Percent obligation of each party (divide (GI) on line A17 by combined (GI)) | I34: =IF(AND($I$18=0,$K$18=0),50%,IF(OR(($L$18=0),($L$18=" "))," ",IF(AND($L$18>0,$K$18=0),100%,IF(AND($L$18>0,$K$18=" "),100%,IF(AND($L$18>0,$I$18=" "),0,IF(AND($L$18>0,$I$18=0),0,ROUND($I$18/$L$18,4))))))) ->  | K34: =IF(AND($I$18=0,$K$18=0),50%,IF(OR(($L$18=0),($L$18=" "))," ",IF(AND($L$18>0,$I$18=0),100%,IF(AND($L$18>0,$I$18=" "),100%,IF(AND($L$18>0,$K$18=" "),0,IF(AND($L$18>0,$K$18=0),0,ROUND($K$18/$L$18,4))))))) ->  | P34: =$M$26 -> 0 | Q34: =$N$26 -> 0
A35: C2 | B35: Monthly support obligation of each party | I35: =IF($E$23=""," ",IF($J$29*$I$34>168,ROUND($J$29*$I$34,2),IF(AND($J$8=1,$J$29*$I$34<68),68,IF(AND($J$8=2,$J$29*$I$34<104),104,IF(AND($J$8=3,$J$29*$I$34<126),126,IF(AND($J$8=4,$J$29*$I$34<141),141,IF(AND($J$8=5,$J$29*$I$34<155),155,IF(AND($J$8=6,$J$29*$I$34<168),168,ROUND($J$29*$I$34,2))))))))) ->  | K35: =IF($E$23=""," ",IF($J$29*$K$34>168,ROUND($J$29*$K$34,2),IF(AND($J$8=1,$J$29*$K$34<68),68,IF(AND($J$8=2,$J$29*$K$34<104),104,IF(AND($J$8=3,$J$29*$K$34<126),126,IF(AND($J$8=4,$J$29*$K$34<141),141,IF(AND($J$8=5,$J$29*$K$34<155),155,IF(AND($J$8=6,$J$29*$K$34<168),168,ROUND($J$29*$K$34,2))))))))) ->  | P35: =$P$34*$K$34 ->  | Q35: =$Q$34*$I$34 -> 
A36: C3 | B36: ="Deduction for healthcare coverage paid by "&IF($E$23=$I$32,$K$32,IF(AND($M$25>0,$N$25>0),"the parents",IF($M$25>0,$M$23,IF($N$25>0,$N$23,"")))) ->  | I36: =IF(Info!$E$5=TRUE,$M$25,0) -> 0 | K36: =IF(Info!$E$5=TRUE,$N$25,IF(Info!$E$5=FALSE,$R$25," ")) ->  | P36: =$Q$35-$P$35 ->  | Q36: =$P$35-$Q$35 -> 
A37: C4 | B37: Adjustment after health care coverage deduction | I37: =IF($I$36=" ",$I$35,IF($I$35-$I$36<=0,0,$I$35-$I$36)) ->  | K37: =IF($E$23=""," ",IF($K$35-$K$36<=0,0,$K$35-$K$36)) -> 
P38: Imputate: Reimburse DayCare 3rd party Caretaker
P39: Col 1 | Q39: Col 2
A41: D. | B41: Adjustments, including SSDI derivative benefit paid to other parent | I41: =$I$7 ->  | K41: =$K$7 ->  | P41: =$M$26 -> 0 | Q41: =$N$26 -> 0
A42: D1 | B42: Total monthly support amount owed | I42: =IF(OR(ISNUMBER($I$43),ISNUMBER($I$44),ISNUMBER($I$45),ISNUMBER($K$43),ISNUMBER($K$44),ISNUMBER($K$45)),$I$37," ") ->  | K42: =IF($I$42<>" ",$K$37," ") ->  | P42: =$P$34*$K$102 ->  | Q42: =$Q$34*$I$102 -> 
A43: D2 | B43: Parent's SSDI derivative benefit paid to the other parent for benefit of child(ren): | I43: =IF(AND(Info!$E$5=TRUE,Info!$E$6<>3,$V$7<>0,$AA$7="Yes",$AB$7="Yes"),-($V$7)," ") ->  | K43: =IF(AND($V$8<>0,Info!$E$6<>3,$AA$8="Yes",$AB$8="Yes"),-($V$8)," ") ->  | P43: =$Q$42-$P$42 ->  | Q43: =$P$42-$Q$42 -> 
A44: D3 | B44: Adjustment: | C44: =IF(OR(ISNUMBER($I$44),ISNUMBER($K$44)),IF(AND(Info!$E$5=TRUE,Info!B27>0,Info!D27>0),"Reimburse each other's daycare costs based on other parent's income share",IF(AND(ISNUMBER($I$44),$I$44<0),"Reimburse"&" "&$M$23&"'s"&" "&"$"&$M$26&" "&"daycare cost"&" "&"based on"&" "&$N$23&"'s"&" "&"income share",IF(AND(ISNUMBER($K$44),$K$44<0),"Reimburse"&" "&$R$23&"'s"&" "&"$"&$R$26&" "&"daycare cost"&" "&"based on"&" "&$Q$23&"'s"&" "&"income share"," ")))," ") ->  | I44: =IFERROR(IF(AND(Info!$E$6=1,Info!$E$5=TRUE,$M$26<>0,$N$26<>0),$P$36,IF(AND(Info!$E$6=1,Info!$E$5=TRUE,$M$26<>0),-($M$26*$K$34),IF(AND(Info!$E$6=1,Info!$E$5=TRUE,$N$26>0),-(K44)," ")))," ") ->  | K44: =IFERROR(IF(AND(Info!$E$6=1,Info!$E$5=TRUE,$M$26<>0,$N$26<>0),$Q$36,IF(AND(Info!$E$6=1,Info!$E$5=TRUE,$N$26<>0),-($N$26*$I$34),IF(AND(Info!$E$6<>3,Info!$E$5=FALSE,$R$26>0),-($R$26*$I$34),IF(I44<>"",-(I44),""))))," ") -> 
A45: D4 | B45: Adjustment: | C45: =IFERROR(IF(AND(Info!$AM$30="",Info!AN30=""),Info!$AQ$12,Info!$AI$11),"") ->  | I45: =IFERROR(IF(AND(Info!$AM$30="",Info!$AN$30=""),"",IF(Info!$E$5=FALSE,"",IF(AND(Info!$AJ$14="Yes",Info!$AJ$15="Yes"),Info!$AM$30,IF(AND(Info!$AJ$14="Yes",Info!$AJ$15="No",Info!$AK$18="Party A"),Info!$AK$19,IF(AND(Info!$E$5=TRUE,Info!$AJ$15="No",Info!$AJ$6=Info!$L$4),Info!$AN$19,""))))),"") ->  | K45: =IFERROR(IF(AND(Info!$AM$30="",Info!$AN$30=""),"",IF(AND(Info!$E$5=FALSE,Info!$E$6<>1,Info!$C$7<>FALSE),Info!$AN$24,IF(AND(Info!$E$5=FALSE,Info!$AN$30<>0),Info!$AN$30,IF(AND(Info!$E$5=FALSE,OR(Info!$AN$30=0,Info!$AN$30="",Info!$AN$30=" ")),"",IF(AND(Info!$AJ$14="Yes",Info!$AJ$15="Yes"),Info!$AN$30,IF(AND(Info!$AJ$14="Yes",Info!$AJ$15="No",Info!$AK$18="Party B"),Info!$AK$19,IF(AND(Info!$E$5=TRUE,Info!$AJ$15="No",Info!$AJ$6=Info!L3),Info!$AN$19,""))))))),"") -> 
A46: D5 | B46: Adjustment: tot. mnthly support amt each parent pays to other: | I46: =IF($I$42=" "," ",IF($I$42+SUMIF($I$43:I$45,"<>#N/A")<=0,0,$I$42+SUMIF($I$43:$I$45,"<>#N/A"))) ->  | K46: =IF($K$42=" "," ",IF($K$42+SUMIF($K$43:$K$45,"<>#N/A")<=0,0,$K$42+SUMIF($K$43:$K$45,"<>#N/A"))) -> 
B48: =IF(AND($I$37=" ",$K$37=" ")," ",IF(Info!$E$5=TRUE,$Q$15&"'"&"s"&" "&"monthly support obl. is:"," ")) ->  | F48: =IF(Info!$E$5=FALSE," ",IF(AND($I$46=" ",Info!$E$5=TRUE),$I$37,IF(AND($I$46<>" ",Info!$E$5=TRUE),$I$46," "))) ->  | G48: =IFERROR(IF(Info!$K$12="Yes",$B$117&" "&"$"&ROUND($G$117,2)," ")," ") -> 
B49: =IF(AND($I$37=" ",$K$37=" ")," ",$Q$14&"'"&"s"&" "&"monthly support obl. is:") ->  | F49: =IF($K$46=" ",$K$37,$K$46) ->  | G49: =IF(Info!$K$12="Yes",$B$116&" "&"$"&ROUND($G$116,2)," ") -> 
C51: =Info!$M$18 -> 
C52: =Info!$M$19 ->  | K52: =Info!$Q$2 -> 2025 B Ed.
C53: =Info!$M$20 -> 
C54: =Info!$M$21 -> 
A69: Sole Guideline Worksheet (Imputation)
B70: Date: | C70: =TODAY() -> 2025-04-07
A71: Parents' Names: | C71: =Info!$B$1 ->  | G71: Docket#: | I71: =Info!$S$11 -> 
C72: =Info!$B$2 ->  | G72: DCSE #: | I72: =Info!$S$12 -> 
A75: Guideline Imputation Calculation | I75: =$U$7 ->  | K75: =$R$9 -> 
A76: Number of Children for whom parents share jt. legal resp. and support is being sought: | J76: =IF(AND(Info!$E$6<>3,ISNUMBER(Info!$B$8)),Info!$B$8," ") -> 0
A77: A. | B77: Income
A78: A1 | B78: Parent's monthly gross income: | I78: =$AD$7 ->  | K78: =$AD$8 -> 
A79: A2 | B79: Adjustments for spousal support received: | I79: =$AF$7 ->  | K79: =$AF$8 -> 
A80: A3 | B80: Adjustments for spousal support paid out: | I80: =$AG$7 ->  | K80: =$AG$8 -> 
A81: A4 | B81: # of other biological or adopted children residing with each Parent:
B82: =$I$7 ->  | C82: =IF($F$14=$M$14,$N$14,$M$14) -> 0 | E82: =$K$7 ->  | F82: =IF(Info!E$5=FALSE,IF(Info!$S$39="Col 1",$M$14,$N$14),$N$14) -> 0 | I82: =$AJ$7 ->  | K82: =$AJ$8 -> 
A83: A5 | B83: Other child support obligations actually paid out: | I83: =$AH$7 ->  | K83: =$AH$8 -> 
A84: A6 | B84: Credit for 1/2 of any self-employment tax paid out: | I84: =$AI$7 ->  | K84: =$AI$8 -> 
A85: A7 | B85: Reasonable Business Expenses | I85: =$X$7 ->  | K85: =$X$8 -> 
A86: A8 | B86: Available combined monthly gross income (GI): | I86: =IF(SUM($I$78:$I$79)-SUM($I$80:$I$85)<0,0,SUM($I$78:$I$79)-SUM($I$80:$I$85)) ->  | J86: ="+" -> + | K86: =IF(SUM($K$78:$K$79)-SUM($K$80:$K$85)<0,0,SUM($K$78:$K$79)-SUM($K$80:$K$85)) -> 
J87: =IF($I$86=" ",$K$86-0,IF($K$86=" ",$I$86-0,$I$86+$K$86)) -> 
J88: combined (GI)
A90: B. | B90: Sole Child Support Needs | I90: =$I$7 ->  | K90: =K75 -> 
A91: B1 | B91: Identify custodial parent: | E91: =$E$23 -> 
A92: B2 | B92: Monthly Basic Child Support Obligation | J92: ='Behind Curtain'!$S$32 -> 0
A93: B3 | B93: Monthly amount allowable for health care coverage: | F93: ="Paid by:" -> Paid by: | G93: =IF(AND($Q$25>0,$R$25>0),"Both Parents",IF(AND($Q$25>0,$R$25=0),$Q$23,IF(AND($Q$25=0,$R$25>0),$R$23," "))) ->  | J93: =IF(ISNUMBER(Info!$B$26),Info!$B$26,0)+IF(ISNUMBER(Info!$D$26),Info!$D$26,0)+IF(AND(ISNUMBER(Info!$F$26),Info!$E$5=TRUE),Info!$F$26,0) -> 0
A94: B4 | B94: Monthly amount allowable for employment-related child care | J94: =IF(AND(Info!$E$6=1,Info!$E$5=TRUE,ISNUMBER($O$26)),$O$26,$Q$26) -> 
A97: B5 | B97: Total monthly child support obligation (add lines B2, B3 and B4) | J97: =IF($E$91=""," ",SUM($J$92:$J$94)) -> 
A100: C. | B100: Party's Obligations | I100: =$I$7 ->  | K100: =$K$7 -> 
A102: C1 | B102: Percent obligation of each party (divide (GI) on line A17 by combined (GI)) | I102: =IF(AND($I$86=0,$K$86=0),50%,IF(OR(($J$87=0),($J$87=" "))," ",IF(AND($J$87>0,$K$86=0),100%,IF(AND($J$87>0,$K$86=" "),100%,IF(AND($J$87>0,$I$86=" "),0,IF(AND($J$87>0,$I$86=0),0,ROUND($I$86/$J$87,4))))))) ->  | K102: =IF(AND($I$86=0,$K$86=0),50%,IF(OR(($J$87=0),($J$87=" "))," ",IF(AND($J$87>0,$I$86=0),100%,IF(AND($J$87>0,$I$86=" "),100%,IF(AND($J$87>0,$K$86=" "),0,IF(AND($J$87>0,$K$86=0),0,ROUND($K$86/$J$87,4))))))) -> 
A103: C2 | B103: Monthly support obligation of each party | I103: =IF($E$91=""," ",IF($J$97*$I$102>168,ROUND($J$97*$I$102,2),IF(AND($J$76=1,$J$97*$I$102<68),68,IF(AND($J$76=2,$J$97*$I$102<104),104,IF(AND($J$76=3,$J$97*$I$102<126),126,IF(AND($J$76=4,$J$97*$I$102<141),141,IF(AND($J$76=5,$J$97*$I$102<155),155,IF(AND($J$76=6,$J$97*$I$102<168),168,ROUND($J$97*$I$102,2))))))))) ->  | K103: =IF($E$91=" "," ",IF($J$97*$K$102>168,ROUND($J$97*$K$102,2),IF(AND($J$76=1,$J$97*$K$102<68),68,IF(AND($J$76=2,$J$97*$K$102<104),104,IF(AND($J$76=3,$J$97*$K$102<126),126,IF(AND($J$76=4,$J$97*$K$102<141),141,IF(AND($J$76=5,$J$97*$K$102<155),155,IF(AND($J$76=6,$J$97*$K$102<168),168,ROUND($J$97*$K$102,2))))))))) -> 
A104: C3 | B104: ="Deduction for healthcare coverage paid by "&$K$32 ->  | I104: =IF(Info!$E$5=TRUE,$M$25," ") ->  | K104: =IF(Info!$E$5=TRUE,$N$25,IF(Info!$E$5=FALSE,$R$25," ")) -> 
A105: C4 | B105: Adjustment after health care coverage deduction | I105: =IF($I$104=" ",$I$103,IF($I$103-$I$104<=0,0,$I$103-$I$104)) ->  | K105: =IF($E$91=" "," ",IF($K$103-$K$104<=0,0,$K$103-$K$104)) -> 
A109: D. | B109: Adjustments, including SSDI derivative benefit paid to other parent | I109: =$I$7 ->  | K109: =$K$7 -> 
A110: D1 | B110: Total monthly support amount owed | I110: =IF(OR(ISNUMBER($I$111),ISNUMBER($I$112),ISNUMBER($I$113),ISNUMBER($K$111),ISNUMBER($K$112),ISNUMBER($K$113)),$I$105," ") ->  | K110: =IF($I$42<>" ",$K$105," ") -> 
A111: D2 | B111: Parent's SSDI derivative benefit paid to the other parent for benefit of child(ren): | I111: =IF(AND(Info!$E$5=TRUE,Info!$E$6<>3,Info!$B$29="yes",Info!$B$17>0,Info!$B$31=Info!$B$7),-(Info!$B$30)," ") ->  | K111: =IF(AND(Info!$E$5=TRUE,Info!$E$6=1,$AA$8="Yes",Info!$D$30>0),-(Info!$D$30),IF(AND(Info!$E$5=FALSE,ISNUMBER($V$8),Info!$E$6<>3,$AA$8="Yes",$AB$8="Yes"),-($V$8)," ")) -> 
A112: D3 | B112: Adjustment: | C112: =$C$44 ->  | I112: =IFERROR(IF(AND(Info!$E$6=1,Info!$E$5=TRUE,$M$26<>0,$N$26<>0),P43,IF(AND(Info!$E$6=1,Info!$E$5=TRUE,$M$26<>0),-($M$26*$K$102),IF(AND(Info!$E$6=1,Info!$E$5=TRUE,$N$26>0),-(K112)," ")))," ") ->  | K112: =IFERROR(IF(AND(Info!$E$6=1,Info!$E$5=TRUE,$M$26<>0,$N$26<>0),$Q$43,IF(AND(Info!$E$6=1,Info!$E$5=TRUE,$N$26<>0),-($N$26*$I$102),IF(AND(Info!$E$6<>3,Info!$E$5=FALSE,$R$26>0),-($R$26*$I$102),IF(I44<>"",-(I112),""))))," ") -> 
A113: D4 | B113: Adjustment: | C113: =IF($C$45=""," ",IF($C$45=" "," ",Info!$AH$41)) ->  | I113: =IFERROR(IF(AND(Info!$AK$61="",Info!$AL$61=""),"",IF(Info!$E$5=FALSE,"",IF(AND(Info!$AH$45="Yes",Info!$AH$46="Yes"),Info!$AK$61,IF(AND(Info!$AH$45="Yes",Info!$AH$46="No",Info!$AI$49="Party A"),Info!$AI$50,IF(AND(Info!$E$5=TRUE,Info!$AH$46="No",Info!$AJ$6=Info!$L$4),Info!$AL$50,""))))),"") ->  | K113: =IFERROR(IF(AND(Info!$AM$30="",Info!$AN$30=""),"",IF(AND(Info!$E$5=FALSE,Info!$E$6<>1,Info!$C$7<>FALSE),Info!$AL$55,IF(AND(Info!$E$5=FALSE,Info!$AL$61<>0),Info!$AL$61,IF(AND(Info!$E$5=FALSE,OR(Info!$AL$61=0,Info!$AL$61="",Info!$AL$61=" ")),"",IF(AND(Info!$AH$45="Yes",Info!$AH$46="Yes"),Info!$AL$61,IF(AND(Info!$AH$45="Yes",Info!$AH$46="No",Info!$AI$49="Party B"),Info!$AI$50,IF(AND(Info!$E$5=TRUE,Info!$AH$46="No",Info!$AJ$6=Info!L3),Info!$AL$50,""))))))),"") -> 
A114: D5 | B114: Adjustment: tot. mnthly support amt each parent pays to other: | I114: =IF($I$110=" "," ",IF($I$110+SUMIF($I$111:I$113,"<>#N/A")<=0,0,$I$110+SUMIF($I$111:$I$113,"<>#N/A"))) ->  | K114: =IF($K$110=" "," ",IF($K$110+SUMIF($K$111:$K$113,"<>#N/A")<=0,0,$K$110+SUMIF($K$111:$K$113,"<>#N/A"))) -> 
B116: =IF(AND($I$105=" ",$K$105=" ")," ",K109&"'s"&" "&"Imputed Monthly Support Obl:") ->  | G116: =IF($K$114=" ",$K$105,$K$114) ->  | K116: =Info!$Q$2 -> 2025 B Ed.
B117: =IF(AND($I$105=" ",$K$105=" ")," ",IF(Info!$E$5=TRUE,I109&"'s"&" "&"Imputed Monthly Support Obl:"," ")) ->  | G117: =IF(Info!$E$5=FALSE," ",IF(AND($I$114=" ",Info!$E$5=TRUE),$I$105,IF(AND($I$114<>" ",Info!$E$5=TRUE),$I$114," "))) -> 

Sheet Shared
A1: Shared Guideline Worksheet | Q1: =IF(SEARCH(" ",$E$3),LEFT($E$3,SEARCH(" ",$E$3)),$E$3) ->  | AC1: Yes
B2: Date: | C2: =TODAY() -> 2025-04-07 | Q2: =IF(SEARCH(" ",$E$4),LEFT($E$4,SEARCH(" ",$E$4)),$E$4) ->  | AA2: Switch | AB2: Yes | AC2: No
C3: Parents' Names: | E3: =Info!$B$1 ->  | I3: Docket #: | J3: =Info!$S$11 ->  | Q3: Parties' Names
E4: =Info!$B$2 ->  | I4: DCSE#: | J4: =Info!$S$12 ->  | Q4: Mother/Father
L5: =($L$8+$L$9)-($L$10+$L$13+$L$14) -> 0 | Q5: Husband/Wife
A6: Guideline Calculation | I6: =IF(ISTEXT($E$3),$Q$7," ") ->  | L6: =IF(ISTEXT($E$4),$Q$8," ") ->  | Q6: Party A/Party B
A7: A. | B7: Income | P7: Party A | Q7: =Info!$J$3 -> 
A8: A1 | B8: Parent's monthly gross income: | I8: =Info!$B$15+Info!$B$17+Info!$B$18 -> 0 | L8: =Info!$D$15+Info!$D$17+Info!$D$18 -> 0 | P8: Party B | Q8: =Info!$J$4 -> 
A9: A2 | B9: Spousal Support Income: | I9: =Info!$B$16 -> 0 | L9: =Info!$D$16 -> 0
A10: A3 | B10: Income deduction for spousal support paid by the party | I10: =Info!$B$20 -> 0 | L10: =Info!$D$20 -> 0
A11: A4 | B11: # of other biological or adopted children residing with each party:
B12: =Q7 ->  | C12: =IF(Info!$B$21=0," ",Info!$B$21) ->  | E12: =Q8 ->  | F12: =IF(Info!$D$21=0," ",Info!$D$21) ->  | I12: =Info!$F$22 -> 0 | L12: =Info!$G$22 -> 0
A13: A5 | B13: Income deduction for other child support paid by the party | I13: =Info!$B$22 -> 0 | L13: =Info!$D$22 -> 0
A14: A6 | B14: Income deduction for 1/2 of self-employment tax paid: | I14: =Info!$B$23 -> 0 | L14: =Info!$D$23 -> 0
A15: A7 | B15: Income deduction for Reasonable Business Expenses | I15: =Info!$B$24 -> 0 | L15: =Info!$D$24 -> 0 | N15: =IF(AND($I$16=" ",$L$16=" ")," ",IF($I$16=" ",$L$16-0,IF($L$16=" ",$I$16-0,$I$16+$L$16))) -> 0
A16: A8 | B16: Available combined monthly gross income (GI): | I16: =IF(AND($I$8=0,$I$9=0),0,IF(SUM($I$8:$I$9)- SUM($I$10:$I$15)<0,0,SUM($I$8:$I$9)- SUM($I$10:$I$15))) -> 0 | J16: ="+" -> + | L16: =IF(AND($L$8=0,$L$9=0,$L$10=0,$L$12=" ",$L$13=0,$L$14=0)," ",IF(SUM($L$8:$L$9)-SUM($L$10:$L$15)<0,0,SUM($L$8:$L$9)-SUM($L$10:$L$15))) -> 0 | M16: = | N16: =I16+L16 -> 0
A17: A9 | B17: Parent's income share: divide each parent's GI (A8) by combined GI: | I17: =IF(AND($I$16=0,$L$16=0),50%,IF(OR(($N$15=0),($N$15=" "))," ",IF(AND($N$15>0,$L$16=0),100%,IF(AND($N$15>0,$L$16=" "),100%,IF(AND($N$15>0,$I$16=" "),0,IF(AND($N$15>0,$I$16=0),0,ROUND($I$16/$N$15,4))))))) -> 0.5 | L17: =IF(AND($I$16=0,$L$16=0),50%,IF(OR(($N$15=0),($N$15=" "))," ",IF(AND($N$15>0,$I$16=0),100%,IF(AND($N$15>0,$I$16=" "),100%,IF(AND($N$15>0,$L$16=" "),0,IF(AND($N$15>0,$L$16=0),0,ROUND($L$16/$N$15,4))))))) -> 0.5 | N17: combined (GI)
A19: B. | B19: Shared Child Support Needs
A20: B1 | B20: Number of children for whom support is sought: | J20: =Info!$B$8 -> 0 | N20: =$J$20 -> 0
A21: B2 | B21: Child support from guideline table: | J21: =Info!$H$23 -> 0
A22: B3 | B22: Total shared support - Line () x1.4: | J22: =$J$21*1.4 -> 0 | N22: =IF($N$21=" "," ", $N$21*1.4) -> 0
I23: =$Q$7 ->  | L23: =$Q$8 -> 
A25: B4 | B25: Total days in year each parent has custody: | I25: =Info!$H$9 ->  | L25: =IF($I$25=0," ",365-$I$25) -> 
A26: B5 | B26: Each parent's custody share | I26: =IF($J$20=0," ",ROUND($I$25/365,4)) ->  | L26: =IF($J$20=0," ",ROUND($L$25/365,4)) -> 
A27: C. | B27: EACH PARENT'S SUPPORT OBLIGATION TO OTHER PARENT
L28: =$Q$8 -> 
A29: C1 | B29: =IF($E$3=""," ",$Q$8&"'"&"s"&" "&"o"&"b"&"l"&"i"&"g"&"a"&"t"&"i"&"o"&"n"&" "&"t"&"o"&" "&$Q$7) -> 
B30: =IF($E$3=""," "," "&" "&"B"&"a"&"s"&"i"&"c"&" "&"s"&"u"&"p"&"p"&"o"&"r"&"t"&" "&"t"&"o"&" "&$Q$7) ->  | L30: =$J$22*$I$26 -> 
B31: =IF($E$3=""," "," "&" "&"H"&"e"&"a"&"l"&"t"&"h"&" "&"c"&"a"&"r"&"e"&" "&"c"&"o"&"v"&"e"&"r"&"a"&"g"&"e"&" "&"p"&"a"&"i"&"d"&" "&"b"&"y"&" "&$Q$7) ->  | L31: =Info!$B$26 -> 0
B32: =IF($E$3=""," "," "&" "&"W"&"o"&"r"&"k"&"-"&"r"&"e"&"l"&"a"&"t"&"e"&"d"&" "&"c"&"h"&"i"&"l"&"d"&" "&"c"&"a"&"r"&"e"&" "&"o"&"f"&" "&$Q$7) ->  | L32: =Info!$B$27 -> 0
B33: Total | L33: =IF($J$20=0," ",SUM($L$30:$L$32)) -> 
B34: =IF($E$3=""," ",$L$28&"'"&"s"&" "&"o"&"b"&"l"&"i"&"g"&"a"&"t"&"i"&"o"&"n") ->  | L34: =IF($L$33=" "," ",$L$33*$L$17) -> 
A35: C2 | B35: =IF(E$3=""," ",$Q$7&"'"&"s"&" "&"o"&"b"&"l"&"i"&"g"&"a"&"t"&"i"&"o"&"n"&" "&"t"&"o"&" "&$Q$8) ->  | I35: =$I$23 -> 
B36: =IF($E$3=""," "," "&" "&"B"&"a"&"s"&"i"&"c"&" "&"s"&"u"&"p"&"p"&"o"&"r"&"t"&" "&"t"&"o"&" "&$Q$8) ->  | I36: =$J$22*$L$26 -> 
B37: =IF($E$3=""," "," "&" "&"H"&"e"&"a"&"l"&"t"&"h"&" "&"c"&"a"&"r"&"e"&" "&"c"&"o"&"v"&"e"&"r"&"a"&"g"&"e"&" "&"p"&"a"&"i"&"d"&" "&"b"&"y"&" "&$Q$8) ->  | I37: =Info!$D$26 -> 0
B38: =IF($E$3=""," "," "&" "&"W"&"o"&"r"&"k"&"-"&"r"&"e"&"l"&"a"&"t"&"e"&"d"&" "&"c"&"h"&"i"&"l"&"d"&" "&"c"&"a"&"r"&"e"&" "&"o"&"f"&" "&$Q$8) ->  | I38: =Info!D27 -> 0
B39: Total | I39: =IF($J$20=0," ",SUM($I$36:$I$38)) -> 
B40: =IF($E$4=""," ",$I$35&"'"&"s"&" "&"o"&"b"&"l"&"i"&"g"&"a"&"t"&"i"&"o"&"n") ->  | I40: =IF($I$39=" "," ",I$39*$I$17) -> 
A41: D. | B41: Net Monthly Child Support Payable from One parent to the Other
I42: =$Q$7 ->  | L42: =$Q$8 -> 
A43: D1 | B43: Shared custody child support amount - difference between totals | I43: =$I$40 ->  | L43: =$L$34 ->  | N43: =IF(AND($I$43=" ",$L$43=" ")," ",IF($I$43>$L$43,ROUND($I$43-$L$43,0),ROUND($L$43-$I$43,0))) -> 
A44: D2 | B44: Payable to: | C44: =IF($J$20=0," ",IF($I$43<$L$34,$Q$7,$Q$8)) ->  | J44: =IF(AND($I$43=" ",$L$43=" ")," ",IF($I$43>$L$43,$I$43-$L$43,$L$43-$I$43)) -> 
A45: D3 | B45: Min. Std. Test § 20-108.2 (G)(3)(d): # members in household: | I45: =IF(OR($C$12=" ",$C$12=""),1+$J$20+0,1+$J$20+$C$12) -> 1 | L45: =IF(OR($F$12=" ",$F$12=""),1+$J$20+0,1+$J$20+$F$12) -> 1
A46: D4 | B46: Monthly income test at 150% of fed. poverty level (household size): | I46: =IF($I$45=0," ",(IF($I$45<=8,VLOOKUP($I$45,Info!$AA$43:'Info'!$AB$50,2,TRUE),6768.75+($I$45-8)*687.5))) -> 1956.25 | L46: =IF($L$45=0," ",(IF($L$45<=8,VLOOKUP($L$45,Info!$AA$43:'Info'!$AB$50,2,TRUE),6768.75+($L$45-8)*687.5))) -> 1956.25
A47: D5 | B47: Is either parent's gross income less than 150% of fed. poverty level? | I47: =IF($I$45=0," ",IF(OR($I$16=" ",$I$16=0),"Yes",IF($I$46>=$I$16,"Yes","No"))) -> Yes | L47: =IF($L$45=0," ",IF(OR($L$16=" ",$L$16=0),"Yes",IF($L$46>=$L$16,"Yes","No"))) -> Yes
A48: D6 | B48: Min. Std. Test § 20-108.2 (G)(3)(d) results: | F48: =IF(AND($I$46=" ",$L$46=" ")," ",IF(OR($I$47="Yes",$L$47="Yes"),"Failed Minimum Standard Test - see below","Passed Min. Std. Test")) -> Failed Minimum Standard Test - see below
A50: E. | B50: Adjustments including for SSDI Derivative Benefit Paid to Other Parent | I50: =$Q$7 ->  | L50: =$Q$8 -> 
A51: E1 | B51: Total monthly support amt each parent owes the other parent: | I51: =IF(AND($I$52=" ",$L$52=" ",$I$53="",$I$54="",$L$53="",$L$54="")," ",IF(AND($I$52=" ",$L$52=" ",$L$53=" ",$L$54=" ",$I$53=" ",$I$54=" "),"",$I$43)) ->  | L51: =IF($I$51="","",$L$43) -> 
A52: E2 | B52: Parent's SSDI derivative benefit paid to the other parent for child's benefit: | I52: =IF($I$50=Info!$R$31,Info!$B$30,0) -> 0 | L52: =IF($L$50=Info!$R$31,Info!$D$30,0) -> 0
A53: E3 | B53: Adjustment: | C53: =Info!$AI$11 ->  | I53: =IF(OR(Info!AM$30="",Info!AM$30=" "),0,Info!AM$30) -> 0 | L53: =IF(OR(Info!$AN$30="",Info!$AN$30=" "),0,Info!$AN$30) -> 0
A54: E4 | B54: Adjustment: | C54: =Info!$AQ$12 ->  | I54: =IF(ISNUMBER(Info!$AW$6),Info!$AW$6,0) -> 0 | L54: =IF(OR(Info!$AX$6="",Info!$AX$6=" "),0,Info!$AX$6) -> 0
A55: E5 | B55: Adjustment: tot. mnthly support amt each parent pays to other: | I55: =IF(AND($I$51=" ",$L$51=" "),"",IF($I$51-SUM($I$52:$I$54)<=0,0,$I$51-SUM($I$52:$I$54))) ->  | J55: ="-" -> - | L55: =IF(AND($I$51=" ",$L$51=" "),"",IF($L$51-SUM($L$52:$L$54)<=0,0,$L$51-SUM($L$52:$L$54))) ->  | N55: =IF(AND($I$55=" ",$L$55=" ")," ",IF($I$55>$L$55,$I$55-$L$55,$L$55-$I$55)) -> 
A56: E6 | B56: Payable to: | C56: =IF($I$55=" "," ",IF($I$55<$L$55,$Q$7,$Q$8)) ->  | J56: =IF(AND($I$55=" ",$L$55=" ")," ",IF($I$55>$L$55,$I$55-$L$55,$L$55-$I$55)) -> 
B58: =IF(AND($C$56=" ",$C$44=" ")," ",IF($C$56=$Q$7,$Q$8&"'"&"s"&" "&"monthly"&" "&"support"&" "&"obl."&" "&"is:",IF($C$56=$Q$8,$Q$7&"'"&"s"&" "&"monthly"&" "&"support"&" "&"obl."&" "&"is:",IF($C$56=" ",IF($C$44=$Q$7,$Q$8&"'"&"s"&" "&"monthly"&" "&"support"&" "&"obl."&" "&"is:",IF($C$44=$Q$8,$Q$7&"'"&"s"&" "&"monthly"&" "&"support"&" "&"obl."&" "&"is:")))))) -> 's monthly support obl. is: | F58: =IF(AND($C$44=0,$C$56=" ")," ",IF(AND($N$43>0,$N$55=" "),"$" & ROUND(N$43,2),"$" & ROUND($N$55,2))) -> 
B59: =$A$153 ->  | F59: =$F$153 -> 
B60: =Info!$M$18 -> 
B61: =Info!$M$19 ->  | L61: =Info!$Q$2 -> 2025 B Ed.
B62: =Info!$M$20 -> 
B63: =Info!$M$21 -> 
B65: =IF(Info!$J$23=FALSE,"",Info!$J$23) -> 
B66: =IF(Info!$K$12="No","",IF(AND(I47="No",L47="No")," ","For Sole Guideline"&" "&Sole!$B$116&" "&"$"&ROUND(Sole!$G$116,2))) -> 
A95: Shared Guideline Worksheet (Imputation)
B96: Date: | C96: =TODAY() -> 2025-04-07
C97: Parents' Names: | E97: =Info!$B$1 ->  | I97: Docket #: | J97: =Info!$S$11 -> 
E98: =Info!$B$2 ->  | I98: DCSE#: | J98: =Info!$S$12 -> 
A101: Guideline Calculation | I101: =IF(ISTEXT($E$3),$Q$7," ") ->  | L101: =IF(ISTEXT($E$4),$Q$8," ") -> 
A102: A. | B102: Income
A103: A1 | B103: Parent's monthly gross income: | I103: =Info!$K$11 -> 0 | L103: =Info!$L$11 -> 0
A104: A2 | B104: Spousal Support Income: | I104: =Info!$B$16 -> 0 | L104: =Info!$D$16 -> 0
A105: A3 | B105: Income deduction for spousal support paid by the party | I105: =Info!$B$20 -> 0 | L105: =Info!$D$20 -> 0
A106: A4 | B106: # of other biological or adopted children residing with each party:
B107: =$I$101 ->  | C107: =Info!$B$21 -> 0 | E107: =$L$101 ->  | F107: =Info!$D$21 -> 0 | I107: =Info!$M$8 -> 0 | L107: =Info!$N$8 -> 0
A108: A5 | B108: Income deduction for other child support paid by the party | I108: =Info!$B$22 -> 0 | L108: =Info!$D$22 -> 0
A109: A6 | B109: Income deduction for 1/2 of self-employment tax paid: | I109: =Info!$B$23 -> 0 | L109: =Info!$D$23 -> 0
A110: A7 | B110: Income deduction for Reasonable Business Expenses | I110: =Info!$B$24 -> 0 | L110: =Info!$D$24 -> 0 | N110: =IF(AND($I$16=" ",$L$16=" ")," ",IF($I$16=" ",$L$16-0,IF($L$16=" ",$I$16-0,$I$16+$L$16))) -> 0
A111: A8 | B111: Available combined monthly gross income (GI): | I111: =IF(AND($I$103=0,$I$104=0),0,IF(SUM($I$103:$I$104)- SUM($I$105:$I$110)<0,0,SUM($I$103:$I$104)- SUM($I$105:$I$110))) -> 0 | J111: ="+" -> + | L111: =IF(AND($L$103=0,$L$104=0),0,IF(SUM($L$103:$L$104)- SUM($L$105:$L$110)<0,0,SUM($L$103:$L$104)- SUM($L$105:$L$110))) -> 0 | M111: = | N111: =$I$111+$L$111 -> 0
A112: A9 | B112: Parent's income share: divide each parent's GI (A8) by combined GI: | I112: =IF(AND($I$111=0,$L$111=0),50%,IF(OR(($N$111=0),($N$111=" "))," ",IF(AND($N$111>0,$L$111=0),100%,IF(AND($N$111>0,$L$111=" "),100%,IF(AND($N$111>0,$I$111=" "),0,IF(AND($N$111>0,$I$111=0),0,ROUND($I$111/$N$111,4))))))) -> 0.5 | L112: =IF(AND($I$111=0,$L$111=0),50%,IF(OR(($N$111=0),($N$111=" "))," ",IF(AND($N$111>0,$I$111=0),100%,IF(AND($N$111>0,$I$111=" "),100%,IF(AND($N$111>0,$L$111=" "),0,IF(AND($N$111>0,$L$111=0),0,ROUND($L$111/$N$111,4))))))) -> 0.5 | N112: combined (GI)
A114: B. | B114: Shared Child Support Needs
A115: B1 | B115: Number of children for whom support is sought: | J115: =Info!$B$8 -> 0 | N115: =$J$20 -> 0
A116: B2 | B116: Child support from guideline table: | J116: =Info!O7 -> 0
A117: B3 | B117: Total shared support - Line () x1.4: | J117: =$J$116*1.4 -> 0 | N117: =IF($N$21=" "," ", $N$21*1.4) -> 0
I118: =$I$101 ->  | L118: =$L$101 -> 
A120: B4 | B120: Total days in year each parent has custody: | I120: =Info!$H$9 ->  | L120: =IF($I$120=0," ",365-$I$120) -> 
A121: B5 | B121: Each parent's custody share | I121: =IF($J$115=0," ",ROUND($I$120/365,4)) ->  | L121: =IF($J$115=0," ",ROUND($L$120/365,4)) -> 
A122: C. | B122: EACH PARENT'S SUPPORT OBLIGATION TO OTHER PARENT
L123: =$Q$8 -> 
A124: C1 | B124: =IF($E$3=""," ",$Q$8&"'"&"s"&" "&"o"&"b"&"l"&"i"&"g"&"a"&"t"&"i"&"o"&"n"&" "&"t"&"o"&" "&$Q$7) -> 
B125: =IF($E$3=""," "," "&" "&"B"&"a"&"s"&"i"&"c"&" "&"s"&"u"&"p"&"p"&"o"&"r"&"t"&" "&"t"&"o"&" "&$Q$7) ->  | L125: =$J$117*I121 -> 
B126: =IF($E$3=""," "," "&" "&"H"&"e"&"a"&"l"&"t"&"h"&" "&"c"&"a"&"r"&"e"&" "&"c"&"o"&"v"&"e"&"r"&"a"&"g"&"e"&" "&"p"&"a"&"i"&"d"&" "&"b"&"y"&" "&$Q$7) ->  | L126: =Info!$B$26 -> 0
B127: =IF($E$3=""," "," "&" "&"W"&"o"&"r"&"k"&"-"&"r"&"e"&"l"&"a"&"t"&"e"&"d"&" "&"c"&"h"&"i"&"l"&"d"&" "&"c"&"a"&"r"&"e"&" "&"o"&"f"&" "&$Q$7) ->  | L127: =Info!$B$27 -> 0
B128: Total | L128: =IF($J$115=0," ",SUM($L$125:$L$127)) -> 
B129: =IF($E$3=""," ",$L$28&"'"&"s"&" "&"obligation") ->  | L129: =IF($L$128=" "," ",$L$128*$L$112) -> 
A130: C2 | B130: =IF(E$3=""," ",$Q$7&"'"&"s"&" "&"o"&"b"&"l"&"i"&"g"&"a"&"t"&"i"&"o"&"n"&" "&"t"&"o"&" "&$Q$8) ->  | I130: =$I$23 -> 
B131: =IF($E$3=""," "," "&" "&"B"&"a"&"s"&"i"&"c"&" "&"s"&"u"&"p"&"p"&"o"&"r"&"t"&" "&"t"&"o"&" "&$Q$8) ->  | I131: =$J$117*$L$121 -> 
B132: =IF($E$3=""," "," "&" "&"H"&"e"&"a"&"l"&"t"&"h"&" "&"c"&"a"&"r"&"e"&" "&"c"&"o"&"v"&"e"&"r"&"a"&"g"&"e"&" "&"p"&"a"&"i"&"d"&" "&"b"&"y"&" "&$Q$8) ->  | I132: =Info!$D$26 -> 0
B133: =IF($E$3=""," "," "&" "&"W"&"o"&"r"&"k"&"-"&"r"&"e"&"l"&"a"&"t"&"e"&"d"&" "&"c"&"h"&"i"&"l"&"d"&" "&"c"&"a"&"r"&"e"&" "&"o"&"f"&" "&$Q$8) ->  | I133: =Info!$D$27 -> 0
B134: Total | I134: =IF($J$115=" "," ",SUM($I$131:$I$133)) -> 
B135: =IF($E$4=""," ",$I$35&"'"&"s"&" "&"o"&"b"&"l"&"i"&"g"&"a"&"t"&"i"&"o"&"n") ->  | I135: =IF($I$134=" "," ",I$134*$I$112) -> 
A136: D. | B136: Net Monthly Child Support Payable from One parent to the Other
I137: =$Q$7 ->  | L137: =$Q$8 -> 
A138: D1 | B138: Shared custody child support amount - difference between totals | I138: =$I$135 ->  | L138: =$L$129 ->  | N138: =IF(AND($I$43=" ",$L$43=" ")," ",IF($I$43>$L$43,ROUND($I$43-$L$43,0),ROUND($L$43-$I$43,0))) -> 
A139: D2 | B139: Payable to: | C139: =IF($J$115=0," ",IF($I$138<$L$138,$Q$7,$Q$8)) ->  | J139: =IF(AND($I$138=" ",$L$138=" ")," ",IF($I$138>$L$138,$I$138-$L$138,$L$138-$I$138)) -> 
A140: D3 | B140: Min. Std. Test § 20-108.2 (G)(3)(d): # members in household: | I140: =$I$45 -> 1 | L140: =$L$45 -> 1
A141: D4 | B141: Monthly income test at 150% of fed. poverty level (household size): | I141: =IF($I$45=0," ",(IF($I$45<=8,1595+(($I$45*560)-560),5515+(($I$45-8)*560)))) -> 1595 | L141: =IF($L$45=0," ",(IF($L$45<=8,1595+(($L$45*560)-560),5515+(($L$45-8)*560)))) -> 1595
A142: D5 | B142: Is either parent's gross income less than 150% of fed. poverty level? | I142: =IF($I$141=0," ",IF(OR($I$111=" ",$I$111=0),"No",IF($I$141>=$I$111,"Yes","No"))) -> No | L142: =IF($L$141=0," ",IF(OR($L$111=" ",$L$111=0),"No",IF($L$141>=$L$111,"Yes","No"))) -> No
A143: D6 | B143: Min. Std. Test § 20-108.2 (G)(3)(d) results: | F143: =IF(AND($I$141=" ",$L$141=" ")," ",IF(OR($I$142="Yes",$L$142="Yes"),"Failed Minimum Standard Test"," ")) -> 
A145: E. | B145: Adjustments including for SSDI Derivative Benefit Paid to Other Parent | I145: =$Q$7 ->  | L145: =$Q$8 -> 
A146: E1 | B146: Total monthly support amt each parent owes the other parent: | I146: =$I$138 ->  | L146: =$L$138 -> 
A147: E2 | B147: Parent's SSDI derivative benefit paid to the other parent for child's benefit: | I147: =IF($I$145=Info!$R$31,Info!$B$30,0) -> 0 | L147: =IF($L$145=Info!$R$31,Info!$D$30,0) -> 0
A148: E3 | B148: Adjustment: | C148: =Info!$AH$41 ->  | I148: =IF(OR(Info!AK$61="",Info!AK$61=" "),0,Info!AK$61) -> 0 | L148: =IF(OR(Info!$AL$61="",Info!$AL$61=" "),0,Info!$AL$61) -> 0
A149: E4 | B149: Adjustment: | C149: =$C$54 ->  | I149: =$I$54 -> 0 | L149: =L54 -> 0
A150: E5 | B150: Adjustment: tot. mnthly support amt each parent pays to other: | I150: =IF($I$146-SUM($I$147:$I$149)<=0,0,$I$146-SUM($I$147:$I$149)) ->  | J150: ="-" -> - | L150: =IF(L$146-SUM($L$147:$L$149)<=0,0,$L$146-SUM($L$147:$L$149)) ->  | N150: =IF(AND($I$55=" ",$L$55=" ")," ",IF($I$55>$L$55,$I$55-$L$55,$L$55-$I$55)) -> 
A151: E6 | B151: Payable to: | C151: =IF($I$150<$L$150,$Q$7,$Q$8) ->  | J151: =IF($I$150>$L$150,$I$150-$L$150,$L$150-$I$150) -> 
A153: =IF(Info!K12="No"," ",IF(Shared!$C$151=Shared!$I$145,Shared!$L$145&"'"&"s"&" "&"imputed monthly"&" "&"support"&" "&"obl."&" "&"is:",IF(Shared!$C$151=Shared!$L$145,Shared!$I$145&"'"&"s"&" "&"imputed monthly"&" "&"support"&" "&"obl."&" "&"is:"))) ->  | F153: =IF(Info!$K$12="No"," ","$"&ROUNDDOWN(Shared!$J$151,2)) ->  | L153: =Info!$Q$2 -> 2025 B Ed.

Sheet Split
A1: Split Guideline Worksheet | BC1: Yes
B2: Date: | C2: =TODAY() -> 2025-04-07 | BA2: Switch | BB2: Yes | BC2: No
C3: Parents' Names: | E3: =Info!$B$1 ->  | G3: Docket #: | I3: =Info!$S$11 -> 
E4: =Info!$B$2 ->  | H4: DCSE#: | I4: =Info!$S$12 -> 
A6: Guideline Calculation | I6: =IF(ISTEXT($E$3),$Q$7," ") ->  | L6: =IF(ISTEXT($E$4),$Q$8," ") -> 
A7: A. | B7: Income | P7: Party A | Q7: =Info!$J$3 -> 
A8: A1 | B8: Parent's monthly gross income: | I8: =Info!$B$15+Info!$B$17+Info!$B$18 -> 0 | L8: =Info!$D$15+Info!$D$17+Info!$D$18 -> 0 | P8: Party B | Q8: =Info!$J$4 -> 
A9: A2 | B9: Spousal Support Income: | I9: =Info!$B$16 -> 0 | L9: =Info!$D$16 -> 0
A10: A3 | B10: Income deduction for spousal support paid by the party | I10: =Info!$B$20 -> 0 | L10: =Info!$D$20 -> 0
A11: A4 | B11: # of other biological or adopted children residing with each party:
B12: =Q7 ->  | C12: =IF(Info!$B$21=0," ",Info!$B$21) ->  | E12: =Q8 ->  | F12: =IF(Info!$D$21=0," ",Info!$D$21) ->  | I12: =Info!$F$22 -> 0 | L12: =Info!$G$22 -> 0
A13: A5 | B13: Income deduction for other child support paid by the party | I13: =Info!$B$22 -> 0 | L13: =Info!$D$22 -> 0 | P13: Party A | Q13: =Info!$J$3 -> 
A14: A6 | B14: Income deduction for 1/2 of self-employment tax paid: | I14: =Info!$B$23 -> 0 | L14: =Info!$D$23 -> 0 | P14: Party B | Q14: =Info!$J$4 -> 
A15: A7 | B15: Income deduction for Reasonable Business Expenses | I15: =Info!$B$24 -> 0 | L15: =Info!$D$24 -> 0 | N15: =IF(AND($I$16=" ",$L$16=" ")," ",IF($I$16=" ",$L$16-0,IF($L$16=" ",$I$16-0,$I$16+$L$16))) -> 0
A16: A8 | B16: Available combined monthly gross income (GI): | I16: =IF(AND($I$8=0,$I$9=0,$I$10=0,$I$12=" ",$I$13=0,$I$14=0,$I$15=0)," ",IF(SUM($I$8:$I$9)- SUM($I$10:$I$15)<0,0,SUM($I$8:$I$9)- SUM($I$10:$I$15))) -> 0 | J16: ="+" -> + | L16: =IF(AND($L$8=0,$L$9=0,$L$10=0,$L$12=" ",$L$13=0,$L$14=0,$L$15=0)," ",IF(SUM($L$8:$L$9)-SUM($L$10:$L$15)<0,0,SUM($L$8:$L$9)-SUM($L$10:$L$15))) -> 0 | M16: = | N16: =I16+L16 -> 0
A17: A9 | B17: Parent's income share: divide each parent's GI (A8) by combined GI: | I17: =IF(AND($I$16=0,$L$16=0),50%,IF(OR(($N$15=0),($N$15=" "))," ",IF(AND($N$15>0,$L$16=0),100%,IF(AND($N$15>0,$L$16=" "),100%,IF(AND($N$15>0,$I$16=" "),0,IF(AND($N$15>0,$I$16=0),0,ROUND($I$16/$N$15,4))))))) -> 0.5 | L17: =IF(AND($I$16=0,$L$16=0),50%,IF(OR(($N$15=0),($N$15=" "))," ",IF(AND($N$15>0,$I$16=0),100%,IF(AND($N$15>0,$I$16=" "),100%,IF(AND($N$15>0,$L$16=" "),0,IF(AND($N$15>0,$L$16=0),0,ROUND($L$16/$N$15,4))))))) -> 0.5 | N17: combined (GI)
A18: A10 | B18: Number of children for which that person is the noncustodial parent. | I18: =Info!$B$9 -> 0 | L18: =Info!$B$8 -> 0
A20: B. | B20: Split Custody Support | I20: =IF(ISTEXT($E$3),$Q$7," ") ->  | L20: =IF(ISTEXT($E$4),$Q$8," ") -> 
A21: B1 | B21: Monthly basic child support obligation for number of children listed above | I21: =Info!$H$24 -> 0 | L21: =Info!$H$23 -> 0
A22: B2 | B22: Monthly amt for health care coverage paid by other parent or that other parent’s spouse | I22: =Info!$D$26 -> 0 | L22: =Info!$B$26 -> 0
A23: B3 | B23: Monthly amount allowable for employment-related child care expense paid by other parent | I23: =Info!$D$27 -> 0 | L23: =Info!$B$27 -> 0
A24: B4 | B24: Total | I24: =SUM($I$21:$I$23) -> 0 | L24: =SUM($L$21:$L$23) -> 0 | Q24: Mother
A25: B5 | B25: Total monthly child support obligation of each party | I25: =VLOOKUP(I18,Info!AW13:AZ18,3,FALSE) ->  | L25: =VLOOKUP($L$18,Info!$BD$13:$BH$18,3,FALSE) -> 
A26: B6 | B26: Payable to: | D26: =IF($I$25=" "," ",IF($I$25<$L$25,$Q$13,$Q$14)) ->  | I26: =IF($I$20=$D$26,$L$25-$I$25,$I$25-$L$25) -> 
J27: net amount
A28: C | B28: Adjustments including SSDI Derivative Benefit Paid to Other Parent | I28: =IFERROR($Q$13," ") ->  | L28: =IFERROR($Q$14," ") -> 
A29: C1 | B29: Total monthly support amt. each parent owes the other parent: | I29: =IF(AND($L$30=" ",$I$30=" ",$L$31="",$I$31="",$L$32="",$I$32="")," ",IF(AND($L$30=" ",$I$30=" ",$L$31=" ",$I$31=" ",$L$32=" ",$I$32=" ")," ",$I$25)) ->  | L29: =IF($I$29=" "," ",$L$25) -> 
A30: C2 | B30: Parent's SSDI derivative benefit paid to the other parent for the benefit of child(ren): | I30: =IF(Info!$B$31=$L$28,Info!$B$30," ") ->  | L30: =IF(Info!$D$31=$I$28,Info!$D$30," ") -> 
A31: C3 | B31: Adjustment: | C31: =Info!$AI$11 ->  | I31: =Info!$AM$30 ->  | L31: =Info!$AN$30 -> 
A32: C4 | B32: Adjustment: | C32: =Info!$AQ$12 ->  | I32: =Info!$AW$6 -> 0 | L32: =Info!$AX$6 -> 
A33: C5 | B33: Adjustment: tot. mnthly support amt each parent pays to other: | I33: =IF($I$29=" "," ",IF($I$29-SUM($I$30:$I$32)<=0,0,$I$29-SUM($I$30:$I$32))) ->  | L33: =IF($I$29=" "," ",IF($L$29-SUM($L$30:$L$32)<=0,0,$L$29-SUM($L$30:$L$32))) -> 
A34: C6 | B34: Payable to: | D34: =IF($I$33=$L$33," ",IF($L$33>$I$33,$Q$13,$Q$14)) ->  | I34: =IF($I$29=" "," ",IF(AND($I$33=" ",$L$33=0),0,IF(AND($I$33=0,$L$33=" "),0,IF($I$33>$L$33,$I$33-$L$33,$L$33-$I$33)))) -> 
J35: net amount
B36: =IF($AA$41=FALSE,"No Support owed",$AA$41) ->  | F36: =IF(B36="No Support owed"," ",ROUND(IF($I$34=" ",$I$26,$I$34),2)) ->  | AA36: When both I26 and I34 are blank | AG36: =IF(AND($I$26=" ",$I$34=" ")," ") -> 
C37: =IF(Info!K12="No"," ",$B$131) ->  | J37: ="-" -> - | N37: =IF(AND($I$33=" ",$L$33=" ")," ",IF(AND($I$33=" ",$L$33=0),0,IF(AND($I$33=0,$L$33=" "),0,IF($I$33>$L$33,$I$33-$L$33,$L$33-$I$33)))) ->  | AA37: When both I26 and I34 are = to 0 | AG37: =IF(AND($I$26=0,$I$34=0),"No support is owed") -> 
B38: =Info!$M$18 ->  | AA38: When I26 is greater than 0 & I34=0 | AG38: =IF(AND($I$26<>0,$I$34=0),"No support is owed") -> 
B39: =Info!$M$19 ->  | L39: =Info!$Q$2 -> 2025 B Ed. | AA39: When I26 is greater than 0 and I34 is blank | AG39: =IF(AND($I$26<>0,$I$34=" "),IF($D$26=$L$20,$I$20&"'"&"s"&" "&"monthly support obl. is:",IF($D$26=$I$20,$L$20&"'"&"s"&" "&"monthly support obl. is:"))) -> 
B40: =Info!$M$20 ->  | AA40: When I26 is greater than or = 0 and I34 is greater than 0 | AG40: =IF(AND($I$26>=0,$I$34<>0),IF($D$34=$L$20,$Q$13&"'"&"s"&" "&"monthly support obl. is:",IF($D$34=$I$20,$Q$14&"'"&"s"&" "&"monthly support obl. is:"))) -> 
B41: =Info!$M$21 ->  | AA41: =IF(AG36<>FALSE,AG36,IF(AG37<>FALSE,AG37,IF(AG38<>FALSE,AG38,IF(AG39<>FALSE,AG39,IF(AG40<>FALSE,AG40))))) -> 
A96: Split Guideline Worksheet (Imputation)
B97: Date: | C97: =TODAY() -> 2025-04-07
C98: Parents' Names: | E98: =Info!$B$1 ->  | G98: Docket #: | I98: =Info!$S$11 -> 
E99: =Info!$B$2 ->  | H99: DCSE#: | I99: =Info!$S$12 -> 
A101: Guideline Calculation | I101: =IF(ISTEXT($E$3),$Q$7," ") ->  | L101: =IF(ISTEXT($E$4),$Q$8," ") -> 
A102: A. | B102: Income
A103: A1 | B103: Parent's monthly gross income: | I103: =Info!K11 -> 0 | L103: =Info!L11 -> 0
A104: A2 | B104: Spousal Support Income: | I104: =Info!$B$16 -> 0 | L104: =Info!$D$16 -> 0
A105: A3 | B105: Income deduction for spousal support paid by the party | I105: =Info!$B$20 -> 0 | L105: =Info!$D$20 -> 0
A106: A4 | B106: # of other biological or adopted children residing with each party:
B107: =$I$101 ->  | C107: =Info!$B$21 -> 0 | E107: =$L$101 ->  | F107: =Info!$D$21 -> 0 | I107: =Info!$M$8 -> 0 | L107: =Info!$N$8 -> 0
A108: A5 | B108: Income deduction for other child support paid by the party | I108: =Info!$B$22 -> 0 | L108: =Info!$D$22 -> 0
A109: A6 | B109: Income deduction for 1/2 of self-employment tax paid: | I109: =Info!$B$23 -> 0 | L109: =Info!$D$23 -> 0
A110: A7 | B110: Income deduction for Reasonable Business Expenses | I110: =Info!$B$24 -> 0 | L110: =Info!$D$24 -> 0 | N110: =IF(AND($I$16=" ",$L$16=" ")," ",IF($I$16=" ",$L$16-0,IF($L$16=" ",$I$16-0,$I$16+$L$16))) -> 0
A111: A8 | B111: Available combined monthly gross income (GI): | I111: =IF(SUM($I$103:$I$104)-SUM($I$105:$I$110)<0,0,SUM($I$103:$I$104)-SUM($I$105:$I$110)) -> 0 | J111: ="+" -> + | L111: =IF(SUM($L$103:$L$104)-SUM($L$105:$L$110)<0,0,SUM($L$103:$L$104)-SUM($L$105:$L$110)) -> 0 | M111: = | N111: =I111+L111 -> 0
A112: A9 | B112: Parent's income share: divide each parent's GI (A8) by combined GI: | I112: =IF(AND($I$111=0,$L$111=0),50%,IF(OR(($N$111=0),($N$111=" "))," ",IF(AND($N$111>0,$L$111=0),100%,IF(AND($N$15>0,$L$111=" "),100%,IF(AND($N$111>0,$I$111=" "),0,IF(AND($N$111>0,$I$111=0),0,ROUND($I$111/$N$111,4))))))) -> 0.5 | L112: =IF(AND($I$111=0,$L$111=0),50%,IF(OR(($N$111=0),($N$111=" "))," ",IF(AND($N$111>0,$I$111=0),100%,IF(AND($N$111>0,$I$111=" "),100%,IF(AND($N$111>0,$L$111=" "),0,IF(AND($N$111>0,$L$111=0),0,ROUND($L$111/$N$111,4))))))) -> 0.5 | N112: combined (GI)
A113: A10 | B113: Number of children for which that person is the noncustodial parent. | I113: =Info!$B$9 -> 0 | L113: =Info!$B$8 -> 0
A115: B. | B115: Split Custody Support | I115: =IF(ISTEXT($E$3),$Q$7," ") ->  | L115: =IF(ISTEXT($E$4),$Q$8," ") -> 
A116: B1 | B116: Monthly basic child support obligation for number of children listed above | I116: =Info!$P$7 -> 0 | L116: =Info!$O$7 -> 0
A117: B2 | B117: Monthly amt for health care coverage paid by other parent or that other parent’s spouse | I117: =Info!$D$26 -> 0 | L117: =Info!$B$26 -> 0
A118: B3 | B118: Monthly amount allowable for employment-related child care expense paid by other parent | I118: =Info!$D$27 -> 0 | L118: =Info!$B$27 -> 0
A119: B4 | B119: Total | I119: =SUM($I$116:$I$118) -> 0 | L119: =SUM($L$116:$L$118) -> 0
A120: B5 | B120: Total monthly child support obligation of each party | I120: =VLOOKUP($I$113,Info!AW24:BA29,3,FALSE) ->  | L120: =VLOOKUP($L$113,Info!BD24:BH29,3,FALSE) -> 
A121: B6 | B121: Payable to: | D121: =IF($I$120<$L$120,$Q$13,$Q$14) ->  | I121: =IF(I115=D121,$L$120-$I$120,$I$120-$L$120) -> 
J122: net amount
A123: C | B123: Adjustments including SSDI Derivative Benefit Paid to Other Parent | I123: =IFERROR($Q$13," ") ->  | L123: =IFERROR($Q$14," ") -> 
A124: C1 | B124: Total monthly support amt. each parent owes the other parent: | I124: =$I$120 ->  | L124: =$L$120 -> 
A125: C2 | B125: Parent's SSDI derivative benefit paid to the other parent for the benefit of child(ren): | I125: =IF(Info!$B$32="No",0,Info!$B$30) -> 0 | L125: =IF(Info!$D$32="No",0,Info!$D$30) -> 0
A126: C3 | B126: Adjustment: | C126: =Info!AH41 ->  | I126: =IF(OR(Info!$AK$61="",Info!$AK$61=" "),0,Info!$AK$61) -> 0 | L126: =IF(OR(Info!$AL$61="",Info!$AL$61=" "),0,Info!$AL$61) -> 0
A127: C4 | B127: Adjustment: | C127: =$C$32 ->  | I127: =$I$32 -> 0 | L127: =$L$32 -> 
A128: C5 | B128: Adjustment: tot. mnthly support amt each parent pays to other: | I128: =IF($I$124-SUM($I$125:$I$127)<=0,0,$I$124-SUM($I$125:$I$127)) ->  | L128: =IF($L$124-SUM($L$125:$L$127)<=0,0,$L$124-SUM($L$125:$L$127)) -> 
A129: C6 | B129: Payable to: | D129: =IF($L$128>$I$128,$Q$13,$Q$14) ->  | I129: =ROUND(IF($I$128>$L$128,$I$128-$L$128,$L$128-$I$128),2) -> 
J130: net amount
B131: =IF($D$129=$I$123,$L$123,$I$123)&" "&"imputed monthly support obligation is $"&$I$129 ->  | L131: =Info!$Q$2 -> 2025 B Ed.

Sheet Multi
A1: Multiple Shared Guideline Worksheet | BC1: Yes
BA2: Switch | BB2: Yes | BC2: No
A3: Date: | B3: =TODAY() -> 2025-04-07 | C3: Parties' Names: | E3: =Info!$B$1 ->  | I3: =Info!$B$2 -> 
D4: Docket# | E4: =Info!$S$11 ->  | G4: DCSE #: | H4: =Info!$S$12 -> 
A6: Guideline Calculation | I6: =$Q$7 ->  | L6: =$Q$8 -> 
A7: Number of Children for whom parents share jt. legal resp. and support is being sought: | J7: =Info!$B$8 -> 0 | P7: Party A | Q7: =Info!$J$3 -> 
A8: A. | B8: Income | P8: Party B | Q8: =Info!$J$4 -> 
A9: A1 | B9: Parent's monthly gross income: | I9: =Info!$B$15+Info!$B$17+Info!$B$18 -> 0 | L9: =Info!$D$15+Info!$D$17+Info!$D$18 -> 0 | Q9: Parties' Names
A10: A2 | B10: Spousal Support Income: | I10: =Info!$B$16 -> 0 | L10: =Info!$D$16 -> 0 | Q10: Mother/Father
A11: A3 | B11: Income deduction for spousal support paid by the party | I11: =Info!$B$20 -> 0 | L11: =Info!$D$20 -> 0 | Q11: Party A/Party B
A12: A4 | B12: # of other biological or adopted children residing with each party: | Q12: Husband/Wife
B13: =$Q$7 ->  | C13: =IF(Info!$B$21=0," ",Info!$B$21) ->  | E13: =$Q$8 ->  | F13: =IF(Info!$D$21=0," ",Info!$D$21) ->  | I13: =Info!$F$22 -> 0 | L13: =Info!$G$22 -> 0 | Q13: =$Q$7 -> 
A14: A5 | B14: Income deduction for other child support paid by the party | I14: =Info!$B$22 -> 0 | L14: =Info!$D$22 -> 0 | Q14: =$Q$8 -> 
A15: A6 | B15: Income deduction for 1/2 of self-employment tax paid: | I15: =Info!$B$23 -> 0 | L15: =Info!$D$23 -> 0
A16: A7 | B16: Income deduction for Reasonable Business Expenses | I16: =Info!$B$24 -> 0 | L16: =Info!$D$24 -> 0
A17: A8 | B17: Available combined monthly gross income (GI): | I17: =IF(AND($I$8=0,$I$9=0,$I$10=0,$I$12=" ",$I$13=0,$I$14=0)," ",IF(SUM($I$9:$I$10)-SUM($I$11:I$16)<0,0,SUM($I$9:$I$10)-SUM($I$11:$I$16))) -> 0 | J17: ="+" -> + | L17: =IF(AND($L$8=0,$L$9=0,$L$10=0,$L$12=" ",$L$13=0,$L$14=0)," ",IF(SUM($L$9:$L$10)-SUM($L$11:$L$14)<0,0,SUM($L$9:$L$10)-SUM($L$11:$L$16))) -> 0 | M17: = | N17: =I17+L17 -> 0
A18: A9 | B18: Parent's income share: divide each parent's GI (A8) by combined GI: | I18: =IF(AND($I$17=0,$L$17=0),50%,IF(OR(($N$17=0),($N$17=" "))," ",IF(AND($N$17>0,$L$17=0),100%,IF(AND($N$17>0,$L$17=" "),100%,IF(AND($N$17>0,$I$17=" "),0,IF(AND($N$17>0,$I$17=0),0,ROUND($I$17/$N$17,4))))))) -> 0.5 | L18: =IF(AND($I$17=0,$L$17=0),50%,IF(OR(($N$17=0),($N$17=" "))," ",IF(AND($N$17>0,$I$17=0),100%,IF(AND($N$17>0,$I$17=" "),100%,IF(AND($N$17>0,$L$17=" "),0,IF(AND($N$17>0,$L$17=0),0,ROUND($L$17/$N$17,4))))))) -> 0.5 | N18: combined (GI)
A19: A10 | B19: Child support from guideline table: | J19: =Info!$H$23 -> 0
A21: B. | B21: Shared Child Support Needs | I21: =$Q$7 ->  | L21: =$Q$8 -> 
A22: B1 | B22: Shared support need: multiply sched. mnthly basic child support obl.(A10) by 1.4: | J22: =IF($J$7=0," ",$J$19*1.4) ->  | K22: =IF($J$7=0," ",$N$18*1.4) -> 
A23: B2 | B23: Total # of days each year parent has custody of child 1: | I23: =Info!$H$9 ->  | L23: =IFERROR(365-$I$23," ") -> 
A24: B3 | B24: Total # of days each year parent has custody of child 2: | I24: =IF(OR(Info!$H$10="",Info!$H$10=" ",Info!$H$10=0),"",Info!$H$10) ->  | L24: =IFERROR(365-$I$24," ") -> 
A25: B4 | B25: Total # of days each year parent has custody of child 3: | I25: =IF(OR(Info!H$11="",Info!H$11=" ",Info!H11=0),0,Info!H$11) -> 0 | L25: =IF(I25=0,0,IFERROR(365-$I$25," ")) -> 0
A26: B5 | B26: Total # of days each year parent has custody of child 4: | I26: =IF(OR(Info!H$12="",Info!H$12=" ",Info!H12=0),0,Info!H$12) -> 0 | L26: =IF(I26=0,0,IFERROR(365-$I$26," ")) -> 0
A27: B6 | B27: Total # of days each year parent has custody of child 5: | I27: =IF(OR(Info!H$13="",Info!H$13=" ",Info!H13=0),0,Info!H$13) -> 0 | L27: =IF(I27=0,0,IFERROR(365-$I$27," ")) -> 0
A28: B7 | B28: Total # of days each year parent has custody of child 6: | I28: =IF(OR(Info!H$14="",Info!H$14=" ",Info!H14=0),0,Info!H$14) -> 0 | L28: =IF(I28=0,0,IFERROR(365-$I$28," ")) -> 0
A29: B8 | B29: Total # of days each year parent has with children: | I29: =IF(AND($I$23=0,$I$24=0,$I$25=0,$I$26=0,$I$27=0,$I$28=0)," ",I23+I24+I25+I26+I27+I28) ->  | L29: =IF(AND($L$23=0,$L$24=0,$L$25=0,$L$26=0,$L$27=0,$L$28=0)," ",(SUM($L$23:$L$28))) -> 0
A30: B9 | B30: Average # of days each year parent has custody of children: | I30: =ROUND(IF($J$7=0," ",$I$29/$J$7),2) ->  | L30: =365-I30 -> 
A31: B10 | B31: Parent's custody share: divide avg. # of days child(ren) with parent (B9) by 365: | I31: =IF($J$7=0," ",ROUND($I$30/365,4)) ->  | L31: =IF($J$7=0," ",ROUND($L$30/365,4)) -> 
A32: B11 | B32: Basic support: multiply parent's shared support need by the other parent's custody share: | I32: =IF($J$7=0," ",$J$22*$L$31) ->  | L32: =IF($J$7=0," ",$J$22*$I$31) -> 
A33: B12 | B33: Basic monthly support: multiply parent's basic support amt. by his/her income share: | I33: =IF($J$7=0," ",$I$32*$I$18) ->  | J33: - | L33: =IF($J$7=0," ",$L$32*$L$18) ->  | N33: =IF($J$7=0," ",IF($I$33>$L$33,ROUND($I$33-$L$33,2),ROUND($L$33-$I$33,2))) -> 
A34: B13 | B34: Payable to: | C34: =IF($I$33=" "," ",IF($I$33<$L$33,$Q$13,$Q$14)) ->  | N34: Net Amount
A35: B14 | B35: Min. Std. Test § 20-108.2 (G)(3)(d): # members in household: | I35: =IF(OR($C$13=" ",$C$13=""),1+$J$7+0,1+$J$7+$C$13) -> 1 | L35: =IF(OR($F$13=" ",$F$13=""),1+$J$7+0,1+$J$7+$F$13) -> 1
A36: B15 | B36: Monthly income test at 150% of fed. poverty level (household size): | I36: =IF($I$35=0," ",(IF($I$35<=8,VLOOKUP($I$35,Info!$AA$43:'Info'!$AB$50,2,TRUE),6768.75+(($I$35-8)*687.5)))) -> 1956.25 | L36: =IF($L$35=0," ",(IF($L$35<=8,VLOOKUP($L$35,Info!$AA$43:'Info'!$AB$50,2,TRUE),6768.75+(($L$35-8)*687.5)))) -> 1956.25
A37: B16 | B37: Is either parent's gross income less than 150% of fed. poverty level? | I37: =IF($I$35=0," ",IF(OR($I$17=" ",$I$17=0),"Yes",IF($I$36>=$I$17,"Yes","No"))) -> Yes | L37: =IF($L$35=0," ",IF(OR($L$17=" ",$L$17=0),"Yes",IF($L$36>=$L$17,"Yes","No"))) -> Yes
A38: B17 | B38: Min. Std. Test § 20-108.2 (G)(3)(d) results: | F38: =IF(AND($I$36=" ",$L$36=" ")," ",IF(OR($I$37="Yes",$L$37="Yes"),"Failed Minimum Standard Test - See below","Passed Min. Std test")) -> Failed Minimum Standard Test - See below
A40: C. | B40: Health Care/Work-Related (W-R) Daycare Calculation | I40: =$Q$7 ->  | L40: =$Q$8 -> 
A41: C1 | B41: Parent's health care cost (HCC) for Health/Dental/Vision: | I41: =Info!$B$26 -> 0 | L41: =Info!$D$26 -> 0
A42: C2 | B42: Parent's W-R daycare cost: | I42: =Info!$B$27 -> 0 | L42: =Info!$D$27 -> 0
A43: C3 | B43: Combined HCC/W-R daycare costs: | I43: =IF(AND($I$41=" ",$I$42=" ",$L$41=" ",$L$42=" ")," ",$I$41+$I$42) -> 0 | L43: =IF(AND($I$41=" ",$I$42=" ",$L$41=" ",$L$42=" ")," ",$L$41+$L$42) -> 0
A44: C4 | B44: Amt. parent owes other parent for HCC/W-R daycare cost based income share: | I44: =IF(AND($L$43=" ",$I$43=" ")," ",IF(AND($L$41=0,$L$42=0,L$43>0)," ",ROUND($L$43*$I$18,2))) -> 0 | J44: - | L44: =IF(AND($L$43=" ",$I$43=" ")," ",IF(AND($I$41=0,$I$42=0,$I$43>0)," ",ROUND($I$43*$L$18,2))) -> 0 | N44: =IF(AND($I$44=" ",$L$44=" ")," ",IF($I$44>$L$44,$I$44-$L$44,$L$44-$I$44)) -> 0
A45: C5 | B45: Payable to: | C45: =IF($I$43=" "," ",IF($I$44<$L$44,$Q$13,$Q$14)) ->  | N45: Net Amount
A47: D. | B47: Support to be paid: | I47: =$Q$7 ->  | L47: =$Q$8 -> 
A48: D1 | B48: Shared Custody: Parent owing net basic monthly child support amt: | I48: =IF($C$34=" "," ",IF($C$34=$Q$13,0,$N$33)) ->  | L48: =IF($C$34=" "," ",IF($C$34=$Q$14,0,$N$33)) -> 
A49: D2 | B49: HCC/W-R daycare cost: Parent owing net monthly amt: | I49: =IF($N$44=0,0,IF($C$45=" "," ",IF($C$45=$Q$13,0,$N$44))) -> 0 | L49: =IF($N$44=0,0,IF($C$45=" "," ",IF($C$45=$Q$14,0,$N$44))) -> 0
A50: D3 | B50: Net monthly support amt. payable from one parent to the other parent: | I50: =IF(AND($I$48=" ",$I$49=" ")," ",SUM($I$48:$I$49)) -> 0 | J50: ="-" -> - | L50: =IF(AND($L$48=" ",$L$49=" ")," ",SUM($L$48:$L$49)) -> 0 | N50: =IF(AND($I$50=" ",$L$50=" ")," ",IF($I$50>$L$50,$I$50-$L$50,$L$50-$I$50)) -> 0
A51: D4 | B51: Payable to: | C51: =IF($I$50=" "," ",IF($I$50<$L$50,$Q$13,$Q$14)) -> 
A53: E. | B53: Adjustment for SSDI Derivative Benefit Paid to Other Parent | I53: =$Q$7 ->  | L53: =$Q$8 -> 
A54: E1 | B54: Total monthly support amt each parent owes the other parent: | I54: =$I$50 -> 0 | L54: =IF($I$54=" "," ",$L$50) -> 0
A55: E2 | B55: Parent's SSDI derivative benefit paid to the other parent for the benefit of child(ren): | I55: =IF($I$53=Info!$R$31,Info!$B$30,0) -> 0 | L55: =IF($L$53=Info!$R$31,Info!$D$30,0) -> 0
A56: E3 | B56: Adjustment: | C56: =Info!$AI$11 ->  | I56: =IF(Info!$AM$30<>"",Info!$AM$30,0) -> 0 | L56: =IF(Info!$AN$30<>" ",Info!$AN$30,0) -> 
A57: E4 | B57: Adjustment: | C57: =Info!$AQ$12 ->  | I57: =IF(Info!$AW$6<>"",Info!$AW$6,0) -> 0 | L57: =IF(Info!$AX$6<>"",Info!$AX$6,0) -> 0
A58: E5 | B58: Adjustment: tot. mnthly support amt each parent pays to other: | I58: =IF($I$54=" "," ",IF($I$54-SUM($I$55:$I$57)<=0,0,$I$54-SUM($I$55:$I$57))) -> 0 | J58: ="-" -> - | L58: =IF(AND($I$54=" ",$L$54=" ")," ",IF($L$54-SUM($L$55:$L$57)<=0,0,$L$54-SUM($L$55:$L$57))) -> 0 | N58: =IF($I$58=" "," ",IF($I$58>$L$58,$I$58-$L$58,$L$58-$I$58)) -> 0
A59: E6 | B59: Payable to: | C59: =IF($I$58=" "," ",IF($I$58<$L$58,$Q$13,$Q$14)) -> 
N60: =Info!$Q$2 -> 2025 B Ed.
B62: =IF(AND($C$59=" ",$C$51=" ")," ",IF($C$59=$Q$13,$Q$14&"'"&"s"&" "&"monthly"&" "&"support"&" "&"obl."&" "&"is:",IF($C$59=$Q$14,$Q$13&"'"&"s"&" "&"monthly"&" "&"support"&" "&"obl."&" "&"is:",IF($C$59=" ",IF($C$51=$Q$13,$Q$14&"'"&"s"&" "&"monthly"&" "&"support"&" "&"obl."&" "&"is:",IF($C$51=$Q$14,$Q$13&"'"&"s"&" "&"monthly"&" "&"support"&" "&"obl."&" "&"is:")))))) -> 's monthly support obl. is: | F62: =IF(AND($N$50=0,$N$58=" ")," ",ROUND(IF(AND($N$50>0,$N$58=" "),N$50,$N$58),2)) -> 0
B63: =IF(Info!$K$12="No"," ",IF($C$154=$Q$13,$Q$14&"'"&"s"&" "&"imputed monthly"&" "&"support obl. is: $"&$N$153,IF($C$154=$Q$14,$Q$13&"'"&"s"&" "&"imputed monthly support obl. is: $"&$N$153))) -> 
B64: =Info!$M$18 -> 
B65: =Info!$M$19 -> 
B66: =Info!$M$20 -> 
B67: =Info!$M$21 -> 
B69: =Info!J23 -> 
B70: =IF(AND(Info!K12="Yes", Info!K21="Yes"),Shared!$B$66,"") -> 
A96: Multiple Shared Guideline Worksheet (Imputation)
A98: Date: | B98: =TODAY() -> 2025-04-07 | C98: Parties' Names: | E98: =Info!$B$1 ->  | I98: =Info!$B$2 -> 
D99: Docket# | E99: =Info!$S$11 ->  | G99: DCSE #: | H99: =Info!$S$12 -> 
A101: Guideline Calculation | I101: =$Q$7 ->  | L101: =$Q$8 -> 
A102: Number of Children for whom parents share jt. legal resp. and support is being sought: | J102: =Info!$B$8 -> 0
A103: A. | B103: Income
A104: A1 | B104: Parent's monthly gross income: | I104: =Info!$K$11 -> 0 | L104: =Info!$L$11 -> 0
A105: A2 | B105: Spousal Support Income: | I105: =Info!$B$16 -> 0 | L105: =Info!$D$16 -> 0
A106: A3 | B106: Income deduction for spousal support paid by the party | I106: =Info!$B$20 -> 0 | L106: =Info!$D$20 -> 0
A107: A4 | B107: # of other biological or adopted children residing with each party:
B108: =$Q$7 ->  | C108: =Info!$B$21 -> 0 | E108: =$Q$8 ->  | F108: =Info!$D$21 -> 0 | I108: =Info!$M$8 -> 0 | L108: =Info!N8 -> 0
A109: A5 | B109: Income deduction for other child support paid by the party | I109: =Info!$B$22 -> 0 | L109: =Info!$D$22 -> 0
A110: A6 | B110: Income deduction for 1/2 of self-employment tax paid: | I110: =Info!$B$23 -> 0 | L110: =Info!$D$23 -> 0
A111: A7 | B111: Income deduction for Reasonable Business Expenses | I111: =Info!$B$24 -> 0 | L111: =Info!$D$24 -> 0
A112: A8 | B112: Available combined monthly gross income (GI): | I112: =IF(AND($I$104=0,$I$105=0,$I$106=0,$I$108=" ",$I$109=0,$I$110=0,$I$111=0)," ",IF(SUM($I$104:$I$105)-SUM($I$106:I$111)<0,0,SUM($I$104:$I$105)-SUM($I$106:$I$111))) -> 0 | J112: ="+" -> + | L112: =IF(AND($L$104=0,$L$105=0,$L$106=0,$L$108=" ",$L$109=0,$L$110=0,$L$111=0)," ",IF(SUM($L$104:$L$105)-SUM($L$106:L$111)<0,0,SUM($L$104:$L$105)-SUM($L$106:$L$111))) -> 0 | M112: = | N112: =$I$112+$L$112 -> 0
A113: A9 | B113: Parent's income share: divide each parent's GI (A8) by combined GI: | I113: =IF(AND($I$112=0,$L$112=0),50%,IF(OR(($N$112=0),($N$112=" "))," ",IF(AND($N$112>0,$L$112=0),100%,IF(AND($N$112>0,$L$112=" "),100%,IF(AND($N$112>0,$I$112=" "),0,IF(AND($N$112>0,$I$112=0),0,ROUND($I$112/$N$112,4))))))) -> 0.5 | L113: =IF(AND($I$112=0,$L$112=0),50%,IF(OR(($N$112=0),($N$112=" "))," ",IF(AND($N$112>0,$I$112=0),100%,IF(AND($N$112>0,$I$112=" "),100%,IF(AND($N$112>0,$L$112=" "),0,IF(AND($N$112>0,$L$112=0),0,ROUND($L$112/$N$112,4))))))) -> 0.5 | N113: combined (GI)
A114: A10 | B114: Child support from guideline table: | J114: =Info!$O$7 -> 0
A116: B. | B116: Shared Child Support Needs | I116: =$Q$7 ->  | L116: =$Q$8 -> 
A117: B1 | B117: Shared support need: multiply sched. mnthly basic child support obl.(A10) by 1.4: | J117: =IF($J$102=0," ",$J$114*1.4) ->  | K117: =IF($J$7=0," ",$N$18*1.4) -> 
A118: B2 | B118: Total # of days each year parent has custody of child 1: | I118: =Info!$H$9 ->  | L118: =IFERROR(365-$I$23," ") -> 
A119: B3 | B119: Total # of days each year parent has custody of child 2: | I119: =IF(OR(Info!$H$10="",Info!$H$10=" ",Info!$H$10=0)," ",Info!$H$10) ->  | L119: =IFERROR(365-$I$24," ") -> 
A120: B4 | B120: Total # of days each year parent has custody of child 3: | I120: =IF(OR(Info!$H$11="",Info!$H$11=" ",Info!$H$11=0)," ",Info!$H$11) ->  | L120: =IFERROR(365-$I$25," ") -> 365
A121: B5 | B121: Total # of days each year parent has custody of child 4: | I121: =IF(OR(Info!$H$12="",Info!$H$12=" ",Info!$H$12=0)," ",Info!$H$12) ->  | L121: =IFERROR(365-$I$26," ") -> 365
A122: B6 | B122: Total # of days each year parent has custody of child 5: | I122: =IF(OR(Info!$H$13="",Info!$H$13=" ",Info!$H$13=0)," ",Info!$H$13) ->  | L122: =IFERROR(365-$I$27," ") -> 365
A123: B7 | B123: Total # of days each year parent has custody of child 6: | I123: =IF(OR(Info!$H$14="",Info!$H$14=" ",Info!$H$14=0)," ",Info!$H$14) ->  | L123: =IFERROR(365-$I$28," ") -> 365
A124: B8 | B124: Total # of days each year parent has with children: | I124: =IF(AND($I$23=0,$I$24=0,$I$25=0,$I$26=0,$I$27=0,$I$28=0)," ",(SUM($I$23:$I$28))) -> 0 | L124: =IF(AND($L$23=0,$L$24=0,$L$25=0,$L$26=0,$L$27=0,$L$28=0)," ",(SUM($L$23:$L$28))) -> 0
A125: B9 | B125: Average # of days each year parent has custody of children: | I125: =ROUND(IF($J$7=0," ",$I$29/$J$7),2) ->  | L125: =365-I125 -> 
A126: B10 | B126: Parent's custody share: divide avg. # of days child(ren) with parent (B9) by 365: | I126: =IF($J$7=0," ",ROUND($I$30/365,4)) ->  | L126: =IF($J$7=0," ",ROUND($L$30/365,4)) -> 
A127: B11 | B127: Basic support: multiply parent's shared support need by the other parent's custody share: | I127: =IF($J$7=0," ",$J$117*$L$126) ->  | L127: =IF($J$7=0," ",$J$117*$I$126) -> 
A128: B12 | B128: Basic monthly support: multiply parent's basic support amt. by his/her income share: | I128: =IF($J$102=0," ",$I$127*$I$113) ->  | J128: - | L128: =IF($J$102=0," ",$L$127*$L$113) ->  | N128: =IF($J$102=0," ",IF($I$128>$L$128,ROUND($I$128-$L$128,2),ROUND($L$128-$I$128,2))) -> 
A129: B13 | B129: Payable to: | C129: =IF($I$128=" "," ",IF($I$128<$L$128,$Q$13,$Q$14)) ->  | N129: Net Amount
A130: B14 | B130: Min. Std. Test § 20-108.2 (G)(3)(d): # members in household: | I130: =$I$35 -> 1 | L130: =$L$35 -> 1
A131: B15 | B131: Monthly income test at 150% of fed. poverty level (household size): | I131: =IF($I$35=0," ",(IF($I$35<=8,1595+(($I$35*560)-560),5515+(($I$35-8)*560)))) -> 1595 | L131: =IF($L$35=0," ",(IF($L$35<=8,1595+(($L$35*560)-560),5515+(($L$35-8)*560)))) -> 1595
A132: B16 | B132: Is either parent's gross income less than 150% of fed. poverty level? | I132: =IF($I$131=0," ",IF(OR($I$112=" ",$I$112=0),"Yes",IF($I$131>=$I$112,"Yes","No"))) -> Yes | L132: =IF($L$131=0," ",IF(OR($L$112=" ",$L$112=0),"Yes",IF($L$131>=$L$112,"Yes","No"))) -> Yes
A133: B17 | B133: Min. Std. Test § 20-108.2 (G)(3)(d) results: | F133: =IF(AND($I$36=" ",$L$36=" ")," ",IF(OR($I$37="Yes",$L$37="Yes"),"Failed Minimum Standard Test"," ")) -> Failed Minimum Standard Test
A135: C. | B135: Health Care/Work-Related (W-R) Daycare Calculation | I135: =$Q$7 ->  | L135: =$Q$8 -> 
A136: C1 | B136: Parent's health care cost (HCC) for Health/Dental/Vision: | I136: =Info!$B$26 -> 0 | L136: =Info!$D$26 -> 0
A137: C2 | B137: Parent's W-R daycare cost: | I137: =Info!$B$27 -> 0 | L137: =Info!$D$27 -> 0
A138: C3 | B138: Combined HCC/W-R daycare costs: | I138: =$I$136+$I$137 -> 0 | L138: =$L$136+$L$137 -> 0
A139: C4 | B139: Amt. parent owes other parent for HCC/W-R daycare cost based income share: | I139: =ROUND($L$138*$I$113,2) -> 0 | J139: - | L139: =ROUND($I$138*$L$113,2) -> 0 | N139: =IF($I$139>$L$139,$I$139-$L$139,$L$139-$I$139) -> 0
A140: C5 | B140: Payable to: | C140: =IF($I$139<$L$139,$Q$13,$Q$14) ->  | N140: Net Amount
A142: D. | B142: Support to be paid: | I142: =$Q$7 ->  | L142: =$Q$8 -> 
A143: D1 | B143: Shared Custody: Parent owing net basic monthly child support amt: | I143: =IF($C$129=$Q$13,0,$N$128) ->  | L143: =IF($C$129=$Q$14,0,$N$128) -> 
A144: D2 | B144: HCC/W-R daycare cost: Parent owing net monthly amt: | I144: =IF($C$140=$Q$13,0,$N$139) -> 0 | L144: =IF($C$140=$Q$14,0,$N$139) -> 0
A145: D3 | B145: Net monthly support amt. payable from one parent to the other parent: | I145: =SUM($I$143:$I$144) -> 0 | J145: ="-" -> - | L145: =SUM($L$143:$L$144) -> 0 | N145: =IF($I$145>$L$145,$I$145-$L$145,$L$145-$I$145) -> 0
A146: D4 | B146: Payable to: | C146: =IF($I$145<$L$145,$Q$13,$Q$14) -> 
A148: E. | B148: Adjustment for SSDI Derivative Benefit Paid to Other Parent | I148: =$Q$7 ->  | L148: =$Q$8 -> 
A149: E1 | B149: Total monthly support amt each parent owes the other parent: | I149: =$I$145 -> 0 | L149: =$L$145 -> 0
A150: E2 | B150: Parent's SSDI derivative benefit paid to the other parent for the benefit of child(ren): | I150: =IF($I$148=Info!$R$31,Info!$B$30,0) -> 0 | L150: =IF($L$148=Info!$R$31,Info!$D$30,0) -> 0
A151: E3 | B151: Adjustment: | C151: =Info!$AH$41 ->  | I151: =IF(Info!$AK$61<>"",Info!$AK$61,0) -> 0 | L151: =IF(Info!$AL$61<>"",Info!$AL$61,0) -> 0
A152: E4 | B152: Adjustment: | C152: =$C$57 ->  | I152: =$I$57 -> 0 | L152: =$L$57 -> 0
